{"text_format":"1","workbook":"xlsx","n_sheets":6,"sheets":["Version History","Application","Calculations","QPLs","Invoice_Optional","Savings and Incentives"],"not_rendered":{"charts":0,"images":10,"macros":1,"external_links":1,"defined_names":91,"comments":1,"pivot_tables":0},"unopened":[],"bounds":{"document_bytes":16777216,"sheet_cells":100000,"rows_first":2000,"rows_last":500,"rows_between":2000,"halvings":0,"cell_chars":16384,"cell_head_chars":4096},"cells_cut":0,"cells_raw":0,"read":"whole","date_system":"1900"}

{"sheet":"Version History","index":0,"n_rows":12,"n_cols":4,"rows_kept":12,"cut":false,"hidden":true,"merged":[]}
["2021 Comprehensive Lighting Solutions Workbook"]
[]
["Version History"]
["Program Year","Date of Revision","Description of Changes","Updated By:"]
[2020,"2020-07-09","On Savings and Incentive tab, remove $/kWh and fix MMID 5029 final incentive to cap at 50% of project cost. Round / adjust HID lighting options to match Page 41 of Lighting Catalog. ","Melissa"]
[2020,"2020-07-10","Correct R4758 to be per kW controlled (not per motor) and kitchen demand control ventilation measures to require tech review. ","Zach"]
[2020,"2020-11-20","Corrected formula in column Z on the calc tab to reference $E$9 and $G$10 instead of E9 and G10","Melissa"]
[2020,"2020-12-23","Updated exterior control savings factor from 0.4 to 0.5 per approved workpaper in Huddle","Melissa"]
[2020,"2020-12-23","Updated the Application tab to reflect what the catalog application page will look like for 2021","Jeremiah"]
[2020,"2020-12-29","Changed password for protecting sheets to 'focus 2021'; changed # of rows options to 10/50/300/1000; updated 2021 Incentives header","Melissa/Zach"]
[2020,"2020-12-30","Removed '2020 CLS Sell Sheet' that was embedded on Savings and Incentives tab","Melissa"]
[2021,"2021-03-18","Added conditional formatting and an error message to prevent existing hours from being edited if the Annual Run Hours is set to \"Default Sector Hours\".","Zach"]

{"sheet":"Application","index":1,"n_rows":64,"n_cols":14,"rows_kept":64,"cut":false,"hidden":false,"merged":[[15,12,15,13],[60,1,60,4],[52,5,52,6],[58,1,58,6],[14,4,14,6],[44,5,44,6],[19,9,19,13],[23,9,23,13],[21,9,21,10],[21,11,21,13],[25,9,25,13],[52,1,52,4],[27,9,27,11],[25,1,25,6],[27,1,27,6],[41,9,41,11],[9,11,9,13],[7,9,7,13],[5,0,8,7],[9,9,9,10],[0,0,3,8],[0,9,3,13],[57,12,57,13],[58,9,59,13],[23,2,23,6],[32,10,32,12],[48,1,48,6],[50,1,50,4],[29,1,29,6],[37,1,37,4],[31,1,31,4],[33,1,33,6],[65,9,65,13],[62,11,62,13],[50,5,50,6],[63,9,64,13],[11,1,13,6],[45,9,45,10],[46,9,48,13],[50,9,50,13],[49,9,49,13],[53,11,53,13],[43,9,43,13],[37,9,37,13],[39,9,39,13],[51,9,51,10],[53,9,53,10],[55,9,56,13]]}
["COMPREHENSIVE LIGHTING SOLUTION APPLICATION                                                                                                        FOR PROJECTS COMPLETED BY 12/31/2021",null,null,null,null,null,null,null,null,"Note: this workbook needs to be used in the full version of Excel. Some features won't work in Excel Online."]
[]
[]
[]
[]
["PLEASE COMPLETE ALL SECTIONS. INCOMPLETE APPLICATIONS CANNOT BE PROCESSED AND WILL DELAY PAYMENT OF INCENTIVES. APPLICATIONS MUST BE SUBMITTED WITHIN 60 DAYS OF COMPLETED PROJECT INSTALLATION, NO LATER THAN JANUARY 31, 2022. FOR ADDITIONAL COPIES OF THIS FORM, VISIT FOCUSONENERGY.COM/CATALOGS"]
[null,null,null,null,null,null,null,null,null,"CUSTOMER CONTACT INFORMATION"]
[]
[null,null,null,null,null,null,null,null,null,"JOB SITE CUSTOMER CONTACT NAME"]
[]
[null,"ACCOUNT AND CUSTOMER INFORMATION",null,null,null,null,null,null,null,"PRIMARY PHONE #",null,"E-MAIL ADDRESS"]
[null,"TAX IDENTIFICATION NUMBER (Check one. If you use a Social Security number   as your tax identification number, leave blank. You will be contacted by a program representative via email to provide a copy of your W-9. You must list an email address in Section 3.)",null,null,null,null,null,null,null,"      I opt in to receive program updates via text message."]
[null,null,null,null,null,null,null,null,null,"Preferred method of contact:"]
[null,null,null,null,null,null,null,null,null,"       Call","E-mail","Text"]
[null,"FEIN        or",null,"       SSN",null,null,null,null,null,"If Focus on Energy has a question about this application, we should contact:"]
[null,null,null,null,"FEIN",null,null,null,null,"       Customer","Trady Ally","      Other"]
[]
[null,"BUSINESS CLASSIFICATION OF CUSTOMER"]
[null,"(Check one. Required for all businesses, including non-profits.)",null,null,null,null,null,null,null,"TRADE ALLY INFORMATION"]
[null,"Sole Proprietorship",null,"Individual",null,"Single Member - LLC"]
[null,"C Corporation",null,"S Corporation",null,"Partnership",null,null,null,"TRADE ALLY CONTACT NAME"]
[null,"Limited Liability Company - C Corp",null,null,null,"Limited Liability Company - S Corp"]
[null,"Limited Liability Company - Partnership",null,null,null,null,null,null,null,"PRIMARY PHONE #",null,"E-MAIL ADDRESS"]
[null,"Other:"]
[null,null,null,null,null,null,null,null,null,"TRADE ALLY COMPANY NAME"]
[]
[null,"OWNER NAME (REQUIRED IF SSN IS USED AS TAX IDENTIFICATION NUMBER)",null,null,null,null,null,null,null,"ADDRESS"]
[]
[null,"COMPANY NAME",null,null,null,null,null,null,null,"CITY",null,null,"STATE","ZIP"]
[]
[null,"LEGAL ADDRESS (AS SHOWN ON COMPANY W-9)",null,null,null,null,null,null,null,"BUSINESS PAYMENT INFORMATION"]
[null,null,null,null,null,null,null,null,null,"Make incentive check payable to:"]
[null,"CITY",null,null,null,"STATE","ZIP",null,null,"        Customer","Trade Ally (complete item A)"]
[null,null,null,null,null,null,null,null,null,"        Other Payee (complete item B)"]
[null,"WHO DID YOU WORK WITH FROM FOCUS ON ENERGY ON THIS PROJECT? (CONTACT NAME)",null,null,null,null,null,null,null,"Mail check to:"]
[null,null,null,null,null,null,null,null,null,"       Customer Address","  Job Site Address",null,"          Trade Ally Address"]
[null,"How did you hear about us? (Check one.)",null,null,null,null,null,null,null,"       Other Payee or Alternate Address (complete below)"]
[null,"            Community Association/Agency",null,null,null,"Distributor/Supplier"]
[null,"Focus Direct Mail/Postcard",null,null,null,"Focus Email","Focus Event",null,null,"COMPANY NAME"]
[null,"Focus Staff/Energy Advisor",null,null,null,"Focus Website","Internet Search"]
[null,"Manufacturer",null,null,"Nat'l Rebate Administrator",null,"            Newspaper",null,null,"ADDRESS"]
[null,"Past Participation",null,null,"Radio","Social Media","            Trade Ally/Contractor"]
[null,"Trade Show/Fair",null,null,"TV","Utility Bill Insert/Direct Mail",null,null,null,"CITY",null,null,"STATE","ZIP"]
[null,"       Utility Contact",null,null,"Utility Email","           Utility Website"]
[null,"             Word of Mouth - Referral",null,null,"             Other:",null,null,null,null,"ATTENTION TO (OPTIONAL)"]
[null,null,null,null,null,null,null,null,null,"A. For Trade Ally Payee "]
[null,"JOB SITE INFORMATION",null,null,null,null,null,null,null,"To receive payment, a Trade Ally must be registered with a current W-9 on file. Provide the Trade Ally's Tax Identification Number. If you use a Social Security number as the company tax ID, do not provide it here. "]
[null,"(Please refer to your utility bills for account numbers below.)"]
[]
[null,"JOB SITE BUSINESS NAME"]
[null,null,null,null,null,null,null,null,null,"FEIN"]
[null,"ELECTRIC UTILITY AT JOB SITE",null,null,null,"ELECTRIC ACCOUNT #",null,null,null,"B. For Other Payee "]
[null,"N/A",null,null,null,"N/A",null,null,null,"1. Individual Contact Information:"]
[null,"GAS UTILITY AT JOB SITE",null,null,null,"GAS ACCOUNT #"]
[null,null,null,null,null,null,null,null,null,"NAME",null,"EMAIL ADDRESS"]
[null,"Job Site Address is same as Legal Address",null,null,null,null,null,null,null,"2. Specify relationship to utility account holder (this is required if check is payable to someone other than the Customer or Trade Ally):"]
[null,"Job Site Address is different (complete below.)"]
[null,null,null,null,null,null,null,null,null," Tenant                 Building Owner",null," Other (specify)"]
[null,null,null,null,null,null,null,null,null,"3. Select your business classification (Check one. Required for all businesses, including non-profits.)"]
[null,"JOB SITE ADDRESS"]
[null,null,null,null,null,null,null,null,null,"Sole Proprietorship","    Individual","          Single-Member LLC",null,"C Corporation"]
[null,"CITY",null,null,null,"STATE","ZIP",null,null,"        S Corporation","Partnership","LLC - C Corp","    LLC - S Corp"]
[null,null,null,null,null,null,null,null,null," LLC - Partnership","   Other"]
[null,null,null,null,null,null,null,null,null,"4. A representative of Focus on Energy will reach out to you via email with a method to securely provide a copy of your W-9. This is required to receive payment. Provide the email address (if different than the one provided above): "]

{"sheet":"Calculations","index":2,"n_rows":1542,"n_cols":45,"rows_kept":1542,"cut":false,"hidden":false,"merged":[[123,31,123,33],[124,31,124,33],[125,31,125,33],[126,31,126,33],[118,31,118,33],[119,31,119,33],[120,31,120,33],[121,31,121,33],[122,31,122,33],[103,31,103,33],[104,31,104,33],[105,31,105,33],[106,31,106,33],[107,31,107,33],[98,31,98,33],[99,31,99,33],[100,31,100,33],[101,31,101,33],[102,31,102,33],[113,31,113,33],[114,31,114,33],[115,31,115,33],[116,31,116,33],[117,31,117,33],[108,31,108,33],[109,31,109,33],[110,31,110,33],[111,31,111,33],[112,31,112,33],[72,31,72,33],[83,31,83,33],[84,31,84,33],[85,31,85,33],[86,31,86,33],[87,31,87,33],[78,31,78,33],[79,31,79,33],[80,31,80,33],[81,31,81,33],[82,31,82,33],[93,31,93,33],[94,31,94,33],[95,31,95,33],[96,31,96,33],[97,31,97,33],[88,31,88,33],[89,31,89,33],[90,31,90,33],[91,31,91,33],[92,31,92,33],[222,31,222,33],[195,31,195,33],[196,31,196,33],[197,31,197,33],[198,31,198,33],[189,31,189,33],[190,31,190,33],[191,31,191,33],[192,31,192,33],[193,31,193,33],[184,31,184,33],[185,31,185,33],[186,31,186,33],[187,31,187,33],[188,31,188,33],[179,31,179,33],[43,31,43,33],[44,31,44,33],[45,31,45,33],[46,31,46,33],[47,31,47,33],[53,31,53,33],[54,31,54,33],[55,31,55,33],[56,31,56,33],[57,31,57,33],[48,31,48,33],[49,31,49,33],[50,31,50,33],[51,31,51,33],[52,31,52,33],[63,31,63,33],[21,31,21,33],[22,31,22,33],[23,31,23,33],[24,31,24,33],[25,31,25,33],[26,31,26,33],[27,31,27,33],[28,31,28,33],[29,31,29,33],[33,31,33,33],[34,31,34,33],[35,31,35,33],[36,31,36,33],[37,31,37,33],[219,31,219,33],[220,31,220,33],[221,31,221,33],[38,31,38,33],[39,31,39,33],[40,31,40,33],[41,31,41,33],[42,31,42,33],[64,31,64,33],[65,31,65,33],[66,31,66,33],[67,31,67,33],[58,31,58,33],[59,31,59,33],[60,31,60,33],[61,31,61,33],[62,31,62,33],[73,31,73,33],[30,31,30,33],[31,31,31,33],[32,31,32,33],[214,31,214,33],[215,31,215,33],[216,31,216,33],[217,31,217,33],[218,31,218,33],[209,31,209,33],[210,31,210,33],[211,31,211,33],[212,31,212,33],[213,31,213,33],[204,31,204,33],[205,31,205,33],[206,31,206,33],[207,31,207,33],[208,31,208,33],[199,31,199,33],[200,31,200,33],[201,31,201,33],[202,31,202,33],[203,31,203,33],[194,31,194,33],[74,31,74,33],[75,31,75,33],[76,31,76,33],[77,31,77,33],[68,31,68,33],[69,31,69,33],[70,31,70,33],[71,31,71,33],[156,31,156,33],[157,31,157,33],[158,31,158,33],[169,31,169,33],[170,31,170,33],[171,31,171,33],[172,31,172,33],[173,31,173,33],[164,31,164,33],[165,31,165,33],[166,31,166,33],[167,31,167,33],[168,31,168,33],[180,31,180,33],[181,31,181,33],[182,31,182,33],[183,31,183,33],[174,31,174,33],[175,31,175,33],[176,31,176,33],[177,31,177,33],[178,31,178,33],[267,31,267,33],[268,31,268,33],[269,31,269,33],[270,31,270,33],[243,31,243,33],[244,31,244,33],[245,31,245,33],[246,31,246,33],[237,31,237,33],[238,31,238,33],[239,31,239,33],[240,31,240,33],[241,31,241,33],[232,31,232,33],[233,31,233,33],[234,31,234,33],[235,31,235,33],[236,31,236,33],[250,31,250,33],[251,31,251,33],[242,31,242,33],[127,31,127,33],[128,31,128,33],[129,31,129,33],[130,31,130,33],[131,31,131,33],[132,31,132,33],[133,31,133,33],[134,31,134,33],[135,31,135,33],[139,31,139,33],[140,31,140,33],[141,31,141,33],[142,31,142,33],[143,31,143,33],[227,31,227,33],[149,31,149,33],[150,31,150,33],[151,31,151,33],[152,31,152,33],[153,31,153,33],[144,31,144,33],[145,31,145,33],[146,31,146,33],[147,31,147,33],[148,31,148,33],[159,31,159,33],[160,31,160,33],[161,31,161,33],[162,31,162,33],[163,31,163,33],[154,31,154,33],[155,31,155,33],[1047,2,1047,16],[1041,2,1041,16],[1042,2,1042,16],[1043,2,1043,16],[1044,2,1044,16],[1045,2,1045,16],[1046,2,1046,16],[1039,2,1039,16],[1039,21,1040,21],[1039,22,1040,22],[1039,23,1040,23],[1039,24,1040,24],[1040,2,1040,16],[1038,2,1038,16],[1029,3,1029,4],[1029,13,1029,14],[1029,15,1029,16],[1029,18,1029,20],[1031,18,1031,20],[1034,2,1034,16],[1035,2,1035,16],[1036,2,1036,16],[1037,2,1037,16],[1029,21,1029,23],[1030,18,1030,20],[1027,3,1027,4],[1027,13,1027,14],[1027,15,1027,16],[1027,18,1027,20],[1027,21,1027,23],[1028,3,1028,4],[1028,13,1028,14],[1028,15,1028,16],[1028,18,1028,20],[1028,21,1028,23],[228,31,228,33],[229,31,229,33],[230,31,230,33],[231,31,231,33],[262,31,262,33],[263,31,263,33],[264,31,264,33],[265,31,265,33],[266,31,266,33],[257,31,257,33],[258,31,258,33],[259,31,259,33],[260,31,260,33],[261,31,261,33],[252,31,252,33],[253,31,253,33],[254,31,254,33],[312,31,312,33],[313,31,313,33],[314,31,314,33],[318,31,318,33],[1019,31,1019,33],[1025,10,1025,23],[1026,3,1026,4],[1026,13,1026,14],[1026,15,1026,16],[1026,18,1026,20],[1026,21,1026,23],[317,31,317,33],[619,31,619,33],[620,31,620,33],[621,31,621,33],[622,31,622,33],[623,31,623,33],[624,31,624,33],[625,31,625,33],[626,31,626,33],[627,31,627,33],[628,31,628,33],[629,31,629,33],[630,31,630,33],[631,31,631,33],[632,31,632,33],[633,31,633,33],[643,31,643,33],[644,31,644,33],[645,31,645,33],[646,31,646,33],[647,31,647,33],[648,31,648,33],[649,31,649,33],[650,31,650,33],[651,31,651,33],[634,31,634,33],[293,31,293,33],[282,31,282,33],[283,31,283,33],[284,31,284,33],[285,31,285,33],[286,31,286,33],[287,31,287,33],[288,31,288,33],[289,31,289,33],[290,31,290,33],[291,31,291,33],[292,31,292,33],[315,31,315,33],[316,31,316,33],[305,31,305,33],[294,31,294,33],[295,31,295,33],[296,31,296,33],[297,31,297,33],[298,31,298,33],[299,31,299,33],[300,31,300,33],[301,31,301,33],[302,31,302,33],[303,31,303,33],[304,31,304,33],[306,31,306,33],[307,31,307,33],[308,31,308,33],[309,31,309,33],[310,31,310,33],[311,31,311,33],[19,31,19,33],[18,1,18,9],[18,10,18,16],[18,20,18,23],[18,24,18,28],[18,29,18,30],[18,31,18,33],[18,17,18,19],[281,31,281,33],[20,31,20,33],[271,31,271,33],[272,31,272,33],[273,31,273,33],[274,31,274,33],[275,31,275,33],[276,31,276,33],[277,31,277,33],[278,31,278,33],[279,31,279,33],[280,31,280,33],[223,31,223,33],[224,31,224,33],[225,31,225,33],[226,31,226,33],[136,31,136,33],[137,31,137,33],[138,31,138,33],[255,31,255,33],[256,31,256,33],[247,31,247,33],[248,31,248,33],[249,31,249,33],[635,31,635,33],[636,31,636,33],[637,31,637,33],[638,31,638,33],[639,31,639,33],[640,31,640,33],[641,31,641,33],[642,31,642,33],[661,31,661,33],[662,31,662,33],[663,31,663,33],[664,31,664,33],[665,31,665,33],[666,31,666,33],[667,31,667,33],[668,31,668,33],[669,31,669,33],[652,31,652,33],[653,31,653,33],[654,31,654,33],[655,31,655,33],[656,31,656,33],[657,31,657,33],[658,31,658,33],[659,31,659,33],[660,31,660,33],[679,31,679,33],[680,31,680,33],[681,31,681,33],[682,31,682,33],[683,31,683,33],[684,31,684,33],[685,31,685,33],[686,31,686,33],[687,31,687,33],[670,31,670,33],[671,31,671,33],[672,31,672,33],[673,31,673,33],[674,31,674,33],[675,31,675,33],[676,31,676,33],[677,31,677,33],[678,31,678,33],[697,31,697,33],[698,31,698,33],[699,31,699,33],[700,31,700,33],[701,31,701,33],[702,31,702,33],[703,31,703,33],[704,31,704,33],[705,31,705,33],[688,31,688,33],[689,31,689,33],[690,31,690,33],[691,31,691,33],[692,31,692,33],[693,31,693,33],[694,31,694,33],[695,31,695,33],[696,31,696,33],[715,31,715,33],[716,31,716,33],[717,31,717,33],[718,31,718,33],[719,31,719,33],[720,31,720,33],[721,31,721,33],[722,31,722,33],[723,31,723,33],[706,31,706,33],[707,31,707,33],[708,31,708,33],[709,31,709,33],[710,31,710,33],[711,31,711,33],[712,31,712,33],[713,31,713,33],[714,31,714,33],[733,31,733,33],[734,31,734,33],[735,31,735,33],[736,31,736,33],[737,31,737,33],[738,31,738,33],[739,31,739,33],[740,31,740,33],[741,31,741,33],[724,31,724,33],[725,31,725,33],[726,31,726,33],[727,31,727,33],[728,31,728,33],[729,31,729,33],[730,31,730,33],[731,31,731,33],[732,31,732,33],[751,31,751,33],[752,31,752,33],[753,31,753,33],[754,31,754,33],[755,31,755,33],[756,31,756,33],[757,31,757,33],[758,31,758,33],[759,31,759,33],[742,31,742,33],[743,31,743,33],[744,31,744,33],[745,31,745,33],[746,31,746,33],[747,31,747,33],[748,31,748,33],[749,31,749,33],[750,31,750,33],[769,31,769,33],[770,31,770,33],[771,31,771,33],[772,31,772,33],[773,31,773,33],[774,31,774,33],[775,31,775,33],[776,31,776,33],[777,31,777,33],[760,31,760,33],[761,31,761,33],[762,31,762,33],[763,31,763,33],[764,31,764,33],[765,31,765,33],[766,31,766,33],[767,31,767,33],[768,31,768,33],[787,31,787,33],[788,31,788,33],[789,31,789,33],[790,31,790,33],[791,31,791,33],[792,31,792,33],[793,31,793,33],[794,31,794,33],[795,31,795,33],[778,31,778,33],[779,31,779,33],[780,31,780,33],[781,31,781,33],[782,31,782,33],[783,31,783,33],[784,31,784,33],[785,31,785,33],[786,31,786,33],[805,31,805,33],[806,31,806,33],[807,31,807,33],[808,31,808,33],[809,31,809,33],[810,31,810,33],[811,31,811,33],[812,31,812,33],[813,31,813,33],[796,31,796,33],[797,31,797,33],[798,31,798,33],[799,31,799,33],[800,31,800,33],[801,31,801,33],[802,31,802,33],[803,31,803,33],[804,31,804,33],[823,31,823,33],[824,31,824,33],[825,31,825,33],[826,31,826,33],[827,31,827,33],[828,31,828,33],[829,31,829,33],[830,31,830,33],[831,31,831,33],[814,31,814,33],[815,31,815,33],[816,31,816,33],[817,31,817,33],[818,31,818,33],[819,31,819,33],[820,31,820,33],[821,31,821,33],[822,31,822,33],[841,31,841,33],[842,31,842,33],[843,31,843,33],[844,31,844,33],[845,31,845,33],[846,31,846,33],[847,31,847,33],[848,31,848,33],[849,31,849,33],[832,31,832,33],[833,31,833,33],[834,31,834,33],[835,31,835,33],[836,31,836,33],[837,31,837,33],[838,31,838,33],[839,31,839,33],[840,31,840,33],[872,31,872,33],[873,31,873,33],[874,31,874,33],[875,31,875,33],[876,31,876,33],[859,31,859,33],[860,31,860,33],[861,31,861,33],[862,31,862,33],[863,31,863,33],[864,31,864,33],[865,31,865,33],[866,31,866,33],[867,31,867,33],[850,31,850,33],[851,31,851,33],[852,31,852,33],[853,31,853,33],[854,31,854,33],[855,31,855,33],[856,31,856,33],[857,31,857,33],[858,31,858,33],[1014,31,1014,33],[997,31,997,33],[998,31,998,33],[999,31,999,33],[1000,31,1000,33],[1001,31,1001,33],[1002,31,1002,33],[1003,31,1003,33],[1004,31,1004,33],[1005,31,1005,33],[886,31,886,33],[887,31,887,33],[888,31,888,33],[889,31,889,33],[890,31,890,33],[891,31,891,33],[892,31,892,33],[893,31,893,33],[996,31,996,33],[894,31,894,33],[895,31,895,33],[896,31,896,33],[897,31,897,33],[898,31,898,33],[899,31,899,33],[900,31,900,33],[901,31,901,33],[902,31,902,33],[903,31,903,33],[904,31,904,33],[905,31,905,33],[906,31,906,33],[1015,31,1015,33],[1016,31,1016,33],[1017,31,1017,33],[1018,31,1018,33],[321,31,321,33],[322,31,322,33],[323,31,323,33],[324,31,324,33],[325,31,325,33],[326,31,326,33],[327,31,327,33],[328,31,328,33],[329,31,329,33],[330,31,330,33],[331,31,331,33],[332,31,332,33],[333,31,333,33],[334,31,334,33],[335,31,335,33],[336,31,336,33],[337,31,337,33],[338,31,338,33],[339,31,339,33],[340,31,340,33],[1006,31,1006,33],[1007,31,1007,33],[1008,31,1008,33],[1009,31,1009,33],[1010,31,1010,33],[1011,31,1011,33],[1012,31,1012,33],[1013,31,1013,33],[350,31,350,33],[351,31,351,33],[352,31,352,33],[353,31,353,33],[354,31,354,33],[355,31,355,33],[356,31,356,33],[357,31,357,33],[358,31,358,33],[341,31,341,33],[342,31,342,33],[343,31,343,33],[344,31,344,33],[345,31,345,33],[346,31,346,33],[347,31,347,33],[348,31,348,33],[349,31,349,33],[368,31,368,33],[369,31,369,33],[370,31,370,33],[371,31,371,33],[372,31,372,33],[373,31,373,33],[374,31,374,33],[375,31,375,33],[376,31,376,33],[359,31,359,33],[360,31,360,33],[361,31,361,33],[362,31,362,33],[363,31,363,33],[364,31,364,33],[365,31,365,33],[366,31,366,33],[367,31,367,33],[386,31,386,33],[387,31,387,33],[388,31,388,33],[389,31,389,33],[390,31,390,33],[391,31,391,33],[392,31,392,33],[393,31,393,33],[394,31,394,33],[377,31,377,33],[378,31,378,33],[379,31,379,33],[380,31,380,33],[381,31,381,33],[382,31,382,33],[383,31,383,33],[384,31,384,33],[385,31,385,33],[404,31,404,33],[405,31,405,33],[406,31,406,33],[407,31,407,33],[408,31,408,33],[409,31,409,33],[410,31,410,33],[411,31,411,33],[412,31,412,33],[395,31,395,33],[396,31,396,33],[397,31,397,33],[398,31,398,33],[399,31,399,33],[400,31,400,33],[401,31,401,33],[402,31,402,33],[403,31,403,33],[422,31,422,33],[423,31,423,33],[424,31,424,33],[425,31,425,33],[426,31,426,33],[427,31,427,33],[428,31,428,33],[429,31,429,33],[430,31,430,33],[413,31,413,33],[414,31,414,33],[415,31,415,33],[416,31,416,33],[417,31,417,33],[418,31,418,33],[419,31,419,33],[420,31,420,33],[421,31,421,33],[440,31,440,33],[441,31,441,33],[442,31,442,33],[443,31,443,33],[444,31,444,33],[445,31,445,33],[446,31,446,33],[447,31,447,33],[448,31,448,33],[431,31,431,33],[432,31,432,33],[433,31,433,33],[434,31,434,33],[435,31,435,33],[436,31,436,33],[437,31,437,33],[438,31,438,33],[439,31,439,33],[458,31,458,33],[459,31,459,33],[460,31,460,33],[461,31,461,33],[462,31,462,33],[463,31,463,33],[464,31,464,33],[465,31,465,33],[466,31,466,33],[449,31,449,33],[450,31,450,33],[451,31,451,33],[452,31,452,33],[453,31,453,33],[454,31,454,33],[455,31,455,33],[456,31,456,33],[457,31,457,33],[476,31,476,33],[477,31,477,33],[478,31,478,33],[479,31,479,33],[480,31,480,33],[481,31,481,33],[482,31,482,33],[483,31,483,33],[484,31,484,33],[467,31,467,33],[468,31,468,33],[469,31,469,33],[470,31,470,33],[471,31,471,33],[472,31,472,33],[473,31,473,33],[474,31,474,33],[475,31,475,33],[494,31,494,33],[495,31,495,33],[496,31,496,33],[497,31,497,33],[498,31,498,33],[499,31,499,33],[500,31,500,33],[501,31,501,33],[502,31,502,33],[485,31,485,33],[486,31,486,33],[487,31,487,33],[488,31,488,33],[489,31,489,33],[490,31,490,33],[491,31,491,33],[492,31,492,33],[493,31,493,33],[512,31,512,33],[513,31,513,33],[514,31,514,33],[515,31,515,33],[516,31,516,33],[517,31,517,33],[518,31,518,33],[519,31,519,33],[520,31,520,33],[503,31,503,33],[504,31,504,33],[505,31,505,33],[506,31,506,33],[507,31,507,33],[508,31,508,33],[509,31,509,33],[510,31,510,33],[511,31,511,33],[530,31,530,33],[531,31,531,33],[532,31,532,33],[533,31,533,33],[534,31,534,33],[535,31,535,33],[536,31,536,33],[537,31,537,33],[538,31,538,33],[521,31,521,33],[522,31,522,33],[523,31,523,33],[524,31,524,33],[525,31,525,33],[526,31,526,33],[527,31,527,33],[528,31,528,33],[529,31,529,33],[548,31,548,33],[549,31,549,33],[550,31,550,33],[551,31,551,33],[552,31,552,33],[553,31,553,33],[554,31,554,33],[555,31,555,33],[556,31,556,33],[539,31,539,33],[540,31,540,33],[541,31,541,33],[542,31,542,33],[543,31,543,33],[544,31,544,33],[545,31,545,33],[546,31,546,33],[547,31,547,33],[578,31,578,33],[579,31,579,33],[580,31,580,33],[581,31,581,33],[582,31,582,33],[583,31,583,33],[566,31,566,33],[567,31,567,33],[568,31,568,33],[569,31,569,33],[570,31,570,33],[571,31,571,33],[572,31,572,33],[573,31,573,33],[574,31,574,33],[557,31,557,33],[558,31,558,33],[559,31,559,33],[560,31,560,33],[561,31,561,33],[562,31,562,33],[563,31,563,33],[564,31,564,33],[565,31,565,33],[319,31,319,33],[320,31,320,33],[602,31,602,33],[603,31,603,33],[604,31,604,33],[605,31,605,33],[606,31,606,33],[607,31,607,33],[608,31,608,33],[609,31,609,33],[610,31,610,33],[593,31,593,33],[594,31,594,33],[595,31,595,33],[596,31,596,33],[597,31,597,33],[598,31,598,33],[599,31,599,33],[600,31,600,33],[601,31,601,33],[584,31,584,33],[585,31,585,33],[586,31,586,33],[587,31,587,33],[588,31,588,33],[589,31,589,33],[590,31,590,33],[591,31,591,33],[592,31,592,33],[575,31,575,33],[576,31,576,33],[577,31,577,33],[909,31,909,33],[910,31,910,33],[911,31,911,33],[912,31,912,33],[913,31,913,33],[914,31,914,33],[915,31,915,33],[916,31,916,33],[917,31,917,33],[611,31,611,33],[612,31,612,33],[613,31,613,33],[614,31,614,33],[615,31,615,33],[616,31,616,33],[617,31,617,33],[618,31,618,33],[907,31,907,33],[908,31,908,33],[877,31,877,33],[878,31,878,33],[879,31,879,33],[880,31,880,33],[881,31,881,33],[882,31,882,33],[883,31,883,33],[884,31,884,33],[885,31,885,33],[868,31,868,33],[869,31,869,33],[870,31,870,33],[871,31,871,33],[927,31,927,33],[928,31,928,33],[929,31,929,33],[930,31,930,33],[931,31,931,33],[932,31,932,33],[933,31,933,33],[934,31,934,33],[935,31,935,33],[918,31,918,33],[919,31,919,33],[920,31,920,33],[921,31,921,33],[922,31,922,33],[923,31,923,33],[924,31,924,33],[925,31,925,33],[926,31,926,33],[945,31,945,33],[946,31,946,33],[947,31,947,33],[948,31,948,33],[949,31,949,33],[950,31,950,33],[951,31,951,33],[952,31,952,33],[953,31,953,33],[936,31,936,33],[937,31,937,33]],"merged_total":1049,"flags":["merged_cut"]}
[null,null,null,null,null,null,null,null,null,null,"2021 Incentive Rates","Last Updated: ",{"$f":"MAX('Version History'!$B$5:$B$20)","v":"2021-03-18"},null,null,null,null,null,null,null,null,null,null,null,null,null,null,null,null,null,null,null,null,null,"Hide"]
[null,"Comprehensive Lighting Solutions"]
[]
[null,null,"Project Information"]
[null,null,null,"Customer Name:",null,null,null,"User Input"]
[null,null,null,"Facility Name:",null,null,null,"Calc Output"]
[null,null,null,"Project Cost:"]
[null,null,null,"Sector for Annual Run Hours:","Schools & Gov"]
[null,null,null,"Annual Run Hours:","Default Sector Hours",{"$f":"IF(E9=\"Default Sector Hours\",IF(COUNTIF($AI$21:$AI$1020,\"Yes\")>0,\"To enter site specific hours of operation, change 'Annual Run Hours' from 'Default Sector Hours' to 'Manual Input'\",\"\"),\"\")","v":""}]
[null,null,null,"Building Type for Coincidence Factor:","_Sector Default_","Coincidence Factor = ",{"$f":"VLOOKUP(E10,$AB$1037:$AC$1070,2,FALSE)","v":0.64}]
[null,null,null,"Sector for Utility Rates:","Commercial/Schools & Government"]
[null,null,null,"Interior or 24/7 (On-Peak) Utility Rate:",{"$f":"VLOOKUP(E11,V1046:X1048,2,FALSE)","v":0.11020000000000001},"Actual, if known."]
[null,null,null,"Exterior (Off-Peak) Utility Rate:",7.6999999999999999E-2,"Actual, if known."]
[null,null,null,"Estimated Project Size:","Small (10 rows)","Adjusts number of line items currently being shown."]
[null,null,null,"% of Project Cost Cap:",0.5]
[null,null,null,"Baseline Adjustment to Account for Existing Controls:",0.1,"Interior",0,"Exterior"]
[]
[]
[null,"EXISTING LIGHTING",null,null,null,null,null,null,null,null,"PROPOSED LIGHTING",null,null,null,null,null,null,"ADDITIONAL INPUTS",null,null,"LIGHTING ENERGY USE",null,null,null,"TOTAL ENERGY SAVINGS AND INCENTIVE",null,null,null,null,"COSTS",null,"Notes & Supporting Docs"]
[null,"Line #","Location","Existing Lighting Category","Existing Lighting Fixture/Lamp","Description / Notes","Existing QTY","Default Input Watts","Manual Input Watts","Existing Annual Hours","Proposed Lighting Category","Proposed Lighting Fixture/Lamp","Description / Notes","Proposed QTY","Default Input Watts","Manual Input Watts","Proposed Annual Hours","Interior or Exterior?","On NLC Controls?","Qualifies for Prescriptive","Existing Peak kW","Existing kWh","Proposed Peak kW","Proposed kWh","Watts Reduced","Peak kW Savings","Annual kWh Savings","Qualifies for Code","Prescriptive     MMID Code","Unit Cost","Total Cost",null,null,null,"Existing Hours Overriden"]
[null,1,null,null,null,null,null,{"$f":"IF(E21=\"\",\"\",VLOOKUP(E21,$AO$1115:$AP$1542,2,FALSE))","v":""},null,{"$f":"IF(AND(E21<>\"\",G21<>\"\",$E$9=\"Default Sector Hours\"),VLOOKUP(IF(R21=\"Exterior\",\"Exterior\",$E$8),$V$1037:$W$1042,2,FALSE),\"\")","v":""},null,null,null,null,{"$f":"IF(L21=\"\",\"\",VLOOKUP(L21,$AO$1114:$AP$1542,2,FALSE))","v":""},null,{"$f":"IF(J21=\"\",\"\",J21)","v":""},null,"No",null,{"$f":"IF(R21=\"Interior\",IF(E21=\"\",\"\",IF(OR(I21>0,H21=\"Enter Watts\"),I21*G21/1000,H21*G21/1000)),IF(E21=\"\",\"\",0))","v":""},{"$f":"IFERROR(IF(E21=\"\",\"\",G21/1000*IF(OR(I21>0,H21=\"Enter Watts\"),I21,H21)*IF(R21=\"Exterior\",$W$1042*(1-$G$16),IF($E$9=\"Manual Input\",J21,VLOOKUP($E$8,$V$1037:$Y$1041,2,FALSE))*(1-$E$16)      )),\"0\")","v":""},{"$f":"IF(R21=\"Interior\",IF(AND(L21=\"\", E21=\"\"),\"\",IF(OR(P21>0,O21=\"Enter Watts\", P21=\"\"),P21*N21/1000,O21*N21/1000)),IF(AND(E21=\"\",L21=\"\"),\"\",0))","v":""},{"$f":"IFERROR(IF(AND(L21=\"\", E21=\"\"),\"\",N21/1000*IF(OR(P21>0,O21=\"Enter Watts\"),P21,O21)*IF(R21=\"Exterior\",$W$1042,IF($E$9=\"Manual Input\",Q21,VLOOKUP($E$8,$V$1037:$Y$1041,2,FALSE)))*IF(S21=\"Yes\",IF(R21=\"Exterior\",1-$Y$1042,1-VLOOKUP($E$8,$V$1037:$Y$1041,4,FALSE)),1)),0)","v":""},{"$f":"IFERROR(IF(OR(I21>0,H21=\"Enter Watts\"),I21*G21,H21*G21)-IF(OR(P21>0,O21=\"Enter Watts\"),P21*N21,O21*N21),\"\")","v":""},{"$f":"IF(AND(U21=\"\",W21=\"\"),\"\",IF(OR(U21=\"\",W21=\"\"),0,  IF($E$9=\"Manual Input\",$G$10,   VLOOKUP($E$8,$V$1037:$Y$1042,3,FALSE))     *(U21-W21)))","v":""},{"$f":"IF(AND(V21=\"\",X21=\"\"),\"\",IF(OR(V21=\"\",X21=\"\"),0,V21-X21))","v":""},{"$f":"IF(AA21=\"\",\"\",IF(AND(R21=\"Interior\",S21=\"No\",OR(T21=\"\",T21=\"No\")),$J$1028,IF(AND(R21=\"Interior\",S21=\"Yes\"),$J$1029,IF(AND(R21=\"Exterior\",S21=\"Yes\"),$J$1030,IF(AND(R21=\"Exterior\",S21=\"No\",N21<>G21),\"DNQ\",\"See Lighting Catalog to determine Code\")))))","v":""},null,null,null,null,null,null,{"$f":"IF(_xlfn.ISFORMULA(J21)=TRUE,\"No\",\"Yes\")","v":"No"},null,null,null,null,null,null,"","",null,""]
[null,2,null,null,null,null,null,"",null,"",null,null,null,null,"",null,{"$f":"IF(J22=\"\",\"\",J22)","v":""},null,"No",null,{"$f":"IF(R22=\"Interior\",IF(E22=\"\",\"\",IF(OR(I22>0,H22=\"Enter Watts\"),I22*G22/1000,H22*G22/1000)),IF(E22=\"\",\"\",0))","v":""},"",{"$f":"IF(R22=\"Interior\",IF(AND(L22=\"\", E22=\"\"),\"\",IF(OR(P22>0,O22=\"Enter Watts\", P22=\"\"),P22*N22/1000,O22*N22/1000)),IF(AND(E22=\"\",L22=\"\"),\"\",0))","v":""},"",{"$f":"IFERROR(IF(OR(I22>0,H22=\"Enter Watts\"),I22*G22,H22*G22)-IF(OR(P22>0,O22=\"Enter Watts\"),P22*N22,O22*N22),\"\")","v":""},"",{"$f":"IF(AND(V22=\"\",X22=\"\"),\"\",IF(OR(V22=\"\",X22=\"\"),0,V22-X22))","v":""},"",null,null,null,null,null,null,{"$f":"IF(_xlfn.ISFORMULA(J22)=TRUE,\"No\",\"Yes\")","v":"No"}]
[null,3,null,null,null,null,null,"",null,"",null,null,null,null,"",null,"",null,"No",null,{"$f":"IF(R23=\"Interior\",IF(E23=\"\",\"\",IF(OR(I23>0,H23=\"Enter Watts\"),I23*G23/1000,H23*G23/1000)),IF(E23=\"\",\"\",0))","v":""},"",{"$f":"IF(R23=\"Interior\",IF(AND(L23=\"\", E23=\"\"),\"\",IF(OR(P23>0,O23=\"Enter Watts\", P23=\"\"),P23*N23/1000,O23*N23/1000)),IF(AND(E23=\"\",L23=\"\"),\"\",0))","v":""},"",{"$f":"IFERROR(IF(OR(I23>0,H23=\"Enter Watts\"),I23*G23,H23*G23)-IF(OR(P23>0,O23=\"Enter Watts\"),P23*N23,O23*N23),\"\")","v":""},"",{"$f":"IF(AND(V23=\"\",X23=\"\"),\"\",IF(OR(V23=\"\",X23=\"\"),0,V23-X23))","v":""},"",null,null,null,null,null,null,"No"]
[null,4,null,null,null,null,null,"",null,"",null,null,null,null,"",null,"",null,"No",null,"","","","","","","","",null,null,null,null,null,null,"No"]
[null,5,null,null,null,null,null,"",null,"",null,null,null,null,"",null,"",null,"No",null,"","","","","","","","",null,null,null,null,null,null,"No"]
[null,6,null,null,null,null,null,"",null,"",null,null,null,null,"",null,"",null,"No",null,"","","","","","","","",null,null,null,null,null,null,"No",null,null,null,null,null,null,"","",null,""]
[null,7,null,null,null,null,null,"",null,"",null,null,null,null,"",null,"",null,"No",null,"","","","","","","","",null,null,null,null,null,null,"No"]
[null,8,null,null,null,null,null,"",null,"",null,null,null,null,"",null,"",null,"No",null,"","","","","","","","",null,null,null,null,null,null,"No"]
[null,9,null,null,null,null,null,"",null,"",null,null,null,null,"",null,"",null,"No",null,"","","","","","","","",null,null,null,null,null,null,"No"]
[null,10,null,null,null,null,null,"",null,"",null,null,null,null,"",null,"",null,"No",null,"","","","","","","","",null,null,null,null,null,null,"No"]
[null,11,null,null,null,null,null,"",null,"",null,null,null,null,"",null,"",null,"No",null,"","","","","","","","",null,null,null,null,null,null,"No"]
[null,12,null,null,null,null,null,"",null,"",null,null,null,null,"",null,"",null,"No",null,"","","","","","","","",null,null,null,null,null,null,"No",null,null,null,null,null,null,"","",null,""]
[null,13,null,null,null,null,null,"",null,"",null,null,null,null,"",null,"",null,"No",null,"","","","","","","","",null,null,null,null,null,null,"No"]
[null,14,null,null,null,null,null,"",null,"",null,null,null,null,"",null,"",null,"No",null,"","","","","","","","",null,null,null,null,null,null,"No"]
[null,15,null,null,null,null,null,"",null,"",null,null,null,null,"",null,"",null,"No",null,"","","","","","","","",null,null,null,null,null,null,"No"]
[null,16,null,null,null,null,null,"",null,"",null,null,null,null,"",null,"",null,"No",null,"","","","","","","","",null,null,null,null,null,null,"No"]
[null,17,null,null,null,null,null,"",null,"",null,null,null,null,"",null,"",null,"No",null,"","","","","","","","",null,null,null,null,null,null,"No"]
[null,18,null,null,null,null,null,"",null,"",null,null,null,null,"",null,"",null,"No",null,"","","","","","","","",null,null,null,null,null,null,"No"]
[null,19,null,null,null,null,null,"",null,"",null,null,null,null,"",null,"",null,"No",null,"","","","","","","","",null,null,null,null,null,null,"No",null,null,null,null,null,null,"","",null,""]
[null,20,null,null,null,null,null,"",null,"",null,null,null,null,"",null,"",null,"No",null,"","","","","","","","",null,null,null,null,null,null,"No"]
[null,21,null,null,null,null,null,"",null,"",null,null,null,null,"",null,"",null,"No",null,"","","","","","","","",null,null,null,null,null,null,"No"]
[null,22,null,null,null,null,null,"",null,"",null,null,null,null,"",null,"",null,"No",null,"","","","","","","","",null,null,null,null,null,null,"No"]
[null,23,null,null,null,null,null,"",null,"",null,null,null,null,"",null,"",null,"No",null,"","","","","","","","",null,null,null,null,null,null,"No"]
[null,24,null,null,null,null,null,"",null,"",null,null,null,null,"",null,"",null,"No",null,"","","","","","","","",null,null,null,null,null,null,"No"]
[null,25,null,null,null,null,null,"",null,"",null,null,null,null,"",null,"",null,"No",null,"","","","","","","","",null,null,null,null,null,null,"No",null,null,null,null,null,null,"","",null,""]
[null,26,null,null,null,null,null,"",null,"",null,null,null,null,"",null,"",null,"No",null,"","","","","","","","",null,null,null,null,null,null,"No"]
[null,27,null,null,null,null,null,"",null,"",null,null,null,null,"",null,"",null,"No",null,"","","","","","","","",null,null,null,null,null,null,"No"]
[null,28,null,null,null,null,null,"",null,"",null,null,null,null,"",null,"",null,"No",null,"","","","","","","","",null,null,null,null,null,null,"No"]
[null,29,null,null,null,null,null,"",null,"",null,null,null,null,"",null,"",null,"No",null,"","","","","","","","",null,null,null,null,null,null,"No"]
[null,30,null,null,null,null,null,"",null,"",null,null,null,null,"",null,"",null,"No",null,"","","","","","","","",null,null,null,null,null,null,"No"]
[null,31,null,null,null,null,null,"",null,"",null,null,null,null,"",null,"",null,"No",null,"","","","","","","","",null,null,null,null,null,null,"No"]
[null,32,null,null,null,null,null,"",null,"",null,null,null,null,"",null,"",null,"No",null,"","","","","","","","",null,null,null,null,null,null,"No"]
[null,33,null,null,null,null,null,"",null,"",null,null,null,null,"",null,"",null,"No",null,"","","","","","","","",null,null,null,null,null,null,"No"]
[null,34,null,null,null,null,null,"",null,"",null,null,null,null,"",null,"",null,"No",null,"","","","","","","","",null,null,null,null,null,null,"No"]
[null,35,null,null,null,null,null,"",null,"",null,null,null,null,"",null,"",null,"No",null,"","","","","","","","",null,null,null,null,null,null,"No"]
[null,36,null,null,null,null,null,"",null,"",null,null,null,null,"",null,"",null,"No",null,"","","","","","","","",null,null,null,null,null,null,"No"]
[null,37,null,null,null,null,null,"",null,"",null,null,null,null,"",null,"",null,"No",null,"","","","","","","","",null,null,null,null,null,null,"No",null,null,null,null,null,null,"","",null,""]
[null,38,null,null,null,null,null,"",null,"",null,null,null,null,"",null,"",null,"No",null,"","","","","","","","",null,null,null,null,null,null,"No"]
[null,39,null,null,null,null,null,"",null,"",null,null,null,null,"",null,"",null,"No",null,"","","","","","","","",null,null,null,null,null,null,"No"]
[null,40,null,null,null,null,null,"",null,"",null,null,null,null,"",null,"",null,"No",null,"","","","","","","","",null,null,null,null,null,null,"No"]
[null,41,null,null,null,null,null,"",null,"",null,null,null,null,"",null,"",null,"No",null,"","","","","","","","",null,null,null,null,null,null,"No"]
[null,42,null,null,null,null,null,"",null,"",null,null,null,null,"",null,"",null,"No",null,"","","","","","","","",null,null,null,null,null,null,"No"]
[null,43,null,null,null,null,null,"",null,"",null,null,null,null,"",null,"",null,"No",null,"","","","","","","","",null,null,null,null,null,null,"No",null,null,null,null,null,null,"","",null,""]
[null,44,null,null,null,null,null,"",null,"",null,null,null,null,"",null,"",null,"No",null,"","","","","","","","",null,null,null,null,null,null,"No"]
[null,45,null,null,null,null,null,"",null,"",null,null,null,null,"",null,"",null,"No",null,"","","","","","","","",null,null,null,null,null,null,"No"]
[null,46,null,null,null,null,null,"",null,"",null,null,null,null,"",null,"",null,"No",null,"","","","","","","","",null,null,null,null,null,null,"No"]
[null,47,null,null,null,null,null,"",null,"",null,null,null,null,"",null,"",null,"No",null,"","","","","","","","",null,null,null,null,null,null,"No"]
[null,48,null,null,null,null,null,"",null,"",null,null,null,null,"",null,"",null,"No",null,"","","","","","","","",null,null,null,null,null,null,"No"]
[null,49,null,null,null,null,null,"",null,"",null,null,null,null,"",null,"",null,"No",null,"","","","","","","","",null,null,null,null,null,null,"No"]
[null,50,null,null,null,null,null,"",null,"",null,null,null,null,"",null,"",null,"No",null,{"$f":"IF(R70=\"Interior\",IF(E70=\"\",\"\",IF(OR(I70>0,H70=\"Enter Watts\"),I70*G70/1000,H70*G70/1000)),IF(E70=\"\",\"\",0))","v":""},"",{"$f":"IF(R70=\"Interior\",IF(AND(L70=\"\", E70=\"\"),\"\",IF(OR(P70>0,O70=\"Enter Watts\", P70=\"\"),P70*N70/1000,O70*N70/1000)),IF(AND(E70=\"\",L70=\"\"),\"\",0))","v":""},"",{"$f":"IFERROR(IF(OR(I70>0,H70=\"Enter Watts\"),I70*G70,H70*G70)-IF(OR(P70>0,O70=\"Enter Watts\"),P70*N70,O70*N70),\"\")","v":""},"",{"$f":"IF(AND(V70=\"\",X70=\"\"),\"\",IF(OR(V70=\"\",X70=\"\"),0,V70-X70))","v":""},"",null,null,null,null,null,null,"No"]
[null,51,null,null,null,null,null,"",null,"",null,null,null,null,"",null,"",null,"No",null,{"$f":"IF(R71=\"Interior\",IF(E71=\"\",\"\",IF(OR(I71>0,H71=\"Enter Watts\"),I71*G71/1000,H71*G71/1000)),IF(E71=\"\",\"\",0))","v":""},"",{"$f":"IF(R71=\"Interior\",IF(AND(L71=\"\", E71=\"\"),\"\",IF(OR(P71>0,O71=\"Enter Watts\", P71=\"\"),P71*N71/1000,O71*N71/1000)),IF(AND(E71=\"\",L71=\"\"),\"\",0))","v":""},"",{"$f":"IFERROR(IF(OR(I71>0,H71=\"Enter Watts\"),I71*G71,H71*G71)-IF(OR(P71>0,O71=\"Enter Watts\"),P71*N71,O71*N71),\"\")","v":""},"",{"$f":"IF(AND(V71=\"\",X71=\"\"),\"\",IF(OR(V71=\"\",X71=\"\"),0,V71-X71))","v":""},"",null,null,null,null,null,null,"No"]
[null,52,null,null,null,null,null,"",null,"",null,null,null,null,"",null,"",null,"No",null,"","","","","","","","",null,null,null,null,null,null,"No"]
[null,53,null,null,null,null,null,"",null,"",null,null,null,null,"",null,"",null,"No",null,"","","","","","","","",null,null,null,null,null,null,"No"]
[null,54,null,null,null,null,null,"",null,"",null,null,null,null,"",null,"",null,"No",null,"","","","","","","","",null,null,null,null,null,null,"No",null,null,null,null,null,null,"","",null,""]
[null,55,null,null,null,null,null,"",null,"",null,null,null,null,"",null,"",null,"No",null,"","","","","","","","",null,null,null,null,null,null,"No"]
[null,56,null,null,null,null,null,"",null,"",null,null,null,null,"",null,"",null,"No",null,"","","","","","","","",null,null,null,null,null,null,"No"]
[null,57,null,null,null,null,null,"",null,"",null,null,null,null,"",null,"",null,"No",null,"","","","","","","","",null,null,null,null,null,null,"No"]
[null,58,null,null,null,null,null,"",null,"",null,null,null,null,"",null,"",null,"No",null,"","","","","","","","",null,null,null,null,null,null,"No"]
[null,59,null,null,null,null,null,"",null,"",null,null,null,null,"",null,"",null,"No",null,"","","","","","","","",null,null,null,null,null,null,"No"]
[null,60,null,null,null,null,null,"",null,"",null,null,null,null,"",null,"",null,"No",null,"","","","","","","","",null,null,null,null,null,null,"No",null,null,null,null,null,null,"","",null,""]
[null,61,null,null,null,null,null,"",null,"",null,null,null,null,"",null,"",null,"No",null,"","","","","","","","",null,null,null,null,null,null,"No"]
[null,62,null,null,null,null,null,"",null,"",null,null,null,null,"",null,"",null,"No",null,"","","","","","","","",null,null,null,null,null,null,"No"]
[null,63,null,null,null,null,null,"",null,"",null,null,null,null,"",null,"",null,"No",null,"","","","","","","","",null,null,null,null,null,null,"No"]
[null,64,null,null,null,null,null,"",null,"",null,null,null,null,"",null,"",null,"No",null,"","","","","","","","",null,null,null,null,null,null,"No"]
[null,65,null,null,null,null,null,{"$f":"IF(E85=\"\",\"\",VLOOKUP(E85,$AO$1115:$AP$1542,2,FALSE))","v":""},null,{"$f":"IF(AND(E85<>\"\",G85<>\"\",$E$9=\"Default Sector Hours\"),VLOOKUP(IF(R85=\"Exterior\",\"Exterior\",$E$8),$V$1037:$W$1042,2,FALSE),\"\")","v":""},null,null,null,null,{"$f":"IF(L85=\"\",\"\",VLOOKUP(L85,$AO$1114:$AP$1542,2,FALSE))","v":""},null,"",null,"No",null,"",{"$f":"IFERROR(IF(E85=\"\",\"\",G85/1000*IF(OR(I85>0,H85=\"Enter Watts\"),I85,H85)*IF(R85=\"Exterior\",$W$1042*(1-$G$16),IF($E$9=\"Manual Input\",J85,VLOOKUP($E$8,$V$1037:$Y$1041,2,FALSE))*(1-$E$16)      )),\"0\")","v":""},"",{"$f":"IFERROR(IF(AND(L85=\"\", E85=\"\"),\"\",N85/1000*IF(OR(P85>0,O85=\"Enter Watts\"),P85,O85)*IF(R85=\"Exterior\",$W$1042,IF($E$9=\"Manual Input\",Q85,VLOOKUP($E$8,$V$1037:$Y$1041,2,FALSE)))*IF(S85=\"Yes\",IF(R85=\"Exterior\",1-$Y$1042,1-VLOOKUP($E$8,$V$1037:$Y$1041,4,FALSE)),1)),0)","v":""},"",{"$f":"IF(AND(U85=\"\",W85=\"\"),\"\",IF(OR(U85=\"\",W85=\"\"),0,  IF($E$9=\"Manual Input\",$G$10,   VLOOKUP($E$8,$V$1037:$Y$1042,3,FALSE))     *(U85-W85)))","v":""},"",{"$f":"IF(AA85=\"\",\"\",IF(AND(R85=\"Interior\",S85=\"No\",OR(T85=\"\",T85=\"No\")),$J$1028,IF(AND(R85=\"Interior\",S85=\"Yes\"),$J$1029,IF(AND(R85=\"Exterior\",S85=\"Yes\"),$J$1030,IF(AND(R85=\"Exterior\",S85=\"No\",N85<>G85),\"DNQ\",\"See Lighting Catalog to determine Code\")))))","v":""},null,null,null,null,null,null,"No"]
[null,66,null,null,null,null,null,"",null,"",null,null,null,null,"",null,"",null,"No",null,"","","","","","","","",null,null,null,null,null,null,{"$f":"IF(_xlfn.ISFORMULA(J86)=TRUE,\"No\",\"Yes\")","v":"No"}]
[null,67,null,null,null,null,null,"",null,"",null,null,null,null,"",null,"",null,"No",null,"","","","","","","","",null,null,null,null,null,null,"No",null,null,null,null,null,null,"","",null,""]
[null,68,null,null,null,null,null,"",null,"",null,null,null,null,"",null,"",null,"No",null,"","","","","","","","",null,null,null,null,null,null,"No"]
[null,69,null,null,null,null,null,"",null,"",null,null,null,null,"",null,"",null,"No",null,"","","","","","","","",null,null,null,null,null,null,"No"]
[null,70,null,null,null,null,null,"",null,"",null,null,null,null,"",null,"",null,"No",null,"","","","","","","","",null,null,null,null,null,null,"No"]
[null,71,null,null,null,null,null,"",null,"",null,null,null,null,"",null,"",null,"No",null,"","","","","","","","",null,null,null,null,null,null,"No"]
[null,72,null,null,null,null,null,"",null,"",null,null,null,null,"",null,"",null,"No",null,"","","","","","","","",null,null,null,null,null,null,"No"]
[null,73,null,null,null,null,null,"",null,"",null,null,null,null,"",null,"",null,"No",null,"","","","","","","","",null,null,null,null,null,null,"No",null,null,null,null,null,null,"","",null,""]
[null,74,null,null,null,null,null,"",null,"",null,null,null,null,"",null,"",null,"No",null,"","","","","","","","",null,null,null,null,null,null,"No"]
[null,75,null,null,null,null,null,"",null,"",null,null,null,null,"",null,"",null,"No",null,"","","","","","","","",null,null,null,null,null,null,"No"]
[null,76,null,null,null,null,null,"",null,"",null,null,null,null,"",null,"",null,"No",null,"","","","","","","","",null,null,null,null,null,null,"No"]
[null,77,null,null,null,null,null,"",null,"",null,null,null,null,"",null,"",null,"No",null,"","","","","","","","",null,null,null,null,null,null,"No"]
[null,78,null,null,null,null,null,"",null,"",null,null,null,null,"",null,"",null,"No",null,"","","","","","","","",null,null,null,null,null,null,"No"]
[null,79,null,null,null,null,null,"",null,"",null,null,null,null,"",null,"",null,"No",null,"","","","","","","","",null,null,null,null,null,null,"No"]
[null,80,null,null,null,null,null,"",null,"",null,null,null,null,"",null,"",null,"No",null,"","","","","","","","",null,null,null,null,null,null,"No"]
[null,81,null,null,null,null,null,"",null,"",null,null,null,null,"",null,"",null,"No",null,"","","","","","","","",null,null,null,null,null,null,"No"]
[null,82,null,null,null,null,null,"",null,"",null,null,null,null,"",null,"",null,"No",null,"","","","","","","","",null,null,null,null,null,null,"No"]
[null,83,null,null,null,null,null,"",null,"",null,null,null,null,"",null,"",null,"No",null,"","","","","","","","",null,null,null,null,null,null,"No"]
[null,84,null,null,null,null,null,"",null,"",null,null,null,null,"",null,"",null,"No",null,"","","","","","","","",null,null,null,null,null,null,"No"]
[null,85,null,null,null,null,null,"",null,"",null,null,null,null,"",null,"",null,"No",null,"","","","","","","","",null,null,null,null,null,null,"No",null,null,null,null,null,null,"","",null,""]
[null,86,null,null,null,null,null,"",null,"",null,null,null,null,"",null,"",null,"No",null,"","","","","","","","",null,null,null,null,null,null,"No"]
[null,87,null,null,null,null,null,"",null,"",null,null,null,null,"",null,"",null,"No",null,"","","","","","","","",null,null,null,null,null,null,"No"]
[null,88,null,null,null,null,null,"",null,"",null,null,null,null,"",null,"",null,"No",null,"","","","","","","","",null,null,null,null,null,null,"No"]
[null,89,null,null,null,null,null,"",null,"",null,null,null,null,"",null,"",null,"No",null,"","","","","","","","",null,null,null,null,null,null,"No"]
[null,90,null,null,null,null,null,"",null,"",null,null,null,null,"",null,"",null,"No",null,"","","","","","","","",null,null,null,null,null,null,"No"]
[null,91,null,null,null,null,null,"",null,"",null,null,null,null,"",null,"",null,"No",null,"","","","","","","","",null,null,null,null,null,null,"No",null,null,null,null,null,null,"","",null,""]
[null,92,null,null,null,null,null,"",null,"",null,null,null,null,"",null,"",null,"No",null,"","","","","","","","",null,null,null,null,null,null,"No"]
[null,93,null,null,null,null,null,"",null,"",null,null,null,null,"",null,"",null,"No",null,"","","","","","","","",null,null,null,null,null,null,"No"]
[null,94,null,null,null,null,null,"",null,"",null,null,null,null,"",null,"",null,"No",null,"","","","","","","","",null,null,null,null,null,null,"No"]
[null,95,null,null,null,null,null,"",null,"",null,null,null,null,"",null,"",null,"No",null,"","","","","","","","",null,null,null,null,null,null,"No"]
[null,96,null,null,null,null,null,"",null,"",null,null,null,null,"",null,"",null,"No",null,"","","","","","","","",null,null,null,null,null,null,"No"]
[null,97,null,null,null,null,null,"",null,"",null,null,null,null,"",null,"",null,"No",null,"","","","","","","","",null,null,null,null,null,null,"No"]
[null,98,null,null,null,null,null,"",null,"",null,null,null,null,"",null,"",null,"No",null,{"$f":"IF(R118=\"Interior\",IF(E118=\"\",\"\",IF(OR(I118>0,H118=\"Enter Watts\"),I118*G118/1000,H118*G118/1000)),IF(E118=\"\",\"\",0))","v":""},"",{"$f":"IF(R118=\"Interior\",IF(AND(L118=\"\", E118=\"\"),\"\",IF(OR(P118>0,O118=\"Enter Watts\", P118=\"\"),P118*N118/1000,O118*N118/1000)),IF(AND(E118=\"\",L118=\"\"),\"\",0))","v":""},"",{"$f":"IFERROR(IF(OR(I118>0,H118=\"Enter Watts\"),I118*G118,H118*G118)-IF(OR(P118>0,O118=\"Enter Watts\"),P118*N118,O118*N118),\"\")","v":""},"",{"$f":"IF(AND(V118=\"\",X118=\"\"),\"\",IF(OR(V118=\"\",X118=\"\"),0,V118-X118))","v":""},"",null,null,null,null,null,null,"No"]
[null,99,null,null,null,null,null,"",null,"",null,null,null,null,"",null,"",null,"No",null,{"$f":"IF(R119=\"Interior\",IF(E119=\"\",\"\",IF(OR(I119>0,H119=\"Enter Watts\"),I119*G119/1000,H119*G119/1000)),IF(E119=\"\",\"\",0))","v":""},"",{"$f":"IF(R119=\"Interior\",IF(AND(L119=\"\", E119=\"\"),\"\",IF(OR(P119>0,O119=\"Enter Watts\", P119=\"\"),P119*N119/1000,O119*N119/1000)),IF(AND(E119=\"\",L119=\"\"),\"\",0))","v":""},"",{"$f":"IFERROR(IF(OR(I119>0,H119=\"Enter Watts\"),I119*G119,H119*G119)-IF(OR(P119>0,O119=\"Enter Watts\"),P119*N119,O119*N119),\"\")","v":""},"",{"$f":"IF(AND(V119=\"\",X119=\"\"),\"\",IF(OR(V119=\"\",X119=\"\"),0,V119-X119))","v":""},"",null,null,null,null,null,null,"No"]
[null,100,null,null,null,null,null,"",null,"",null,null,null,null,"",null,"",null,"No",null,"","","","","","","","",null,null,null,null,null,null,"No"]
[null,101,null,null,null,null,null,"",null,"",null,null,null,null,"",null,"",null,"No",null,"","","","","","","","",null,null,null,null,null,null,"No"]
[null,102,null,null,null,null,null,"",null,"",null,null,null,null,"",null,"",null,"No",null,"","","","","","","","",null,null,null,null,null,null,"No",null,null,null,null,null,null,"","",null,""]
[null,103,null,null,null,null,null,"",null,"",null,null,null,null,"",null,"",null,"No",null,"","","","","","","","",null,null,null,null,null,null,"No"]
[null,104,null,null,null,null,null,"",null,"",null,null,null,null,"",null,"",null,"No",null,"","","","","","","","",null,null,null,null,null,null,"No"]
[null,105,null,null,null,null,null,"",null,"",null,null,null,null,"",null,"",null,"No",null,"","","","","","","","",null,null,null,null,null,null,"No"]
[null,106,null,null,null,null,null,"",null,"",null,null,null,null,"",null,"",null,"No",null,"","","","","","","","",null,null,null,null,null,null,"No"]
[null,107,null,null,null,null,null,"",null,"",null,null,null,null,"",null,"",null,"No",null,"","","","","","","","",null,null,null,null,null,null,"No"]
[null,108,null,null,null,null,null,"",null,"",null,null,null,null,"",null,"",null,"No",null,{"$f":"IF(R128=\"Interior\",IF(E128=\"\",\"\",IF(OR(I128>0,H128=\"Enter Watts\"),I128*G128/1000,H128*G128/1000)),IF(E128=\"\",\"\",0))","v":""},"",{"$f":"IF(R128=\"Interior\",IF(AND(L128=\"\", E128=\"\"),\"\",IF(OR(P128>0,O128=\"Enter Watts\", P128=\"\"),P128*N128/1000,O128*N128/1000)),IF(AND(E128=\"\",L128=\"\"),\"\",0))","v":""},"",{"$f":"IFERROR(IF(OR(I128>0,H128=\"Enter Watts\"),I128*G128,H128*G128)-IF(OR(P128>0,O128=\"Enter Watts\"),P128*N128,O128*N128),\"\")","v":""},"",{"$f":"IF(AND(V128=\"\",X128=\"\"),\"\",IF(OR(V128=\"\",X128=\"\"),0,V128-X128))","v":""},"",null,null,null,null,null,null,"No"]
[null,109,null,null,null,null,null,"",null,"",null,null,null,null,"",null,"",null,"No",null,{"$f":"IF(R129=\"Interior\",IF(E129=\"\",\"\",IF(OR(I129>0,H129=\"Enter Watts\"),I129*G129/1000,H129*G129/1000)),IF(E129=\"\",\"\",0))","v":""},"",{"$f":"IF(R129=\"Interior\",IF(AND(L129=\"\", E129=\"\"),\"\",IF(OR(P129>0,O129=\"Enter Watts\", P129=\"\"),P129*N129/1000,O129*N129/1000)),IF(AND(E129=\"\",L129=\"\"),\"\",0))","v":""},"",{"$f":"IFERROR(IF(OR(I129>0,H129=\"Enter Watts\"),I129*G129,H129*G129)-IF(OR(P129>0,O129=\"Enter Watts\"),P129*N129,O129*N129),\"\")","v":""},"",{"$f":"IF(AND(V129=\"\",X129=\"\"),\"\",IF(OR(V129=\"\",X129=\"\"),0,V129-X129))","v":""},"",null,null,null,null,null,null,"No"]
[null,110,null,null,null,null,null,"",null,"",null,null,null,null,"",null,"",null,"No",null,"","","","","","","","",null,null,null,null,null,null,"No"]
[null,111,null,null,null,null,null,"",null,"",null,null,null,null,"",null,"",null,"No",null,"","","","","","","","",null,null,null,null,null,null,"No"]
[null,112,null,null,null,null,null,"",null,"",null,null,null,null,"",null,"",null,"No",null,"","","","","","","","",null,null,null,null,null,null,"No",null,null,null,null,null,null,"","",null,""]
[null,113,null,null,null,null,null,"",null,"",null,null,null,null,"",null,"",null,"No",null,"","","","","","","","",null,null,null,null,null,null,"No"]
[null,114,null,null,null,null,null,"",null,"",null,null,null,null,"",null,"",null,"No",null,"","","","","","","","",null,null,null,null,null,null,"No"]
[null,115,null,null,null,null,null,"",null,"",null,null,null,null,"",null,"",null,"No",null,"","","","","","","","",null,null,null,null,null,null,"No"]
[null,116,null,null,null,null,null,"",null,"",null,null,null,null,"",null,"",null,"No",null,"","","","","","","","",null,null,null,null,null,null,"No"]
[null,117,null,null,null,null,null,"",null,"",null,null,null,null,"",null,"",null,"No",null,"","","","","","","","",null,null,null,null,null,null,"No"]
[null,118,null,null,null,null,null,"",null,"",null,null,null,null,"",null,"",null,"No",null,"","","","","","","","",null,null,null,null,null,null,"No",null,null,null,null,null,null,"","",null,""]
[null,119,null,null,null,null,null,"",null,"",null,null,null,null,"",null,"",null,"No",null,"","","","","","","","",null,null,null,null,null,null,"No"]
[null,120,null,null,null,null,null,"",null,"",null,null,null,null,"",null,"",null,"No",null,"","","","","","","","",null,null,null,null,null,null,"No"]
[null,121,null,null,null,null,null,"",null,"",null,null,null,null,"",null,"",null,"No",null,"","","","","","","","",null,null,null,null,null,null,"No"]
[null,122,null,null,null,null,null,"",null,"",null,null,null,null,"",null,"",null,"No",null,"","","","","","","","",null,null,null,null,null,null,"No"]
[null,123,null,null,null,null,null,"",null,"",null,null,null,null,"",null,"",null,"No",null,"","","","","","","","",null,null,null,null,null,null,"No"]
[null,124,null,null,null,null,null,"",null,"",null,null,null,null,"",null,"",null,"No",null,"","","","","","","","",null,null,null,null,null,null,"No"]
[null,125,null,null,null,null,null,"",null,"",null,null,null,null,"",null,"",null,"No",null,"","","","","","","","",null,null,null,null,null,null,"No",null,null,null,null,null,null,"","",null,""]
[null,126,null,null,null,null,null,"",null,"",null,null,null,null,"",null,"",null,"No",null,"","","","","","","","",null,null,null,null,null,null,"No"]
[null,127,null,null,null,null,null,"",null,"",null,null,null,null,"",null,"",null,"No",null,"","","","","","","","",null,null,null,null,null,null,"No"]
[null,128,null,null,null,null,null,"",null,"",null,null,null,null,"",null,"",null,"No",null,"","","","","","","","",null,null,null,null,null,null,"No"]
[null,129,null,null,null,null,null,{"$f":"IF(E149=\"\",\"\",VLOOKUP(E149,$AO$1115:$AP$1542,2,FALSE))","v":""},null,{"$f":"IF(AND(E149<>\"\",G149<>\"\",$E$9=\"Default Sector Hours\"),VLOOKUP(IF(R149=\"Exterior\",\"Exterior\",$E$8),$V$1037:$W$1042,2,FALSE),\"\")","v":""},null,null,null,null,{"$f":"IF(L149=\"\",\"\",VLOOKUP(L149,$AO$1114:$AP$1542,2,FALSE))","v":""},null,"",null,"No",null,"",{"$f":"IFERROR(IF(E149=\"\",\"\",G149/1000*IF(OR(I149>0,H149=\"Enter Watts\"),I149,H149)*IF(R149=\"Exterior\",$W$1042*(1-$G$16),IF($E$9=\"Manual Input\",J149,VLOOKUP($E$8,$V$1037:$Y$1041,2,FALSE))*(1-$E$16)      )),\"0\")","v":""},"",{"$f":"IFERROR(IF(AND(L149=\"\", E149=\"\"),\"\",N149/1000*IF(OR(P149>0,O149=\"Enter Watts\"),P149,O149)*IF(R149=\"Exterior\",$W$1042,IF($E$9=\"Manual Input\",Q149,VLOOKUP($E$8,$V$1037:$Y$1041,2,FALSE)))*IF(S149=\"Yes\",IF(R149=\"Exterior\",1-$Y$1042,1-VLOOKUP($E$8,$V$1037:$Y$1041,4,FALSE)),1)),0)","v":""},"",{"$f":"IF(AND(U149=\"\",W149=\"\"),\"\",IF(OR(U149=\"\",W149=\"\"),0,  IF($E$9=\"Manual Input\",$G$10,   VLOOKUP($E$8,$V$1037:$Y$1042,3,FALSE))     *(U149-W149)))","v":""},"",{"$f":"IF(AA149=\"\",\"\",IF(AND(R149=\"Interior\",S149=\"No\",OR(T149=\"\",T149=\"No\")),$J$1028,IF(AND(R149=\"Interior\",S149=\"Yes\"),$J$1029,IF(AND(R149=\"Exterior\",S149=\"Yes\"),$J$1030,IF(AND(R149=\"Exterior\",S149=\"No\",N149<>G149),\"DNQ\",\"See Lighting Catalog to determine Code\")))))","v":""},null,null,null,null,null,null,"No"]
[null,130,null,null,null,null,null,"",null,"",null,null,null,null,"",null,"",null,"No",null,"","","","","","","","",null,null,null,null,null,null,{"$f":"IF(_xlfn.ISFORMULA(J150)=TRUE,\"No\",\"Yes\")","v":"No"}]
[null,131,null,null,null,null,null,"",null,"",null,null,null,null,"",null,"",null,"No",null,"","","","","","","","",null,null,null,null,null,null,"No",null,null,null,null,null,null,"","",null,""]
[null,132,null,null,null,null,null,"",null,"",null,null,null,null,"",null,"",null,"No",null,"","","","","","","","",null,null,null,null,null,null,"No"]
[null,133,null,null,null,null,null,"",null,"",null,null,null,null,"",null,"",null,"No",null,"","","","","","","","",null,null,null,null,null,null,"No"]
[null,134,null,null,null,null,null,"",null,"",null,null,null,null,"",null,"",null,"No",null,"","","","","","","","",null,null,null,null,null,null,"No"]
[null,135,null,null,null,null,null,"",null,"",null,null,null,null,"",null,"",null,"No",null,"","","","","","","","",null,null,null,null,null,null,"No"]
[null,136,null,null,null,null,null,"",null,"",null,null,null,null,"",null,"",null,"No",null,"","","","","","","","",null,null,null,null,null,null,"No"]
[null,137,null,null,null,null,null,"",null,"",null,null,null,null,"",null,"",null,"No",null,"","","","","","","","",null,null,null,null,null,null,"No"]
[null,138,null,null,null,null,null,"",null,"",null,null,null,null,"",null,"",null,"No",null,"","","","","","","","",null,null,null,null,null,null,"No"]
[null,139,null,null,null,null,null,"",null,"",null,null,null,null,"",null,"",null,"No",null,"","","","","","","","",null,null,null,null,null,null,"No"]
[null,140,null,null,null,null,null,"",null,"",null,null,null,null,"",null,"",null,"No",null,"","","","","","","","",null,null,null,null,null,null,"No"]
[null,141,null,null,null,null,null,"",null,"",null,null,null,null,"",null,"",null,"No",null,"","","","","","","","",null,null,null,null,null,null,"No"]
[null,142,null,null,null,null,null,"",null,"",null,null,null,null,"",null,"",null,"No",null,"","","","","","","","",null,null,null,null,null,null,"No"]
[null,143,null,null,null,null,null,"",null,"",null,null,null,null,"",null,"",null,"No",null,"","","","","","","","",null,null,null,null,null,null,"No",null,null,null,null,null,null,"","",null,""]
[null,144,null,null,null,null,null,"",null,"",null,null,null,null,"",null,"",null,"No",null,"","","","","","","","",null,null,null,null,null,null,"No"]
[null,145,null,null,null,null,null,"",null,"",null,null,null,null,"",null,"",null,"No",null,"","","","","","","","",null,null,null,null,null,null,"No"]
[null,146,null,null,null,null,null,"",null,"",null,null,null,null,"",null,"",null,"No",null,"","","","","","","","",null,null,null,null,null,null,"No"]
[null,147,null,null,null,null,null,"",null,"",null,null,null,null,"",null,"",null,"No",null,"","","","","","","","",null,null,null,null,null,null,"No"]
[null,148,null,null,null,null,null,"",null,"",null,null,null,null,"",null,"",null,"No",null,"","","","","","","","",null,null,null,null,null,null,"No"]
[null,149,null,null,null,null,null,"",null,"",null,null,null,null,"",null,"",null,"No",null,"","","","","","","","",null,null,null,null,null,null,"No",null,null,null,null,null,null,"","",null,""]
[null,150,null,null,null,null,null,"",null,"",null,null,null,null,"",null,"",null,"No",null,"","","","","","","","",null,null,null,null,null,null,"No"]
[null,151,null,null,null,null,null,"",null,"",null,null,null,null,"",null,"",null,"No",null,"","","","","","","","",null,null,null,null,null,null,"No"]
[null,152,null,null,null,null,null,"",null,"",null,null,null,null,"",null,"",null,"No",null,"","","","","","","","",null,null,null,null,null,null,"No"]
[null,153,null,null,null,null,null,"",null,"",null,null,null,null,"",null,"",null,"No",null,"","","","","","","","",null,null,null,null,null,null,"No"]
[null,154,null,null,null,null,null,"",null,"",null,null,null,null,"",null,"",null,"No",null,"","","","","","","","",null,null,null,null,null,null,"No"]
[null,155,null,null,null,null,null,"",null,"",null,null,null,null,"",null,"",null,"No",null,"","","","","","","","",null,null,null,null,null,null,"No"]
[null,156,null,null,null,null,null,"",null,"",null,null,null,null,"",null,{"$f":"IF(J176=\"\",\"\",J176)","v":""},null,"No",null,{"$f":"IF(R176=\"Interior\",IF(E176=\"\",\"\",IF(OR(I176>0,H176=\"Enter Watts\"),I176*G176/1000,H176*G176/1000)),IF(E176=\"\",\"\",0))","v":""},"",{"$f":"IF(R176=\"Interior\",IF(AND(L176=\"\", E176=\"\"),\"\",IF(OR(P176>0,O176=\"Enter Watts\", P176=\"\"),P176*N176/1000,O176*N176/1000)),IF(AND(E176=\"\",L176=\"\"),\"\",0))","v":""},"",{"$f":"IFERROR(IF(OR(I176>0,H176=\"Enter Watts\"),I176*G176,H176*G176)-IF(OR(P176>0,O176=\"Enter Watts\"),P176*N176,O176*N176),\"\")","v":""},"",{"$f":"IF(AND(V176=\"\",X176=\"\"),\"\",IF(OR(V176=\"\",X176=\"\"),0,V176-X176))","v":""},"",null,null,null,null,null,null,"No"]
[null,157,null,null,null,null,null,"",null,"",null,null,null,null,"",null,"",null,"No",null,{"$f":"IF(R177=\"Interior\",IF(E177=\"\",\"\",IF(OR(I177>0,H177=\"Enter Watts\"),I177*G177/1000,H177*G177/1000)),IF(E177=\"\",\"\",0))","v":""},"",{"$f":"IF(R177=\"Interior\",IF(AND(L177=\"\", E177=\"\"),\"\",IF(OR(P177>0,O177=\"Enter Watts\", P177=\"\"),P177*N177/1000,O177*N177/1000)),IF(AND(E177=\"\",L177=\"\"),\"\",0))","v":""},"",{"$f":"IFERROR(IF(OR(I177>0,H177=\"Enter Watts\"),I177*G177,H177*G177)-IF(OR(P177>0,O177=\"Enter Watts\"),P177*N177,O177*N177),\"\")","v":""},"",{"$f":"IF(AND(V177=\"\",X177=\"\"),\"\",IF(OR(V177=\"\",X177=\"\"),0,V177-X177))","v":""},"",null,null,null,null,null,null,"No"]
[null,158,null,null,null,null,null,"",null,"",null,null,null,null,"",null,"",null,"No",null,"","","","","","","","",null,null,null,null,null,null,"No"]
[null,159,null,null,null,null,null,"",null,"",null,null,null,null,"",null,"",null,"No",null,"","","","","","","","",null,null,null,null,null,null,"No"]
[null,160,null,null,null,null,null,"",null,"",null,null,null,null,"",null,"",null,"No",null,"","","","","","","","",null,null,null,null,null,null,"No",null,null,null,null,null,null,"","",null,""]
[null,161,null,null,null,null,null,"",null,"",null,null,null,null,"",null,"",null,"No",null,"","","","","","","","",null,null,null,null,null,null,"No"]
[null,162,null,null,null,null,null,"",null,"",null,null,null,null,"",null,"",null,"No",null,"","","","","","","","",null,null,null,null,null,null,"No"]
[null,163,null,null,null,null,null,"",null,"",null,null,null,null,"",null,"",null,"No",null,"","","","","","","","",null,null,null,null,null,null,"No"]
[null,164,null,null,null,null,null,"",null,"",null,null,null,null,"",null,"",null,"No",null,"","","","","","","","",null,null,null,null,null,null,"No"]
[null,165,null,null,null,null,null,"",null,"",null,null,null,null,"",null,"",null,"No",null,"","","","","","","","",null,null,null,null,null,null,"No"]
[null,166,null,null,null,null,null,"",null,"",null,null,null,null,"",null,"",null,"No",null,"","","","","","","","",null,null,null,null,null,null,"No",null,null,null,null,null,null,"","",null,""]
[null,167,null,null,null,null,null,"",null,"",null,null,null,null,"",null,"",null,"No",null,"","","","","","","","",null,null,null,null,null,null,"No"]
[null,168,null,null,null,null,null,"",null,"",null,null,null,null,"",null,"",null,"No",null,"","","","","","","","",null,null,null,null,null,null,"No"]
[null,169,null,null,null,null,null,"",null,"",null,null,null,null,"",null,"",null,"No",null,"","","","","","","","",null,null,null,null,null,null,"No"]
[null,170,null,null,null,null,null,"",null,"",null,null,null,null,"",null,"",null,"No",null,"","","","","","","","",null,null,null,null,null,null,"No"]
[null,171,null,null,null,null,null,"",null,"",null,null,null,null,"",null,"",null,"No",null,"","","","","","","","",null,null,null,null,null,null,"No"]
[null,172,null,null,null,null,null,"",null,"",null,null,null,null,"",null,"",null,"No",null,"","","","","","","","",null,null,null,null,null,null,"No"]
[null,173,null,null,null,null,null,"",null,"",null,null,null,null,"",null,"",null,"No",null,"","","","","","","","",null,null,null,null,null,null,"No",null,null,null,null,null,null,"","",null,""]
[null,174,null,null,null,null,null,"",null,"",null,null,null,null,"",null,"",null,"No",null,"","","","","","","","",null,null,null,null,null,null,"No"]
[null,175,null,null,null,null,null,"",null,"",null,null,null,null,"",null,"",null,"No",null,"","","","","","","","",null,null,null,null,null,null,"No"]
[null,176,null,null,null,null,null,"",null,"",null,null,null,null,"",null,"",null,"No",null,"","","","","","","","",null,null,null,null,null,null,"No"]
[null,177,null,null,null,null,null,"",null,"",null,null,null,null,"",null,"",null,"No",null,"","","","","","","","",null,null,null,null,null,null,"No"]
[null,178,null,null,null,null,null,"",null,"",null,null,null,null,"",null,"",null,"No",null,"","","","","","","","",null,null,null,null,null,null,"No"]
[null,179,null,null,null,null,null,"",null,"",null,null,null,null,"",null,"",null,"No",null,"","","","","","","","",null,null,null,null,null,null,"No",null,null,null,null,null,null,"","",null,""]
[null,180,null,null,null,null,null,"",null,"",null,null,null,null,"",null,"",null,"No",null,"","","","","","","","",null,null,null,null,null,null,"No"]
[null,181,null,null,null,null,null,"",null,"",null,null,null,null,"",null,"",null,"No",null,"","","","","","","","",null,null,null,null,null,null,"No"]
[null,182,null,null,null,null,null,"",null,"",null,null,null,null,"",null,"",null,"No",null,"","","","","","","","",null,null,null,null,null,null,"No"]
[null,183,null,null,null,null,null,"",null,"",null,null,null,null,"",null,"",null,"No",null,"","","","","","","","",null,null,null,null,null,null,"No"]
[null,184,null,null,null,null,null,"",null,"",null,null,null,null,"",null,"",null,"No",null,"","","","","","","","",null,null,null,null,null,null,"No"]
[null,185,null,null,null,null,null,"",null,"",null,null,null,null,"",null,"",null,"No",null,"","","","","","","","",null,null,null,null,null,null,"No"]
[null,186,null,null,null,null,null,"",null,"",null,null,null,null,"",null,"",null,"No",null,"","","","","","","","",null,null,null,null,null,null,"No"]
[null,187,null,null,null,null,null,"",null,"",null,null,null,null,"",null,"",null,"No",null,"","","","","","","","",null,null,null,null,null,null,"No"]
[null,188,null,null,null,null,null,"",null,"",null,null,null,null,"",null,"",null,"No",null,"","","","","","","","",null,null,null,null,null,null,"No"]
[null,189,null,null,null,null,null,"",null,"",null,null,null,null,"",null,"",null,"No",null,"","","","","","","","",null,null,null,null,null,null,"No"]
[null,190,null,null,null,null,null,"",null,"",null,null,null,null,"",null,"",null,"No",null,"","","","","","","","",null,null,null,null,null,null,"No"]
[null,191,null,null,null,null,null,"",null,"",null,null,null,null,"",null,"",null,"No",null,"","","","","","","","",null,null,null,null,null,null,"No",null,null,null,null,null,null,"","",null,""]
[null,192,null,null,null,null,null,"",null,"",null,null,null,null,"",null,"",null,"No",null,"","","","","","","","",null,null,null,null,null,null,"No"]
[null,193,null,null,null,null,null,{"$f":"IF(E213=\"\",\"\",VLOOKUP(E213,$AO$1115:$AP$1542,2,FALSE))","v":""},null,{"$f":"IF(AND(E213<>\"\",G213<>\"\",$E$9=\"Default Sector Hours\"),VLOOKUP(IF(R213=\"Exterior\",\"Exterior\",$E$8),$V$1037:$W$1042,2,FALSE),\"\")","v":""},null,null,null,null,{"$f":"IF(L213=\"\",\"\",VLOOKUP(L213,$AO$1114:$AP$1542,2,FALSE))","v":""},null,"",null,"No",null,"",{"$f":"IFERROR(IF(E213=\"\",\"\",G213/1000*IF(OR(I213>0,H213=\"Enter Watts\"),I213,H213)*IF(R213=\"Exterior\",$W$1042*(1-$G$16),IF($E$9=\"Manual Input\",J213,VLOOKUP($E$8,$V$1037:$Y$1041,2,FALSE))*(1-$E$16)      )),\"0\")","v":""},"",{"$f":"IFERROR(IF(AND(L213=\"\", E213=\"\"),\"\",N213/1000*IF(OR(P213>0,O213=\"Enter Watts\"),P213,O213)*IF(R213=\"Exterior\",$W$1042,IF($E$9=\"Manual Input\",Q213,VLOOKUP($E$8,$V$1037:$Y$1041,2,FALSE)))*IF(S213=\"Yes\",IF(R213=\"Exterior\",1-$Y$1042,1-VLOOKUP($E$8,$V$1037:$Y$1041,4,FALSE)),1)),0)","v":""},"",{"$f":"IF(AND(U213=\"\",W213=\"\"),\"\",IF(OR(U213=\"\",W213=\"\"),0,  IF($E$9=\"Manual Input\",$G$10,   VLOOKUP($E$8,$V$1037:$Y$1042,3,FALSE))     *(U213-W213)))","v":""},"",{"$f":"IF(AA213=\"\",\"\",IF(AND(R213=\"Interior\",S213=\"No\",OR(T213=\"\",T213=\"No\")),$J$1028,IF(AND(R213=\"Interior\",S213=\"Yes\"),$J$1029,IF(AND(R213=\"Exterior\",S213=\"Yes\"),$J$1030,IF(AND(R213=\"Exterior\",S213=\"No\",N213<>G213),\"DNQ\",\"See Lighting Catalog to determine Code\")))))","v":""},null,null,null,null,null,null,"No"]
[null,194,null,null,null,null,null,"",null,"",null,null,null,null,"",null,"",null,"No",null,"","","","","","","","",null,null,null,null,null,null,{"$f":"IF(_xlfn.ISFORMULA(J214)=TRUE,\"No\",\"Yes\")","v":"No"}]
[null,195,null,null,null,null,null,"",null,"",null,null,null,null,"",null,"",null,"No",null,"","","","","","","","",null,null,null,null,null,null,"No"]
[null,196,null,null,null,null,null,"",null,"",null,null,null,null,"",null,"",null,"No",null,"","","","","","","","",null,null,null,null,null,null,"No"]
[null,197,null,null,null,null,null,"",null,"",null,null,null,null,"",null,"",null,"No",null,"","","","","","","","",null,null,null,null,null,null,"No",null,null,null,null,null,null,"","",null,""]
[null,198,null,null,null,null,null,"",null,"",null,null,null,null,"",null,"",null,"No",null,"","","","","","","","",null,null,null,null,null,null,"No"]
[null,199,null,null,null,null,null,"",null,"",null,null,null,null,"",null,"",null,"No",null,"","","","","","","","",null,null,null,null,null,null,"No"]
[null,200,null,null,null,null,null,"",null,"",null,null,null,null,"",null,"",null,"No",null,"","","","","","","","",null,null,null,null,null,null,"No"]
[null,201,null,null,null,null,null,"",null,"",null,null,null,null,"",null,"",null,"No",null,"","","","","","","","",null,null,null,null,null,null,"No"]
[null,202,null,null,null,null,null,"",null,"",null,null,null,null,"",null,"",null,"No",null,"","","","","","","","",null,null,null,null,null,null,"No"]
[null,203,null,null,null,null,null,"",null,"",null,null,null,null,"",null,"",null,"No",null,"","","","","","","","",null,null,null,null,null,null,"No"]
[null,204,null,null,null,null,null,"",null,"",null,null,null,null,"",null,{"$f":"IF(J224=\"\",\"\",J224)","v":""},null,"No",null,{"$f":"IF(R224=\"Interior\",IF(E224=\"\",\"\",IF(OR(I224>0,H224=\"Enter Watts\"),I224*G224/1000,H224*G224/1000)),IF(E224=\"\",\"\",0))","v":""},"",{"$f":"IF(R224=\"Interior\",IF(AND(L224=\"\", E224=\"\"),\"\",IF(OR(P224>0,O224=\"Enter Watts\", P224=\"\"),P224*N224/1000,O224*N224/1000)),IF(AND(E224=\"\",L224=\"\"),\"\",0))","v":""},"",{"$f":"IFERROR(IF(OR(I224>0,H224=\"Enter Watts\"),I224*G224,H224*G224)-IF(OR(P224>0,O224=\"Enter Watts\"),P224*N224,O224*N224),\"\")","v":""},"",{"$f":"IF(AND(V224=\"\",X224=\"\"),\"\",IF(OR(V224=\"\",X224=\"\"),0,V224-X224))","v":""},"",null,null,null,null,null,null,"No"]
[null,205,null,null,null,null,null,"",null,"",null,null,null,null,"",null,"",null,"No",null,{"$f":"IF(R225=\"Interior\",IF(E225=\"\",\"\",IF(OR(I225>0,H225=\"Enter Watts\"),I225*G225/1000,H225*G225/1000)),IF(E225=\"\",\"\",0))","v":""},"",{"$f":"IF(R225=\"Interior\",IF(AND(L225=\"\", E225=\"\"),\"\",IF(OR(P225>0,O225=\"Enter Watts\", P225=\"\"),P225*N225/1000,O225*N225/1000)),IF(AND(E225=\"\",L225=\"\"),\"\",0))","v":""},"",{"$f":"IFERROR(IF(OR(I225>0,H225=\"Enter Watts\"),I225*G225,H225*G225)-IF(OR(P225>0,O225=\"Enter Watts\"),P225*N225,O225*N225),\"\")","v":""},"",{"$f":"IF(AND(V225=\"\",X225=\"\"),\"\",IF(OR(V225=\"\",X225=\"\"),0,V225-X225))","v":""},"",null,null,null,null,null,null,"No"]
[null,206,null,null,null,null,null,"",null,"",null,null,null,null,"",null,"",null,"No",null,"","","","","","","","",null,null,null,null,null,null,"No"]
[null,207,null,null,null,null,null,"",null,"",null,null,null,null,"",null,"",null,"No",null,"","","","","","","","",null,null,null,null,null,null,"No"]
[null,208,null,null,null,null,null,"",null,"",null,null,null,null,"",null,"",null,"No",null,"","","","","","","","",null,null,null,null,null,null,"No",null,null,null,null,null,null,"","",null,""]
[null,209,null,null,null,null,null,"",null,"",null,null,null,null,"",null,"",null,"No",null,"","","","","","","","",null,null,null,null,null,null,"No"]
[null,210,null,null,null,null,null,"",null,"",null,null,null,null,"",null,"",null,"No",null,"","","","","","","","",null,null,null,null,null,null,"No"]
[null,211,null,null,null,null,null,"",null,"",null,null,null,null,"",null,"",null,"No",null,"","","","","","","","",null,null,null,null,null,null,"No"]
[null,212,null,null,null,null,null,"",null,"",null,null,null,null,"",null,"",null,"No",null,"","","","","","","","",null,null,null,null,null,null,"No"]
[null,213,null,null,null,null,null,"",null,"",null,null,null,null,"",null,"",null,"No",null,"","","","","","","","",null,null,null,null,null,null,"No"]
[null,214,null,null,null,null,null,"",null,"",null,null,null,null,"",null,"",null,"No",null,"","","","","","","","",null,null,null,null,null,null,"No",null,null,null,null,null,null,"","",null,""]
[null,215,null,null,null,null,null,"",null,"",null,null,null,null,"",null,"",null,"No",null,"","","","","","","","",null,null,null,null,null,null,"No"]
[null,216,null,null,null,null,null,"",null,"",null,null,null,null,"",null,"",null,"No",null,"","","","","","","","",null,null,null,null,null,null,"No"]
[null,217,null,null,null,null,null,"",null,"",null,null,null,null,"",null,"",null,"No",null,"","","","","","","","",null,null,null,null,null,null,"No"]
[null,218,null,null,null,null,null,"",null,"",null,null,null,null,"",null,"",null,"No",null,"","","","","","","","",null,null,null,null,null,null,"No"]
[null,219,null,null,null,null,null,"",null,"",null,null,null,null,"",null,"",null,"No",null,"","","","","","","","",null,null,null,null,null,null,"No"]
[null,220,null,null,null,null,null,"",null,"",null,null,null,null,"",null,"",null,"No",null,"","","","","","","","",null,null,null,null,null,null,"No"]
[null,221,null,null,null,null,null,"",null,"",null,null,null,null,"",null,"",null,"No",null,"","","","","","","","",null,null,null,null,null,null,"No",null,null,null,null,null,null,"","",null,""]
[null,222,null,null,null,null,null,"",null,"",null,null,null,null,"",null,"",null,"No",null,"","","","","","","","",null,null,null,null,null,null,"No"]
[null,223,null,null,null,null,null,"",null,"",null,null,null,null,"",null,"",null,"No",null,"","","","","","","","",null,null,null,null,null,null,"No"]
[null,224,null,null,null,null,null,"",null,"",null,null,null,null,"",null,"",null,"No",null,"","","","","","","","",null,null,null,null,null,null,"No"]
[null,225,null,null,null,null,null,"",null,"",null,null,null,null,"",null,"",null,"No",null,"","","","","","","","",null,null,null,null,null,null,"No"]
[null,226,null,null,null,null,null,"",null,"",null,null,null,null,"",null,"",null,"No",null,"","","","","","","","",null,null,null,null,null,null,"No"]
[null,227,null,null,null,null,null,"",null,"",null,null,null,null,"",null,"",null,"No",null,"","","","","","","","",null,null,null,null,null,null,"No",null,null,null,null,null,null,"","",null,""]
[null,228,null,null,null,null,null,"",null,"",null,null,null,null,"",null,"",null,"No",null,"","","","","","","","",null,null,null,null,null,null,"No"]
[null,229,null,null,null,null,null,"",null,"",null,null,null,null,"",null,"",null,"No",null,"","","","","","","","",null,null,null,null,null,null,"No"]
[null,230,null,null,null,null,null,"",null,"",null,null,null,null,"",null,"",null,"No",null,"","","","","","","","",null,null,null,null,null,null,"No"]
[null,231,null,null,null,null,null,"",null,"",null,null,null,null,"",null,"",null,"No",null,"","","","","","","","",null,null,null,null,null,null,"No"]
[null,232,null,null,null,null,null,"",null,"",null,null,null,null,"",null,"",null,"No",null,"","","","","","","","",null,null,null,null,null,null,"No"]
[null,233,null,null,null,null,null,"",null,"",null,null,null,null,"",null,"",null,"No",null,"","","","","","","","",null,null,null,null,null,null,"No"]
[null,234,null,null,null,null,null,"",null,"",null,null,null,null,"",null,"",null,"No",null,"","","","","","","","",null,null,null,null,null,null,"No"]
[null,235,null,null,null,null,null,"",null,"",null,null,null,null,"",null,"",null,"No",null,"","","","","","","","",null,null,null,null,null,null,"No"]
[null,236,null,null,null,null,null,"",null,"",null,null,null,null,"",null,"",null,"No",null,"","","","","","","","",null,null,null,null,null,null,"No"]
[null,237,null,null,null,null,null,"",null,"",null,null,null,null,"",null,"",null,"No",null,"","","","","","","","",null,null,null,null,null,null,"No"]
[null,238,null,null,null,null,null,"",null,"",null,null,null,null,"",null,"",null,"No",null,"","","","","","","","",null,null,null,null,null,null,"No"]
[null,239,null,null,null,null,null,"",null,"",null,null,null,null,"",null,"",null,"No",null,"","","","","","","","",null,null,null,null,null,null,"No",null,null,null,null,null,null,"","",null,""]
[null,240,null,null,null,null,null,"",null,"",null,null,null,null,"",null,"",null,"No",null,"","","","","","","","",null,null,null,null,null,null,"No"]
[null,241,null,null,null,null,null,"",null,"",null,null,null,null,"",null,"",null,"No",null,"","","","","","","","",null,null,null,null,null,null,"No"]
[null,242,null,null,null,null,null,"",null,"",null,null,null,null,"",null,"",null,"No",null,"","","","","","","","",null,null,null,null,null,null,"No"]
[null,243,null,null,null,null,null,"",null,"",null,null,null,null,"",null,"",null,"No",null,"","","","","","","","",null,null,null,null,null,null,"No"]
[null,244,null,null,null,null,null,"",null,"",null,null,null,null,"",null,"",null,"No",null,"","","","","","","","",null,null,null,null,null,null,"No"]
[null,245,null,null,null,null,null,"",null,"",null,null,null,null,"",null,"",null,"No",null,"","","","","","","","",null,null,null,null,null,null,"No",null,null,null,null,null,null,"","",null,""]
[null,246,null,null,null,null,null,"",null,"",null,null,null,null,"",null,"",null,"No",null,"","","","","","","","",null,null,null,null,null,null,"No"]
[null,247,null,null,null,null,null,"",null,"",null,null,null,null,"",null,"",null,"No",null,"","","","","","","","",null,null,null,null,null,null,"No"]
[null,248,null,null,null,null,null,"",null,"",null,null,null,null,"",null,"",null,"No",null,"","","","","","","","",null,null,null,null,null,null,"No"]
[null,249,null,null,null,null,null,"",null,"",null,null,null,null,"",null,"",null,"No",null,"","","","","","","","",null,null,null,null,null,null,"No"]
[null,250,null,null,null,null,null,"",null,"",null,null,null,null,"",null,"",null,"No",null,"","","","","","","","",null,null,null,null,null,null,"No"]
[null,251,null,null,null,null,null,"",null,"",null,null,null,null,"",null,"",null,"No",null,"","","","","","","","",null,null,null,null,null,null,"No"]
[null,252,null,null,null,null,null,"",null,"",null,null,null,null,"",null,"",null,"No",null,{"$f":"IF(R272=\"Interior\",IF(E272=\"\",\"\",IF(OR(I272>0,H272=\"Enter Watts\"),I272*G272/1000,H272*G272/1000)),IF(E272=\"\",\"\",0))","v":""},"",{"$f":"IF(R272=\"Interior\",IF(AND(L272=\"\", E272=\"\"),\"\",IF(OR(P272>0,O272=\"Enter Watts\", P272=\"\"),P272*N272/1000,O272*N272/1000)),IF(AND(E272=\"\",L272=\"\"),\"\",0))","v":""},"",{"$f":"IFERROR(IF(OR(I272>0,H272=\"Enter Watts\"),I272*G272,H272*G272)-IF(OR(P272>0,O272=\"Enter Watts\"),P272*N272,O272*N272),\"\")","v":""},"",{"$f":"IF(AND(V272=\"\",X272=\"\"),\"\",IF(OR(V272=\"\",X272=\"\"),0,V272-X272))","v":""},"",null,null,null,null,null,null,"No"]
[null,253,null,null,null,null,null,"",null,"",null,null,null,null,"",null,"",null,"No",null,{"$f":"IF(R273=\"Interior\",IF(E273=\"\",\"\",IF(OR(I273>0,H273=\"Enter Watts\"),I273*G273/1000,H273*G273/1000)),IF(E273=\"\",\"\",0))","v":""},"",{"$f":"IF(R273=\"Interior\",IF(AND(L273=\"\", E273=\"\"),\"\",IF(OR(P273>0,O273=\"Enter Watts\", P273=\"\"),P273*N273/1000,O273*N273/1000)),IF(AND(E273=\"\",L273=\"\"),\"\",0))","v":""},"",{"$f":"IFERROR(IF(OR(I273>0,H273=\"Enter Watts\"),I273*G273,H273*G273)-IF(OR(P273>0,O273=\"Enter Watts\"),P273*N273,O273*N273),\"\")","v":""},"",{"$f":"IF(AND(V273=\"\",X273=\"\"),\"\",IF(OR(V273=\"\",X273=\"\"),0,V273-X273))","v":""},"",null,null,null,null,null,null,"No"]
[null,254,null,null,null,null,null,"",null,"",null,null,null,null,"",null,"",null,"No",null,"","","","","","","","",null,null,null,null,null,null,"No"]
[null,255,null,null,null,null,null,"",null,"",null,null,null,null,"",null,"",null,"No",null,"","","","","","","","",null,null,null,null,null,null,"No"]
[null,256,null,null,null,null,null,"",null,"",null,null,null,null,"",null,"",null,"No",null,"","","","","","","","",null,null,null,null,null,null,"No",null,null,null,null,null,null,"","",null,""]
[null,257,null,null,null,null,null,{"$f":"IF(E277=\"\",\"\",VLOOKUP(E277,$AO$1115:$AP$1542,2,FALSE))","v":""},null,{"$f":"IF(AND(E277<>\"\",G277<>\"\",$E$9=\"Default Sector Hours\"),VLOOKUP(IF(R277=\"Exterior\",\"Exterior\",$E$8),$V$1037:$W$1042,2,FALSE),\"\")","v":""},null,null,null,null,{"$f":"IF(L277=\"\",\"\",VLOOKUP(L277,$AO$1114:$AP$1542,2,FALSE))","v":""},null,"",null,"No",null,"",{"$f":"IFERROR(IF(E277=\"\",\"\",G277/1000*IF(OR(I277>0,H277=\"Enter Watts\"),I277,H277)*IF(R277=\"Exterior\",$W$1042*(1-$G$16),IF($E$9=\"Manual Input\",J277,VLOOKUP($E$8,$V$1037:$Y$1041,2,FALSE))*(1-$E$16)      )),\"0\")","v":""},"",{"$f":"IFERROR(IF(AND(L277=\"\", E277=\"\"),\"\",N277/1000*IF(OR(P277>0,O277=\"Enter Watts\"),P277,O277)*IF(R277=\"Exterior\",$W$1042,IF($E$9=\"Manual Input\",Q277,VLOOKUP($E$8,$V$1037:$Y$1041,2,FALSE)))*IF(S277=\"Yes\",IF(R277=\"Exterior\",1-$Y$1042,1-VLOOKUP($E$8,$V$1037:$Y$1041,4,FALSE)),1)),0)","v":""},"",{"$f":"IF(AND(U277=\"\",W277=\"\"),\"\",IF(OR(U277=\"\",W277=\"\"),0,  IF($E$9=\"Manual Input\",$G$10,   VLOOKUP($E$8,$V$1037:$Y$1042,3,FALSE))     *(U277-W277)))","v":""},"",{"$f":"IF(AA277=\"\",\"\",IF(AND(R277=\"Interior\",S277=\"No\",OR(T277=\"\",T277=\"No\")),$J$1028,IF(AND(R277=\"Interior\",S277=\"Yes\"),$J$1029,IF(AND(R277=\"Exterior\",S277=\"Yes\"),$J$1030,IF(AND(R277=\"Exterior\",S277=\"No\",N277<>G277),\"DNQ\",\"See Lighting Catalog to determine Code\")))))","v":""},null,null,null,null,null,null,"No"]
[null,258,null,null,null,null,null,"",null,"",null,null,null,null,"",null,"",null,"No",null,"","","","","","","","",null,null,null,null,null,null,{"$f":"IF(_xlfn.ISFORMULA(J278)=TRUE,\"No\",\"Yes\")","v":"No"}]
[null,259,null,null,null,null,null,"",null,"",null,null,null,null,"",null,"",null,"No",null,"","","","","","","","",null,null,null,null,null,null,"No"]
[null,260,null,null,null,null,null,"",null,"",null,null,null,null,"",null,"",null,"No",null,"","","","","","","","",null,null,null,null,null,null,"No"]
[null,261,null,null,null,null,null,"",null,"",null,null,null,null,"",null,"",null,"No",null,"","","","","","","","",null,null,null,null,null,null,"No"]
[null,262,null,null,null,null,null,"",null,"",null,null,null,null,"",null,"",null,"No",null,"","","","","","","","",null,null,null,null,null,null,"No",null,null,null,null,null,null,"","",null,""]
[null,263,null,null,null,null,null,"",null,"",null,null,null,null,"",null,"",null,"No",null,"","","","","","","","",null,null,null,null,null,null,"No"]
[null,264,null,null,null,null,null,"",null,"",null,null,null,null,"",null,"",null,"No",null,"","","","","","","","",null,null,null,null,null,null,"No"]
[null,265,null,null,null,null,null,"",null,"",null,null,null,null,"",null,"",null,"No",null,"","","","","","","","",null,null,null,null,null,null,"No"]
[null,266,null,null,null,null,null,"",null,"",null,null,null,null,"",null,"",null,"No",null,"","","","","","","","",null,null,null,null,null,null,"No"]
[null,267,null,null,null,null,null,"",null,"",null,null,null,null,"",null,"",null,"No",null,"","","","","","","","",null,null,null,null,null,null,"No"]
[null,268,null,null,null,null,null,"",null,"",null,null,null,null,"",null,"",null,"No",null,"","","","","","","","",null,null,null,null,null,null,"No"]
[null,269,null,null,null,null,null,"",null,"",null,null,null,null,"",null,"",null,"No",null,"","","","","","","","",null,null,null,null,null,null,"No",null,null,null,null,null,null,"","",null,""]
[null,270,null,null,null,null,null,"",null,"",null,null,null,null,"",null,"",null,"No",null,"","","","","","","","",null,null,null,null,null,null,"No"]
[null,271,null,null,null,null,null,"",null,"",null,null,null,null,"",null,"",null,"No",null,"","","","","","","","",null,null,null,null,null,null,"No"]
[null,272,null,null,null,null,null,"",null,"",null,null,null,null,"",null,"",null,"No",null,"","","","","","","","",null,null,null,null,null,null,"No"]
[null,273,null,null,null,null,null,"",null,"",null,null,null,null,"",null,"",null,"No",null,"","","","","","","","",null,null,null,null,null,null,"No"]
[null,274,null,null,null,null,null,"",null,"",null,null,null,null,"",null,"",null,"No",null,"","","","","","","","",null,null,null,null,null,null,"No"]
[null,275,null,null,null,null,null,"",null,"",null,null,null,null,"",null,"",null,"No",null,"","","","","","","","",null,null,null,null,null,null,"No",null,null,null,null,null,null,"","",null,""]
[null,276,null,null,null,null,null,"",null,"",null,null,null,null,"",null,"",null,"No",null,"","","","","","","","",null,null,null,null,null,null,"No"]
[null,277,null,null,null,null,null,"",null,"",null,null,null,null,"",null,"",null,"No",null,"","","","","","","","",null,null,null,null,null,null,"No"]
[null,278,null,null,null,null,null,"",null,"",null,null,null,null,"",null,"",null,"No",null,"","","","","","","","",null,null,null,null,null,null,"No"]
[null,279,null,null,null,null,null,"",null,"",null,null,null,null,"",null,"",null,"No",null,"","","","","","","","",null,null,null,null,null,null,"No"]
[null,280,null,null,null,null,null,"",null,"",null,null,null,null,"",null,"",null,"No",null,"","","","","","","","",null,null,null,null,null,null,"No"]
[null,281,null,null,null,null,null,"",null,"",null,null,null,null,"",null,"",null,"No",null,"","","","","","","","",null,null,null,null,null,null,"No"]
[null,282,null,null,null,null,null,"",null,"",null,null,null,null,"",null,"",null,"No",null,"","","","","","","","",null,null,null,null,null,null,"No"]
[null,283,null,null,null,null,null,"",null,"",null,null,null,null,"",null,"",null,"No",null,"","","","","","","","",null,null,null,null,null,null,"No"]
[null,284,null,null,null,null,null,"",null,"",null,null,null,null,"",null,"",null,"No",null,"","","","","","","","",null,null,null,null,null,null,"No"]
[null,285,null,null,null,null,null,"",null,"",null,null,null,null,"",null,"",null,"No",null,"","","","","","","","",null,null,null,null,null,null,"No"]
[null,286,null,null,null,null,null,"",null,"",null,null,null,null,"",null,"",null,"No",null,"","","","","","","","",null,null,null,null,null,null,"No"]
[null,287,null,null,null,null,null,"",null,"",null,null,null,null,"",null,"",null,"No",null,"","","","","","","","",null,null,null,null,null,null,"No",null,null,null,null,null,null,"","",null,""]
[null,288,null,null,null,null,null,"",null,"",null,null,null,null,"",null,"",null,"No",null,"","","","","","","","",null,null,null,null,null,null,"No"]
[null,289,null,null,null,null,null,"",null,"",null,null,null,null,"",null,"",null,"No",null,"","","","","","","","",null,null,null,null,null,null,"No"]
[null,290,null,null,null,null,null,"",null,"",null,null,null,null,"",null,"",null,"No",null,"","","","","","","","",null,null,null,null,null,null,"No"]
[null,291,null,null,null,null,null,"",null,"",null,null,null,null,"",null,"",null,"No",null,"","","","","","","","",null,null,null,null,null,null,"No"]
[null,292,null,null,null,null,null,"",null,"",null,null,null,null,"",null,"",null,"No",null,"","","","","","","","",null,null,null,null,null,null,"No"]
[null,293,null,null,null,null,null,"",null,"",null,null,null,null,"",null,"",null,"No",null,"","","","","","","","",null,null,null,null,null,null,"No",null,null,null,null,null,null,"","",null,""]
[null,294,null,null,null,null,null,"",null,"",null,null,null,null,"",null,"",null,"No",null,"","","","","","","","",null,null,null,null,null,null,"No"]
[null,295,null,null,null,null,null,"",null,"",null,null,null,null,"",null,"",null,"No",null,"","","","","","","","",null,null,null,null,null,null,"No"]
[null,296,null,null,null,null,null,"",null,"",null,null,null,null,"",null,"",null,"No",null,"","","","","","","","",null,null,null,null,null,null,"No"]
[null,297,null,null,null,null,null,"",null,"",null,null,null,null,"",null,"",null,"No",null,"","","","","","","","",null,null,null,null,null,null,"No"]
[null,298,null,null,null,null,null,"",null,"",null,null,null,null,"",null,"",null,"No",null,"","","","","","","","",null,null,null,null,null,null,"No"]
[null,299,null,null,null,null,null,"",null,"",null,null,null,null,"",null,"",null,"No",null,"","","","","","","","",null,null,null,null,null,null,"No"]
[null,300,null,null,null,null,null,"",null,"",null,null,null,null,"",null,"",null,"No",null,{"$f":"IF(R320=\"Interior\",IF(E320=\"\",\"\",IF(OR(I320>0,H320=\"Enter Watts\"),I320*G320/1000,H320*G320/1000)),IF(E320=\"\",\"\",0))","v":""},"",{"$f":"IF(R320=\"Interior\",IF(AND(L320=\"\", E320=\"\"),\"\",IF(OR(P320>0,O320=\"Enter Watts\", P320=\"\"),P320*N320/1000,O320*N320/1000)),IF(AND(E320=\"\",L320=\"\"),\"\",0))","v":""},"",{"$f":"IFERROR(IF(OR(I320>0,H320=\"Enter Watts\"),I320*G320,H320*G320)-IF(OR(P320>0,O320=\"Enter Watts\"),P320*N320,O320*N320),\"\")","v":""},"",{"$f":"IF(AND(V320=\"\",X320=\"\"),\"\",IF(OR(V320=\"\",X320=\"\"),0,V320-X320))","v":""},"",null,null,null,null,null,null,"No"]
[null,301,null,null,null,null,null,{"$f":"IF(E321=\"\",\"\",VLOOKUP(E321,$AO$1115:$AP$1542,2,FALSE))","v":""},null,"",null,null,null,null,"",null,"",null,"No",null,{"$f":"IF(R321=\"Interior\",IF(E321=\"\",\"\",IF(OR(I321>0,H321=\"Enter Watts\"),I321*G321/1000,H321*G321/1000)),IF(E321=\"\",\"\",0))","v":""},"",{"$f":"IF(R321=\"Interior\",IF(AND(L321=\"\", E321=\"\"),\"\",IF(OR(P321>0,O321=\"Enter Watts\", P321=\"\"),P321*N321/1000,O321*N321/1000)),IF(AND(E321=\"\",L321=\"\"),\"\",0))","v":""},"",{"$f":"IFERROR(IF(OR(I321>0,H321=\"Enter Watts\"),I321*G321,H321*G321)-IF(OR(P321>0,O321=\"Enter Watts\"),P321*N321,O321*N321),\"\")","v":""},"",{"$f":"IF(AND(V321=\"\",X321=\"\"),\"\",IF(OR(V321=\"\",X321=\"\"),0,V321-X321))","v":""},{"$f":"IF(AA321=\"\",\"\",IF(AND(R321=\"Interior\",S321=\"No\",OR(T321=\"\",T321=\"No\")),$J$1028,IF(AND(R321=\"Interior\",S321=\"Yes\"),$J$1029,IF(AND(R321=\"Exterior\",S321=\"Yes\"),$J$1030,IF(AND(R321=\"Exterior\",S321=\"No\",N321<>G321),\"DNQ\",\"See Lighting Catalog to determine Code\")))))","v":""},null,null,null,null,null,null,"No"]
[null,302,null,null,null,null,null,{"$f":"IF(E322=\"\",\"\",VLOOKUP(E322,$AO$1115:$AP$1542,2,FALSE))","v":""},null,"",null,null,null,null,"",null,{"$f":"IF(J322=\"\",\"\",J322)","v":""},null,"No",null,{"$f":"IF(R322=\"Interior\",IF(E322=\"\",\"\",IF(OR(I322>0,H322=\"Enter Watts\"),I322*G322/1000,H322*G322/1000)),IF(E322=\"\",\"\",0))","v":""},"",{"$f":"IF(R322=\"Interior\",IF(AND(L322=\"\", E322=\"\"),\"\",IF(OR(P322>0,O322=\"Enter Watts\", P322=\"\"),P322*N322/1000,O322*N322/1000)),IF(AND(E322=\"\",L322=\"\"),\"\",0))","v":""},"",{"$f":"IFERROR(IF(OR(I322>0,H322=\"Enter Watts\"),I322*G322,H322*G322)-IF(OR(P322>0,O322=\"Enter Watts\"),P322*N322,O322*N322),\"\")","v":""},"",{"$f":"IF(AND(V322=\"\",X322=\"\"),\"\",IF(OR(V322=\"\",X322=\"\"),0,V322-X322))","v":""},{"$f":"IF(AA322=\"\",\"\",IF(AND(R322=\"Interior\",S322=\"No\",OR(T322=\"\",T322=\"No\")),$J$1028,IF(AND(R322=\"Interior\",S322=\"Yes\"),$J$1029,IF(AND(R322=\"Exterior\",S322=\"Yes\"),$J$1030,IF(AND(R322=\"Exterior\",S322=\"No\",N322<>G322),\"DNQ\",\"See Lighting Catalog to determine Code\")))))","v":""},null,null,null,null,null,null,"No"]
[null,303,null,null,null,null,null,"",null,"",null,null,null,null,"",null,"",null,"No",null,{"$f":"IF(R323=\"Interior\",IF(E323=\"\",\"\",IF(OR(I323>0,H323=\"Enter Watts\"),I323*G323/1000,H323*G323/1000)),IF(E323=\"\",\"\",0))","v":""},"",{"$f":"IF(R323=\"Interior\",IF(AND(L323=\"\", E323=\"\"),\"\",IF(OR(P323>0,O323=\"Enter Watts\", P323=\"\"),P323*N323/1000,O323*N323/1000)),IF(AND(E323=\"\",L323=\"\"),\"\",0))","v":""},"",{"$f":"IFERROR(IF(OR(I323>0,H323=\"Enter Watts\"),I323*G323,H323*G323)-IF(OR(P323>0,O323=\"Enter Watts\"),P323*N323,O323*N323),\"\")","v":""},"",{"$f":"IF(AND(V323=\"\",X323=\"\"),\"\",IF(OR(V323=\"\",X323=\"\"),0,V323-X323))","v":""},"",null,null,null,null,null,null,"No"]
[null,304,null,null,null,null,null,"",null,"",null,null,null,null,"",null,"",null,"No",null,"","","","","","","","",null,null,null,null,null,null,"No"]
[null,305,null,null,null,null,null,"",null,"",null,null,null,null,"",null,"",null,"No",null,"","","","","","","","",null,null,null,null,null,null,"No"]
[null,306,null,null,null,null,null,"",null,"",null,null,null,null,"",null,"",null,"No",null,"","","","","","","","",null,null,null,null,null,null,"No",null,null,null,null,null,null,"","",null,""]
[null,307,null,null,null,null,null,"",null,"",null,null,null,null,"",null,"",null,"No",null,"","","","","","","","",null,null,null,null,null,null,"No"]
[null,308,null,null,null,null,null,"",null,"",null,null,null,null,"",null,"",null,"No",null,"","","","","","","","",null,null,null,null,null,null,"No"]
[null,309,null,null,null,null,null,"",null,"",null,null,null,null,"",null,"",null,"No",null,"","","","","","","","",null,null,null,null,null,null,"No"]
[null,310,null,null,null,null,null,"",null,"",null,null,null,null,"",null,"",null,"No",null,"","","","","","","","",null,null,null,null,null,null,"No"]
[null,311,null,null,null,null,null,"",null,"",null,null,null,null,"",null,"",null,"No",null,"","","","","","","","",null,null,null,null,null,null,"No"]
[null,312,null,null,null,null,null,"",null,"",null,null,null,null,"",null,"",null,"No",null,"","","","","","","","",null,null,null,null,null,null,"No",null,null,null,null,null,null,"","",null,""]
[null,313,null,null,null,null,null,"",null,"",null,null,null,null,"",null,"",null,"No",null,"","","","","","","","",null,null,null,null,null,null,"No"]
[null,314,null,null,null,null,null,"",null,"",null,null,null,null,"",null,"",null,"No",null,"","","","","","","","",null,null,null,null,null,null,"No"]
[null,315,null,null,null,null,null,"",null,"",null,null,null,null,"",null,"",null,"No",null,"","","","","","","","",null,null,null,null,null,null,"No"]
[null,316,null,null,null,null,null,"",null,"",null,null,null,null,"",null,"",null,"No",null,"","","","","","","","",null,null,null,null,null,null,"No"]
[null,317,null,null,null,null,null,"",null,"",null,null,null,null,"",null,"",null,"No",null,"","","","","","","","",null,null,null,null,null,null,"No"]
[null,318,null,null,null,null,null,"",null,"",null,null,null,null,"",null,"",null,"No",null,"","","","","","","","",null,null,null,null,null,null,"No"]
[null,319,null,null,null,null,null,"",null,"",null,null,null,null,"",null,"",null,"No",null,"","","","","","","","",null,null,null,null,null,null,"No",null,null,null,null,null,null,"","",null,""]
[null,320,null,null,null,null,null,"",null,"",null,null,null,null,"",null,"",null,"No",null,"","","","","","","","",null,null,null,null,null,null,"No"]
[null,321,null,null,null,null,null,"",null,{"$f":"IF(AND(E341<>\"\",G341<>\"\",$E$9=\"Default Sector Hours\"),VLOOKUP(IF(R341=\"Exterior\",\"Exterior\",$E$8),$V$1037:$W$1042,2,FALSE),\"\")","v":""},null,null,null,null,{"$f":"IF(L341=\"\",\"\",VLOOKUP(L341,$AO$1114:$AP$1542,2,FALSE))","v":""},null,"",null,"No",null,"",{"$f":"IFERROR(IF(E341=\"\",\"\",G341/1000*IF(OR(I341>0,H341=\"Enter Watts\"),I341,H341)*IF(R341=\"Exterior\",$W$1042*(1-$G$16),IF($E$9=\"Manual Input\",J341,VLOOKUP($E$8,$V$1037:$Y$1041,2,FALSE))*(1-$E$16)      )),\"0\")","v":""},"",{"$f":"IFERROR(IF(AND(L341=\"\", E341=\"\"),\"\",N341/1000*IF(OR(P341>0,O341=\"Enter Watts\"),P341,O341)*IF(R341=\"Exterior\",$W$1042,IF($E$9=\"Manual Input\",Q341,VLOOKUP($E$8,$V$1037:$Y$1041,2,FALSE)))*IF(S341=\"Yes\",IF(R341=\"Exterior\",1-$Y$1042,1-VLOOKUP($E$8,$V$1037:$Y$1041,4,FALSE)),1)),0)","v":""},"",{"$f":"IF(AND(U341=\"\",W341=\"\"),\"\",IF(OR(U341=\"\",W341=\"\"),0,  IF($E$9=\"Manual Input\",$G$10,   VLOOKUP($E$8,$V$1037:$Y$1042,3,FALSE))     *(U341-W341)))","v":""},"","",null,null,null,null,null,null,"No"]
[null,322,null,null,null,null,null,"",null,"",null,null,null,null,"",null,"",null,"No",null,"","","","","","","","",null,null,null,null,null,null,{"$f":"IF(_xlfn.ISFORMULA(J342)=TRUE,\"No\",\"Yes\")","v":"No"}]
[null,323,null,null,null,null,null,"",null,"",null,null,null,null,"",null,"",null,"No",null,"","","","","","","","",null,null,null,null,null,null,"No"]
[null,324,null,null,null,null,null,"",null,"",null,null,null,null,"",null,"",null,"No",null,"","","","","","","","",null,null,null,null,null,null,"No"]
[null,325,null,null,null,null,null,"",null,"",null,null,null,null,"",null,"",null,"No",null,"","","","","","","","",null,null,null,null,null,null,"No",null,null,null,null,null,null,"","",null,""]
[null,326,null,null,null,null,null,"",null,"",null,null,null,null,"",null,"",null,"No",null,"","","","","","","","",null,null,null,null,null,null,"No"]
[null,327,null,null,null,null,null,"",null,"",null,null,null,null,"",null,"",null,"No",null,"","","","","","","","",null,null,null,null,null,null,"No"]
[null,328,null,null,null,null,null,"",null,"",null,null,null,null,"",null,"",null,"No",null,"","","","","","","","",null,null,null,null,null,null,"No"]
[null,329,null,null,null,null,null,"",null,"",null,null,null,null,"",null,"",null,"No",null,"","","","","","","","",null,null,null,null,null,null,"No"]
[null,330,null,null,null,null,null,"",null,"",null,null,null,null,"",null,"",null,"No",null,"","","","","","","","",null,null,null,null,null,null,"No"]
[null,331,null,null,null,null,null,"",null,"",null,null,null,null,"",null,"",null,"No",null,"","","","","","","","",null,null,null,null,null,null,"No"]
[null,332,null,null,null,null,null,"",null,"",null,null,null,null,"",null,"",null,"No",null,"","","","","","","","",null,null,null,null,null,null,"No"]
[null,333,null,null,null,null,null,"",null,"",null,null,null,null,"",null,"",null,"No",null,"","","","","","","","",null,null,null,null,null,null,"No"]
[null,334,null,null,null,null,null,"",null,"",null,null,null,null,"",null,"",null,"No",null,"","","","","","","","",null,null,null,null,null,null,"No"]
[null,335,null,null,null,null,null,"",null,"",null,null,null,null,"",null,"",null,"No",null,"","","","","","","","",null,null,null,null,null,null,"No"]
[null,336,null,null,null,null,null,"",null,"",null,null,null,null,"",null,"",null,"No",null,"","","","","","","","",null,null,null,null,null,null,"No"]
[null,337,null,null,null,null,null,"",null,"",null,null,null,null,"",null,"",null,"No",null,"","","","","","","","",null,null,null,null,null,null,"No",null,null,null,null,null,null,"","",null,""]
[null,338,null,null,null,null,null,"",null,"",null,null,null,null,"",null,"",null,"No",null,"","","","","","","","",null,null,null,null,null,null,"No"]
[null,339,null,null,null,null,null,"",null,"",null,null,null,null,"",null,"",null,"No",null,"","","","","","","","",null,null,null,null,null,null,"No"]
[null,340,null,null,null,null,null,"",null,"",null,null,null,null,"",null,"",null,"No",null,"","","","","","","","",null,null,null,null,null,null,"No"]
[null,341,null,null,null,null,null,"",null,"",null,null,null,null,"",null,"",null,"No",null,"","","","","","","","",null,null,null,null,null,null,"No"]
[null,342,null,null,null,null,null,"",null,"",null,null,null,null,"",null,"",null,"No",null,"","","","","","","","",null,null,null,null,null,null,"No"]
[null,343,null,null,null,null,null,"",null,"",null,null,null,null,"",null,"",null,"No",null,"","","","","","","","",null,null,null,null,null,null,"No",null,null,null,null,null,null,"","",null,""]
[null,344,null,null,null,null,null,"",null,"",null,null,null,null,"",null,"",null,"No",null,"","","","","","","","",null,null,null,null,null,null,"No"]
[null,345,null,null,null,null,null,"",null,"",null,null,null,null,"",null,"",null,"No",null,"","","","","","","","",null,null,null,null,null,null,"No"]
[null,346,null,null,null,null,null,"",null,"",null,null,null,null,"",null,"",null,"No",null,"","","","","","","","",null,null,null,null,null,null,"No"]
[null,347,null,null,null,null,null,"",null,"",null,null,null,null,"",null,"",null,"No",null,"","","","","","","","",null,null,null,null,null,null,"No"]
[null,348,null,null,null,null,null,"",null,"",null,null,null,null,"",null,"",null,"No",null,"","","","","","","","",null,null,null,null,null,null,"No"]
[null,349,null,null,null,null,null,"",null,"",null,null,null,null,"",null,"",null,"No",null,"","","","","","","","",null,null,null,null,null,null,"No"]
[null,350,null,null,null,null,null,"",null,"",null,null,null,null,"",null,"",null,"No",null,{"$f":"IF(R370=\"Interior\",IF(E370=\"\",\"\",IF(OR(I370>0,H370=\"Enter Watts\"),I370*G370/1000,H370*G370/1000)),IF(E370=\"\",\"\",0))","v":""},"",{"$f":"IF(R370=\"Interior\",IF(AND(L370=\"\", E370=\"\"),\"\",IF(OR(P370>0,O370=\"Enter Watts\", P370=\"\"),P370*N370/1000,O370*N370/1000)),IF(AND(E370=\"\",L370=\"\"),\"\",0))","v":""},"",{"$f":"IFERROR(IF(OR(I370>0,H370=\"Enter Watts\"),I370*G370,H370*G370)-IF(OR(P370>0,O370=\"Enter Watts\"),P370*N370,O370*N370),\"\")","v":""},"",{"$f":"IF(AND(V370=\"\",X370=\"\"),\"\",IF(OR(V370=\"\",X370=\"\"),0,V370-X370))","v":""},"",null,null,null,null,null,null,"No"]
[null,351,null,null,null,null,null,"",null,"",null,null,null,null,"",null,"",null,"No",null,{"$f":"IF(R371=\"Interior\",IF(E371=\"\",\"\",IF(OR(I371>0,H371=\"Enter Watts\"),I371*G371/1000,H371*G371/1000)),IF(E371=\"\",\"\",0))","v":""},"",{"$f":"IF(R371=\"Interior\",IF(AND(L371=\"\", E371=\"\"),\"\",IF(OR(P371>0,O371=\"Enter Watts\", P371=\"\"),P371*N371/1000,O371*N371/1000)),IF(AND(E371=\"\",L371=\"\"),\"\",0))","v":""},"",{"$f":"IFERROR(IF(OR(I371>0,H371=\"Enter Watts\"),I371*G371,H371*G371)-IF(OR(P371>0,O371=\"Enter Watts\"),P371*N371,O371*N371),\"\")","v":""},"",{"$f":"IF(AND(V371=\"\",X371=\"\"),\"\",IF(OR(V371=\"\",X371=\"\"),0,V371-X371))","v":""},"",null,null,null,null,null,null,"No"]
[null,352,null,null,null,null,null,"",null,"",null,null,null,null,"",null,"",null,"No",null,"","","","","","","","",null,null,null,null,null,null,"No"]
[null,353,null,null,null,null,null,"",null,"",null,null,null,null,"",null,"",null,"No",null,"","","","","","","","",null,null,null,null,null,null,"No"]
[null,354,null,null,null,null,null,"",null,"",null,null,null,null,"",null,"",null,"No",null,"","","","","","","","",null,null,null,null,null,null,"No",null,null,null,null,null,null,"","",null,""]
[null,355,null,null,null,null,null,"",null,"",null,null,null,null,"",null,"",null,"No",null,"","","","","","","","",null,null,null,null,null,null,"No"]
[null,356,null,null,null,null,null,"",null,"",null,null,null,null,"",null,"",null,"No",null,"","","","","","","","",null,null,null,null,null,null,"No"]
[null,357,null,null,null,null,null,"",null,"",null,null,null,null,"",null,"",null,"No",null,"","","","","","","","",null,null,null,null,null,null,"No"]
[null,358,null,null,null,null,null,"",null,"",null,null,null,null,"",null,"",null,"No",null,"","","","","","","","",null,null,null,null,null,null,"No"]
[null,359,null,null,null,null,null,"",null,"",null,null,null,null,"",null,"",null,"No",null,"","","","","","","","",null,null,null,null,null,null,"No"]
[null,360,null,null,null,null,null,"",null,"",null,null,null,null,"",null,"",null,"No",null,"","","","","","","","",null,null,null,null,null,null,"No",null,null,null,null,null,null,"","",null,""]
[null,361,null,null,null,null,null,"",null,"",null,null,null,null,"",null,"",null,"No",null,"","","","","","","","",null,null,null,null,null,null,"No"]
[null,362,null,null,null,null,null,"",null,"",null,null,null,null,"",null,"",null,"No",null,"","","","","","","","",null,null,null,null,null,null,"No"]
[null,363,null,null,null,null,null,"",null,"",null,null,null,null,"",null,"",null,"No",null,"","","","","","","","",null,null,null,null,null,null,"No"]
[null,364,null,null,null,null,null,"",null,"",null,null,null,null,"",null,"",null,"No",null,"","","","","","","","",null,null,null,null,null,null,"No"]
[null,365,null,null,null,null,null,"",null,"",null,null,null,null,"",null,"",null,"No",null,"","","","","","","","",null,null,null,null,null,null,"No"]
[null,366,null,null,null,null,null,{"$f":"IF(E386=\"\",\"\",VLOOKUP(E386,$AO$1115:$AP$1542,2,FALSE))","v":""},null,"",null,null,null,null,"",null,"",null,"No",null,"","","","","","","",{"$f":"IF(AA386=\"\",\"\",IF(AND(R386=\"Interior\",S386=\"No\",OR(T386=\"\",T386=\"No\")),$J$1028,IF(AND(R386=\"Interior\",S386=\"Yes\"),$J$1029,IF(AND(R386=\"Exterior\",S386=\"Yes\"),$J$1030,IF(AND(R386=\"Exterior\",S386=\"No\",N386<>G386),\"DNQ\",\"See Lighting Catalog to determine Code\")))))","v":""},null,null,null,null,null,null,"No"]
[null,367,null,null,null,null,null,"",null,"",null,null,null,null,"",null,"",null,"No",null,"","","","","","","","",null,null,null,null,null,null,"No",null,null,null,null,null,null,"","",null,""]
[null,368,null,null,null,null,null,"",null,"",null,null,null,null,"",null,"",null,"No",null,"","","","","","","","",null,null,null,null,null,null,"No"]
[null,369,null,null,null,null,null,"",null,"",null,null,null,null,"",null,"",null,"No",null,"","","","","","","","",null,null,null,null,null,null,"No"]
[null,370,null,null,null,null,null,"",null,"",null,null,null,null,"",null,"",null,"No",null,"","","","","","","","",null,null,null,null,null,null,"No"]
[null,371,null,null,null,null,null,"",null,"",null,null,null,null,"",null,"",null,"No",null,"","","","","","","","",null,null,null,null,null,null,"No"]
[null,372,null,null,null,null,null,"",null,"",null,null,null,null,"",null,"",null,"No",null,"","","","","","","","",null,null,null,null,null,null,"No"]
[null,373,null,null,null,null,null,"",null,"",null,null,null,null,"",null,"",null,"No",null,"","","","","","","","",null,null,null,null,null,null,"No",null,null,null,null,null,null,"","",null,""]
[null,374,null,null,null,null,null,"",null,"",null,null,null,null,"",null,"",null,"No",null,"","","","","","","","",null,null,null,null,null,null,"No"]
[null,375,null,null,null,null,null,"",null,"",null,null,null,null,"",null,"",null,"No",null,"","","","","","","","",null,null,null,null,null,null,"No"]
[null,376,null,null,null,null,null,"",null,"",null,null,null,null,"",null,"",null,"No",null,"","","","","","","","",null,null,null,null,null,null,"No"]
[null,377,null,null,null,null,null,"",null,"",null,null,null,null,"",null,"",null,"No",null,"","","","","","","","",null,null,null,null,null,null,"No"]
[null,378,null,null,null,null,null,"",null,"",null,null,null,null,"",null,"",null,"No",null,"","","","","","","","",null,null,null,null,null,null,"No"]
[null,379,null,null,null,null,null,"",null,"",null,null,null,null,"",null,"",null,"No",null,"","","","","","","","",null,null,null,null,null,null,"No"]
[null,380,null,null,null,null,null,"",null,"",null,null,null,null,"",null,"",null,"No",null,"","","","","","","","",null,null,null,null,null,null,"No"]
[null,381,null,null,null,null,null,"",null,"",null,null,null,null,"",null,"",null,"No",null,"","","","","","","","",null,null,null,null,null,null,"No"]
[null,382,null,null,null,null,null,"",null,"",null,null,null,null,"",null,"",null,"No",null,"","","","","","","","",null,null,null,null,null,null,"No"]
[null,383,null,null,null,null,null,"",null,"",null,null,null,null,"",null,"",null,"No",null,"","","","","","","","",null,null,null,null,null,null,"No"]
[null,384,null,null,null,null,null,"",null,"",null,null,null,null,"",null,"",null,"No",null,"","","","","","","","",null,null,null,null,null,null,"No"]
[null,385,null,null,null,null,null,"",null,{"$f":"IF(AND(E405<>\"\",G405<>\"\",$E$9=\"Default Sector Hours\"),VLOOKUP(IF(R405=\"Exterior\",\"Exterior\",$E$8),$V$1037:$W$1042,2,FALSE),\"\")","v":""},null,null,null,null,{"$f":"IF(L405=\"\",\"\",VLOOKUP(L405,$AO$1114:$AP$1542,2,FALSE))","v":""},null,"",null,"No",null,"",{"$f":"IFERROR(IF(E405=\"\",\"\",G405/1000*IF(OR(I405>0,H405=\"Enter Watts\"),I405,H405)*IF(R405=\"Exterior\",$W$1042*(1-$G$16),IF($E$9=\"Manual Input\",J405,VLOOKUP($E$8,$V$1037:$Y$1041,2,FALSE))*(1-$E$16)      )),\"0\")","v":""},"",{"$f":"IFERROR(IF(AND(L405=\"\", E405=\"\"),\"\",N405/1000*IF(OR(P405>0,O405=\"Enter Watts\"),P405,O405)*IF(R405=\"Exterior\",$W$1042,IF($E$9=\"Manual Input\",Q405,VLOOKUP($E$8,$V$1037:$Y$1041,2,FALSE)))*IF(S405=\"Yes\",IF(R405=\"Exterior\",1-$Y$1042,1-VLOOKUP($E$8,$V$1037:$Y$1041,4,FALSE)),1)),0)","v":""},"",{"$f":"IF(AND(U405=\"\",W405=\"\"),\"\",IF(OR(U405=\"\",W405=\"\"),0,  IF($E$9=\"Manual Input\",$G$10,   VLOOKUP($E$8,$V$1037:$Y$1042,3,FALSE))     *(U405-W405)))","v":""},"","",null,null,null,null,null,null,"No",null,null,null,null,null,null,"","",null,""]
[null,386,null,null,null,null,null,"",null,"",null,null,null,null,"",null,"",null,"No",null,"","","","","","","","",null,null,null,null,null,null,{"$f":"IF(_xlfn.ISFORMULA(J406)=TRUE,\"No\",\"Yes\")","v":"No"}]
[null,387,null,null,null,null,null,"",null,"",null,null,null,null,"",null,"",null,"No",null,"","","","","","","","",null,null,null,null,null,null,"No"]
[null,388,null,null,null,null,null,"",null,"",null,null,null,null,"",null,"",null,"No",null,"","","","","","","","",null,null,null,null,null,null,"No"]
[null,389,null,null,null,null,null,"",null,"",null,null,null,null,"",null,"",null,"No",null,"","","","","","","","",null,null,null,null,null,null,"No"]
[null,390,null,null,null,null,null,"",null,"",null,null,null,null,"",null,"",null,"No",null,"","","","","","","","",null,null,null,null,null,null,"No"]
[null,391,null,null,null,null,null,"",null,"",null,null,null,null,"",null,"",null,"No",null,"","","","","","","","",null,null,null,null,null,null,"No",null,null,null,null,null,null,"","",null,""]
[null,392,null,null,null,null,null,"",null,"",null,null,null,null,"",null,"",null,"No",null,"","","","","","","","",null,null,null,null,null,null,"No"]
[null,393,null,null,null,null,null,"",null,"",null,null,null,null,"",null,"",null,"No",null,"","","","","","","","",null,null,null,null,null,null,"No"]
[null,394,null,null,null,null,null,"",null,"",null,null,null,null,"",null,"",null,"No",null,"","","","","","","","",null,null,null,null,null,null,"No"]
[null,395,null,null,null,null,null,"",null,"",null,null,null,null,"",null,"",null,"No",null,"","","","","","","","",null,null,null,null,null,null,"No"]
[null,396,null,null,null,null,null,"",null,"",null,null,null,null,"",null,"",null,"No",null,"","","","","","","","",null,null,null,null,null,null,"No"]
[null,397,null,null,null,null,null,"",null,"",null,null,null,null,"",null,"",null,"No",null,"","","","","","","","",null,null,null,null,null,null,"No"]
[null,398,null,null,null,null,null,"",null,"",null,null,null,null,"",null,"",null,"No",null,{"$f":"IF(R418=\"Interior\",IF(E418=\"\",\"\",IF(OR(I418>0,H418=\"Enter Watts\"),I418*G418/1000,H418*G418/1000)),IF(E418=\"\",\"\",0))","v":""},"",{"$f":"IF(R418=\"Interior\",IF(AND(L418=\"\", E418=\"\"),\"\",IF(OR(P418>0,O418=\"Enter Watts\", P418=\"\"),P418*N418/1000,O418*N418/1000)),IF(AND(E418=\"\",L418=\"\"),\"\",0))","v":""},"",{"$f":"IFERROR(IF(OR(I418>0,H418=\"Enter Watts\"),I418*G418,H418*G418)-IF(OR(P418>0,O418=\"Enter Watts\"),P418*N418,O418*N418),\"\")","v":""},"",{"$f":"IF(AND(V418=\"\",X418=\"\"),\"\",IF(OR(V418=\"\",X418=\"\"),0,V418-X418))","v":""},"",null,null,null,null,null,null,"No"]
[null,399,null,null,null,null,null,"",null,"",null,null,null,null,"",null,"",null,"No",null,{"$f":"IF(R419=\"Interior\",IF(E419=\"\",\"\",IF(OR(I419>0,H419=\"Enter Watts\"),I419*G419/1000,H419*G419/1000)),IF(E419=\"\",\"\",0))","v":""},"",{"$f":"IF(R419=\"Interior\",IF(AND(L419=\"\", E419=\"\"),\"\",IF(OR(P419>0,O419=\"Enter Watts\", P419=\"\"),P419*N419/1000,O419*N419/1000)),IF(AND(E419=\"\",L419=\"\"),\"\",0))","v":""},"",{"$f":"IFERROR(IF(OR(I419>0,H419=\"Enter Watts\"),I419*G419,H419*G419)-IF(OR(P419>0,O419=\"Enter Watts\"),P419*N419,O419*N419),\"\")","v":""},"",{"$f":"IF(AND(V419=\"\",X419=\"\"),\"\",IF(OR(V419=\"\",X419=\"\"),0,V419-X419))","v":""},"",null,null,null,null,null,null,"No"]
[null,400,null,null,null,null,null,"",null,"",null,null,null,null,"",null,"",null,"No",null,"","","","","","","","",null,null,null,null,null,null,"No"]
[null,401,null,null,null,null,null,"",null,"",null,null,null,null,"",null,"",null,"No",null,"","","","","","","","",null,null,null,null,null,null,"No"]
[null,402,null,null,null,null,null,"",null,"",null,null,null,null,"",null,"",null,"No",null,"","","","","","","","",null,null,null,null,null,null,"No",null,null,null,null,null,null,"","",null,""]
[null,403,null,null,null,null,null,"",null,"",null,null,null,null,"",null,"",null,"No",null,"","","","","","","","",null,null,null,null,null,null,"No"]
[null,404,null,null,null,null,null,"",null,"",null,null,null,null,"",null,"",null,"No",null,"","","","","","","","",null,null,null,null,null,null,"No"]
[null,405,null,null,null,null,null,"",null,"",null,null,null,null,"",null,"",null,"No",null,"","","","","","","","",null,null,null,null,null,null,"No"]
[null,406,null,null,null,null,null,"",null,"",null,null,null,null,"",null,"",null,"No",null,"","","","","","","","",null,null,null,null,null,null,"No"]
[null,407,null,null,null,null,null,"",null,"",null,null,null,null,"",null,"",null,"No",null,"","","","","","","","",null,null,null,null,null,null,"No"]
[null,408,null,null,null,null,null,"",null,"",null,null,null,null,"",null,"",null,"No",null,{"$f":"IF(R428=\"Interior\",IF(E428=\"\",\"\",IF(OR(I428>0,H428=\"Enter Watts\"),I428*G428/1000,H428*G428/1000)),IF(E428=\"\",\"\",0))","v":""},"",{"$f":"IF(R428=\"Interior\",IF(AND(L428=\"\", E428=\"\"),\"\",IF(OR(P428>0,O428=\"Enter Watts\", P428=\"\"),P428*N428/1000,O428*N428/1000)),IF(AND(E428=\"\",L428=\"\"),\"\",0))","v":""},"",{"$f":"IFERROR(IF(OR(I428>0,H428=\"Enter Watts\"),I428*G428,H428*G428)-IF(OR(P428>0,O428=\"Enter Watts\"),P428*N428,O428*N428),\"\")","v":""},"",{"$f":"IF(AND(V428=\"\",X428=\"\"),\"\",IF(OR(V428=\"\",X428=\"\"),0,V428-X428))","v":""},"",null,null,null,null,null,null,"No"]
[null,409,null,null,null,null,null,"",null,"",null,null,null,null,"",null,"",null,"No",null,{"$f":"IF(R429=\"Interior\",IF(E429=\"\",\"\",IF(OR(I429>0,H429=\"Enter Watts\"),I429*G429/1000,H429*G429/1000)),IF(E429=\"\",\"\",0))","v":""},"",{"$f":"IF(R429=\"Interior\",IF(AND(L429=\"\", E429=\"\"),\"\",IF(OR(P429>0,O429=\"Enter Watts\", P429=\"\"),P429*N429/1000,O429*N429/1000)),IF(AND(E429=\"\",L429=\"\"),\"\",0))","v":""},"",{"$f":"IFERROR(IF(OR(I429>0,H429=\"Enter Watts\"),I429*G429,H429*G429)-IF(OR(P429>0,O429=\"Enter Watts\"),P429*N429,O429*N429),\"\")","v":""},"",{"$f":"IF(AND(V429=\"\",X429=\"\"),\"\",IF(OR(V429=\"\",X429=\"\"),0,V429-X429))","v":""},"",null,null,null,null,null,null,"No"]
[null,410,null,null,null,null,null,"",null,"",null,null,null,null,"",null,"",null,"No",null,"","","","","","","","",null,null,null,null,null,null,"No"]
[null,411,null,null,null,null,null,"",null,"",null,null,null,null,"",null,"",null,"No",null,"","","","","","","","",null,null,null,null,null,null,"No"]
[null,412,null,null,null,null,null,"",null,"",null,null,null,null,"",null,"",null,"No",null,"","","","","","","","",null,null,null,null,null,null,"No",null,null,null,null,null,null,"","",null,""]
[null,413,null,null,null,null,null,"",null,"",null,null,null,null,"",null,"",null,"No",null,"","","","","","","","",null,null,null,null,null,null,"No"]
[null,414,null,null,null,null,null,"",null,"",null,null,null,null,"",null,"",null,"No",null,"","","","","","","","",null,null,null,null,null,null,"No"]
[null,415,null,null,null,null,null,"",null,"",null,null,null,null,"",null,"",null,"No",null,"","","","","","","","",null,null,null,null,null,null,"No"]
[null,416,null,null,null,null,null,"",null,"",null,null,null,null,"",null,"",null,"No",null,"","","","","","","","",null,null,null,null,null,null,"No"]
[null,417,null,null,null,null,null,"",null,"",null,null,null,null,"",null,"",null,"No",null,"","","","","","","","",null,null,null,null,null,null,"No"]
[null,418,null,null,null,null,null,"",null,"",null,null,null,null,"",null,"",null,"No",null,"","","","","","","","",null,null,null,null,null,null,"No",null,null,null,null,null,null,"","",null,""]
[null,419,null,null,null,null,null,"",null,"",null,null,null,null,"",null,"",null,"No",null,"","","","","","","","",null,null,null,null,null,null,"No"]
[null,420,null,null,null,null,null,"",null,"",null,null,null,null,"",null,"",null,"No",null,"","","","","","","","",null,null,null,null,null,null,"No"]
[null,421,null,null,null,null,null,"",null,"",null,null,null,null,"",null,"",null,"No",null,"","","","","","","","",null,null,null,null,null,null,"No"]
[null,422,null,null,null,null,null,"",null,"",null,null,null,null,"",null,"",null,"No",null,"","","","","","","","",null,null,null,null,null,null,"No"]
[null,423,null,null,null,null,null,"",null,"",null,null,null,null,"",null,"",null,"No",null,"","","","","","","","",null,null,null,null,null,null,"No"]
[null,424,null,null,null,null,null,"",null,"",null,null,null,null,"",null,"",null,"No",null,"","","","","","","","",null,null,null,null,null,null,"No"]
[null,425,null,null,null,null,null,"",null,"",null,null,null,null,"",null,"",null,"No",null,"","","","","","","","",null,null,null,null,null,null,"No",null,null,null,null,null,null,"","",null,""]
[null,426,null,null,null,null,null,"",null,"",null,null,null,null,"",null,"",null,"No",null,"","","","","","","","",null,null,null,null,null,null,"No"]
[null,427,null,null,null,null,null,"",null,"",null,null,null,null,"",null,"",null,"No",null,"","","","","","","","",null,null,null,null,null,null,"No"]
[null,428,null,null,null,null,null,"",null,"",null,null,null,null,"",null,"",null,"No",null,"","","","","","","","",null,null,null,null,null,null,"No"]
[null,429,null,null,null,null,null,"",null,"",null,null,null,null,"",null,"",null,"No",null,"","","","","","","","",null,null,null,null,null,null,"No"]
[null,430,null,null,null,null,null,{"$f":"IF(E450=\"\",\"\",VLOOKUP(E450,$AO$1115:$AP$1542,2,FALSE))","v":""},null,"",null,null,null,null,"",null,"",null,"No",null,"","","","","","","",{"$f":"IF(AA450=\"\",\"\",IF(AND(R450=\"Interior\",S450=\"No\",OR(T450=\"\",T450=\"No\")),$J$1028,IF(AND(R450=\"Interior\",S450=\"Yes\"),$J$1029,IF(AND(R450=\"Exterior\",S450=\"Yes\"),$J$1030,IF(AND(R450=\"Exterior\",S450=\"No\",N450<>G450),\"DNQ\",\"See Lighting Catalog to determine Code\")))))","v":""},null,null,null,null,null,null,"No"]
[null,431,null,null,null,null,null,"",null,"",null,null,null,null,"",null,"",null,"No",null,"","","","","","","","",null,null,null,null,null,null,"No",null,null,null,null,null,null,"","",null,""]
[null,432,null,null,null,null,null,"",null,"",null,null,null,null,"",null,"",null,"No",null,"","","","","","","","",null,null,null,null,null,null,"No"]
[null,433,null,null,null,null,null,"",null,"",null,null,null,null,"",null,"",null,"No",null,"","","","","","","","",null,null,null,null,null,null,"No"]
[null,434,null,null,null,null,null,"",null,"",null,null,null,null,"",null,"",null,"No",null,"","","","","","","","",null,null,null,null,null,null,"No"]
[null,435,null,null,null,null,null,"",null,"",null,null,null,null,"",null,"",null,"No",null,"","","","","","","","",null,null,null,null,null,null,"No"]
[null,436,null,null,null,null,null,"",null,"",null,null,null,null,"",null,"",null,"No",null,"","","","","","","","",null,null,null,null,null,null,"No"]
[null,437,null,null,null,null,null,"",null,"",null,null,null,null,"",null,"",null,"No",null,"","","","","","","","",null,null,null,null,null,null,"No"]
[null,438,null,null,null,null,null,"",null,"",null,null,null,null,"",null,"",null,"No",null,"","","","","","","","",null,null,null,null,null,null,"No"]
[null,439,null,null,null,null,null,"",null,"",null,null,null,null,"",null,"",null,"No",null,"","","","","","","","",null,null,null,null,null,null,"No"]
[null,440,null,null,null,null,null,"",null,"",null,null,null,null,"",null,"",null,"No",null,"","","","","","","","",null,null,null,null,null,null,"No"]
[null,441,null,null,null,null,null,"",null,"",null,null,null,null,"",null,"",null,"No",null,"","","","","","","","",null,null,null,null,null,null,"No"]
[null,442,null,null,null,null,null,"",null,"",null,null,null,null,"",null,"",null,"No",null,"","","","","","","","",null,null,null,null,null,null,"No"]
[null,443,null,null,null,null,null,"",null,"",null,null,null,null,"",null,"",null,"No",null,"","","","","","","","",null,null,null,null,null,null,"No",null,null,null,null,null,null,"","",null,""]
[null,444,null,null,null,null,null,"",null,"",null,null,null,null,"",null,"",null,"No",null,"","","","","","","","",null,null,null,null,null,null,"No"]
[null,445,null,null,null,null,null,"",null,"",null,null,null,null,"",null,"",null,"No",null,"","","","","","","","",null,null,null,null,null,null,"No"]
[null,446,null,null,null,null,null,"",null,"",null,null,null,null,"",null,"",null,"No",null,"","","","","","","","",null,null,null,null,null,null,"No"]
[null,447,null,null,null,null,null,"",null,"",null,null,null,null,"",null,"",null,"No",null,"","","","","","","","",null,null,null,null,null,null,"No"]
[null,448,null,null,null,null,null,"",null,"",null,null,null,null,"",null,"",null,"No",null,"","","","","","","","",null,null,null,null,null,null,"No"]
[null,449,null,null,null,null,null,"",null,{"$f":"IF(AND(E469<>\"\",G469<>\"\",$E$9=\"Default Sector Hours\"),VLOOKUP(IF(R469=\"Exterior\",\"Exterior\",$E$8),$V$1037:$W$1042,2,FALSE),\"\")","v":""},null,null,null,null,{"$f":"IF(L469=\"\",\"\",VLOOKUP(L469,$AO$1114:$AP$1542,2,FALSE))","v":""},null,"",null,"No",null,"",{"$f":"IFERROR(IF(E469=\"\",\"\",G469/1000*IF(OR(I469>0,H469=\"Enter Watts\"),I469,H469)*IF(R469=\"Exterior\",$W$1042*(1-$G$16),IF($E$9=\"Manual Input\",J469,VLOOKUP($E$8,$V$1037:$Y$1041,2,FALSE))*(1-$E$16)      )),\"0\")","v":""},"",{"$f":"IFERROR(IF(AND(L469=\"\", E469=\"\"),\"\",N469/1000*IF(OR(P469>0,O469=\"Enter Watts\"),P469,O469)*IF(R469=\"Exterior\",$W$1042,IF($E$9=\"Manual Input\",Q469,VLOOKUP($E$8,$V$1037:$Y$1041,2,FALSE)))*IF(S469=\"Yes\",IF(R469=\"Exterior\",1-$Y$1042,1-VLOOKUP($E$8,$V$1037:$Y$1041,4,FALSE)),1)),0)","v":""},"",{"$f":"IF(AND(U469=\"\",W469=\"\"),\"\",IF(OR(U469=\"\",W469=\"\"),0,  IF($E$9=\"Manual Input\",$G$10,   VLOOKUP($E$8,$V$1037:$Y$1042,3,FALSE))     *(U469-W469)))","v":""},"","",null,null,null,null,null,null,"No",null,null,null,null,null,null,"","",null,""]
[null,450,null,null,null,null,null,"",null,"",null,null,null,null,"",null,"",null,"No",null,"","","","","","","","",null,null,null,null,null,null,{"$f":"IF(_xlfn.ISFORMULA(J470)=TRUE,\"No\",\"Yes\")","v":"No"}]
[null,451,null,null,null,null,null,"",null,"",null,null,null,null,"",null,"",null,"No",null,"","","","","","","","",null,null,null,null,null,null,"No"]
[null,452,null,null,null,null,null,"",null,"",null,null,null,null,"",null,"",null,"No",null,"","","","","","","","",null,null,null,null,null,null,"No"]
[null,453,null,null,null,null,null,"",null,"",null,null,null,null,"",null,"",null,"No",null,"","","","","","","","",null,null,null,null,null,null,"No"]
[null,454,null,null,null,null,null,"",null,"",null,null,null,null,"",null,"",null,"No",null,"","","","","","","","",null,null,null,null,null,null,"No"]
[null,455,null,null,null,null,null,"",null,"",null,null,null,null,"",null,"",null,"No",null,"","","","","","","","",null,null,null,null,null,null,"No"]
[null,456,null,null,null,null,null,"",null,"",null,null,null,null,"",null,"",null,"No",null,{"$f":"IF(R476=\"Interior\",IF(E476=\"\",\"\",IF(OR(I476>0,H476=\"Enter Watts\"),I476*G476/1000,H476*G476/1000)),IF(E476=\"\",\"\",0))","v":""},"",{"$f":"IF(R476=\"Interior\",IF(AND(L476=\"\", E476=\"\"),\"\",IF(OR(P476>0,O476=\"Enter Watts\", P476=\"\"),P476*N476/1000,O476*N476/1000)),IF(AND(E476=\"\",L476=\"\"),\"\",0))","v":""},"",{"$f":"IFERROR(IF(OR(I476>0,H476=\"Enter Watts\"),I476*G476,H476*G476)-IF(OR(P476>0,O476=\"Enter Watts\"),P476*N476,O476*N476),\"\")","v":""},"",{"$f":"IF(AND(V476=\"\",X476=\"\"),\"\",IF(OR(V476=\"\",X476=\"\"),0,V476-X476))","v":""},"",null,null,null,null,null,null,"No"]
[null,457,null,null,null,null,null,"",null,"",null,null,null,null,"",null,"",null,"No",null,{"$f":"IF(R477=\"Interior\",IF(E477=\"\",\"\",IF(OR(I477>0,H477=\"Enter Watts\"),I477*G477/1000,H477*G477/1000)),IF(E477=\"\",\"\",0))","v":""},"",{"$f":"IF(R477=\"Interior\",IF(AND(L477=\"\", E477=\"\"),\"\",IF(OR(P477>0,O477=\"Enter Watts\", P477=\"\"),P477*N477/1000,O477*N477/1000)),IF(AND(E477=\"\",L477=\"\"),\"\",0))","v":""},"",{"$f":"IFERROR(IF(OR(I477>0,H477=\"Enter Watts\"),I477*G477,H477*G477)-IF(OR(P477>0,O477=\"Enter Watts\"),P477*N477,O477*N477),\"\")","v":""},"",{"$f":"IF(AND(V477=\"\",X477=\"\"),\"\",IF(OR(V477=\"\",X477=\"\"),0,V477-X477))","v":""},"",null,null,null,null,null,null,"No"]
[null,458,null,null,null,null,null,"",null,"",null,null,null,null,"",null,"",null,"No",null,"","","","","","","","",null,null,null,null,null,null,"No"]
[null,459,null,null,null,null,null,"",null,"",null,null,null,null,"",null,"",null,"No",null,"","","","","","","","",null,null,null,null,null,null,"No"]
[null,460,null,null,null,null,null,"",null,"",null,null,null,null,"",null,"",null,"No",null,"","","","","","","","",null,null,null,null,null,null,"No",null,null,null,null,null,null,"","",null,""]
[null,461,null,null,null,null,null,"",null,"",null,null,null,null,"",null,"",null,"No",null,"","","","","","","","",null,null,null,null,null,null,"No"]
[null,462,null,null,null,null,null,"",null,"",null,null,null,null,"",null,"",null,"No",null,"","","","","","","","",null,null,null,null,null,null,"No"]
[null,463,null,null,null,null,null,"",null,"",null,null,null,null,"",null,"",null,"No",null,"","","","","","","","",null,null,null,null,null,null,"No"]
[null,464,null,null,null,null,null,"",null,"",null,null,null,null,"",null,"",null,"No",null,"","","","","","","","",null,null,null,null,null,null,"No"]
[null,465,null,null,null,null,null,"",null,"",null,null,null,null,"",null,"",null,"No",null,"","","","","","","","",null,null,null,null,null,null,"No"]
[null,466,null,null,null,null,null,"",null,"",null,null,null,null,"",null,"",null,"No",null,"","","","","","","","",null,null,null,null,null,null,"No",null,null,null,null,null,null,"","",null,""]
[null,467,null,null,null,null,null,"",null,"",null,null,null,null,"",null,"",null,"No",null,"","","","","","","","",null,null,null,null,null,null,"No"]
[null,468,null,null,null,null,null,"",null,"",null,null,null,null,"",null,"",null,"No",null,"","","","","","","","",null,null,null,null,null,null,"No"]
[null,469,null,null,null,null,null,"",null,"",null,null,null,null,"",null,"",null,"No",null,"","","","","","","","",null,null,null,null,null,null,"No"]
[null,470,null,null,null,null,null,"",null,"",null,null,null,null,"",null,"",null,"No",null,"","","","","","","","",null,null,null,null,null,null,"No"]
[null,471,null,null,null,null,null,"",null,"",null,null,null,null,"",null,"",null,"No",null,"","","","","","","","",null,null,null,null,null,null,"No"]
[null,472,null,null,null,null,null,"",null,"",null,null,null,null,"",null,"",null,"No",null,"","","","","","","","",null,null,null,null,null,null,"No"]
[null,473,null,null,null,null,null,"",null,"",null,null,null,null,"",null,"",null,"No",null,"","","","","","","","",null,null,null,null,null,null,"No",null,null,null,null,null,null,"","",null,""]
[null,474,null,null,null,null,null,"",null,"",null,null,null,null,"",null,"",null,"No",null,"","","","","","","","",null,null,null,null,null,null,"No"]
[null,475,null,null,null,null,null,"",null,"",null,null,null,null,"",null,"",null,"No",null,"","","","","","","","",null,null,null,null,null,null,"No"]
[null,476,null,null,null,null,null,"",null,"",null,null,null,null,"",null,"",null,"No",null,"","","","","","","","",null,null,null,null,null,null,"No"]
[null,477,null,null,null,null,null,"",null,"",null,null,null,null,"",null,"",null,"No",null,"","","","","","","","",null,null,null,null,null,null,"No"]
[null,478,null,null,null,null,null,"",null,"",null,null,null,null,"",null,"",null,"No",null,"","","","","","","","",null,null,null,null,null,null,"No"]
[null,479,null,null,null,null,null,"",null,"",null,null,null,null,"",null,"",null,"No",null,"","","","","","","","",null,null,null,null,null,null,"No",null,null,null,null,null,null,"","",null,""]
[null,480,null,null,null,null,null,"",null,"",null,null,null,null,"",null,"",null,"No",null,"","","","","","","","",null,null,null,null,null,null,"No"]
[null,481,null,null,null,null,null,"",null,"",null,null,null,null,"",null,"",null,"No",null,"","","","","","","","",null,null,null,null,null,null,"No"]
[null,482,null,null,null,null,null,"",null,"",null,null,null,null,"",null,"",null,"No",null,"","","","","","","","",null,null,null,null,null,null,"No"]
[null,483,null,null,null,null,null,"",null,"",null,null,null,null,"",null,"",null,"No",null,"","","","","","","","",null,null,null,null,null,null,"No"]
[null,484,null,null,null,null,null,"",null,"",null,null,null,null,"",null,"",null,"No",null,"","","","","","","","",null,null,null,null,null,null,"No"]
[null,485,null,null,null,null,null,"",null,"",null,null,null,null,"",null,"",null,"No",null,"","","","","","","","",null,null,null,null,null,null,"No"]
[null,486,null,null,null,null,null,"",null,"",null,null,null,null,"",null,"",null,"No",null,"","","","","","","","",null,null,null,null,null,null,"No"]
[null,487,null,null,null,null,null,"",null,"",null,null,null,null,"",null,"",null,"No",null,"","","","","","","","",null,null,null,null,null,null,"No"]
[null,488,null,null,null,null,null,"",null,"",null,null,null,null,"",null,"",null,"No",null,"","","","","","","","",null,null,null,null,null,null,"No"]
[null,489,null,null,null,null,null,"",null,"",null,null,null,null,"",null,"",null,"No",null,"","","","","","","","",null,null,null,null,null,null,"No"]
[null,490,null,null,null,null,null,"",null,"",null,null,null,null,"",null,"",null,"No",null,"","","","","","","","",null,null,null,null,null,null,"No"]
[null,491,null,null,null,null,null,"",null,"",null,null,null,null,"",null,"",null,"No",null,"","","","","","","","",null,null,null,null,null,null,"No",null,null,null,null,null,null,"","",null,""]
[null,492,null,null,null,null,null,"",null,"",null,null,null,null,"",null,"",null,"No",null,"","","","","","","","",null,null,null,null,null,null,"No"]
[null,493,null,null,null,null,null,"",null,"",null,null,null,null,"",null,"",null,"No",null,"","","","","","","","",null,null,null,null,null,null,"No"]
[null,494,null,null,null,null,null,{"$f":"IF(E514=\"\",\"\",VLOOKUP(E514,$AO$1115:$AP$1542,2,FALSE))","v":""},null,"",null,null,null,null,"",null,"",null,"No",null,"","","","","","","",{"$f":"IF(AA514=\"\",\"\",IF(AND(R514=\"Interior\",S514=\"No\",OR(T514=\"\",T514=\"No\")),$J$1028,IF(AND(R514=\"Interior\",S514=\"Yes\"),$J$1029,IF(AND(R514=\"Exterior\",S514=\"Yes\"),$J$1030,IF(AND(R514=\"Exterior\",S514=\"No\",N514<>G514),\"DNQ\",\"See Lighting Catalog to determine Code\")))))","v":""},null,null,null,null,null,null,"No"]
[null,495,null,null,null,null,null,"",null,"",null,null,null,null,"",null,"",null,"No",null,"","","","","","","","",null,null,null,null,null,null,"No"]
[null,496,null,null,null,null,null,"",null,"",null,null,null,null,"",null,"",null,"No",null,"","","","","","","","",null,null,null,null,null,null,"No"]
[null,497,null,null,null,null,null,"",null,"",null,null,null,null,"",null,"",null,"No",null,"","","","","","","","",null,null,null,null,null,null,"No",null,null,null,null,null,null,"","",null,""]
[null,498,null,null,null,null,null,"",null,"",null,null,null,null,"",null,"",null,"No",null,"","","","","","","","",null,null,null,null,null,null,"No"]
[null,499,null,null,null,null,null,"",null,"",null,null,null,null,"",null,"",null,"No",null,"","","","","","","","",null,null,null,null,null,null,"No"]
[null,500,null,null,null,null,null,"",null,"",null,null,null,null,"",null,"",null,"No",null,"","","","","","","","",null,null,null,null,null,null,"No"]
[null,501,null,null,null,null,null,"",null,"",null,null,null,null,"",null,"",null,"No",null,"","","","","","","","",null,null,null,null,null,null,"No"]
[null,502,null,null,null,null,null,"",null,"",null,null,null,null,"",null,"",null,"No",null,"","","","","","","","",null,null,null,null,null,null,"No"]
[null,503,null,null,null,null,null,"",null,"",null,null,null,null,"",null,"",null,"No",null,"","","","","","","","",null,null,null,null,null,null,"No"]
[null,504,null,null,null,null,null,"",null,"",null,null,null,null,"",null,"",null,"No",null,{"$f":"IF(R524=\"Interior\",IF(E524=\"\",\"\",IF(OR(I524>0,H524=\"Enter Watts\"),I524*G524/1000,H524*G524/1000)),IF(E524=\"\",\"\",0))","v":""},"",{"$f":"IF(R524=\"Interior\",IF(AND(L524=\"\", E524=\"\"),\"\",IF(OR(P524>0,O524=\"Enter Watts\", P524=\"\"),P524*N524/1000,O524*N524/1000)),IF(AND(E524=\"\",L524=\"\"),\"\",0))","v":""},"",{"$f":"IFERROR(IF(OR(I524>0,H524=\"Enter Watts\"),I524*G524,H524*G524)-IF(OR(P524>0,O524=\"Enter Watts\"),P524*N524,O524*N524),\"\")","v":""},"",{"$f":"IF(AND(V524=\"\",X524=\"\"),\"\",IF(OR(V524=\"\",X524=\"\"),0,V524-X524))","v":""},"",null,null,null,null,null,null,"No"]
[null,505,null,null,null,null,null,"",null,"",null,null,null,null,"",null,"",null,"No",null,{"$f":"IF(R525=\"Interior\",IF(E525=\"\",\"\",IF(OR(I525>0,H525=\"Enter Watts\"),I525*G525/1000,H525*G525/1000)),IF(E525=\"\",\"\",0))","v":""},"",{"$f":"IF(R525=\"Interior\",IF(AND(L525=\"\", E525=\"\"),\"\",IF(OR(P525>0,O525=\"Enter Watts\", P525=\"\"),P525*N525/1000,O525*N525/1000)),IF(AND(E525=\"\",L525=\"\"),\"\",0))","v":""},"",{"$f":"IFERROR(IF(OR(I525>0,H525=\"Enter Watts\"),I525*G525,H525*G525)-IF(OR(P525>0,O525=\"Enter Watts\"),P525*N525,O525*N525),\"\")","v":""},"",{"$f":"IF(AND(V525=\"\",X525=\"\"),\"\",IF(OR(V525=\"\",X525=\"\"),0,V525-X525))","v":""},"",null,null,null,null,null,null,"No"]
[null,506,null,null,null,null,null,"",null,"",null,null,null,null,"",null,"",null,"No",null,"","","","","","","","",null,null,null,null,null,null,"No"]
[null,507,null,null,null,null,null,"",null,"",null,null,null,null,"",null,"",null,"No",null,"","","","","","","","",null,null,null,null,null,null,"No"]
[null,508,null,null,null,null,null,"",null,"",null,null,null,null,"",null,"",null,"No",null,"","","","","","","","",null,null,null,null,null,null,"No",null,null,null,null,null,null,"","",null,""]
[null,509,null,null,null,null,null,"",null,"",null,null,null,null,"",null,"",null,"No",null,"","","","","","","","",null,null,null,null,null,null,"No"]
[null,510,null,null,null,null,null,"",null,"",null,null,null,null,"",null,"",null,"No",null,"","","","","","","","",null,null,null,null,null,null,"No"]
[null,511,null,null,null,null,null,"",null,"",null,null,null,null,"",null,"",null,"No",null,"","","","","","","","",null,null,null,null,null,null,"No"]
[null,512,null,null,null,null,null,"",null,"",null,null,null,null,"",null,"",null,"No",null,"","","","","","","","",null,null,null,null,null,null,"No"]
[null,513,null,null,null,null,null,"",null,{"$f":"IF(AND(E533<>\"\",G533<>\"\",$E$9=\"Default Sector Hours\"),VLOOKUP(IF(R533=\"Exterior\",\"Exterior\",$E$8),$V$1037:$W$1042,2,FALSE),\"\")","v":""},null,null,null,null,{"$f":"IF(L533=\"\",\"\",VLOOKUP(L533,$AO$1114:$AP$1542,2,FALSE))","v":""},null,"",null,"No",null,"",{"$f":"IFERROR(IF(E533=\"\",\"\",G533/1000*IF(OR(I533>0,H533=\"Enter Watts\"),I533,H533)*IF(R533=\"Exterior\",$W$1042*(1-$G$16),IF($E$9=\"Manual Input\",J533,VLOOKUP($E$8,$V$1037:$Y$1041,2,FALSE))*(1-$E$16)      )),\"0\")","v":""},"",{"$f":"IFERROR(IF(AND(L533=\"\", E533=\"\"),\"\",N533/1000*IF(OR(P533>0,O533=\"Enter Watts\"),P533,O533)*IF(R533=\"Exterior\",$W$1042,IF($E$9=\"Manual Input\",Q533,VLOOKUP($E$8,$V$1037:$Y$1041,2,FALSE)))*IF(S533=\"Yes\",IF(R533=\"Exterior\",1-$Y$1042,1-VLOOKUP($E$8,$V$1037:$Y$1041,4,FALSE)),1)),0)","v":""},"",{"$f":"IF(AND(U533=\"\",W533=\"\"),\"\",IF(OR(U533=\"\",W533=\"\"),0,  IF($E$9=\"Manual Input\",$G$10,   VLOOKUP($E$8,$V$1037:$Y$1042,3,FALSE))     *(U533-W533)))","v":""},"","",null,null,null,null,null,null,"No"]
[null,514,null,null,null,null,null,"",null,"",null,null,null,null,"",null,"",null,"No",null,"","","","","","","","",null,null,null,null,null,null,{"$f":"IF(_xlfn.ISFORMULA(J534)=TRUE,\"No\",\"Yes\")","v":"No"},null,null,null,null,null,null,"","",null,""]
[null,515,null,null,null,null,null,"",null,"",null,null,null,null,"",null,"",null,"No",null,"","","","","","","","",null,null,null,null,null,null,"No"]
[null,516,null,null,null,null,null,"",null,"",null,null,null,null,"",null,"",null,"No",null,"","","","","","","","",null,null,null,null,null,null,"No"]
[null,517,null,null,null,null,null,"",null,"",null,null,null,null,"",null,"",null,"No",null,"","","","","","","","",null,null,null,null,null,null,"No"]
[null,518,null,null,null,null,null,"",null,"",null,null,null,null,"",null,"",null,"No",null,"","","","","","","","",null,null,null,null,null,null,"No"]
[null,519,null,null,null,null,null,"",null,"",null,null,null,null,"",null,"",null,"No",null,"","","","","","","","",null,null,null,null,null,null,"No"]
[null,520,null,null,null,null,null,"",null,"",null,null,null,null,"",null,"",null,"No",null,"","","","","","","","",null,null,null,null,null,null,"No"]
[null,521,null,null,null,null,null,"",null,"",null,null,null,null,"",null,"",null,"No",null,"","","","","","","","",null,null,null,null,null,null,"No",null,null,null,null,null,null,"","",null,""]
[null,522,null,null,null,null,null,"",null,"",null,null,null,null,"",null,"",null,"No",null,"","","","","","","","",null,null,null,null,null,null,"No"]
[null,523,null,null,null,null,null,"",null,"",null,null,null,null,"",null,"",null,"No",null,"","","","","","","","",null,null,null,null,null,null,"No"]
[null,524,null,null,null,null,null,"",null,"",null,null,null,null,"",null,"",null,"No",null,"","","","","","","","",null,null,null,null,null,null,"No"]
[null,525,null,null,null,null,null,"",null,"",null,null,null,null,"",null,"",null,"No",null,"","","","","","","","",null,null,null,null,null,null,"No"]
[null,526,null,null,null,null,null,"",null,"",null,null,null,null,"",null,"",null,"No",null,"","","","","","","","",null,null,null,null,null,null,"No"]
[null,527,null,null,null,null,null,"",null,"",null,null,null,null,"",null,"",null,"No",null,"","","","","","","","",null,null,null,null,null,null,"No",null,null,null,null,null,null,"","",null,""]
[null,528,null,null,null,null,null,"",null,"",null,null,null,null,"",null,"",null,"No",null,"","","","","","","","",null,null,null,null,null,null,"No"]
[null,529,null,null,null,null,null,"",null,"",null,null,null,null,"",null,"",null,"No",null,"","","","","","","","",null,null,null,null,null,null,"No"]
[null,530,null,null,null,null,null,"",null,"",null,null,null,null,"",null,"",null,"No",null,"","","","","","","","",null,null,null,null,null,null,"No"]
[null,531,null,null,null,null,null,"",null,"",null,null,null,null,"",null,"",null,"No",null,"","","","","","","","",null,null,null,null,null,null,"No"]
[null,532,null,null,null,null,null,"",null,"",null,null,null,null,"",null,"",null,"No",null,"","","","","","","","",null,null,null,null,null,null,"No"]
[null,533,null,null,null,null,null,"",null,"",null,null,null,null,"",null,"",null,"No",null,"","","","","","","","",null,null,null,null,null,null,"No"]
[null,534,null,null,null,null,null,"",null,"",null,null,null,null,"",null,"",null,"No",null,"","","","","","","","",null,null,null,null,null,null,"No"]
[null,535,null,null,null,null,null,"",null,"",null,null,null,null,"",null,"",null,"No",null,"","","","","","","","",null,null,null,null,null,null,"No"]
[null,536,null,null,null,null,null,"",null,"",null,null,null,null,"",null,"",null,"No",null,"","","","","","","","",null,null,null,null,null,null,"No"]
[null,537,null,null,null,null,null,"",null,"",null,null,null,null,"",null,"",null,"No",null,"","","","","","","","",null,null,null,null,null,null,"No"]
[null,538,null,null,null,null,null,"",null,"",null,null,null,null,"",null,"",null,"No",null,"","","","","","","","",null,null,null,null,null,null,"No"]
[null,539,null,null,null,null,null,"",null,"",null,null,null,null,"",null,"",null,"No",null,"","","","","","","","",null,null,null,null,null,null,"No",null,null,null,null,null,null,"","",null,""]
[null,540,null,null,null,null,null,"",null,"",null,null,null,null,"",null,"",null,"No",null,"","","","","","","","",null,null,null,null,null,null,"No"]
[null,541,null,null,null,null,null,"",null,"",null,null,null,null,"",null,"",null,"No",null,"","","","","","","","",null,null,null,null,null,null,"No"]
[null,542,null,null,null,null,null,"",null,"",null,null,null,null,"",null,"",null,"No",null,"","","","","","","","",null,null,null,null,null,null,"No"]
[null,543,null,null,null,null,null,"",null,"",null,null,null,null,"",null,"",null,"No",null,"","","","","","","","",null,null,null,null,null,null,"No"]
[null,544,null,null,null,null,null,"",null,"",null,null,null,null,"",null,"",null,"No",null,"","","","","","","","",null,null,null,null,null,null,"No"]
[null,545,null,null,null,null,null,"",null,"",null,null,null,null,"",null,"",null,"No",null,"","","","","","","","",null,null,null,null,null,null,"No",null,null,null,null,null,null,"","",null,""]
[null,546,null,null,null,null,null,"",null,"",null,null,null,null,"",null,"",null,"No",null,"","","","","","","","",null,null,null,null,null,null,"No"]
[null,547,null,null,null,null,null,"",null,"",null,null,null,null,"",null,"",null,"No",null,"","","","","","","","",null,null,null,null,null,null,"No"]
[null,548,null,null,null,null,null,"",null,"",null,null,null,null,"",null,"",null,"No",null,"","","","","","","","",null,null,null,null,null,null,"No"]
[null,549,null,null,null,null,null,"",null,"",null,null,null,null,"",null,"",null,"No",null,"","","","","","","","",null,null,null,null,null,null,"No"]
[null,550,null,null,null,null,null,"",null,"",null,null,null,null,"",null,"",null,"No",null,"","","","","","","","",null,null,null,null,null,null,"No"]
[null,551,null,null,null,null,null,"",null,"",null,null,null,null,"",null,"",null,"No",null,"","","","","","","","",null,null,null,null,null,null,"No"]
[null,552,null,null,null,null,null,"",null,"",null,null,null,null,"",null,"",null,"No",null,{"$f":"IF(R572=\"Interior\",IF(E572=\"\",\"\",IF(OR(I572>0,H572=\"Enter Watts\"),I572*G572/1000,H572*G572/1000)),IF(E572=\"\",\"\",0))","v":""},"",{"$f":"IF(R572=\"Interior\",IF(AND(L572=\"\", E572=\"\"),\"\",IF(OR(P572>0,O572=\"Enter Watts\", P572=\"\"),P572*N572/1000,O572*N572/1000)),IF(AND(E572=\"\",L572=\"\"),\"\",0))","v":""},"",{"$f":"IFERROR(IF(OR(I572>0,H572=\"Enter Watts\"),I572*G572,H572*G572)-IF(OR(P572>0,O572=\"Enter Watts\"),P572*N572,O572*N572),\"\")","v":""},"",{"$f":"IF(AND(V572=\"\",X572=\"\"),\"\",IF(OR(V572=\"\",X572=\"\"),0,V572-X572))","v":""},"",null,null,null,null,null,null,"No"]
[null,553,null,null,null,null,null,"",null,"",null,null,null,null,"",null,"",null,"No",null,{"$f":"IF(R573=\"Interior\",IF(E573=\"\",\"\",IF(OR(I573>0,H573=\"Enter Watts\"),I573*G573/1000,H573*G573/1000)),IF(E573=\"\",\"\",0))","v":""},"",{"$f":"IF(R573=\"Interior\",IF(AND(L573=\"\", E573=\"\"),\"\",IF(OR(P573>0,O573=\"Enter Watts\", P573=\"\"),P573*N573/1000,O573*N573/1000)),IF(AND(E573=\"\",L573=\"\"),\"\",0))","v":""},"",{"$f":"IFERROR(IF(OR(I573>0,H573=\"Enter Watts\"),I573*G573,H573*G573)-IF(OR(P573>0,O573=\"Enter Watts\"),P573*N573,O573*N573),\"\")","v":""},"",{"$f":"IF(AND(V573=\"\",X573=\"\"),\"\",IF(OR(V573=\"\",X573=\"\"),0,V573-X573))","v":""},"",null,null,null,null,null,null,"No"]
[null,554,null,null,null,null,null,"",null,"",null,null,null,null,"",null,"",null,"No",null,"","","","","","","","",null,null,null,null,null,null,"No"]
[null,555,null,null,null,null,null,"",null,"",null,null,null,null,"",null,"",null,"No",null,"","","","","","","","",null,null,null,null,null,null,"No"]
[null,556,null,null,null,null,null,"",null,"",null,null,null,null,"",null,"",null,"No",null,"","","","","","","","",null,null,null,null,null,null,"No",null,null,null,null,null,null,"","",null,""]
[null,557,null,null,null,null,null,"",null,"",null,null,null,null,"",null,{"$f":"IF(J577=\"\",\"\",J577)","v":""},null,"No",null,"","","","","","","","",null,null,null,null,null,null,"No"]
[null,558,null,null,null,null,null,{"$f":"IF(E578=\"\",\"\",VLOOKUP(E578,$AO$1115:$AP$1542,2,FALSE))","v":""},null,"",null,null,null,null,"",null,"",null,"No",null,"","","","","","","",{"$f":"IF(AA578=\"\",\"\",IF(AND(R578=\"Interior\",S578=\"No\",OR(T578=\"\",T578=\"No\")),$J$1028,IF(AND(R578=\"Interior\",S578=\"Yes\"),$J$1029,IF(AND(R578=\"Exterior\",S578=\"Yes\"),$J$1030,IF(AND(R578=\"Exterior\",S578=\"No\",N578<>G578),\"DNQ\",\"See Lighting Catalog to determine Code\")))))","v":""},null,null,null,null,null,null,"No"]
[null,559,null,null,null,null,null,"",null,"",null,null,null,null,"",null,"",null,"No",null,"","","","","","","","",null,null,null,null,null,null,"No"]
[null,560,null,null,null,null,null,"",null,"",null,null,null,null,"",null,"",null,"No",null,"","","","","","","","",null,null,null,null,null,null,"No"]
[null,561,null,null,null,null,null,"",null,"",null,null,null,null,"",null,"",null,"No",null,"","","","","","","","",null,null,null,null,null,null,"No"]
[null,562,null,null,null,null,null,"",null,"",null,null,null,null,"",null,"",null,"No",null,"","","","","","","","",null,null,null,null,null,null,"No",null,null,null,null,null,null,"","",null,""]
[null,563,null,null,null,null,null,"",null,"",null,null,null,null,"",null,"",null,"No",null,"","","","","","","","",null,null,null,null,null,null,"No"]
[null,564,null,null,null,null,null,"",null,"",null,null,null,null,"",null,"",null,"No",null,"","","","","","","","",null,null,null,null,null,null,"No"]
[null,565,null,null,null,null,null,"",null,"",null,null,null,null,"",null,"",null,"No",null,"","","","","","","","",null,null,null,null,null,null,"No"]
[null,566,null,null,null,null,null,"",null,"",null,null,null,null,"",null,"",null,"No",null,"","","","","","","","",null,null,null,null,null,null,"No"]
[null,567,null,null,null,null,null,"",null,"",null,null,null,null,"",null,"",null,"No",null,"","","","","","","","",null,null,null,null,null,null,"No"]
[null,568,null,null,null,null,null,"",null,"",null,null,null,null,"",null,"",null,"No",null,"","","","","","","","",null,null,null,null,null,null,"No"]
[null,569,null,null,null,null,null,"",null,"",null,null,null,null,"",null,"",null,"No",null,"","","","","","","","",null,null,null,null,null,null,"No",null,null,null,null,null,null,"","",null,""]
[null,570,null,null,null,null,null,"",null,"",null,null,null,null,"",null,"",null,"No",null,"","","","","","","","",null,null,null,null,null,null,"No"]
[null,571,null,null,null,null,null,"",null,"",null,null,null,null,"",null,"",null,"No",null,"","","","","","","","",null,null,null,null,null,null,"No"]
[null,572,null,null,null,null,null,"",null,"",null,null,null,null,"",null,"",null,"No",null,"","","","","","","","",null,null,null,null,null,null,"No"]
[null,573,null,null,null,null,null,"",null,"",null,null,null,null,"",null,"",null,"No",null,"","","","","","","","",null,null,null,null,null,null,"No"]
[null,574,null,null,null,null,null,"",null,"",null,null,null,null,"",null,"",null,"No",null,"","","","","","","","",null,null,null,null,null,null,"No"]
[null,575,null,null,null,null,null,"",null,"",null,null,null,null,"",null,"",null,"No",null,"","","","","","","","",null,null,null,null,null,null,"No",null,null,null,null,null,null,"","",null,""]
[null,576,null,null,null,null,null,"",null,"",null,null,null,null,"",null,"",null,"No",null,"","","","","","","","",null,null,null,null,null,null,"No"]
[null,577,null,null,null,null,null,"",null,{"$f":"IF(AND(E597<>\"\",G597<>\"\",$E$9=\"Default Sector Hours\"),VLOOKUP(IF(R597=\"Exterior\",\"Exterior\",$E$8),$V$1037:$W$1042,2,FALSE),\"\")","v":""},null,null,null,null,{"$f":"IF(L597=\"\",\"\",VLOOKUP(L597,$AO$1114:$AP$1542,2,FALSE))","v":""},null,"",null,"No",null,"",{"$f":"IFERROR(IF(E597=\"\",\"\",G597/1000*IF(OR(I597>0,H597=\"Enter Watts\"),I597,H597)*IF(R597=\"Exterior\",$W$1042*(1-$G$16),IF($E$9=\"Manual Input\",J597,VLOOKUP($E$8,$V$1037:$Y$1041,2,FALSE))*(1-$E$16)      )),\"0\")","v":""},"",{"$f":"IFERROR(IF(AND(L597=\"\", E597=\"\"),\"\",N597/1000*IF(OR(P597>0,O597=\"Enter Watts\"),P597,O597)*IF(R597=\"Exterior\",$W$1042,IF($E$9=\"Manual Input\",Q597,VLOOKUP($E$8,$V$1037:$Y$1041,2,FALSE)))*IF(S597=\"Yes\",IF(R597=\"Exterior\",1-$Y$1042,1-VLOOKUP($E$8,$V$1037:$Y$1041,4,FALSE)),1)),0)","v":""},"",{"$f":"IF(AND(U597=\"\",W597=\"\"),\"\",IF(OR(U597=\"\",W597=\"\"),0,  IF($E$9=\"Manual Input\",$G$10,   VLOOKUP($E$8,$V$1037:$Y$1042,3,FALSE))     *(U597-W597)))","v":""},"","",null,null,null,null,null,null,"No"]
[null,578,null,null,null,null,null,"",null,"",null,null,null,null,"",null,"",null,"No",null,"","","","","","","","",null,null,null,null,null,null,{"$f":"IF(_xlfn.ISFORMULA(J598)=TRUE,\"No\",\"Yes\")","v":"No"}]
[null,579,null,null,null,null,null,"",null,"",null,null,null,null,"",null,"",null,"No",null,"","","","","","","","",null,null,null,null,null,null,"No"]
[null,580,null,null,null,null,null,"",null,"",null,null,null,null,"",null,"",null,"No",null,"","","","","","","","",null,null,null,null,null,null,"No"]
[null,581,null,null,null,null,null,"",null,"",null,null,null,null,"",null,"",null,"No",null,"","","","","","","","",null,null,null,null,null,null,"No"]
[null,582,null,null,null,null,null,"",null,"",null,null,null,null,"",null,"",null,"No",null,"","","","","","","","",null,null,null,null,null,null,"No"]
[null,583,null,null,null,null,null,"",null,"",null,null,null,null,"",null,"",null,"No",null,"","","","","","","","",null,null,null,null,null,null,"No"]
[null,584,null,null,null,null,null,"",null,"",null,null,null,null,"",null,"",null,"No",null,"","","","","","","","",null,null,null,null,null,null,"No"]
[null,585,null,null,null,null,null,"",null,"",null,null,null,null,"",null,"",null,"No",null,"","","","","","","","",null,null,null,null,null,null,"No"]
[null,586,null,null,null,null,null,"",null,"",null,null,null,null,"",null,"",null,"No",null,"","","","","","","","",null,null,null,null,null,null,"No"]
[null,587,null,null,null,null,null,"",null,"",null,null,null,null,"",null,"",null,"No",null,"","","","","","","","",null,null,null,null,null,null,"No",null,null,null,null,null,null,"","",null,""]
[null,588,null,null,null,null,null,"",null,"",null,null,null,null,"",null,"",null,"No",null,"","","","","","","","",null,null,null,null,null,null,"No"]
[null,589,null,null,null,null,null,"",null,"",null,null,null,null,"",null,"",null,"No",null,"","","","","","","","",null,null,null,null,null,null,"No"]
[null,590,null,null,null,null,null,"",null,"",null,null,null,null,"",null,"",null,"No",null,"","","","","","","","",null,null,null,null,null,null,"No"]
[null,591,null,null,null,null,null,"",null,"",null,null,null,null,"",null,"",null,"No",null,"","","","","","","","",null,null,null,null,null,null,"No"]
[null,592,null,null,null,null,null,"",null,"",null,null,null,null,"",null,"",null,"No",null,"","","","","","","","",null,null,null,null,null,null,"No"]
[null,593,null,null,null,null,null,"",null,"",null,null,null,null,"",null,"",null,"No",null,"","","","","","","","",null,null,null,null,null,null,"No",null,null,null,null,null,null,"","",null,""]
[null,594,null,null,null,null,null,"",null,"",null,null,null,null,"",null,"",null,"No",null,"","","","","","","","",null,null,null,null,null,null,"No"]
[null,595,null,null,null,null,null,"",null,"",null,null,null,null,"",null,"",null,"No",null,"","","","","","","","",null,null,null,null,null,null,"No"]
[null,596,null,null,null,null,null,"",null,"",null,null,null,null,"",null,"",null,"No",null,"","","","","","","","",null,null,null,null,null,null,"No"]
[null,597,null,null,null,null,null,"",null,"",null,null,null,null,"",null,"",null,"No",null,"","","","","","","","",null,null,null,null,null,null,"No"]
[null,598,null,null,null,null,null,"",null,"",null,null,null,null,"",null,"",null,"No",null,"","","","","","","","",null,null,null,null,null,null,"No"]
[null,599,null,null,null,null,null,"",null,"",null,null,null,null,"",null,"",null,"No",null,"","","","","","","","",null,null,null,null,null,null,"No"]
[null,600,null,null,null,null,null,"",null,"",null,null,null,null,"",null,"",null,"No",null,{"$f":"IF(R620=\"Interior\",IF(E620=\"\",\"\",IF(OR(I620>0,H620=\"Enter Watts\"),I620*G620/1000,H620*G620/1000)),IF(E620=\"\",\"\",0))","v":""},"",{"$f":"IF(R620=\"Interior\",IF(AND(L620=\"\", E620=\"\"),\"\",IF(OR(P620>0,O620=\"Enter Watts\", P620=\"\"),P620*N620/1000,O620*N620/1000)),IF(AND(E620=\"\",L620=\"\"),\"\",0))","v":""},"",{"$f":"IFERROR(IF(OR(I620>0,H620=\"Enter Watts\"),I620*G620,H620*G620)-IF(OR(P620>0,O620=\"Enter Watts\"),P620*N620,O620*N620),\"\")","v":""},"",{"$f":"IF(AND(V620=\"\",X620=\"\"),\"\",IF(OR(V620=\"\",X620=\"\"),0,V620-X620))","v":""},"",null,null,null,null,null,null,"No"]
[null,601,null,null,null,null,null,"",null,"",null,null,null,null,"",null,"",null,"No",null,{"$f":"IF(R621=\"Interior\",IF(E621=\"\",\"\",IF(OR(I621>0,H621=\"Enter Watts\"),I621*G621/1000,H621*G621/1000)),IF(E621=\"\",\"\",0))","v":""},"",{"$f":"IF(R621=\"Interior\",IF(AND(L621=\"\", E621=\"\"),\"\",IF(OR(P621>0,O621=\"Enter Watts\", P621=\"\"),P621*N621/1000,O621*N621/1000)),IF(AND(E621=\"\",L621=\"\"),\"\",0))","v":""},"",{"$f":"IFERROR(IF(OR(I621>0,H621=\"Enter Watts\"),I621*G621,H621*G621)-IF(OR(P621>0,O621=\"Enter Watts\"),P621*N621,O621*N621),\"\")","v":""},"",{"$f":"IF(AND(V621=\"\",X621=\"\"),\"\",IF(OR(V621=\"\",X621=\"\"),0,V621-X621))","v":""},"",null,null,null,null,null,null,"No"]
[null,602,null,null,null,null,null,"",null,"",null,null,null,null,"",null,"",null,"No",null,"","","","","","","","",null,null,null,null,null,null,"No"]
[null,603,null,null,null,null,null,"",null,"",null,null,null,null,"",null,"",null,"No",null,"","","","","","","","",null,null,null,null,null,null,"No"]
[null,604,null,null,null,null,null,"",null,"",null,null,null,null,"",null,"",null,"No",null,"","","","","","","","",null,null,null,null,null,null,"No",null,null,null,null,null,null,"","",null,""]
[null,605,null,null,null,null,null,"",null,"",null,null,null,null,"",null,"",null,"No",null,"","","","","","","","",null,null,null,null,null,null,"No"]
[null,606,null,null,null,null,null,"",null,"",null,null,null,null,"",null,"",null,"No",null,"","","","","","","","",null,null,null,null,null,null,"No"]
[null,607,null,null,null,null,null,"",null,"",null,null,null,null,"",null,"",null,"No",null,"","","","","","","","",null,null,null,null,null,null,"No"]
[null,608,null,null,null,null,null,"",null,"",null,null,null,null,"",null,"",null,"No",null,"","","","","","","","",null,null,null,null,null,null,"No"]
[null,609,null,null,null,null,null,"",null,"",null,null,null,null,"",null,"",null,"No",null,"","","","","","","","",null,null,null,null,null,null,"No"]
[null,610,null,null,null,null,null,"",null,"",null,null,null,null,"",null,"",null,"No",null,"","","","","","","","",null,null,null,null,null,null,"No",null,null,null,null,null,null,"","",null,""]
[null,611,null,null,null,null,null,"",null,"",null,null,null,null,"",null,"",null,"No",null,"","","","","","","","",null,null,null,null,null,null,"No"]
[null,612,null,null,null,null,null,"",null,"",null,null,null,null,"",null,"",null,"No",null,"","","","","","","","",null,null,null,null,null,null,"No"]
[null,613,null,null,null,null,null,"",null,"",null,null,null,null,"",null,"",null,"No",null,"","","","","","","","",null,null,null,null,null,null,"No"]
[null,614,null,null,null,null,null,"",null,"",null,null,null,null,"",null,"",null,"No",null,"","","","","","","","",null,null,null,null,null,null,"No"]
[null,615,null,null,null,null,null,"",null,"",null,null,null,null,"",null,"",null,"No",null,"","","","","","","","",null,null,null,null,null,null,"No"]
[null,616,null,null,null,null,null,"",null,"",null,null,null,null,"",null,"",null,"No",null,"","","","","","","","",null,null,null,null,null,null,"No"]
[null,617,null,null,null,null,null,"",null,"",null,null,null,null,"",null,"",null,"No",null,"","","","","","","","",null,null,null,null,null,null,"No",null,null,null,null,null,null,"","",null,""]
[null,618,null,null,null,null,null,"",null,"",null,null,null,null,"",null,"",null,"No",null,"","","","","","","","",null,null,null,null,null,null,"No"]
[null,619,null,null,null,null,null,"",null,"",null,null,null,null,"",null,"",null,"No",null,"","","","","","","","",null,null,null,null,null,null,"No"]
[null,620,null,null,null,null,null,"",null,"",null,null,null,null,"",null,"",null,"No",null,"","","","","","","","",null,null,null,null,null,null,"No"]
[null,621,null,null,null,null,null,"",null,"",null,null,null,null,"",null,"",null,"No",null,"","","","","","","","",null,null,null,null,null,null,"No"]
[null,622,null,null,null,null,null,{"$f":"IF(E642=\"\",\"\",VLOOKUP(E642,$AO$1115:$AP$1542,2,FALSE))","v":""},null,"",null,null,null,null,"",null,"",null,"No",null,"","","","","","","",{"$f":"IF(AA642=\"\",\"\",IF(AND(R642=\"Interior\",S642=\"No\",OR(T642=\"\",T642=\"No\")),$J$1028,IF(AND(R642=\"Interior\",S642=\"Yes\"),$J$1029,IF(AND(R642=\"Exterior\",S642=\"Yes\"),$J$1030,IF(AND(R642=\"Exterior\",S642=\"No\",N642<>G642),\"DNQ\",\"See Lighting Catalog to determine Code\")))))","v":""},null,null,null,null,null,null,"No"]
[null,623,null,null,null,null,null,"",null,"",null,null,null,null,"",null,"",null,"No",null,"","","","","","","","",null,null,null,null,null,null,"No",null,null,null,null,null,null,"","",null,""]
[null,624,null,null,null,null,null,"",null,"",null,null,null,null,"",null,"",null,"No",null,"","","","","","","","",null,null,null,null,null,null,"No"]
[null,625,null,null,null,null,null,"",null,"",null,null,null,null,"",null,"",null,"No",null,"","","","","","","","",null,null,null,null,null,null,"No"]
[null,626,null,null,null,null,null,"",null,"",null,null,null,null,"",null,"",null,"No",null,"","","","","","","","",null,null,null,null,null,null,"No"]
[null,627,null,null,null,null,null,"",null,"",null,null,null,null,"",null,"",null,"No",null,"","","","","","","","",null,null,null,null,null,null,"No"]
[null,628,null,null,null,null,null,"",null,"",null,null,null,null,"",null,"",null,"No",null,"","","","","","","","",null,null,null,null,null,null,"No"]
[null,629,null,null,null,null,null,"",null,"",null,null,null,null,"",null,"",null,"No",null,"","","","","","","","",null,null,null,null,null,null,"No"]
[null,630,null,null,null,null,null,"",null,"",null,null,null,null,"",null,"",null,"No",null,"","","","","","","","",null,null,null,null,null,null,"No"]
[null,631,null,null,null,null,null,"",null,"",null,null,null,null,"",null,"",null,"No",null,"","","","","","","","",null,null,null,null,null,null,"No"]
[null,632,null,null,null,null,null,"",null,"",null,null,null,null,"",null,"",null,"No",null,"","","","","","","","",null,null,null,null,null,null,"No"]
[null,633,null,null,null,null,null,"",null,"",null,null,null,null,"",null,"",null,"No",null,"","","","","","","","",null,null,null,null,null,null,"No"]
[null,634,null,null,null,null,null,"",null,"",null,null,null,null,"",null,"",null,"No",null,"","","","","","","","",null,null,null,null,null,null,"No"]
[null,635,null,null,null,null,null,"",null,"",null,null,null,null,"",null,"",null,"No",null,"","","","","","","","",null,null,null,null,null,null,"No",null,null,null,null,null,null,"","",null,""]
[null,636,null,null,null,null,null,"",null,"",null,null,null,null,"",null,"",null,"No",null,"","","","","","","","",null,null,null,null,null,null,"No"]
[null,637,null,null,null,null,null,"",null,"",null,null,null,null,"",null,"",null,"No",null,"","","","","","","","",null,null,null,null,null,null,"No"]
[null,638,null,null,null,null,null,"",null,"",null,null,null,null,"",null,"",null,"No",null,"","","","","","","","",null,null,null,null,null,null,"No"]
[null,639,null,null,null,null,null,"",null,"",null,null,null,null,"",null,"",null,"No",null,"","","","","","","","",null,null,null,null,null,null,"No"]
[null,640,null,null,null,null,null,"",null,"",null,null,null,null,"",null,"",null,"No",null,"","","","","","","","",null,null,null,null,null,null,"No"]
[null,641,null,null,null,null,null,"",null,{"$f":"IF(AND(E661<>\"\",G661<>\"\",$E$9=\"Default Sector Hours\"),VLOOKUP(IF(R661=\"Exterior\",\"Exterior\",$E$8),$V$1037:$W$1042,2,FALSE),\"\")","v":""},null,null,null,null,{"$f":"IF(L661=\"\",\"\",VLOOKUP(L661,$AO$1114:$AP$1542,2,FALSE))","v":""},null,"",null,"No",null,"",{"$f":"IFERROR(IF(E661=\"\",\"\",G661/1000*IF(OR(I661>0,H661=\"Enter Watts\"),I661,H661)*IF(R661=\"Exterior\",$W$1042*(1-$G$16),IF($E$9=\"Manual Input\",J661,VLOOKUP($E$8,$V$1037:$Y$1041,2,FALSE))*(1-$E$16)      )),\"0\")","v":""},"",{"$f":"IFERROR(IF(AND(L661=\"\", E661=\"\"),\"\",N661/1000*IF(OR(P661>0,O661=\"Enter Watts\"),P661,O661)*IF(R661=\"Exterior\",$W$1042,IF($E$9=\"Manual Input\",Q661,VLOOKUP($E$8,$V$1037:$Y$1041,2,FALSE)))*IF(S661=\"Yes\",IF(R661=\"Exterior\",1-$Y$1042,1-VLOOKUP($E$8,$V$1037:$Y$1041,4,FALSE)),1)),0)","v":""},"",{"$f":"IF(AND(U661=\"\",W661=\"\"),\"\",IF(OR(U661=\"\",W661=\"\"),0,  IF($E$9=\"Manual Input\",$G$10,   VLOOKUP($E$8,$V$1037:$Y$1042,3,FALSE))     *(U661-W661)))","v":""},"","",null,null,null,null,null,null,"No",null,null,null,null,null,null,"","",null,""]
[null,642,null,null,null,null,null,"",null,"",null,null,null,null,"",null,"",null,"No",null,"","","","","","","","",null,null,null,null,null,null,{"$f":"IF(_xlfn.ISFORMULA(J662)=TRUE,\"No\",\"Yes\")","v":"No"}]
[null,643,null,null,null,null,null,"",null,"",null,null,null,null,"",null,"",null,"No",null,"","","","","","","","",null,null,null,null,null,null,"No"]
[null,644,null,null,null,null,null,"",null,"",null,null,null,null,"",null,"",null,"No",null,"","","","","","","","",null,null,null,null,null,null,"No"]
[null,645,null,null,null,null,null,"",null,"",null,null,null,null,"",null,"",null,"No",null,"","","","","","","","",null,null,null,null,null,null,"No"]
[null,646,null,null,null,null,null,"",null,"",null,null,null,null,"",null,"",null,"No",null,"","","","","","","","",null,null,null,null,null,null,"No"]
[null,647,null,null,null,null,null,"",null,"",null,null,null,null,"",null,"",null,"No",null,"","","","","","","","",null,null,null,null,null,null,"No"]
[null,648,null,null,null,null,null,"",null,"",null,null,null,null,"",null,"",null,"No",null,{"$f":"IF(R668=\"Interior\",IF(E668=\"\",\"\",IF(OR(I668>0,H668=\"Enter Watts\"),I668*G668/1000,H668*G668/1000)),IF(E668=\"\",\"\",0))","v":""},"",{"$f":"IF(R668=\"Interior\",IF(AND(L668=\"\", E668=\"\"),\"\",IF(OR(P668>0,O668=\"Enter Watts\", P668=\"\"),P668*N668/1000,O668*N668/1000)),IF(AND(E668=\"\",L668=\"\"),\"\",0))","v":""},"",{"$f":"IFERROR(IF(OR(I668>0,H668=\"Enter Watts\"),I668*G668,H668*G668)-IF(OR(P668>0,O668=\"Enter Watts\"),P668*N668,O668*N668),\"\")","v":""},"",{"$f":"IF(AND(V668=\"\",X668=\"\"),\"\",IF(OR(V668=\"\",X668=\"\"),0,V668-X668))","v":""},"",null,null,null,null,null,null,"No"]
[null,649,null,null,null,null,null,"",null,"",null,null,null,null,"",null,"",null,"No",null,{"$f":"IF(R669=\"Interior\",IF(E669=\"\",\"\",IF(OR(I669>0,H669=\"Enter Watts\"),I669*G669/1000,H669*G669/1000)),IF(E669=\"\",\"\",0))","v":""},"",{"$f":"IF(R669=\"Interior\",IF(AND(L669=\"\", E669=\"\"),\"\",IF(OR(P669>0,O669=\"Enter Watts\", P669=\"\"),P669*N669/1000,O669*N669/1000)),IF(AND(E669=\"\",L669=\"\"),\"\",0))","v":""},"",{"$f":"IFERROR(IF(OR(I669>0,H669=\"Enter Watts\"),I669*G669,H669*G669)-IF(OR(P669>0,O669=\"Enter Watts\"),P669*N669,O669*N669),\"\")","v":""},"",{"$f":"IF(AND(V669=\"\",X669=\"\"),\"\",IF(OR(V669=\"\",X669=\"\"),0,V669-X669))","v":""},"",null,null,null,null,null,null,"No"]
[null,650,null,null,null,null,null,"",null,"",null,null,null,null,"",null,"",null,"No",null,"","","","","","","","",null,null,null,null,null,null,"No"]
[null,651,null,null,null,null,null,"",null,"",null,null,null,null,"",null,"",null,"No",null,"","","","","","","","",null,null,null,null,null,null,"No"]
[null,652,null,null,null,null,null,"",null,"",null,null,null,null,"",null,"",null,"No",null,"","","","","","","","",null,null,null,null,null,null,"No",null,null,null,null,null,null,"","",null,""]
[null,653,null,null,null,null,null,"",null,"",null,null,null,null,"",null,"",null,"No",null,"","","","","","","","",null,null,null,null,null,null,"No"]
[null,654,null,null,null,null,null,"",null,"",null,null,null,null,"",null,"",null,"No",null,"","","","","","","","",null,null,null,null,null,null,"No"]
[null,655,null,null,null,null,null,"",null,"",null,null,null,null,"",null,"",null,"No",null,"","","","","","","","",null,null,null,null,null,null,"No"]
[null,656,null,null,null,null,null,"",null,"",null,null,null,null,"",null,"",null,"No",null,"","","","","","","","",null,null,null,null,null,null,"No"]
[null,657,null,null,null,null,null,"",null,"",null,null,null,null,"",null,"",null,"No",null,"","","","","","","","",null,null,null,null,null,null,"No"]
[null,658,null,null,null,null,null,"",null,"",null,null,null,null,"",null,"",null,"No",null,"","","","","","","","",null,null,null,null,null,null,"No",null,null,null,null,null,null,"","",null,""]
[null,659,null,null,null,null,null,"",null,"",null,null,null,null,"",null,"",null,"No",null,"","","","","","","","",null,null,null,null,null,null,"No"]
[null,660,null,null,null,null,null,"",null,"",null,null,null,null,"",null,"",null,"No",null,"","","","","","","","",null,null,null,null,null,null,"No"]
[null,661,null,null,null,null,null,"",null,"",null,null,null,null,"",null,"",null,"No",null,"","","","","","","","",null,null,null,null,null,null,"No"]
[null,662,null,null,null,null,null,"",null,"",null,null,null,null,"",null,"",null,"No",null,"","","","","","","","",null,null,null,null,null,null,"No"]
[null,663,null,null,null,null,null,"",null,"",null,null,null,null,"",null,"",null,"No",null,"","","","","","","","",null,null,null,null,null,null,"No"]
[null,664,null,null,null,null,null,"",null,"",null,null,null,null,"",null,"",null,"No",null,"","","","","","","","",null,null,null,null,null,null,"No"]
[null,665,null,null,null,null,null,"",null,"",null,null,null,null,"",null,"",null,"No",null,"","","","","","","","",null,null,null,null,null,null,"No",null,null,null,null,null,null,"","",null,""]
[null,666,null,null,null,null,null,"",null,"",null,null,null,null,"",null,"",null,"No",null,"","","","","","","","",null,null,null,null,null,null,"No"]
[null,667,null,null,null,null,null,"",null,"",null,null,null,null,"",null,"",null,"No",null,"","","","","","","","",null,null,null,null,null,null,"No"]
[null,668,null,null,null,null,null,"",null,"",null,null,null,null,"",null,"",null,"No",null,"","","","","","","","",null,null,null,null,null,null,"No"]
[null,669,null,null,null,null,null,"",null,"",null,null,null,null,"",null,"",null,"No",null,"","","","","","","","",null,null,null,null,null,null,"No"]
[null,670,null,null,null,null,null,"",null,"",null,null,null,null,"",null,"",null,"No",null,"","","","","","","","",null,null,null,null,null,null,"No"]
[null,671,null,null,null,null,null,"",null,"",null,null,null,null,"",null,"",null,"No",null,"","","","","","","","",null,null,null,null,null,null,"No",null,null,null,null,null,null,"","",null,""]
[null,672,null,null,null,null,null,"",null,"",null,null,null,null,"",null,"",null,"No",null,"","","","","","","","",null,null,null,null,null,null,"No"]
[null,673,null,null,null,null,null,"",null,"",null,null,null,null,"",null,"",null,"No",null,"","","","","","","","",null,null,null,null,null,null,"No"]
[null,674,null,null,null,null,null,"",null,"",null,null,null,null,"",null,"",null,"No",null,"","","","","","","","",null,null,null,null,null,null,"No"]
[null,675,null,null,null,null,null,"",null,"",null,null,null,null,"",null,"",null,"No",null,"","","","","","","","",null,null,null,null,null,null,"No"]
[null,676,null,null,null,null,null,"",null,"",null,null,null,null,"",null,"",null,"No",null,"","","","","","","","",null,null,null,null,null,null,"No"]
[null,677,null,null,null,null,null,"",null,"",null,null,null,null,"",null,"",null,"No",null,"","","","","","","","",null,null,null,null,null,null,"No"]
[null,678,null,null,null,null,null,"",null,"",null,null,null,null,"",null,"",null,"No",null,"","","","","","","","",null,null,null,null,null,null,"No"]
[null,679,null,null,null,null,null,"",null,"",null,null,null,null,"",null,"",null,"No",null,"","","","","","","","",null,null,null,null,null,null,"No"]
[null,680,null,null,null,null,null,"",null,"",null,null,null,null,"",null,"",null,"No",null,"","","","","","","","",null,null,null,null,null,null,"No"]
[null,681,null,null,null,null,null,"",null,"",null,null,null,null,"",null,"",null,"No",null,"","","","","","","","",null,null,null,null,null,null,"No"]
[null,682,null,null,null,null,null,"",null,"",null,null,null,null,"",null,"",null,"No",null,"","","","","","","","",null,null,null,null,null,null,"No"]
[null,683,null,null,null,null,null,"",null,"",null,null,null,null,"",null,"",null,"No",null,"","","","","","","","",null,null,null,null,null,null,"No",null,null,null,null,null,null,"","",null,""]
[null,684,null,null,null,null,null,"",null,"",null,null,null,null,"",null,"",null,"No",null,"","","","","","","","",null,null,null,null,null,null,"No"]
[null,685,null,null,null,null,null,"",null,"",null,null,null,null,"",null,"",null,"No",null,"","","","","","","","",null,null,null,null,null,null,"No"]
[null,686,null,null,null,null,null,{"$f":"IF(E706=\"\",\"\",VLOOKUP(E706,$AO$1115:$AP$1542,2,FALSE))","v":""},null,"",null,null,null,null,"",null,"",null,"No",null,"","","","","","","",{"$f":"IF(AA706=\"\",\"\",IF(AND(R706=\"Interior\",S706=\"No\",OR(T706=\"\",T706=\"No\")),$J$1028,IF(AND(R706=\"Interior\",S706=\"Yes\"),$J$1029,IF(AND(R706=\"Exterior\",S706=\"Yes\"),$J$1030,IF(AND(R706=\"Exterior\",S706=\"No\",N706<>G706),\"DNQ\",\"See Lighting Catalog to determine Code\")))))","v":""},null,null,null,null,null,null,"No"]
[null,687,null,null,null,null,null,"",null,"",null,null,null,null,"",null,"",null,"No",null,"","","","","","","","",null,null,null,null,null,null,"No"]
[null,688,null,null,null,null,null,"",null,"",null,null,null,null,"",null,"",null,"No",null,"","","","","","","","",null,null,null,null,null,null,"No"]
[null,689,null,null,null,null,null,"",null,"",null,null,null,null,"",null,"",null,"No",null,"","","","","","","","",null,null,null,null,null,null,"No",null,null,null,null,null,null,"","",null,""]
[null,690,null,null,null,null,null,"",null,"",null,null,null,null,"",null,"",null,"No",null,"","","","","","","","",null,null,null,null,null,null,"No"]
[null,691,null,null,null,null,null,"",null,"",null,null,null,null,"",null,"",null,"No",null,"","","","","","","","",null,null,null,null,null,null,"No"]
[null,692,null,null,null,null,null,"",null,"",null,null,null,null,"",null,"",null,"No",null,"","","","","","","","",null,null,null,null,null,null,"No"]
[null,693,null,null,null,null,null,"",null,"",null,null,null,null,"",null,"",null,"No",null,"","","","","","","","",null,null,null,null,null,null,"No"]
[null,694,null,null,null,null,null,"",null,"",null,null,null,null,"",null,"",null,"No",null,"","","","","","","","",null,null,null,null,null,null,"No"]
[null,695,null,null,null,null,null,"",null,"",null,null,null,null,"",null,"",null,"No",null,"","","","","","","","",null,null,null,null,null,null,"No"]
[null,696,null,null,null,null,null,"",null,"",null,null,null,null,"",null,"",null,"No",null,{"$f":"IF(R716=\"Interior\",IF(E716=\"\",\"\",IF(OR(I716>0,H716=\"Enter Watts\"),I716*G716/1000,H716*G716/1000)),IF(E716=\"\",\"\",0))","v":""},"",{"$f":"IF(R716=\"Interior\",IF(AND(L716=\"\", E716=\"\"),\"\",IF(OR(P716>0,O716=\"Enter Watts\", P716=\"\"),P716*N716/1000,O716*N716/1000)),IF(AND(E716=\"\",L716=\"\"),\"\",0))","v":""},"",{"$f":"IFERROR(IF(OR(I716>0,H716=\"Enter Watts\"),I716*G716,H716*G716)-IF(OR(P716>0,O716=\"Enter Watts\"),P716*N716,O716*N716),\"\")","v":""},"",{"$f":"IF(AND(V716=\"\",X716=\"\"),\"\",IF(OR(V716=\"\",X716=\"\"),0,V716-X716))","v":""},"",null,null,null,null,null,null,"No"]
[null,697,null,null,null,null,null,"",null,"",null,null,null,null,"",null,"",null,"No",null,{"$f":"IF(R717=\"Interior\",IF(E717=\"\",\"\",IF(OR(I717>0,H717=\"Enter Watts\"),I717*G717/1000,H717*G717/1000)),IF(E717=\"\",\"\",0))","v":""},"",{"$f":"IF(R717=\"Interior\",IF(AND(L717=\"\", E717=\"\"),\"\",IF(OR(P717>0,O717=\"Enter Watts\", P717=\"\"),P717*N717/1000,O717*N717/1000)),IF(AND(E717=\"\",L717=\"\"),\"\",0))","v":""},"",{"$f":"IFERROR(IF(OR(I717>0,H717=\"Enter Watts\"),I717*G717,H717*G717)-IF(OR(P717>0,O717=\"Enter Watts\"),P717*N717,O717*N717),\"\")","v":""},"",{"$f":"IF(AND(V717=\"\",X717=\"\"),\"\",IF(OR(V717=\"\",X717=\"\"),0,V717-X717))","v":""},"",null,null,null,null,null,null,"No"]
[null,698,null,null,null,null,null,"",null,"",null,null,null,null,"",null,"",null,"No",null,"","","","","","","","",null,null,null,null,null,null,"No"]
[null,699,null,null,null,null,null,"",null,"",null,null,null,null,"",null,"",null,"No",null,"","","","","","","","",null,null,null,null,null,null,"No"]
[null,700,null,null,null,null,null,"",null,"",null,null,null,null,"",null,"",null,"No",null,"","","","","","","","",null,null,null,null,null,null,"No",null,null,null,null,null,null,"","",null,""]
[null,701,null,null,null,null,null,"",null,"",null,null,null,null,"",null,"",null,"No",null,"","","","","","","","",null,null,null,null,null,null,"No"]
[null,702,null,null,null,null,null,"",null,"",null,null,null,null,"",null,"",null,"No",null,"","","","","","","","",null,null,null,null,null,null,"No"]
[null,703,null,null,null,null,null,"",null,"",null,null,null,null,"",null,"",null,"No",null,"","","","","","","","",null,null,null,null,null,null,"No"]
[null,704,null,null,null,null,null,"",null,"",null,null,null,null,"",null,"",null,"No",null,"","","","","","","","",null,null,null,null,null,null,"No"]
[null,705,null,null,null,null,null,"",null,{"$f":"IF(AND(E725<>\"\",G725<>\"\",$E$9=\"Default Sector Hours\"),VLOOKUP(IF(R725=\"Exterior\",\"Exterior\",$E$8),$V$1037:$W$1042,2,FALSE),\"\")","v":""},null,null,null,null,{"$f":"IF(L725=\"\",\"\",VLOOKUP(L725,$AO$1114:$AP$1542,2,FALSE))","v":""},null,"",null,"No",null,"",{"$f":"IFERROR(IF(E725=\"\",\"\",G725/1000*IF(OR(I725>0,H725=\"Enter Watts\"),I725,H725)*IF(R725=\"Exterior\",$W$1042*(1-$G$16),IF($E$9=\"Manual Input\",J725,VLOOKUP($E$8,$V$1037:$Y$1041,2,FALSE))*(1-$E$16)      )),\"0\")","v":""},"",{"$f":"IFERROR(IF(AND(L725=\"\", E725=\"\"),\"\",N725/1000*IF(OR(P725>0,O725=\"Enter Watts\"),P725,O725)*IF(R725=\"Exterior\",$W$1042,IF($E$9=\"Manual Input\",Q725,VLOOKUP($E$8,$V$1037:$Y$1041,2,FALSE)))*IF(S725=\"Yes\",IF(R725=\"Exterior\",1-$Y$1042,1-VLOOKUP($E$8,$V$1037:$Y$1041,4,FALSE)),1)),0)","v":""},"",{"$f":"IF(AND(U725=\"\",W725=\"\"),\"\",IF(OR(U725=\"\",W725=\"\"),0,  IF($E$9=\"Manual Input\",$G$10,   VLOOKUP($E$8,$V$1037:$Y$1042,3,FALSE))     *(U725-W725)))","v":""},"","",null,null,null,null,null,null,"No"]
[null,706,null,null,null,null,null,"",null,"",null,null,null,null,"",null,{"$f":"IF(J726=\"\",\"\",J726)","v":""},null,"No",null,{"$f":"IF(R726=\"Interior\",IF(E726=\"\",\"\",IF(OR(I726>0,H726=\"Enter Watts\"),I726*G726/1000,H726*G726/1000)),IF(E726=\"\",\"\",0))","v":""},"",{"$f":"IF(R726=\"Interior\",IF(AND(L726=\"\", E726=\"\"),\"\",IF(OR(P726>0,O726=\"Enter Watts\", P726=\"\"),P726*N726/1000,O726*N726/1000)),IF(AND(E726=\"\",L726=\"\"),\"\",0))","v":""},"",{"$f":"IFERROR(IF(OR(I726>0,H726=\"Enter Watts\"),I726*G726,H726*G726)-IF(OR(P726>0,O726=\"Enter Watts\"),P726*N726,O726*N726),\"\")","v":""},"",{"$f":"IF(AND(V726=\"\",X726=\"\"),\"\",IF(OR(V726=\"\",X726=\"\"),0,V726-X726))","v":""},"",null,null,null,null,null,null,{"$f":"IF(_xlfn.ISFORMULA(J726)=TRUE,\"No\",\"Yes\")","v":"No"}]
[null,707,null,null,null,null,null,"",null,"",null,null,null,null,"",null,"",null,"No",null,{"$f":"IF(R727=\"Interior\",IF(E727=\"\",\"\",IF(OR(I727>0,H727=\"Enter Watts\"),I727*G727/1000,H727*G727/1000)),IF(E727=\"\",\"\",0))","v":""},"",{"$f":"IF(R727=\"Interior\",IF(AND(L727=\"\", E727=\"\"),\"\",IF(OR(P727>0,O727=\"Enter Watts\", P727=\"\"),P727*N727/1000,O727*N727/1000)),IF(AND(E727=\"\",L727=\"\"),\"\",0))","v":""},"",{"$f":"IFERROR(IF(OR(I727>0,H727=\"Enter Watts\"),I727*G727,H727*G727)-IF(OR(P727>0,O727=\"Enter Watts\"),P727*N727,O727*N727),\"\")","v":""},"",{"$f":"IF(AND(V727=\"\",X727=\"\"),\"\",IF(OR(V727=\"\",X727=\"\"),0,V727-X727))","v":""},"",null,null,null,null,null,null,"No"]
[null,708,null,null,null,null,null,"",null,"",null,null,null,null,"",null,"",null,"No",null,"","","","","","","","",null,null,null,null,null,null,"No"]
[null,709,null,null,null,null,null,"",null,"",null,null,null,null,"",null,"",null,"No",null,"","","","","","","","",null,null,null,null,null,null,"No"]
[null,710,null,null,null,null,null,"",null,"",null,null,null,null,"",null,"",null,"No",null,"","","","","","","","",null,null,null,null,null,null,"No",null,null,null,null,null,null,"","",null,""]
[null,711,null,null,null,null,null,"",null,"",null,null,null,null,"",null,"",null,"No",null,"","","","","","","","",null,null,null,null,null,null,"No"]
[null,712,null,null,null,null,null,"",null,"",null,null,null,null,"",null,"",null,"No",null,"","","","","","","","",null,null,null,null,null,null,"No"]
[null,713,null,null,null,null,null,"",null,"",null,null,null,null,"",null,"",null,"No",null,"","","","","","","","",null,null,null,null,null,null,"No"]
[null,714,null,null,null,null,null,"",null,"",null,null,null,null,"",null,"",null,"No",null,"","","","","","","","",null,null,null,null,null,null,"No"]
[null,715,null,null,null,null,null,"",null,"",null,null,null,null,"",null,"",null,"No",null,"","","","","","","","",null,null,null,null,null,null,"No"]
[null,716,null,null,null,null,null,"",null,"",null,null,null,null,"",null,"",null,"No",null,"","","","","","","","",null,null,null,null,null,null,"No",null,null,null,null,null,null,"","",null,""]
[null,717,null,null,null,null,null,"",null,"",null,null,null,null,"",null,"",null,"No",null,"","","","","","","","",null,null,null,null,null,null,"No"]
[null,718,null,null,null,null,null,"",null,"",null,null,null,null,"",null,"",null,"No",null,"","","","","","","","",null,null,null,null,null,null,"No"]
[null,719,null,null,null,null,null,"",null,"",null,null,null,null,"",null,"",null,"No",null,"","","","","","","","",null,null,null,null,null,null,"No"]
[null,720,null,null,null,null,null,"",null,"",null,null,null,null,"",null,"",null,"No",null,"","","","","","","","",null,null,null,null,null,null,"No"]
[null,721,null,null,null,null,null,"",null,"",null,null,null,null,"",null,"",null,"No",null,"","","","","","","","",null,null,null,null,null,null,"No"]
[null,722,null,null,null,null,null,"",null,"",null,null,null,null,"",null,"",null,"No",null,"","","","","","","","",null,null,null,null,null,null,"No"]
[null,723,null,null,null,null,null,"",null,"",null,null,null,null,"",null,"",null,"No",null,"","","","","","","","",null,null,null,null,null,null,"No",null,null,null,null,null,null,"","",null,""]
[null,724,null,null,null,null,null,"",null,"",null,null,null,null,"",null,"",null,"No",null,"","","","","","","","",null,null,null,null,null,null,"No"]
[null,725,null,null,null,null,null,"",null,"",null,null,null,null,"",null,"",null,"No",null,"","","","","","","","",null,null,null,null,null,null,"No"]
[null,726,null,null,null,null,null,"",null,"",null,null,null,null,"",null,"",null,"No",null,"","","","","","","","",null,null,null,null,null,null,"No"]
[null,727,null,null,null,null,null,"",null,"",null,null,null,null,"",null,"",null,"No",null,"","","","","","","","",null,null,null,null,null,null,"No"]
[null,728,null,null,null,null,null,"",null,"",null,null,null,null,"",null,"",null,"No",null,"","","","","","","","",null,null,null,null,null,null,"No"]
[null,729,null,null,null,null,null,"",null,"",null,null,null,null,"",null,"",null,"No",null,"","","","","","","","",null,null,null,null,null,null,"No",null,null,null,null,null,null,"","",null,""]
[null,730,null,null,null,null,null,"",null,"",null,null,null,null,"",null,"",null,"No",null,"","","","","","","","",null,null,null,null,null,null,"No"]
[null,731,null,null,null,null,null,"",null,"",null,null,null,null,"",null,"",null,"No",null,"","","","","","","","",null,null,null,null,null,null,"No"]
[null,732,null,null,null,null,null,"",null,"",null,null,null,null,"",null,"",null,"No",null,"","","","","","","","",null,null,null,null,null,null,"No"]
[null,733,null,null,null,null,null,"",null,"",null,null,null,null,"",null,"",null,"No",null,"","","","","","","","",null,null,null,null,null,null,"No"]
[null,734,null,null,null,null,null,"",null,"",null,null,null,null,"",null,"",null,"No",null,"","","","","","","","",null,null,null,null,null,null,"No"]
[null,735,null,null,null,null,null,"",null,"",null,null,null,null,"",null,"",null,"No",null,"","","","","","","","",null,null,null,null,null,null,"No"]
[null,736,null,null,null,null,null,"",null,"",null,null,null,null,"",null,"",null,"No",null,"","","","","","","","",null,null,null,null,null,null,"No"]
[null,737,null,null,null,null,null,"",null,"",null,null,null,null,"",null,"",null,"No",null,"","","","","","","","",null,null,null,null,null,null,"No"]
[null,738,null,null,null,null,null,"",null,"",null,null,null,null,"",null,"",null,"No",null,"","","","","","","","",null,null,null,null,null,null,"No"]
[null,739,null,null,null,null,null,"",null,"",null,null,null,null,"",null,"",null,"No",null,"","","","","","","","",null,null,null,null,null,null,"No"]
[null,740,null,null,null,null,null,"",null,"",null,null,null,null,"",null,"",null,"No",null,"","","","","","","","",null,null,null,null,null,null,"No"]
[null,741,null,null,null,null,null,"",null,"",null,null,null,null,"",null,"",null,"No",null,"","","","","","","","",null,null,null,null,null,null,"No",null,null,null,null,null,null,"","",null,""]
[null,742,null,null,null,null,null,"",null,"",null,null,null,null,"",null,"",null,"No",null,"","","","","","","","",null,null,null,null,null,null,"No"]
[null,743,null,null,null,null,null,"",null,"",null,null,null,null,"",null,"",null,"No",null,"","","","","","","","",null,null,null,null,null,null,"No"]
[null,744,null,null,null,null,null,"",null,"",null,null,null,null,"",null,"",null,"No",null,"","","","","","","","",null,null,null,null,null,null,"No"]
[null,745,null,null,null,null,null,"",null,"",null,null,null,null,"",null,"",null,"No",null,"","","","","","","","",null,null,null,null,null,null,"No"]
[null,746,null,null,null,null,null,"",null,"",null,null,null,null,"",null,"",null,"No",null,"","","","","","","","",null,null,null,null,null,null,"No"]
[null,747,null,null,null,null,null,"",null,"",null,null,null,null,"",null,"",null,"No",null,"","","","","","","","",null,null,null,null,null,null,"No",null,null,null,null,null,null,"","",null,""]
[null,748,null,null,null,null,null,"",null,"",null,null,null,null,"",null,"",null,"No",null,"","","","","","","","",null,null,null,null,null,null,"No"]
[null,749,null,null,null,null,null,"",null,"",null,null,null,null,"",null,"",null,"No",null,"","","","","","","","",null,null,null,null,null,null,"No"]
[null,750,null,null,null,null,null,{"$f":"IF(E770=\"\",\"\",VLOOKUP(E770,$AO$1115:$AP$1542,2,FALSE))","v":""},null,"",null,null,null,null,"",null,"",null,"No",null,"","","","","","","",{"$f":"IF(AA770=\"\",\"\",IF(AND(R770=\"Interior\",S770=\"No\",OR(T770=\"\",T770=\"No\")),$J$1028,IF(AND(R770=\"Interior\",S770=\"Yes\"),$J$1029,IF(AND(R770=\"Exterior\",S770=\"Yes\"),$J$1030,IF(AND(R770=\"Exterior\",S770=\"No\",N770<>G770),\"DNQ\",\"See Lighting Catalog to determine Code\")))))","v":""},null,null,null,null,null,null,"No"]
[null,751,null,null,null,null,null,"",null,"",null,null,null,null,"",null,"",null,"No",null,"","","","","","","","",null,null,null,null,null,null,"No"]
[null,752,null,null,null,null,null,"",null,"",null,null,null,null,"",null,"",null,"No",null,"","","","","","","","",null,null,null,null,null,null,"No"]
[null,753,null,null,null,null,null,"",null,"",null,null,null,null,"",null,"",null,"No",null,"","","","","","","","",null,null,null,null,null,null,"No"]
[null,754,null,null,null,null,null,"",null,"",null,null,null,null,"",null,"",null,"No",null,{"$f":"IF(R774=\"Interior\",IF(E774=\"\",\"\",IF(OR(I774>0,H774=\"Enter Watts\"),I774*G774/1000,H774*G774/1000)),IF(E774=\"\",\"\",0))","v":""},"",{"$f":"IF(R774=\"Interior\",IF(AND(L774=\"\", E774=\"\"),\"\",IF(OR(P774>0,O774=\"Enter Watts\", P774=\"\"),P774*N774/1000,O774*N774/1000)),IF(AND(E774=\"\",L774=\"\"),\"\",0))","v":""},"",{"$f":"IFERROR(IF(OR(I774>0,H774=\"Enter Watts\"),I774*G774,H774*G774)-IF(OR(P774>0,O774=\"Enter Watts\"),P774*N774,O774*N774),\"\")","v":""},"",{"$f":"IF(AND(V774=\"\",X774=\"\"),\"\",IF(OR(V774=\"\",X774=\"\"),0,V774-X774))","v":""},"",null,null,null,null,null,null,"No"]
[null,755,null,null,null,null,null,"",null,"",null,null,null,null,"",null,"",null,"No",null,{"$f":"IF(R775=\"Interior\",IF(E775=\"\",\"\",IF(OR(I775>0,H775=\"Enter Watts\"),I775*G775/1000,H775*G775/1000)),IF(E775=\"\",\"\",0))","v":""},"",{"$f":"IF(R775=\"Interior\",IF(AND(L775=\"\", E775=\"\"),\"\",IF(OR(P775>0,O775=\"Enter Watts\", P775=\"\"),P775*N775/1000,O775*N775/1000)),IF(AND(E775=\"\",L775=\"\"),\"\",0))","v":""},"",{"$f":"IFERROR(IF(OR(I775>0,H775=\"Enter Watts\"),I775*G775,H775*G775)-IF(OR(P775>0,O775=\"Enter Watts\"),P775*N775,O775*N775),\"\")","v":""},"",{"$f":"IF(AND(V775=\"\",X775=\"\"),\"\",IF(OR(V775=\"\",X775=\"\"),0,V775-X775))","v":""},"",null,null,null,null,null,null,"No"]
[null,756,null,null,null,null,null,"",null,"",null,null,null,null,"",null,"",null,"No",null,"","","","","","","","",null,null,null,null,null,null,"No"]
[null,757,null,null,null,null,null,"",null,"",null,null,null,null,"",null,"",null,"No",null,"","","","","","","","",null,null,null,null,null,null,"No"]
[null,758,null,null,null,null,null,"",null,"",null,null,null,null,"",null,"",null,"No",null,"","","","","","","","",null,null,null,null,null,null,"No",null,null,null,null,null,null,"","",null,""]
[null,759,null,null,null,null,null,"",null,"",null,null,null,null,"",null,"",null,"No",null,"","","","","","","","",null,null,null,null,null,null,"No"]
[null,760,null,null,null,null,null,"",null,"",null,null,null,null,"",null,"",null,"No",null,"","","","","","","","",null,null,null,null,null,null,"No"]
[null,761,null,null,null,null,null,"",null,"",null,null,null,null,"",null,"",null,"No",null,"","","","","","","","",null,null,null,null,null,null,"No"]
[null,762,null,null,null,null,null,"",null,"",null,null,null,null,"",null,"",null,"No",null,"","","","","","","","",null,null,null,null,null,null,"No"]
[null,763,null,null,null,null,null,"",null,"",null,null,null,null,"",null,"",null,"No",null,"","","","","","","","",null,null,null,null,null,null,"No"]
[null,764,null,null,null,null,null,"",null,"",null,null,null,null,"",null,"",null,"No",null,"","","","","","","","",null,null,null,null,null,null,"No",null,null,null,null,null,null,"","",null,""]
[null,765,null,null,null,null,null,"",null,"",null,null,null,null,"",null,"",null,"No",null,"","","","","","","","",null,null,null,null,null,null,"No"]
[null,766,null,null,null,null,null,"",null,"",null,null,null,null,"",null,"",null,"No",null,"","","","","","","","",null,null,null,null,null,null,"No"]
[null,767,null,null,null,null,null,"",null,"",null,null,null,null,"",null,"",null,"No",null,"","","","","","","","",null,null,null,null,null,null,"No"]
[null,768,null,null,null,null,null,"",null,"",null,null,null,null,"",null,"",null,"No",null,"","","","","","","","",null,null,null,null,null,null,"No"]
[null,769,null,null,null,null,null,"",null,{"$f":"IF(AND(E789<>\"\",G789<>\"\",$E$9=\"Default Sector Hours\"),VLOOKUP(IF(R789=\"Exterior\",\"Exterior\",$E$8),$V$1037:$W$1042,2,FALSE),\"\")","v":""},null,null,null,null,{"$f":"IF(L789=\"\",\"\",VLOOKUP(L789,$AO$1114:$AP$1542,2,FALSE))","v":""},null,"",null,"No",null,"",{"$f":"IFERROR(IF(E789=\"\",\"\",G789/1000*IF(OR(I789>0,H789=\"Enter Watts\"),I789,H789)*IF(R789=\"Exterior\",$W$1042*(1-$G$16),IF($E$9=\"Manual Input\",J789,VLOOKUP($E$8,$V$1037:$Y$1041,2,FALSE))*(1-$E$16)      )),\"0\")","v":""},"",{"$f":"IFERROR(IF(AND(L789=\"\", E789=\"\"),\"\",N789/1000*IF(OR(P789>0,O789=\"Enter Watts\"),P789,O789)*IF(R789=\"Exterior\",$W$1042,IF($E$9=\"Manual Input\",Q789,VLOOKUP($E$8,$V$1037:$Y$1041,2,FALSE)))*IF(S789=\"Yes\",IF(R789=\"Exterior\",1-$Y$1042,1-VLOOKUP($E$8,$V$1037:$Y$1041,4,FALSE)),1)),0)","v":""},"",{"$f":"IF(AND(U789=\"\",W789=\"\"),\"\",IF(OR(U789=\"\",W789=\"\"),0,  IF($E$9=\"Manual Input\",$G$10,   VLOOKUP($E$8,$V$1037:$Y$1042,3,FALSE))     *(U789-W789)))","v":""},"","",null,null,null,null,null,null,"No"]
[null,770,null,null,null,null,null,"",null,"",null,null,null,null,"",null,"",null,"No",null,"","","","","","","","",null,null,null,null,null,null,{"$f":"IF(_xlfn.ISFORMULA(J790)=TRUE,\"No\",\"Yes\")","v":"No"}]
[null,771,null,null,null,null,null,"",null,"",null,null,null,null,"",null,"",null,"No",null,"","","","","","","","",null,null,null,null,null,null,"No",null,null,null,null,null,null,"","",null,""]
[null,772,null,null,null,null,null,"",null,"",null,null,null,null,"",null,"",null,"No",null,"","","","","","","","",null,null,null,null,null,null,"No"]
[null,773,null,null,null,null,null,"",null,"",null,null,null,null,"",null,"",null,"No",null,"","","","","","","","",null,null,null,null,null,null,"No"]
[null,774,null,null,null,null,null,"",null,"",null,null,null,null,"",null,"",null,"No",null,"","","","","","","","",null,null,null,null,null,null,"No"]
[null,775,null,null,null,null,null,"",null,"",null,null,null,null,"",null,"",null,"No",null,"","","","","","","","",null,null,null,null,null,null,"No"]
[null,776,null,null,null,null,null,"",null,"",null,null,null,null,"",null,"",null,"No",null,"","","","","","","","",null,null,null,null,null,null,"No"]
[null,777,null,null,null,null,null,"",null,"",null,null,null,null,"",null,"",null,"No",null,"","","","","","","","",null,null,null,null,null,null,"No",null,null,null,null,null,null,"","",null,""]
[null,778,null,null,null,null,null,"",null,"",null,null,null,null,"",null,"",null,"No",null,"","","","","","","","",null,null,null,null,null,null,"No"]
[null,779,null,null,null,null,null,"",null,"",null,null,null,null,"",null,"",null,"No",null,"","","","","","","","",null,null,null,null,null,null,"No"]
[null,780,null,null,null,null,null,"",null,"",null,null,null,null,"",null,"",null,"No",null,"","","","","","","","",null,null,null,null,null,null,"No"]
[null,781,null,null,null,null,null,"",null,"",null,null,null,null,"",null,"",null,"No",null,"","","","","","","","",null,null,null,null,null,null,"No"]
[null,782,null,null,null,null,null,"",null,"",null,null,null,null,"",null,"",null,"No",null,"","","","","","","","",null,null,null,null,null,null,"No"]
[null,783,null,null,null,null,null,"",null,"",null,null,null,null,"",null,"",null,"No",null,"","","","","","","","",null,null,null,null,null,null,"No"]
[null,784,null,null,null,null,null,"",null,"",null,null,null,null,"",null,"",null,"No",null,"","","","","","","","",null,null,null,null,null,null,"No"]
[null,785,null,null,null,null,null,"",null,"",null,null,null,null,"",null,"",null,"No",null,"","","","","","","","",null,null,null,null,null,null,"No"]
[null,786,null,null,null,null,null,"",null,"",null,null,null,null,"",null,"",null,"No",null,"","","","","","","","",null,null,null,null,null,null,"No"]
[null,787,null,null,null,null,null,"",null,"",null,null,null,null,"",null,"",null,"No",null,"","","","","","","","",null,null,null,null,null,null,"No"]
[null,788,null,null,null,null,null,"",null,"",null,null,null,null,"",null,"",null,"No",null,"","","","","","","","",null,null,null,null,null,null,"No"]
[null,789,null,null,null,null,null,"",null,"",null,null,null,null,"",null,"",null,"No",null,"","","","","","","","",null,null,null,null,null,null,"No",null,null,null,null,null,null,"","",null,""]
[null,790,null,null,null,null,null,"",null,"",null,null,null,null,"",null,"",null,"No",null,"","","","","","","","",null,null,null,null,null,null,"No"]
[null,791,null,null,null,null,null,"",null,"",null,null,null,null,"",null,"",null,"No",null,"","","","","","","","",null,null,null,null,null,null,"No"]
[null,792,null,null,null,null,null,"",null,"",null,null,null,null,"",null,"",null,"No",null,"","","","","","","","",null,null,null,null,null,null,"No"]
[null,793,null,null,null,null,null,"",null,"",null,null,null,null,"",null,"",null,"No",null,"","","","","","","","",null,null,null,null,null,null,"No"]
[null,794,null,null,null,null,null,"",null,"",null,null,null,null,"",null,"",null,"No",null,"","","","","","","","",null,null,null,null,null,null,"No"]
[null,795,null,null,null,null,null,"",null,"",null,null,null,null,"",null,"",null,"No",null,"","","","","","","","",null,null,null,null,null,null,"No",null,null,null,null,null,null,"","",null,""]
[null,796,null,null,null,null,null,"",null,"",null,null,null,null,"",null,"",null,"No",null,"","","","","","","","",null,null,null,null,null,null,"No"]
[null,797,null,null,null,null,null,"",null,"",null,null,null,null,"",null,"",null,"No",null,"","","","","","","","",null,null,null,null,null,null,"No"]
[null,798,null,null,null,null,null,"",null,"",null,null,null,null,"",null,"",null,"No",null,"","","","","","","","",null,null,null,null,null,null,"No"]
[null,799,null,null,null,null,null,"",null,"",null,null,null,null,"",null,"",null,"No",null,"","","","","","","","",null,null,null,null,null,null,"No"]
[null,800,null,null,null,null,null,"",null,"",null,null,null,null,"",null,"",null,"No",null,"","","","","","","","",null,null,null,null,null,null,"No"]
[null,801,null,null,null,null,null,"",null,"",null,null,null,null,"",null,"",null,"No",null,"","","","","","","","",null,null,null,null,null,null,"No"]
[null,802,null,null,null,null,null,"",null,"",null,null,null,null,"",null,"",null,"No",null,{"$f":"IF(R822=\"Interior\",IF(E822=\"\",\"\",IF(OR(I822>0,H822=\"Enter Watts\"),I822*G822/1000,H822*G822/1000)),IF(E822=\"\",\"\",0))","v":""},"",{"$f":"IF(R822=\"Interior\",IF(AND(L822=\"\", E822=\"\"),\"\",IF(OR(P822>0,O822=\"Enter Watts\", P822=\"\"),P822*N822/1000,O822*N822/1000)),IF(AND(E822=\"\",L822=\"\"),\"\",0))","v":""},"",{"$f":"IFERROR(IF(OR(I822>0,H822=\"Enter Watts\"),I822*G822,H822*G822)-IF(OR(P822>0,O822=\"Enter Watts\"),P822*N822,O822*N822),\"\")","v":""},"",{"$f":"IF(AND(V822=\"\",X822=\"\"),\"\",IF(OR(V822=\"\",X822=\"\"),0,V822-X822))","v":""},"",null,null,null,null,null,null,"No"]
[null,803,null,null,null,null,null,"",null,"",null,null,null,null,"",null,"",null,"No",null,{"$f":"IF(R823=\"Interior\",IF(E823=\"\",\"\",IF(OR(I823>0,H823=\"Enter Watts\"),I823*G823/1000,H823*G823/1000)),IF(E823=\"\",\"\",0))","v":""},"",{"$f":"IF(R823=\"Interior\",IF(AND(L823=\"\", E823=\"\"),\"\",IF(OR(P823>0,O823=\"Enter Watts\", P823=\"\"),P823*N823/1000,O823*N823/1000)),IF(AND(E823=\"\",L823=\"\"),\"\",0))","v":""},"",{"$f":"IFERROR(IF(OR(I823>0,H823=\"Enter Watts\"),I823*G823,H823*G823)-IF(OR(P823>0,O823=\"Enter Watts\"),P823*N823,O823*N823),\"\")","v":""},"",{"$f":"IF(AND(V823=\"\",X823=\"\"),\"\",IF(OR(V823=\"\",X823=\"\"),0,V823-X823))","v":""},"",null,null,null,null,null,null,"No"]
[null,804,null,null,null,null,null,"",null,"",null,null,null,null,"",null,"",null,"No",null,"","","","","","","","",null,null,null,null,null,null,"No"]
[null,805,null,null,null,null,null,"",null,"",null,null,null,null,"",null,"",null,"No",null,"","","","","","","","",null,null,null,null,null,null,"No"]
[null,806,null,null,null,null,null,"",null,"",null,null,null,null,"",null,"",null,"No",null,"","","","","","","","",null,null,null,null,null,null,"No",null,null,null,null,null,null,"","",null,""]
[null,807,null,null,null,null,null,"",null,"",null,null,null,null,"",null,"",null,"No",null,"","","","","","","","",null,null,null,null,null,null,"No"]
[null,808,null,null,null,null,null,"",null,"",null,null,null,null,"",null,"",null,"No",null,"","","","","","","","",null,null,null,null,null,null,"No"]
[null,809,null,null,null,null,null,"",null,"",null,null,null,null,"",null,"",null,"No",null,"","","","","","","","",null,null,null,null,null,null,"No"]
[null,810,null,null,null,null,null,"",null,"",null,null,null,null,"",null,"",null,"No",null,"","","","","","","","",null,null,null,null,null,null,"No"]
[null,811,null,null,null,null,null,"",null,"",null,null,null,null,"",null,"",null,"No",null,"","","","","","","","",null,null,null,null,null,null,"No"]
[null,812,null,null,null,null,null,"",null,"",null,null,null,null,"",null,"",null,"No",null,"","","","","","","","",null,null,null,null,null,null,"No",null,null,null,null,null,null,"","",null,""]
[null,813,null,null,null,null,null,"",null,"",null,null,null,null,"",null,"",null,"No",null,"","","","","","","","",null,null,null,null,null,null,"No"]
[null,814,null,null,null,null,null,{"$f":"IF(E834=\"\",\"\",VLOOKUP(E834,$AO$1115:$AP$1542,2,FALSE))","v":""},null,"",null,null,null,null,"",null,"",null,"No",null,"","","","","","","",{"$f":"IF(AA834=\"\",\"\",IF(AND(R834=\"Interior\",S834=\"No\",OR(T834=\"\",T834=\"No\")),$J$1028,IF(AND(R834=\"Interior\",S834=\"Yes\"),$J$1029,IF(AND(R834=\"Exterior\",S834=\"Yes\"),$J$1030,IF(AND(R834=\"Exterior\",S834=\"No\",N834<>G834),\"DNQ\",\"See Lighting Catalog to determine Code\")))))","v":""},null,null,null,null,null,null,"No"]
[null,815,null,null,null,null,null,"",null,"",null,null,null,null,"",null,"",null,"No",null,"","","","","","","","",null,null,null,null,null,null,"No"]
[null,816,null,null,null,null,null,"",null,"",null,null,null,null,"",null,"",null,"No",null,"","","","","","","","",null,null,null,null,null,null,"No"]
[null,817,null,null,null,null,null,"",null,"",null,null,null,null,"",null,"",null,"No",null,"","","","","","","","",null,null,null,null,null,null,"No"]
[null,818,null,null,null,null,null,"",null,"",null,null,null,null,"",null,"",null,"No",null,"","","","","","","","",null,null,null,null,null,null,"No"]
[null,819,null,null,null,null,null,"",null,"",null,null,null,null,"",null,"",null,"No",null,"","","","","","","","",null,null,null,null,null,null,"No",null,null,null,null,null,null,"","",null,""]
[null,820,null,null,null,null,null,"",null,"",null,null,null,null,"",null,"",null,"No",null,"","","","","","","","",null,null,null,null,null,null,"No"]
[null,821,null,null,null,null,null,"",null,"",null,null,null,null,"",null,"",null,"No",null,"","","","","","","","",null,null,null,null,null,null,"No"]
[null,822,null,null,null,null,null,"",null,"",null,null,null,null,"",null,"",null,"No",null,"","","","","","","","",null,null,null,null,null,null,"No"]
[null,823,null,null,null,null,null,"",null,"",null,null,null,null,"",null,"",null,"No",null,"","","","","","","","",null,null,null,null,null,null,"No"]
[null,824,null,null,null,null,null,"",null,"",null,null,null,null,"",null,"",null,"No",null,"","","","","","","","",null,null,null,null,null,null,"No"]
[null,825,null,null,null,null,null,"",null,"",null,null,null,null,"",null,"",null,"No",null,"","","","","","","","",null,null,null,null,null,null,"No",null,null,null,null,null,null,"","",null,""]
[null,826,null,null,null,null,null,"",null,"",null,null,null,null,"",null,"",null,"No",null,"","","","","","","","",null,null,null,null,null,null,"No"]
[null,827,null,null,null,null,null,"",null,"",null,null,null,null,"",null,"",null,"No",null,"","","","","","","","",null,null,null,null,null,null,"No"]
[null,828,null,null,null,null,null,"",null,"",null,null,null,null,"",null,"",null,"No",null,"","","","","","","","",null,null,null,null,null,null,"No"]
[null,829,null,null,null,null,null,"",null,"",null,null,null,null,"",null,"",null,"No",null,"","","","","","","","",null,null,null,null,null,null,"No"]
[null,830,null,null,null,null,null,"",null,"",null,null,null,null,"",null,"",null,"No",null,"","","","","","","","",null,null,null,null,null,null,"No"]
[null,831,null,null,null,null,null,"",null,"",null,null,null,null,"",null,"",null,"No",null,"","","","","","","","",null,null,null,null,null,null,"No"]
[null,832,null,null,null,null,null,"",null,"",null,null,null,null,"",null,"",null,"No",null,"","","","","","","","",null,null,null,null,null,null,"No"]
[null,833,null,null,null,null,null,"",null,{"$f":"IF(AND(E853<>\"\",G853<>\"\",$E$9=\"Default Sector Hours\"),VLOOKUP(IF(R853=\"Exterior\",\"Exterior\",$E$8),$V$1037:$W$1042,2,FALSE),\"\")","v":""},null,null,null,null,{"$f":"IF(L853=\"\",\"\",VLOOKUP(L853,$AO$1114:$AP$1542,2,FALSE))","v":""},null,"",null,"No",null,"",{"$f":"IFERROR(IF(E853=\"\",\"\",G853/1000*IF(OR(I853>0,H853=\"Enter Watts\"),I853,H853)*IF(R853=\"Exterior\",$W$1042*(1-$G$16),IF($E$9=\"Manual Input\",J853,VLOOKUP($E$8,$V$1037:$Y$1041,2,FALSE))*(1-$E$16)      )),\"0\")","v":""},"",{"$f":"IFERROR(IF(AND(L853=\"\", E853=\"\"),\"\",N853/1000*IF(OR(P853>0,O853=\"Enter Watts\"),P853,O853)*IF(R853=\"Exterior\",$W$1042,IF($E$9=\"Manual Input\",Q853,VLOOKUP($E$8,$V$1037:$Y$1041,2,FALSE)))*IF(S853=\"Yes\",IF(R853=\"Exterior\",1-$Y$1042,1-VLOOKUP($E$8,$V$1037:$Y$1041,4,FALSE)),1)),0)","v":""},"",{"$f":"IF(AND(U853=\"\",W853=\"\"),\"\",IF(OR(U853=\"\",W853=\"\"),0,  IF($E$9=\"Manual Input\",$G$10,   VLOOKUP($E$8,$V$1037:$Y$1042,3,FALSE))     *(U853-W853)))","v":""},"","",null,null,null,null,null,null,"No"]
[null,834,null,null,null,null,null,"",null,"",null,null,null,null,"",null,"",null,"No",null,"","","","","","","","",null,null,null,null,null,null,{"$f":"IF(_xlfn.ISFORMULA(J854)=TRUE,\"No\",\"Yes\")","v":"No"}]
[null,835,null,null,null,null,null,"",null,"",null,null,null,null,"",null,"",null,"No",null,"","","","","","","","",null,null,null,null,null,null,"No"]
[null,836,null,null,null,null,null,"",null,"",null,null,null,null,"",null,"",null,"No",null,"","","","","","","","",null,null,null,null,null,null,"No"]
[null,837,null,null,null,null,null,"",null,"",null,null,null,null,"",null,"",null,"No",null,"","","","","","","","",null,null,null,null,null,null,"No",null,null,null,null,null,null,"","",null,""]
[null,838,null,null,null,null,null,"",null,"",null,null,null,null,"",null,"",null,"No",null,"","","","","","","","",null,null,null,null,null,null,"No"]
[null,839,null,null,null,null,null,"",null,"",null,null,null,null,"",null,"",null,"No",null,"","","","","","","","",null,null,null,null,null,null,"No"]
[null,840,null,null,null,null,null,"",null,"",null,null,null,null,"",null,"",null,"No",null,"","","","","","","","",null,null,null,null,null,null,"No"]
[null,841,null,null,null,null,null,"",null,"",null,null,null,null,"",null,"",null,"No",null,"","","","","","","","",null,null,null,null,null,null,"No"]
[null,842,null,null,null,null,null,"",null,"",null,null,null,null,"",null,"",null,"No",null,"","","","","","","","",null,null,null,null,null,null,"No"]
[null,843,null,null,null,null,null,"",null,"",null,null,null,null,"",null,"",null,"No",null,"","","","","","","","",null,null,null,null,null,null,"No",null,null,null,null,null,null,"","",null,""]
[null,844,null,null,null,null,null,"",null,"",null,null,null,null,"",null,"",null,"No",null,"","","","","","","","",null,null,null,null,null,null,"No"]
[null,845,null,null,null,null,null,"",null,"",null,null,null,null,"",null,"",null,"No",null,"","","","","","","","",null,null,null,null,null,null,"No"]
[null,846,null,null,null,null,null,"",null,"",null,null,null,null,"",null,"",null,"No",null,"","","","","","","","",null,null,null,null,null,null,"No"]
[null,847,null,null,null,null,null,"",null,"",null,null,null,null,"",null,"",null,"No",null,"","","","","","","","",null,null,null,null,null,null,"No"]
[null,848,null,null,null,null,null,"",null,"",null,null,null,null,"",null,"",null,"No",null,"","","","","","","","",null,null,null,null,null,null,"No"]
[null,849,null,null,null,null,null,"",null,"",null,null,null,null,"",null,"",null,"No",null,"","","","","","","","",null,null,null,null,null,null,"No"]
[null,850,null,null,null,null,null,"",null,"",null,null,null,null,"",null,"",null,"No",null,{"$f":"IF(R870=\"Interior\",IF(E870=\"\",\"\",IF(OR(I870>0,H870=\"Enter Watts\"),I870*G870/1000,H870*G870/1000)),IF(E870=\"\",\"\",0))","v":""},"",{"$f":"IF(R870=\"Interior\",IF(AND(L870=\"\", E870=\"\"),\"\",IF(OR(P870>0,O870=\"Enter Watts\", P870=\"\"),P870*N870/1000,O870*N870/1000)),IF(AND(E870=\"\",L870=\"\"),\"\",0))","v":""},"",{"$f":"IFERROR(IF(OR(I870>0,H870=\"Enter Watts\"),I870*G870,H870*G870)-IF(OR(P870>0,O870=\"Enter Watts\"),P870*N870,O870*N870),\"\")","v":""},"",{"$f":"IF(AND(V870=\"\",X870=\"\"),\"\",IF(OR(V870=\"\",X870=\"\"),0,V870-X870))","v":""},"",null,null,null,null,null,null,"No"]
[null,851,null,null,null,null,null,"",null,"",null,null,null,null,"",null,"",null,"No",null,{"$f":"IF(R871=\"Interior\",IF(E871=\"\",\"\",IF(OR(I871>0,H871=\"Enter Watts\"),I871*G871/1000,H871*G871/1000)),IF(E871=\"\",\"\",0))","v":""},"",{"$f":"IF(R871=\"Interior\",IF(AND(L871=\"\", E871=\"\"),\"\",IF(OR(P871>0,O871=\"Enter Watts\", P871=\"\"),P871*N871/1000,O871*N871/1000)),IF(AND(E871=\"\",L871=\"\"),\"\",0))","v":""},"",{"$f":"IFERROR(IF(OR(I871>0,H871=\"Enter Watts\"),I871*G871,H871*G871)-IF(OR(P871>0,O871=\"Enter Watts\"),P871*N871,O871*N871),\"\")","v":""},"",{"$f":"IF(AND(V871=\"\",X871=\"\"),\"\",IF(OR(V871=\"\",X871=\"\"),0,V871-X871))","v":""},"",null,null,null,null,null,null,"No"]
[null,852,null,null,null,null,null,"",null,"",null,null,null,null,"",null,"",null,"No",null,"","","","","","","","",null,null,null,null,null,null,"No"]
[null,853,null,null,null,null,null,"",null,"",null,null,null,null,"",null,"",null,"No",null,"","","","","","","","",null,null,null,null,null,null,"No"]
[null,854,null,null,null,null,null,"",null,"",null,null,null,null,"",null,"",null,"No",null,"","","","","","","","",null,null,null,null,null,null,"No",null,null,null,null,null,null,"","",null,""]
[null,855,null,null,null,null,null,"",null,"",null,null,null,null,"",null,"",null,"No",null,"","","","","","","","",null,null,null,null,null,null,"No"]
[null,856,null,null,null,null,null,"",null,"",null,null,null,null,"",null,"",null,"No",null,"","","","","","","","",null,null,null,null,null,null,"No"]
[null,857,null,null,null,null,null,"",null,"",null,null,null,null,"",null,"",null,"No",null,"","","","","","","","",null,null,null,null,null,null,"No"]
[null,858,null,null,null,null,null,"",null,"",null,null,null,null,"",null,"",null,"No",null,"","","","","","","","",null,null,null,null,null,null,"No"]
[null,859,null,null,null,null,null,"",null,"",null,null,null,null,"",null,"",null,"No",null,"","","","","","","","",null,null,null,null,null,null,"No"]
[null,860,null,null,null,null,null,"",null,"",null,null,null,null,"",null,"",null,"No",null,"","","","","","","","",null,null,null,null,null,null,"No",null,null,null,null,null,null,"","",null,""]
[null,861,null,null,null,null,null,"",null,"",null,null,null,null,"",null,"",null,"No",null,"","","","","","","","",null,null,null,null,null,null,"No"]
[null,862,null,null,null,null,null,"",null,"",null,null,null,null,"",null,"",null,"No",null,"","","","","","","","",null,null,null,null,null,null,"No"]
[null,863,null,null,null,null,null,"",null,"",null,null,null,null,"",null,"",null,"No",null,"","","","","","","","",null,null,null,null,null,null,"No"]
[null,864,null,null,null,null,null,"",null,"",null,null,null,null,"",null,"",null,"No",null,"","","","","","","","",null,null,null,null,null,null,"No"]
[null,865,null,null,null,null,null,"",null,"",null,null,null,null,"",null,"",null,"No",null,"","","","","","","","",null,null,null,null,null,null,"No"]
[null,866,null,null,null,null,null,"",null,"",null,null,null,null,"",null,"",null,"No",null,"","","","","","","","",null,null,null,null,null,null,"No"]
[null,867,null,null,null,null,null,"",null,"",null,null,null,null,"",null,"",null,"No",null,"","","","","","","","",null,null,null,null,null,null,"No",null,null,null,null,null,null,"","",null,""]
[null,868,null,null,null,null,null,"",null,"",null,null,null,null,"",null,"",null,"No",null,"","","","","","","","",null,null,null,null,null,null,"No"]
[null,869,null,null,null,null,null,"",null,"",null,null,null,null,"",null,"",null,"No",null,"","","","","","","","",null,null,null,null,null,null,"No"]
[null,870,null,null,null,null,null,"",null,"",null,null,null,null,"",null,"",null,"No",null,"","","","","","","","",null,null,null,null,null,null,"No"]
[null,871,null,null,null,null,null,"",null,"",null,null,null,null,"",null,"",null,"No",null,"","","","","","","","",null,null,null,null,null,null,"No"]
[null,872,null,null,null,null,null,"",null,"",null,null,null,null,"",null,"",null,"No",null,"","","","","","","","",null,null,null,null,null,null,"No"]
[null,873,null,null,null,null,null,"",null,"",null,null,null,null,"",null,"",null,"No",null,"","","","","","","","",null,null,null,null,null,null,"No",null,null,null,null,null,null,"","",null,""]
[null,874,null,null,null,null,null,"",null,"",null,null,null,null,"",null,"",null,"No",null,"","","","","","","","",null,null,null,null,null,null,"No"]
[null,875,null,null,null,null,null,"",null,"",null,null,null,null,"",null,{"$f":"IF(J895=\"\",\"\",J895)","v":""},null,"No",null,"","","","","","","","",null,null,null,null,null,null,"No"]
[null,876,null,null,null,null,null,"",null,"",null,null,null,null,"",null,"",null,"No",null,"","","","","","","","",null,null,null,null,null,null,"No"]
[null,877,null,null,null,null,null,"",null,"",null,null,null,null,"",null,"",null,"No",null,"","","","","","","","",null,null,null,null,null,null,"No"]
[null,878,null,null,null,null,null,{"$f":"IF(E898=\"\",\"\",VLOOKUP(E898,$AO$1115:$AP$1542,2,FALSE))","v":""},null,"",null,null,null,null,"",null,"",null,"No",null,"","","","","","","",{"$f":"IF(AA898=\"\",\"\",IF(AND(R898=\"Interior\",S898=\"No\",OR(T898=\"\",T898=\"No\")),$J$1028,IF(AND(R898=\"Interior\",S898=\"Yes\"),$J$1029,IF(AND(R898=\"Exterior\",S898=\"Yes\"),$J$1030,IF(AND(R898=\"Exterior\",S898=\"No\",N898<>G898),\"DNQ\",\"See Lighting Catalog to determine Code\")))))","v":""},null,null,null,null,null,null,"No"]
[null,879,null,null,null,null,null,"",null,"",null,null,null,null,"",null,"",null,"No",null,"","","","","","","","",null,null,null,null,null,null,"No",null,null,null,null,null,null,"","",null,""]
[null,880,null,null,null,null,null,"",null,"",null,null,null,null,"",null,"",null,"No",null,"","","","","","","","",null,null,null,null,null,null,"No"]
[null,881,null,null,null,null,null,"",null,"",null,null,null,null,"",null,"",null,"No",null,"","","","","","","","",null,null,null,null,null,null,"No"]
[null,882,null,null,null,null,null,"",null,"",null,null,null,null,"",null,"",null,"No",null,"","","","","","","","",null,null,null,null,null,null,"No"]
[null,883,null,null,null,null,null,"",null,"",null,null,null,null,"",null,"",null,"No",null,"","","","","","","","",null,null,null,null,null,null,"No"]
[null,884,null,null,null,null,null,"",null,"",null,null,null,null,"",null,"",null,"No",null,"","","","","","","","",null,null,null,null,null,null,"No"]
[null,885,null,null,null,null,null,"",null,"",null,null,null,null,"",null,"",null,"No",null,"","","","","","","","",null,null,null,null,null,null,"No"]
[null,886,null,null,null,null,null,"",null,"",null,null,null,null,"",null,"",null,"No",null,"","","","","","","","",null,null,null,null,null,null,"No"]
[null,887,null,null,null,null,null,"",null,"",null,null,null,null,"",null,"",null,"No",null,"","","","","","","","",null,null,null,null,null,null,"No"]
[null,888,null,null,null,null,null,"",null,"",null,null,null,null,"",null,"",null,"No",null,"","","","","","","","",null,null,null,null,null,null,"No"]
[null,889,null,null,null,null,null,"",null,"",null,null,null,null,"",null,"",null,"No",null,"","","","","","","","",null,null,null,null,null,null,"No"]
[null,890,null,null,null,null,null,"",null,"",null,null,null,null,"",null,"",null,"No",null,"","","","","","","","",null,null,null,null,null,null,"No"]
[null,891,null,null,null,null,null,"",null,"",null,null,null,null,"",null,"",null,"No",null,"","","","","","","","",null,null,null,null,null,null,"No",null,null,null,null,null,null,"","",null,""]
[null,892,null,null,null,null,null,"",null,"",null,null,null,null,"",null,"",null,"No",null,"","","","","","","","",null,null,null,null,null,null,"No"]
[null,893,null,null,null,null,null,"",null,"",null,null,null,null,"",null,"",null,"No",null,"","","","","","","","",null,null,null,null,null,null,"No"]
[null,894,null,null,null,null,null,"",null,"",null,null,null,null,"",null,"",null,"No",null,"","","","","","","","",null,null,null,null,null,null,"No"]
[null,895,null,null,null,null,null,"",null,"",null,null,null,null,"",null,"",null,"No",null,"","","","","","","","",null,null,null,null,null,null,"No"]
[null,896,null,null,null,null,null,"",null,"",null,null,null,null,"",null,"",null,"No",null,"","","","","","","","",null,null,null,null,null,null,"No"]
[null,897,null,null,null,null,null,"",null,{"$f":"IF(AND(E917<>\"\",G917<>\"\",$E$9=\"Default Sector Hours\"),VLOOKUP(IF(R917=\"Exterior\",\"Exterior\",$E$8),$V$1037:$W$1042,2,FALSE),\"\")","v":""},null,null,null,null,{"$f":"IF(L917=\"\",\"\",VLOOKUP(L917,$AO$1114:$AP$1542,2,FALSE))","v":""},null,"",null,"No",null,"",{"$f":"IFERROR(IF(E917=\"\",\"\",G917/1000*IF(OR(I917>0,H917=\"Enter Watts\"),I917,H917)*IF(R917=\"Exterior\",$W$1042*(1-$G$16),IF($E$9=\"Manual Input\",J917,VLOOKUP($E$8,$V$1037:$Y$1041,2,FALSE))*(1-$E$16)      )),\"0\")","v":""},"",{"$f":"IFERROR(IF(AND(L917=\"\", E917=\"\"),\"\",N917/1000*IF(OR(P917>0,O917=\"Enter Watts\"),P917,O917)*IF(R917=\"Exterior\",$W$1042,IF($E$9=\"Manual Input\",Q917,VLOOKUP($E$8,$V$1037:$Y$1041,2,FALSE)))*IF(S917=\"Yes\",IF(R917=\"Exterior\",1-$Y$1042,1-VLOOKUP($E$8,$V$1037:$Y$1041,4,FALSE)),1)),0)","v":""},"",{"$f":"IF(AND(U917=\"\",W917=\"\"),\"\",IF(OR(U917=\"\",W917=\"\"),0,  IF($E$9=\"Manual Input\",$G$10,   VLOOKUP($E$8,$V$1037:$Y$1042,3,FALSE))     *(U917-W917)))","v":""},"","",null,null,null,null,null,null,"No",null,null,null,null,null,null,"","",null,""]
[null,898,null,null,null,null,null,"",null,"",null,null,null,null,"",null,"",null,"No",null,"","","","","","","","",null,null,null,null,null,null,{"$f":"IF(_xlfn.ISFORMULA(J918)=TRUE,\"No\",\"Yes\")","v":"No"}]
[null,899,null,null,null,null,null,"",null,"",null,null,null,null,"",null,"",null,"No",null,"","","","","","","","",null,null,null,null,null,null,"No"]
[null,900,null,null,null,null,null,"",null,"",null,null,null,null,"",null,"",null,"No",null,"","","","","","","","",null,null,null,null,null,null,"No"]
[null,901,null,null,null,null,null,"",null,"",null,null,null,null,"",null,"",null,"No",null,"","","","","","","","",null,null,null,null,null,null,"No"]
[null,902,null,null,null,null,null,"",null,"",null,null,null,null,"",null,"",null,"No",null,"","","","","","","","",null,null,null,null,null,null,"No"]
[null,903,null,null,null,null,null,"",null,"",null,null,null,null,"",null,"",null,"No",null,"","","","","","","","",null,null,null,null,null,null,"No"]
[null,904,null,null,null,null,null,"",null,"",null,null,null,null,"",null,"",null,"No",null,{"$f":"IF(R924=\"Interior\",IF(E924=\"\",\"\",IF(OR(I924>0,H924=\"Enter Watts\"),I924*G924/1000,H924*G924/1000)),IF(E924=\"\",\"\",0))","v":""},"",{"$f":"IF(R924=\"Interior\",IF(AND(L924=\"\", E924=\"\"),\"\",IF(OR(P924>0,O924=\"Enter Watts\", P924=\"\"),P924*N924/1000,O924*N924/1000)),IF(AND(E924=\"\",L924=\"\"),\"\",0))","v":""},"",{"$f":"IFERROR(IF(OR(I924>0,H924=\"Enter Watts\"),I924*G924,H924*G924)-IF(OR(P924>0,O924=\"Enter Watts\"),P924*N924,O924*N924),\"\")","v":""},"",{"$f":"IF(AND(V924=\"\",X924=\"\"),\"\",IF(OR(V924=\"\",X924=\"\"),0,V924-X924))","v":""},"",null,null,null,null,null,null,"No"]
[null,905,null,null,null,null,null,"",null,"",null,null,null,null,"",null,"",null,"No",null,{"$f":"IF(R925=\"Interior\",IF(E925=\"\",\"\",IF(OR(I925>0,H925=\"Enter Watts\"),I925*G925/1000,H925*G925/1000)),IF(E925=\"\",\"\",0))","v":""},"",{"$f":"IF(R925=\"Interior\",IF(AND(L925=\"\", E925=\"\"),\"\",IF(OR(P925>0,O925=\"Enter Watts\", P925=\"\"),P925*N925/1000,O925*N925/1000)),IF(AND(E925=\"\",L925=\"\"),\"\",0))","v":""},"",{"$f":"IFERROR(IF(OR(I925>0,H925=\"Enter Watts\"),I925*G925,H925*G925)-IF(OR(P925>0,O925=\"Enter Watts\"),P925*N925,O925*N925),\"\")","v":""},"",{"$f":"IF(AND(V925=\"\",X925=\"\"),\"\",IF(OR(V925=\"\",X925=\"\"),0,V925-X925))","v":""},"",null,null,null,null,null,null,"No"]
[null,906,null,null,null,null,null,"",null,"",null,null,null,null,"",null,"",null,"No",null,"","","","","","","","",null,null,null,null,null,null,"No"]
[null,907,null,null,null,null,null,"",null,"",null,null,null,null,"",null,"",null,"No",null,"","","","","","","","",null,null,null,null,null,null,"No"]
[null,908,null,null,null,null,null,"",null,"",null,null,null,null,"",null,"",null,"No",null,"","","","","","","","",null,null,null,null,null,null,"No",null,null,null,null,null,null,"","",null,""]
[null,909,null,null,null,null,null,"",null,"",null,null,null,null,"",null,"",null,"No",null,"","","","","","","","",null,null,null,null,null,null,"No"]
[null,910,null,null,null,null,null,"",null,"",null,null,null,null,"",null,"",null,"No",null,"","","","","","","","",null,null,null,null,null,null,"No"]
[null,911,null,null,null,null,null,"",null,"",null,null,null,null,"",null,"",null,"No",null,"","","","","","","","",null,null,null,null,null,null,"No"]
[null,912,null,null,null,null,null,"",null,"",null,null,null,null,"",null,"",null,"No",null,"","","","","","","","",null,null,null,null,null,null,"No"]
[null,913,null,null,null,null,null,"",null,"",null,null,null,null,"",null,"",null,"No",null,"","","","","","","","",null,null,null,null,null,null,"No"]
[null,914,null,null,null,null,null,"",null,"",null,null,null,null,"",null,"",null,"No",null,"","","","","","","","",null,null,null,null,null,null,"No",null,null,null,null,null,null,"","",null,""]
[null,915,null,null,null,null,null,"",null,"",null,null,null,null,"",null,"",null,"No",null,"","","","","","","","",null,null,null,null,null,null,"No"]
[null,916,null,null,null,null,null,"",null,"",null,null,null,null,"",null,"",null,"No",null,"","","","","","","","",null,null,null,null,null,null,"No"]
[null,917,null,null,null,null,null,"",null,"",null,null,null,null,"",null,"",null,"No",null,"","","","","","","","",null,null,null,null,null,null,"No"]
[null,918,null,null,null,null,null,"",null,"",null,null,null,null,"",null,"",null,"No",null,"","","","","","","","",null,null,null,null,null,null,"No"]
[null,919,null,null,null,null,null,"",null,"",null,null,null,null,"",null,"",null,"No",null,"","","","","","","","",null,null,null,null,null,null,"No"]
[null,920,null,null,null,null,null,"",null,"",null,null,null,null,"",null,"",null,"No",null,"","","","","","","","",null,null,null,null,null,null,"No"]
[null,921,null,null,null,null,null,"",null,"",null,null,null,null,"",null,"",null,"No",null,"","","","","","","","",null,null,null,null,null,null,"No",null,null,null,null,null,null,"","",null,""]
[null,922,null,null,null,null,null,"",null,"",null,null,null,null,"",null,"",null,"No",null,"","","","","","","","",null,null,null,null,null,null,"No"]
[null,923,null,null,null,null,null,"",null,"",null,null,null,null,"",null,"",null,"No",null,"","","","","","","","",null,null,null,null,null,null,"No"]
[null,924,null,null,null,null,null,"",null,"",null,null,null,null,"",null,"",null,"No",null,"","","","","","","","",null,null,null,null,null,null,"No"]
[null,925,null,null,null,null,null,"",null,"",null,null,null,null,"",null,"",null,"No",null,"","","","","","","","",null,null,null,null,null,null,"No"]
[null,926,null,null,null,null,null,"",null,"",null,null,null,null,"",null,"",null,"No",null,"","","","","","","","",null,null,null,null,null,null,"No"]
[null,927,null,null,null,null,null,"",null,"",null,null,null,null,"",null,"",null,"No",null,"","","","","","","","",null,null,null,null,null,null,"No",null,null,null,null,null,null,"","",null,""]
[null,928,null,null,null,null,null,"",null,"",null,null,null,null,"",null,"",null,"No",null,"","","","","","","","",null,null,null,null,null,null,"No"]
[null,929,null,null,null,null,null,"",null,"",null,null,null,null,"",null,"",null,"No",null,"","","","","","","","",null,null,null,null,null,null,"No"]
[null,930,null,null,null,null,null,"",null,"",null,null,null,null,"",null,"",null,"No",null,"","","","","","","","",null,null,null,null,null,null,"No"]
[null,931,null,null,null,null,null,"",null,"",null,null,null,null,"",null,"",null,"No",null,"","","","","","","","",null,null,null,null,null,null,"No"]
[null,932,null,null,null,null,null,"",null,"",null,null,null,null,"",null,"",null,"No",null,"","","","","","","","",null,null,null,null,null,null,"No"]
[null,933,null,null,null,null,null,"",null,"",null,null,null,null,"",null,"",null,"No",null,"","","","","","","","",null,null,null,null,null,null,"No"]
[null,934,null,null,null,null,null,"",null,"",null,null,null,null,"",null,"",null,"No",null,"","","","","","","","",null,null,null,null,null,null,"No"]
[null,935,null,null,null,null,null,"",null,"",null,null,null,null,"",null,"",null,"No",null,"","","","","","","","",null,null,null,null,null,null,"No"]
[null,936,null,null,null,null,null,"",null,"",null,null,null,null,"",null,"",null,"No",null,"","","","","","","","",null,null,null,null,null,null,"No"]
[null,937,null,null,null,null,null,"",null,"",null,null,null,null,"",null,"",null,"No",null,"","","","","","","","",null,null,null,null,null,null,"No"]
[null,938,null,null,null,null,null,"",null,"",null,null,null,null,"",null,"",null,"No",null,"","","","","","","","",null,null,null,null,null,null,"No"]
[null,939,null,null,null,null,null,"",null,"",null,null,null,null,"",null,"",null,"No",null,"","","","","","","","",null,null,null,null,null,null,"No",null,null,null,null,null,null,"","",null,""]
[null,940,null,null,null,null,null,"",null,"",null,null,null,null,"",null,"",null,"No",null,"","","","","","","","",null,null,null,null,null,null,"No"]
[null,941,null,null,null,null,null,"",null,"",null,null,null,null,"",null,"",null,"No",null,"","","","","","","","",null,null,null,null,null,null,"No"]
[null,942,null,null,null,null,null,{"$f":"IF(E962=\"\",\"\",VLOOKUP(E962,$AO$1115:$AP$1542,2,FALSE))","v":""},null,"",null,null,null,null,"",null,"",null,"No",null,"","","","","","","",{"$f":"IF(AA962=\"\",\"\",IF(AND(R962=\"Interior\",S962=\"No\",OR(T962=\"\",T962=\"No\")),$J$1028,IF(AND(R962=\"Interior\",S962=\"Yes\"),$J$1029,IF(AND(R962=\"Exterior\",S962=\"Yes\"),$J$1030,IF(AND(R962=\"Exterior\",S962=\"No\",N962<>G962),\"DNQ\",\"See Lighting Catalog to determine Code\")))))","v":""},null,null,null,null,null,null,"No"]
[null,943,null,null,null,null,null,"",null,"",null,null,null,null,"",null,"",null,"No",null,"","","","","","","","",null,null,null,null,null,null,"No"]
[null,944,null,null,null,null,null,"",null,"",null,null,null,null,"",null,"",null,"No",null,"","","","","","","","",null,null,null,null,null,null,"No"]
[null,945,null,null,null,null,null,"",null,"",null,null,null,null,"",null,"",null,"No",null,"","","","","","","","",null,null,null,null,null,null,"No",null,null,null,null,null,null,"","",null,""]
[null,946,null,null,null,null,null,"",null,"",null,null,null,null,"",null,"",null,"No",null,"","","","","","","","",null,null,null,null,null,null,"No"]
[null,947,null,null,null,null,null,"",null,"",null,null,null,null,"",null,"",null,"No",null,"","","","","","","","",null,null,null,null,null,null,"No"]
[null,948,null,null,null,null,null,"",null,"",null,null,null,null,"",null,"",null,"No",null,"","","","","","","","",null,null,null,null,null,null,"No"]
[null,949,null,null,null,null,null,"",null,"",null,null,null,null,"",null,"",null,"No",null,"","","","","","","","",null,null,null,null,null,null,"No"]
[null,950,null,null,null,null,null,"",null,"",null,null,null,null,"",null,"",null,"No",null,"","","","","","","","",null,null,null,null,null,null,"No"]
[null,951,null,null,null,null,null,"",null,"",null,null,null,null,"",null,"",null,"No",null,"","","","","","","","",null,null,null,null,null,null,"No"]
[null,952,null,null,null,null,null,"",null,"",null,null,null,null,"",null,"",null,"No",null,{"$f":"IF(R972=\"Interior\",IF(E972=\"\",\"\",IF(OR(I972>0,H972=\"Enter Watts\"),I972*G972/1000,H972*G972/1000)),IF(E972=\"\",\"\",0))","v":""},"",{"$f":"IF(R972=\"Interior\",IF(AND(L972=\"\", E972=\"\"),\"\",IF(OR(P972>0,O972=\"Enter Watts\", P972=\"\"),P972*N972/1000,O972*N972/1000)),IF(AND(E972=\"\",L972=\"\"),\"\",0))","v":""},"",{"$f":"IFERROR(IF(OR(I972>0,H972=\"Enter Watts\"),I972*G972,H972*G972)-IF(OR(P972>0,O972=\"Enter Watts\"),P972*N972,O972*N972),\"\")","v":""},"",{"$f":"IF(AND(V972=\"\",X972=\"\"),\"\",IF(OR(V972=\"\",X972=\"\"),0,V972-X972))","v":""},"",null,null,null,null,null,null,"No"]
[null,953,null,null,null,null,null,"",null,"",null,null,null,null,"",null,"",null,"No",null,{"$f":"IF(R973=\"Interior\",IF(E973=\"\",\"\",IF(OR(I973>0,H973=\"Enter Watts\"),I973*G973/1000,H973*G973/1000)),IF(E973=\"\",\"\",0))","v":""},"",{"$f":"IF(R973=\"Interior\",IF(AND(L973=\"\", E973=\"\"),\"\",IF(OR(P973>0,O973=\"Enter Watts\", P973=\"\"),P973*N973/1000,O973*N973/1000)),IF(AND(E973=\"\",L973=\"\"),\"\",0))","v":""},"",{"$f":"IFERROR(IF(OR(I973>0,H973=\"Enter Watts\"),I973*G973,H973*G973)-IF(OR(P973>0,O973=\"Enter Watts\"),P973*N973,O973*N973),\"\")","v":""},"",{"$f":"IF(AND(V973=\"\",X973=\"\"),\"\",IF(OR(V973=\"\",X973=\"\"),0,V973-X973))","v":""},"",null,null,null,null,null,null,"No"]
[null,954,null,null,null,null,null,"",null,"",null,null,null,null,"",null,"",null,"No",null,"","","","","","","","",null,null,null,null,null,null,"No"]
[null,955,null,null,null,null,null,"",null,"",null,null,null,null,"",null,"",null,"No",null,"","","","","","","","",null,null,null,null,null,null,"No"]
[null,956,null,null,null,null,null,"",null,"",null,null,null,null,"",null,"",null,"No",null,"","","","","","","","",null,null,null,null,null,null,"No",null,null,null,null,null,null,"","",null,""]
[null,957,null,null,null,null,null,"",null,"",null,null,null,null,"",null,"",null,"No",null,"","","","","","","","",null,null,null,null,null,null,"No"]
[null,958,null,null,null,null,null,"",null,"",null,null,null,null,"",null,"",null,"No",null,"","","","","","","","",null,null,null,null,null,null,"No"]
[null,959,null,null,null,null,null,"",null,"",null,null,null,null,"",null,"",null,"No",null,"","","","","","","","",null,null,null,null,null,null,"No"]
[null,960,null,null,null,null,null,"",null,"",null,null,null,null,"",null,"",null,"No",null,"","","","","","","","",null,null,null,null,null,null,"No"]
[null,961,null,null,null,null,null,"",null,{"$f":"IF(AND(E981<>\"\",G981<>\"\",$E$9=\"Default Sector Hours\"),VLOOKUP(IF(R981=\"Exterior\",\"Exterior\",$E$8),$V$1037:$W$1042,2,FALSE),\"\")","v":""},null,null,null,null,{"$f":"IF(L981=\"\",\"\",VLOOKUP(L981,$AO$1114:$AP$1542,2,FALSE))","v":""},null,"",null,"No",null,"",{"$f":"IFERROR(IF(E981=\"\",\"\",G981/1000*IF(OR(I981>0,H981=\"Enter Watts\"),I981,H981)*IF(R981=\"Exterior\",$W$1042*(1-$G$16),IF($E$9=\"Manual Input\",J981,VLOOKUP($E$8,$V$1037:$Y$1041,2,FALSE))*(1-$E$16)      )),\"0\")","v":""},"",{"$f":"IFERROR(IF(AND(L981=\"\", E981=\"\"),\"\",N981/1000*IF(OR(P981>0,O981=\"Enter Watts\"),P981,O981)*IF(R981=\"Exterior\",$W$1042,IF($E$9=\"Manual Input\",Q981,VLOOKUP($E$8,$V$1037:$Y$1041,2,FALSE)))*IF(S981=\"Yes\",IF(R981=\"Exterior\",1-$Y$1042,1-VLOOKUP($E$8,$V$1037:$Y$1041,4,FALSE)),1)),0)","v":""},"",{"$f":"IF(AND(U981=\"\",W981=\"\"),\"\",IF(OR(U981=\"\",W981=\"\"),0,  IF($E$9=\"Manual Input\",$G$10,   VLOOKUP($E$8,$V$1037:$Y$1042,3,FALSE))     *(U981-W981)))","v":""},"","",null,null,null,null,null,null,"No"]
[null,962,null,null,null,null,null,"",null,"",null,null,null,null,"",null,"",null,"No",null,"","","","","","","","",null,null,null,null,null,null,{"$f":"IF(_xlfn.ISFORMULA(J982)=TRUE,\"No\",\"Yes\")","v":"No"},null,null,null,null,null,null,"","",null,""]
[null,963,null,null,null,null,null,"",null,"",null,null,null,null,"",null,"",null,"No",null,"","","","","","","","",null,null,null,null,null,null,"No"]
[null,964,null,null,null,null,null,"",null,"",null,null,null,null,"",null,"",null,"No",null,"","","","","","","","",null,null,null,null,null,null,"No"]
[null,965,null,null,null,null,null,"",null,"",null,null,null,null,"",null,"",null,"No",null,"","","","","","","","",null,null,null,null,null,null,"No"]
[null,966,null,null,null,null,null,"",null,"",null,null,null,null,"",null,"",null,"No",null,"","","","","","","","",null,null,null,null,null,null,"No"]
[null,967,null,null,null,null,null,"",null,"",null,null,null,null,"",null,"",null,"No",null,"","","","","","","","",null,null,null,null,null,null,"No"]
[null,968,null,null,null,null,null,"",null,"",null,null,null,null,"",null,"",null,"No",null,"","","","","","","","",null,null,null,null,null,null,"No"]
[null,969,null,null,null,null,null,"",null,"",null,null,null,null,"",null,"",null,"No",null,"","","","","","","","",null,null,null,null,null,null,"No",null,null,null,null,null,null,"","",null,""]
[null,970,null,null,null,null,null,"",null,"",null,null,null,null,"",null,"",null,"No",null,"","","","","","","","",null,null,null,null,null,null,"No"]
[null,971,null,null,null,null,null,"",null,"",null,null,null,null,"",null,"",null,"No",null,"","","","","","","","",null,null,null,null,null,null,"No"]
[null,972,null,null,null,null,null,"",null,"",null,null,null,null,"",null,"",null,"No",null,"","","","","","","","",null,null,null,null,null,null,"No"]
[null,973,null,null,null,null,null,"",null,"",null,null,null,null,"",null,"",null,"No",null,"","","","","","","","",null,null,null,null,null,null,"No"]
[null,974,null,null,null,null,null,"",null,"",null,null,null,null,"",null,"",null,"No",null,"","","","","","","","",null,null,null,null,null,null,"No"]
[null,975,null,null,null,null,null,"",null,"",null,null,null,null,"",null,"",null,"No",null,"","","","","","","","",null,null,null,null,null,null,"No",null,null,null,null,null,null,"","",null,""]
[null,976,null,null,null,null,null,"",null,"",null,null,null,null,"",null,"",null,"No",null,"","","","","","","","",null,null,null,null,null,null,"No"]
[null,977,null,null,null,null,null,"",null,"",null,null,null,null,"",null,"",null,"No",null,"","","","","","","","",null,null,null,null,null,null,"No"]
[null,978,null,null,null,null,null,"",null,"",null,null,null,null,"",null,"",null,"No",null,"","","","","","","","",null,null,null,null,null,null,"No"]
[null,979,null,null,null,null,null,"",null,"",null,null,null,null,"",null,"",null,"No",null,"","","","","","","","",null,null,null,null,null,null,"No"]
[null,980,null,null,null,null,null,"",null,"",null,null,null,null,"",null,"",null,"No",null,"","","","","","","","",null,null,null,null,null,null,"No"]
[null,981,null,null,null,null,null,"",null,"",null,null,null,null,"",null,"",null,"No",null,"","","","","","","","",null,null,null,null,null,null,"No"]
[null,982,null,null,null,null,null,"",null,"",null,null,null,null,"",null,"",null,"No",null,"","","","","","","","",null,null,null,null,null,null,"No"]
[null,983,null,null,null,null,null,"",null,"",null,null,null,null,"",null,"",null,"No",null,"","","","","","","","",null,null,null,null,null,null,"No"]
[null,984,null,null,null,null,null,"",null,"",null,null,null,null,"",null,"",null,"No",null,"","","","","","","","",null,null,null,null,null,null,"No"]
[null,985,null,null,null,null,null,"",null,"",null,null,null,null,"",null,"",null,"No",null,"","","","","","","","",null,null,null,null,null,null,"No"]
[null,986,null,null,null,null,null,"",null,"",null,null,null,null,"",null,"",null,"No",null,"","","","","","","","",null,null,null,null,null,null,"No"]
[null,987,null,null,null,null,null,"",null,"",null,null,null,null,"",null,"",null,"No",null,"","","","","","","","",null,null,null,null,null,null,"No",null,null,null,null,null,null,"","",null,""]
[null,988,null,null,null,null,null,"",null,"",null,null,null,null,"",null,"",null,"No",null,"","","","","","","","",null,null,null,null,null,null,"No"]
[null,989,null,null,null,null,null,"",null,"",null,null,null,null,"",null,"",null,"No",null,"","","","","","","","",null,null,null,null,null,null,"No"]
[null,990,null,null,null,null,null,"",null,"",null,null,null,null,"",null,"",null,"No",null,"","","","","","","","",null,null,null,null,null,null,"No"]
[null,991,null,null,null,null,null,"",null,"",null,null,null,null,"",null,"",null,"No",null,"","","","","","","","",null,null,null,null,null,null,"No"]
[null,992,null,null,null,null,null,"",null,"",null,null,null,null,"",null,"",null,"No",null,"","","","","","","","",null,null,null,null,null,null,"No"]
[null,993,null,null,null,null,null,"",null,"",null,null,null,null,"",null,"",null,"No",null,"","","","","","","","",null,null,null,null,null,null,"No",null,null,null,null,null,null,"","",null,""]
[null,994,null,null,null,null,null,"",null,"",null,null,null,null,"",null,"",null,"No",null,"","","","","","","","",null,null,null,null,null,null,"No"]
[null,995,null,null,null,null,null,"",null,"",null,null,null,null,"",null,"",null,"No",null,"","","","","","","","",null,null,null,null,null,null,"No"]
[null,996,null,null,null,null,null,"",null,"",null,null,null,null,"",null,"",null,"No",null,"","","","","","","","",null,null,null,null,null,null,"No"]
[null,997,null,null,null,null,null,"",null,"",null,null,null,null,"",null,"",null,"No",null,"","","","","","","","",null,null,null,null,null,null,"No"]
[null,998,null,null,null,null,null,"",null,"",null,null,null,null,"",null,"",null,"No",null,"","","","","","","","",null,null,null,null,null,null,"No"]
[null,999,null,null,null,null,null,"",null,"",null,null,null,null,"",null,"",null,"No",null,"","","","","","","","",null,null,null,null,null,null,"No"]
[null,1000,null,null,null,null,null,"",null,"",null,null,null,null,"",null,"",null,"No",null,"","","","","","","","",null,null,null,null,null,null,"No"]
[null,null,null,null,null,"Totals:",{"$f":"SUM(G21:G1020)","v":0},null,null,null,null,null,null,{"$f":"SUM(N21:N1020)","v":0}]
[]
[]
[]
[]
[null,null,"EUL Source:  Workpaper",null,null,null,null,null,null,null,"Savings for Project by Measure ID "]
[null,null,"Measure Master ID","Measure Master Name",null,"Group / Measure Type","EUL",null,null,"MMID","Peak kW","Annual kWh","Lifecycle kWh","Annual Energy Cost Savings",null,"Incentive Rate",null,"Watts Reduced","Incentive by Code",null,null,"Cost Effectiveness ($/mmBtu)"]
[null,{"$f":"C1028&\" - \"&D1028","v":"L5029 - CLS - Fixture or Retrofit Kit Only"},"L5029","CLS - Fixture or Retrofit Kit Only",null,"Lighting / Custom",15,null,null,"L5029",{"$f":"ROUND(SUMIF($AB$21:$AB$1020,$J1028,$Z$21:$Z$1020),4)","v":0},{"$f":"ROUND(SUMIF($AB$21:$AB$1020,$J1028,$AA$21:$AA$1020),0)","v":0},{"$f":"L1028*G1028","v":0},{"$f":"L1028*E$12","v":0},null,0.25,null,{"$f":"IFERROR(ROUND(SUMIF($AB$21:$AB$1020,$J1028,$Y$21:$Y$1020),0),\"\")","v":0},{"$f":"IFERROR(R1028*P1028,\"\")","v":0},null,null,{"$f":"IFERROR(S1028/(M1028*0.003412),0)","v":0}]
[null,"L5031 - CLS - Fixture or Retrofit Kit/Lamp with Connected Controls, Interior","L5031","CLS - Fixture or Retrofit Kit/Lamp with Connected Controls, Interior",null,"Lighting / Custom",15,null,null,"L5031",{"$f":"ROUND(SUMIF($AB$21:$AB$1020,$J1029,$Z$21:$Z$1020),4)","v":0},{"$f":"ROUND(SUMIF($AB$21:$AB$1020,$J1029,$AA$21:$AA$1020),0)","v":0},{"$f":"L1029*G1029","v":0},{"$f":"L1029*E$12","v":0},null,0.45,null,{"$f":"IFERROR(ROUND(SUMIF($AB$21:$AB$1020,$J1029,$Y$21:$Y$1020),0),\"\")","v":0},{"$f":"IFERROR(R1029*P1029,\"\")","v":0},null,null,{"$f":"IFERROR(S1029/(M1029*0.003412),0)","v":0}]
[null,"L5030 - CLS - Fixture or Retrofit Kit/Lamp with Connected Controls, Exterior","L5030","CLS - Fixture or Retrofit Kit/Lamp with Connected Controls, Exterior",null,"Lighting / Custom",15,null,null,"L5030",{"$f":"ROUND(SUMIF($AB$21:$AB$1020,$J1030,$Z$21:$Z$1020),4)","v":0},{"$f":"ROUND(SUMIF($AB$21:$AB$1020,$J1030,$AA$21:$AA$1020),0)","v":0},{"$f":"L1030*G1030","v":0},{"$f":"L1030*E13","v":0},null,0.5,null,{"$f":"IFERROR(ROUND(SUMIF($AB$21:$AB$1020,$J1030,$Y$21:$Y$1020),0),\"\")","v":0},{"$f":"IFERROR(R1030*P1030,\"\")","v":0},null,null,{"$f":"IFERROR(S1030/(M1030*0.003412),0)","v":0}]
[null,null,null,null,null,null,null,null,null,null,null,null,null,null,null,null,null,null,"Total Incentive"]
[null,null,null,null,null,null,null,null,null,null,null,null,null,null,null,null,null,null,{"$f":"MIN(E7*E15,SUM(S1028:U1030))","v":0}]
[]
[null,null,"Additional Notes / Supporting Docs",null,null,null,null,null,null,null,null,null,null,null,null,null,null,null,null,null,null,null,null,null,null,null,null,"Source: IL TRM, V8.0, October 2019"]
[null,null,null,null,null,null,null,null,null,null,null,null,null,null,null,null,null,null,null,null,null,"Default Sector Values",null,null,null,null,null,"Volume 2: Commercial and Industrial Measures, Page 430."]
[null,null,null,null,null,null,null,null,null,null,null,null,null,null,null,null,null,null,null,null,null,"Sector","HOU","CF","SF",null,null,"Building/Space Type","Coincidence Factor"]
[null,null,null,null,null,null,null,null,null,null,null,null,null,null,null,null,null,null,null,null,null,"Commercial",3730,0.77,0.51,null,null,"_Sector Default_",{"$f":"VLOOKUP(E8,$V$1037:$Y$1042,3,FALSE)","v":0.64}]
[null,null,null,null,null,null,null,null,null,null,null,null,null,null,null,null,null,null,null,null,null,"Industrial",4745,0.77,0.43,null,null,"Assisted Living",0.66]
[null,null,null,null,null,null,null,null,null,null,null,null,null,null,null,null,null,null,null,null,null,"Multifamily",5950,0.77,0.47,null,null,"Auto Dealership",0.97]
[null,null,null,null,null,null,null,null,null,null,null,null,null,null,null,null,null,null,null,null,null,"Schools & Gov",3239,0.64,0.28000000000000003,null,null,"Childcare/Pre-School",0.72]
[null,null,null,null,null,null,null,null,null,null,null,null,null,null,null,null,null,null,null,null,null,null,null,null,null,null,null,"College",0.63]
[null,null,null,null,null,null,null,null,null,null,null,null,null,null,null,null,null,null,null,null,null,"Exterior",4380,0,0.5,null,null,"Convenience Store",0.76]
[null,null,null,null,null,null,null,null,null,null,null,null,null,null,null,null,null,null,null,null,null,null,null,null,null,null,null,"Drug Store",1]
[null,null,null,null,null,null,null,null,null,null,null,null,null,null,null,null,null,null,null,null,null,"Default Utility Rates",null,null,null,null,null,"Elementary School",0.65]
[null,null,null,null,null,null,null,null,null,null,null,null,null,null,null,null,null,null,null,null,null,"Sector","$/kWh","$/therm",null,null,null,"Grocery",0.82]
[null,null,null,null,null,null,null,null,null,null,null,null,null,null,null,null,null,null,null,null,null,"Commercial/Schools & Government",0.11020000000000001,0.61599999999999999,null,null,null,"Healthcare Clinic",0.67]
[null,null,null,null,null,null,null,null,null,null,null,null,null,null,null,null,null,null,null,null,null,"Industrial",7.7200000000000005E-2,0.51600000000000001,null,null,null,"High School",0.65]
[null,null,null,null,null,null,null,null,null,null,null,null,null,null,null,null,null,null,null,null,null,"Residential",0.1462,0.76900000000000002,null,null,null,"Hospital",0.56000000000000005]
[null,null,null,null,null,null,null,null,null,null,null,null,null,null,null,null,null,null,null,null,null,"EIA 2019 Annual Rates",null,null,null,null,null,"Manufacturing Facility",0.81]
[null,null,null,null,null,null,null,null,null,null,null,null,null,null,null,null,null,null,null,null,null,null,null,null,null,null,null,"Multifamily High Rise - Common Area",0.9]
[null,null,null,null,null,null,null,null,null,null,null,null,null,null,null,null,null,null,null,null,null,null,null,null,null,null,null,"Multifamily Mid Rise - Common Area",0.62]
[null,null,null,null,null,null,null,null,null,null,null,null,null,null,null,null,null,null,null,null,null,null,null,null,null,null,null,"Hotel/Motel - Guest Rooms",0.46,null,null,null,null,null,null,null,null,null,null,"Version: 1.0"]
[null,null,null,null,null,null,null,null,null,null,null,null,null,null,null,null,null,null,null,null,null,null,null,null,null,null,null,"Hotel/Motel - Common Area",0.85,null,null,null,null,null,null,null,null,null,null,"Release Date: 4/4/2013"]
[null,null,null,null,null,null,null,null,null,null,null,null,null,null,null,null,null,null,null,null,null,null,null,null,null,null,null,"Movie Theater",0.53,null,null,null,null,null,null,null,null,null,null,"Notes:"]
[null,null,null,null,null,null,null,null,null,null,null,null,null,null,null,null,null,null,null,null,null,null,null,null,null,null,null,"Office - High Rise",0.6,null,null,null,null,null,null,null,null,null,null,"*Compiled using values from the following sources 2010 Xcel Energy wattage guide,  2007 Centerpoint Energy Wattage Table, and various manufacturers literature. "]
[null,null,null,null,null,null,null,null,null,null,null,null,null,null,null,null,null,null,null,null,null,null,null,null,null,null,null,"Office - Mid Rise",0.6,null,null,null,null,null,null,null,null,null,null,"*Unless denoted all wattage values shown for linear fluorescent products assume a normal ballast factor ballast "]
[null,null,null,null,null,null,null,null,null,null,null,null,null,null,null,null,null,null,null,null,null,null,null,null,null,null,null,"Office - Low Rise",0.52,null,null,null,null,null,null,null,null,null,null,"*HB = High Bay w/ a high ballast factor ballast"]
[null,null,null,null,null,null,null,null,null,null,null,null,null,null,null,null,null,null,null,null,null,null,null,null,null,null,null,"Public Sector",0.65,null,null,null,null,null,null,null,null,null,null,"*HO = High Output Lamps and Ballasts"]
[null,null,null,null,null,null,null,null,null,null,null,null,null,null,null,null,null,null,null,null,null,null,null,null,null,null,null,"Religious Building",0.48,null,null,null,null,null,null,null,null,null,null,"*VHO = Very High Output Lamps and Ballasts"]
[null,null,null,null,null,null,null,null,null,null,null,null,null,null,null,null,null,null,null,null,null,null,null,null,null,null,null,"Restaurant",1]
[null,null,null,null,null,null,null,null,null,null,null,null,null,null,null,null,null,null,null,null,null,null,null,null,null,null,null,"Retail - Department Store",0.94,null,null,null,null,null,null,null,null,null,null,"Category (no Duplicates)","Named Range"]
[null,null,null,null,null,null,null,null,null,null,null,null,null,null,null,null,null,null,null,null,null,null,null,null,null,null,null,"Retail - Strip Mall",0.71,null,null,null,null,null,null,null,null,null,null,"**Removed**","RemovedNoReplacement"]
[null,null,null,null,null,null,null,null,null,null,null,null,null,null,null,null,null,null,null,null,null,null,null,null,null,null,null,"Warehouse",0.85,null,null,null,null,null,null,null,null,null,null,"Ceramic Metal Halide","CeramicMetalHalide"]
[null,null,null,null,null,null,null,null,null,null,null,null,null,null,null,null,null,null,null,null,null,null,null,null,null,null,null,"Coincidence Factor = 0.10",0.1,null,null,null,null,null,null,null,null,null,null,"CMH and PSMH Lamps","CMHandPSMHLamps"]
[null,null,null,null,null,null,null,null,null,null,null,null,null,null,null,null,null,null,null,null,null,null,null,null,null,null,null,"Coincidence Factor = 0.20",0.2,null,null,null,null,null,null,null,null,null,null,"CFL 2 Pin Based","CFL2PinBased"]
[null,null,null,null,null,null,null,null,null,null,null,null,null,null,null,null,null,null,null,null,null,null,null,null,null,null,null,"Coincidence Factor = 0.30",0.3,null,null,null,null,null,null,null,null,null,null,"CFL 4 Pin Based","CFL4PinBased"]
[null,null,null,null,null,null,null,null,null,null,null,null,null,null,null,null,null,null,null,null,null,null,null,null,null,null,null,"Coincidence Factor = 0.40",0.4,null,null,null,null,null,null,null,null,null,null,"CFL w/ Integral Ballast Screw or GU24","CFLWithIntegralBallastScrewOrGU24Based"]
[null,null,null,null,null,null,null,null,null,null,null,null,null,null,null,null,null,null,null,null,null,null,null,null,null,null,null,"Coincidence Factor = 0.50",0.5,null,null,null,null,null,null,null,null,null,null,"Cold Cathode Screw Based Lamp","ColdCathodeFluorescentScrewBasedLamps"]
[null,null,null,null,null,null,null,null,null,null,null,null,null,null,null,null,null,null,null,null,null,null,null,null,null,null,null,"Coincidence Factor = 0.60",0.6,null,null,null,null,null,null,null,null,null,null,"Exit Signs","ExitSigns"]
[null,null,null,null,null,null,null,null,null,null,null,null,null,null,null,null,null,null,null,null,null,null,null,null,null,null,null,"Coincidence Factor = 0.70",0.7,null,null,null,null,null,null,null,null,null,null,"Fluorescent - T12 1.5ft","T12_1.5ft"]
[null,null,null,null,null,null,null,null,null,null,null,null,null,null,null,null,null,null,null,null,null,null,null,null,null,null,null,null,null,null,null,null,null,null,null,null,null,null,null,"Fluorescent - T12 2ft","T12_2ft"]
[null,null,null,null,null,null,null,null,null,null,null,null,null,null,null,null,null,null,null,null,null,null,null,null,null,null,null,null,null,null,null,null,null,null,null,null,null,null,null,"Fluorescent - T12 3ft","T12_3ft"]
[null,null,null,null,null,null,null,null,null,null,null,null,null,null,null,null,null,null,null,null,null,null,null,null,null,null,null,null,null,null,null,null,null,null,null,null,null,null,null,"Fluorescent - T12 4ft","T12_4ft"]
[null,null,null,null,null,null,null,null,null,null,null,null,null,null,null,null,null,null,null,null,null,null,null,null,null,null,null,null,null,null,null,null,null,null,null,null,null,null,null,"Fluorescent - T12 5ft","T12_5ft"]
[null,null,null,null,null,null,null,null,null,null,null,null,null,null,null,null,null,null,null,null,null,null,null,null,null,null,null,null,null,null,null,null,null,null,null,null,null,null,null,"Fluorescent - T12 6ft","T12_6ft"]
[null,null,null,null,null,null,null,null,null,null,null,null,null,null,null,null,null,null,null,null,null,null,null,null,null,null,null,null,null,null,null,null,null,null,null,null,null,null,null,"Fluorescent - T12 8ft","T12_8ft"]
[null,null,null,null,null,null,null,null,null,null,null,null,null,null,null,null,null,null,null,null,null,null,null,null,null,null,null,null,null,null,null,null,null,null,null,null,null,null,null,"Fluorescent - T12 U-tube","T12U_tube"]
[null,null,null,null,null,null,null,null,null,null,null,null,null,null,null,null,null,null,null,null,null,null,null,null,null,null,null,null,null,null,null,null,null,null,null,null,null,null,null,"Fluorescent - T5 and T5HO 2ft","T5_2ft"]
[null,null,null,null,null,null,null,null,null,null,null,null,null,null,null,null,null,null,null,null,null,null,null,null,null,null,null,null,null,null,null,null,null,null,null,null,null,null,null,"Fluorescent - T5 and T5HO 3ft","T5_3ft"]
[null,null,null,null,null,null,null,null,null,null,null,null,null,null,null,null,null,null,null,null,null,null,null,null,null,null,null,null,null,null,null,null,null,null,null,null,null,null,null,"Fluorescent - T5 and T5HO 4ft","T5_4ft"]
[null,null,null,null,null,null,null,null,null,null,null,null,null,null,null,null,null,null,null,null,null,null,null,null,null,null,null,null,null,null,null,null,null,null,null,null,null,null,null,"Fluorescent - T8 1.5ft","T8_1.5ft"]
[null,null,null,null,null,null,null,null,null,null,null,null,null,null,null,null,null,null,null,null,null,null,null,null,null,null,null,null,null,null,null,null,null,null,null,null,null,null,null,"Fluorescent - T8 2ft","T8_2ft"]
[null,null,null,null,null,null,null,null,null,null,null,null,null,null,null,null,null,null,null,null,null,null,null,null,null,null,null,null,null,null,null,null,null,null,null,null,null,null,null,"Fluorescent - T8 3ft","T8_3ft"]
[null,null,null,null,null,null,null,null,null,null,null,null,null,null,null,null,null,null,null,null,null,null,null,null,null,null,null,null,null,null,null,null,null,null,null,null,null,null,null,"Fluorescent - T8 4ft","T8_4ft"]
[null,null,null,null,null,null,null,null,null,null,null,null,null,null,null,null,null,null,null,null,null,null,null,null,null,null,null,null,null,null,null,null,null,null,null,null,null,null,null,"Fluorescent - T8 4ft (Std ballast, RW lamps)","T8_4ft_StdBallastRWlamp"]
[null,null,null,null,null,null,null,null,null,null,null,null,null,null,null,null,null,null,null,null,null,null,null,null,null,null,null,null,null,null,null,null,null,null,null,null,null,null,null,"Fluorescent - HPT8 4ft","HPT8_4ft"]
[null,null,null,null,null,null,null,null,null,null,null,null,null,null,null,null,null,null,null,null,null,null,null,null,null,null,null,null,null,null,null,null,null,null,null,null,null,null,null,"Fluorescent - RWT8 4ft","RWT8_4ft"]
[null,null,null,null,null,null,null,null,null,null,null,null,null,null,null,null,null,null,null,null,null,null,null,null,null,null,null,null,null,null,null,null,null,null,null,null,null,null,null,"Fluorescent - T8 5ft","T8_5ft"]
[null,null,null,null,null,null,null,null,null,null,null,null,null,null,null,null,null,null,null,null,null,null,null,null,null,null,null,null,null,null,null,null,null,null,null,null,null,null,null,"Fluorescent - T8 8ft","T8_8ft"]
[null,null,null,null,null,null,null,null,null,null,null,null,null,null,null,null,null,null,null,null,null,null,null,null,null,null,null,null,null,null,null,null,null,null,null,null,null,null,null,"Fluorescent - T8 U-tube","T8U_tube"]
[null,null,null,null,null,null,null,null,null,null,null,null,null,null,null,null,null,null,null,null,null,null,null,null,null,null,null,null,null,null,null,null,null,null,null,null,null,null,null,"Fluorescent - T8 4ft Lamp Only","T8_4ft_Lamp"]
[null,null,null,null,null,null,null,null,null,null,null,null,null,null,null,null,null,null,null,null,null,null,null,null,null,null,null,null,null,null,null,null,null,null,null,null,null,null,null,"Fluorescent - T8 8ft Lamp Only","T8_8ft_Lamp"]
[null,null,null,null,null,null,null,null,null,null,null,null,null,null,null,null,null,null,null,null,null,null,null,null,null,null,null,null,null,null,null,null,null,null,null,null,null,null,null,"High Pressure Sodium","HighPressureSodium"]
[null,null,null,null,null,null,null,null,null,null,null,null,null,null,null,null,null,null,null,null,null,null,null,null,null,null,null,null,null,null,null,null,null,null,null,null,null,null,null,"Incandescent","Incandescent"]
[null,null,null,null,null,null,null,null,null,null,null,null,null,null,null,null,null,null,null,null,null,null,null,null,null,null,null,null,null,null,null,null,null,null,null,null,null,null,null,"Induction","Induction"]
[null,null,null,null,null,null,null,null,null,null,null,null,null,null,null,null,null,null,null,null,null,null,null,null,null,null,null,null,null,null,null,null,null,null,null,null,null,null,null,"LED (Other)","LED_Lighting"]
[null,null,null,null,null,null,null,null,null,null,null,null,null,null,null,null,null,null,null,null,null,null,null,null,null,null,null,null,null,null,null,null,null,null,null,null,null,null,null,"LED (ENERGY STAR)","LED_EnergyStar"]
[null,null,null,null,null,null,null,null,null,null,null,null,null,null,null,null,null,null,null,null,null,null,null,null,null,null,null,null,null,null,null,null,null,null,null,null,null,null,null,"LED (DLC Outdoor)","LED_DLC_Outdoor"]
[null,null,null,null,null,null,null,null,null,null,null,null,null,null,null,null,null,null,null,null,null,null,null,null,null,null,null,null,null,null,null,null,null,null,null,null,null,null,null,"LED (DLC Indoor)","LED_DLC_Indoor"]
[null,null,null,null,null,null,null,null,null,null,null,null,null,null,null,null,null,null,null,null,null,null,null,null,null,null,null,null,null,null,null,null,null,null,null,null,null,null,null,"LED (DLC Outdoor Retrofit Kit)","LED_DLC_OutdoorRetrofitKit"]
[null,null,null,null,null,null,null,null,null,null,null,null,null,null,null,null,null,null,null,null,null,null,null,null,null,null,null,null,null,null,null,null,null,null,null,null,null,null,null,"LED (DLC Indoor Retrofit Kit)","LED_DLC_IndoorRetrofitKit"]
[null,null,null,null,null,null,null,null,null,null,null,null,null,null,null,null,null,null,null,null,null,null,null,null,null,null,null,null,null,null,null,null,null,null,null,null,null,null,null,"LED (DLC Linear Replacement Lamp)","LED_DLC_LinearReplacementLamp"]
[null,null,null,null,null,null,null,null,null,null,null,null,null,null,null,null,null,null,null,null,null,null,null,null,null,null,null,null,null,null,null,null,null,null,null,null,null,null,null,"LED (DLC Mogul Screw-Base HID Replacement)","LED_DLC_MogulScrewBaseHidReplacement"]
[null,null,null,null,null,null,null,null,null,null,null,null,null,null,null,null,null,null,null,null,null,null,null,null,null,null,null,null,null,null,null,null,null,null,null,null,null,null,null,"Mercury Vapor","MercuryVapor"]
[null,null,null,null,null,null,null,null,null,null,null,null,null,null,null,null,null,null,null,null,null,null,null,null,null,null,null,null,null,null,null,null,null,null,null,null,null,null,null,"Metal Halide","MetalHalide"]
[null,null,null,null,null,null,null,null,null,null,null,null,null,null,null,null,null,null,null,null,null,null,null,null,null,null,null,null,null,null,null,null,null,null,null,null,null,null,null,"Pulse Start Metal Halide","PulseStartMetalHalide"]
[null,null,null,null,null,null,null,null,null,null,null,null,null,null,null,null,null,null,null,null,null,null,null,null,null,null,null,null,null,null,null,null,null,null,null,null,null,null,null,"Neon","Neon"]
[null,null,null,null,null,null,null,null,null,null,null,null,null,null,null,null,null,null,null,null,null,null,null,null,null,null,null,null,null,null,null,null,null,null,null,null,null,null,null,"Other Lamp or Fixture","OtherLampOrFixture"]
[]
[]
[null,null,null,null,null,null,null,null,null,null,null,null,null,null,null,null,null,null,null,null,null,null,null,null,null,null,null,null,null,null,null,null,null,null,null,null,null,null,null,"Additions to the Focus Input Wattage Guide needed for this calc are highlighted in yellow."]
[]
[null,null,null,null,null,null,null,null,null,null,null,null,null,null,null,null,null,null,null,null,null,null,null,null,null,null,null,null,null,null,null,null,null,null,null,null,null,null,null,"Category","Description","Default Wattage","Orig T12 Watts","T8 Equivalent Description"]
[null,null,null,null,null,null,null,null,null,null,null,null,null,null,null,null,null,null,null,null,null,null,null,null,null,null,null,null,null,null,null,null,null,null,null,null,null,null,null,"**Removed**","Baseline Fixture Removed and Not Replaced",0]
[null,null,null,null,null,null,null,null,null,null,null,null,null,null,null,null,null,null,null,null,null,null,null,null,null,null,null,null,null,null,null,null,null,null,null,null,null,null,null,"Ceramic Metal Halide","39 watt CMH",46]
[null,null,null,null,null,null,null,null,null,null,null,null,null,null,null,null,null,null,null,null,null,null,null,null,null,null,null,null,null,null,null,null,null,null,null,null,null,null,null,"Ceramic Metal Halide","50 watt CMH",55]
[null,null,null,null,null,null,null,null,null,null,null,null,null,null,null,null,null,null,null,null,null,null,null,null,null,null,null,null,null,null,null,null,null,null,null,null,null,null,null,"Ceramic Metal Halide","60 watt CMH",67]
[null,null,null,null,null,null,null,null,null,null,null,null,null,null,null,null,null,null,null,null,null,null,null,null,null,null,null,null,null,null,null,null,null,null,null,null,null,null,null,"Ceramic Metal Halide","90 watt CMH",99]
[null,null,null,null,null,null,null,null,null,null,null,null,null,null,null,null,null,null,null,null,null,null,null,null,null,null,null,null,null,null,null,null,null,null,null,null,null,null,null,"Ceramic Metal Halide","140 watt CMH",154]
[null,null,null,null,null,null,null,null,null,null,null,null,null,null,null,null,null,null,null,null,null,null,null,null,null,null,null,null,null,null,null,null,null,null,null,null,null,null,null,"Ceramic Metal Halide","150 watt CMH",185]
[null,null,null,null,null,null,null,null,null,null,null,null,null,null,null,null,null,null,null,null,null,null,null,null,null,null,null,null,null,null,null,null,null,null,null,null,null,null,null,"Ceramic Metal Halide","210 watt CMH",229]
[null,null,null,null,null,null,null,null,null,null,null,null,null,null,null,null,null,null,null,null,null,null,null,null,null,null,null,null,null,null,null,null,null,null,null,null,null,null,null,"Ceramic Metal Halide","220 watt CMH",242]
[null,null,null,null,null,null,null,null,null,null,null,null,null,null,null,null,null,null,null,null,null,null,null,null,null,null,null,null,null,null,null,null,null,null,null,null,null,null,null,"Ceramic Metal Halide","270 watt CMH",290]
[null,null,null,null,null,null,null,null,null,null,null,null,null,null,null,null,null,null,null,null,null,null,null,null,null,null,null,null,null,null,null,null,null,null,null,null,null,null,null,"Ceramic Metal Halide"," 315 watt CMH",343]
[null,null,null,null,null,null,null,null,null,null,null,null,null,null,null,null,null,null,null,null,null,null,null,null,null,null,null,null,null,null,null,null,null,null,null,null,null,null,null,"Ceramic Metal Halide","575 watt CMH",640]
[null,null,null,null,null,null,null,null,null,null,null,null,null,null,null,null,null,null,null,null,null,null,null,null,null,null,null,null,null,null,null,null,null,null,null,null,null,null,null,"CMH and PSMH Lamps","145 watt CMH Lamp",174]
[null,null,null,null,null,null,null,null,null,null,null,null,null,null,null,null,null,null,null,null,null,null,null,null,null,null,null,null,null,null,null,null,null,null,null,null,null,null,null,"CMH and PSMH Lamps","150 watt CMH Lamp",180]
[null,null,null,null,null,null,null,null,null,null,null,null,null,null,null,null,null,null,null,null,null,null,null,null,null,null,null,null,null,null,null,null,null,null,null,null,null,null,null,"CMH and PSMH Lamps","205 watt CMH Lamp",235]
[null,null,null,null,null,null,null,null,null,null,null,null,null,null,null,null,null,null,null,null,null,null,null,null,null,null,null,null,null,null,null,null,null,null,null,null,null,null,null,"CMH and PSMH Lamps","220 watt CMH Lamp",242]
[null,null,null,null,null,null,null,null,null,null,null,null,null,null,null,null,null,null,null,null,null,null,null,null,null,null,null,null,null,null,null,null,null,null,null,null,null,null,null,"CMH and PSMH Lamps","260 watt CMH Lamp",299]
[null,null,null,null,null,null,null,null,null,null,null,null,null,null,null,null,null,null,null,null,null,null,null,null,null,null,null,null,null,null,null,null,null,null,null,null,null,null,null,"CMH and PSMH Lamps","330 watt CMH and PSMH Lamps",380]
[null,null,null,null,null,null,null,null,null,null,null,null,null,null,null,null,null,null,null,null,null,null,null,null,null,null,null,null,null,null,null,null,null,null,null,null,null,null,null,"CMH and PSMH Lamps","360 watt MH Lamp",414]
[null,null,null,null,null,null,null,null,null,null,null,null,null,null,null,null,null,null,null,null,null,null,null,null,null,null,null,null,null,null,null,null,null,null,null,null,null,null,null,"CMH and PSMH Lamps","830 watt CMH Lamp",896]
[null,null,null,null,null,null,null,null,null,null,null,null,null,null,null,null,null,null,null,null,null,null,null,null,null,null,null,null,null,null,null,null,null,null,null,null,null,null,null,"CFL 2 Pin Based","10W CFL 2-Pin Base",15]
[null,null,null,null,null,null,null,null,null,null,null,null,null,null,null,null,null,null,null,null,null,null,null,null,null,null,null,null,null,null,null,null,null,null,null,null,null,null,null,"CFL 2 Pin Based","16W CFL 2-Pin Base",22]
[null,null,null,null,null,null,null,null,null,null,null,null,null,null,null,null,null,null,null,null,null,null,null,null,null,null,null,null,null,null,null,null,null,null,null,null,null,null,null,"CFL 2 Pin Based","21W CFL 2-Pin Base",24]
[null,null,null,null,null,null,null,null,null,null,null,null,null,null,null,null,null,null,null,null,null,null,null,null,null,null,null,null,null,null,null,null,null,null,null,null,null,null,null,"CFL 2 Pin Based","28W CFL 2-Pin Base",32]
[null,null,null,null,null,null,null,null,null,null,null,null,null,null,null,null,null,null,null,null,null,null,null,null,null,null,null,null,null,null,null,null,null,null,null,null,null,null,null,"CFL 2 Pin Based","38W CFL 2-Pin Base",39]
[null,null,null,null,null,null,null,null,null,null,null,null,null,null,null,null,null,null,null,null,null,null,null,null,null,null,null,null,null,null,null,null,null,null,null,null,null,null,null,"CFL 4 Pin Based","5W CFL 4-Pin Base",9]
[null,null,null,null,null,null,null,null,null,null,null,null,null,null,null,null,null,null,null,null,null,null,null,null,null,null,null,null,null,null,null,null,null,null,null,null,null,null,null,"CFL 4 Pin Based","7W CFL 4-Pin Base",10]
[null,null,null,null,null,null,null,null,null,null,null,null,null,null,null,null,null,null,null,null,null,null,null,null,null,null,null,null,null,null,null,null,null,null,null,null,null,null,null,"CFL 4 Pin Based","9W CFL 4-Pin Base",13]
[null,null,null,null,null,null,null,null,null,null,null,null,null,null,null,null,null,null,null,null,null,null,null,null,null,null,null,null,null,null,null,null,null,null,null,null,null,null,null,"CFL 4 Pin Based","10W CFL 4-Pin Base",15]
[null,null,null,null,null,null,null,null,null,null,null,null,null,null,null,null,null,null,null,null,null,null,null,null,null,null,null,null,null,null,null,null,null,null,null,null,null,null,null,"CFL 4 Pin Based","13W CFL 4-Pin Base",16]
[null,null,null,null,null,null,null,null,null,null,null,null,null,null,null,null,null,null,null,null,null,null,null,null,null,null,null,null,null,null,null,null,null,null,null,null,null,null,null,"CFL 4 Pin Based","14W CFL 4-Pin Base",18]
[null,null,null,null,null,null,null,null,null,null,null,null,null,null,null,null,null,null,null,null,null,null,null,null,null,null,null,null,null,null,null,null,null,null,null,null,null,null,null,"CFL 4 Pin Based","15W CFL 4-Pin Base",20]
[null,null,null,null,null,null,null,null,null,null,null,null,null,null,null,null,null,null,null,null,null,null,null,null,null,null,null,null,null,null,null,null,null,null,null,null,null,null,null,"CFL 4 Pin Based","16W CFL 4-Pin Base",22]
[null,null,null,null,null,null,null,null,null,null,null,null,null,null,null,null,null,null,null,null,null,null,null,null,null,null,null,null,null,null,null,null,null,null,null,null,null,null,null,"CFL 4 Pin Based","17W CFL 4-Pin Base",24]
[null,null,null,null,null,null,null,null,null,null,null,null,null,null,null,null,null,null,null,null,null,null,null,null,null,null,null,null,null,null,null,null,null,null,null,null,null,null,null,"CFL 4 Pin Based","18W CFL 4-Pin Base",23]
[null,null,null,null,null,null,null,null,null,null,null,null,null,null,null,null,null,null,null,null,null,null,null,null,null,null,null,null,null,null,null,null,null,null,null,null,null,null,null,"CFL 4 Pin Based","20W CFL 4-Pin Base",23]
[null,null,null,null,null,null,null,null,null,null,null,null,null,null,null,null,null,null,null,null,null,null,null,null,null,null,null,null,null,null,null,null,null,null,null,null,null,null,null,"CFL 4 Pin Based","21W CFL 4-Pin Base",24]
[null,null,null,null,null,null,null,null,null,null,null,null,null,null,null,null,null,null,null,null,null,null,null,null,null,null,null,null,null,null,null,null,null,null,null,null,null,null,null,"CFL 4 Pin Based","22W CFL 4-Pin Base",26]
[null,null,null,null,null,null,null,null,null,null,null,null,null,null,null,null,null,null,null,null,null,null,null,null,null,null,null,null,null,null,null,null,null,null,null,null,null,null,null,"CFL 4 Pin Based","23W CFL 4-Pin Base",27]
[null,null,null,null,null,null,null,null,null,null,null,null,null,null,null,null,null,null,null,null,null,null,null,null,null,null,null,null,null,null,null,null,null,null,null,null,null,null,null,"CFL 4 Pin Based","24W CFL 4-Pin Base",32]
[null,null,null,null,null,null,null,null,null,null,null,null,null,null,null,null,null,null,null,null,null,null,null,null,null,null,null,null,null,null,null,null,null,null,null,null,null,null,null,"CFL 4 Pin Based","25W CFL 4-Pin Base",33]
[null,null,null,null,null,null,null,null,null,null,null,null,null,null,null,null,null,null,null,null,null,null,null,null,null,null,null,null,null,null,null,null,null,null,null,null,null,null,null,"CFL 4 Pin Based","26W CFL 4-Pin Base",31]
[null,null,null,null,null,null,null,null,null,null,null,null,null,null,null,null,null,null,null,null,null,null,null,null,null,null,null,null,null,null,null,null,null,null,null,null,null,null,null,"CFL 4 Pin Based","27W CFL 4-Pin Base",29]
[null,null,null,null,null,null,null,null,null,null,null,null,null,null,null,null,null,null,null,null,null,null,null,null,null,null,null,null,null,null,null,null,null,null,null,null,null,null,null,"CFL 4 Pin Based","28W CFL 4-Pin Base",33]
[null,null,null,null,null,null,null,null,null,null,null,null,null,null,null,null,null,null,null,null,null,null,null,null,null,null,null,null,null,null,null,null,null,null,null,null,null,null,null,"CFL 4 Pin Based","32W CFL 4-Pin Base",35]
[null,null,null,null,null,null,null,null,null,null,null,null,null,null,null,null,null,null,null,null,null,null,null,null,null,null,null,null,null,null,null,null,null,null,null,null,null,null,null,"CFL 4 Pin Based","33W CFL 4-Pin Base",35]
[null,null,null,null,null,null,null,null,null,null,null,null,null,null,null,null,null,null,null,null,null,null,null,null,null,null,null,null,null,null,null,null,null,null,null,null,null,null,null,"CFL 4 Pin Based","36W CFL 4-Pin Base",51]
[null,null,null,null,null,null,null,null,null,null,null,null,null,null,null,null,null,null,null,null,null,null,null,null,null,null,null,null,null,null,null,null,null,null,null,null,null,null,null,"CFL 4 Pin Based","38W CFL 4-Pin Base",40]
[null,null,null,null,null,null,null,null,null,null,null,null,null,null,null,null,null,null,null,null,null,null,null,null,null,null,null,null,null,null,null,null,null,null,null,null,null,null,null,"CFL 4 Pin Based","40W CFL 4-Pin Base",48]
[null,null,null,null,null,null,null,null,null,null,null,null,null,null,null,null,null,null,null,null,null,null,null,null,null,null,null,null,null,null,null,null,null,null,null,null,null,null,null,"CFL 4 Pin Based","42W CFL 4-Pin Base",46]
[null,null,null,null,null,null,null,null,null,null,null,null,null,null,null,null,null,null,null,null,null,null,null,null,null,null,null,null,null,null,null,null,null,null,null,null,null,null,null,"CFL 4 Pin Based","55W CFL 4-Pin Base",58]
[null,null,null,null,null,null,null,null,null,null,null,null,null,null,null,null,null,null,null,null,null,null,null,null,null,null,null,null,null,null,null,null,null,null,null,null,null,null,null,"CFL 4 Pin Based","57W CFL 4-Pin Base",59]
[null,null,null,null,null,null,null,null,null,null,null,null,null,null,null,null,null,null,null,null,null,null,null,null,null,null,null,null,null,null,null,null,null,null,null,null,null,null,null,"CFL 4 Pin Based","70W CFL 4-Pin Base",73]
[null,null,null,null,null,null,null,null,null,null,null,null,null,null,null,null,null,null,null,null,null,null,null,null,null,null,null,null,null,null,null,null,null,null,null,null,null,null,null,"CFL 4 Pin Based","85W CFL 4-Pin Base",96]
[null,null,null,null,null,null,null,null,null,null,null,null,null,null,null,null,null,null,null,null,null,null,null,null,null,null,null,null,null,null,null,null,null,null,null,null,null,null,null,"CFL 4 Pin Based","120W CFL 4-Pin Base",135]
[null,null,null,null,null,null,null,null,null,null,null,null,null,null,null,null,null,null,null,null,null,null,null,null,null,null,null,null,null,null,null,null,null,null,null,null,null,null,null,"CFL w/ Integral Ballast Screw or GU24","2W CFL Lamp",2]
[null,null,null,null,null,null,null,null,null,null,null,null,null,null,null,null,null,null,null,null,null,null,null,null,null,null,null,null,null,null,null,null,null,null,null,null,null,null,null,"CFL w/ Integral Ballast Screw or GU24","4W CFL Lamp",4]
[null,null,null,null,null,null,null,null,null,null,null,null,null,null,null,null,null,null,null,null,null,null,null,null,null,null,null,null,null,null,null,null,null,null,null,null,null,null,null,"CFL w/ Integral Ballast Screw or GU24","7W CFL Lamp",7]
[null,null,null,null,null,null,null,null,null,null,null,null,null,null,null,null,null,null,null,null,null,null,null,null,null,null,null,null,null,null,null,null,null,null,null,null,null,null,null,"CFL w/ Integral Ballast Screw or GU24","9W CFL Lamp",9]
[null,null,null,null,null,null,null,null,null,null,null,null,null,null,null,null,null,null,null,null,null,null,null,null,null,null,null,null,null,null,null,null,null,null,null,null,null,null,null,"CFL w/ Integral Ballast Screw or GU24","11W CFL Lamp",11]
[null,null,null,null,null,null,null,null,null,null,null,null,null,null,null,null,null,null,null,null,null,null,null,null,null,null,null,null,null,null,null,null,null,null,null,null,null,null,null,"CFL w/ Integral Ballast Screw or GU24","13W CFL Lamp",16,"updated to match 2020 Lighting catalog"]
[null,null,null,null,null,null,null,null,null,null,null,null,null,null,null,null,null,null,null,null,null,null,null,null,null,null,null,null,null,null,null,null,null,null,null,null,null,null,null,"CFL w/ Integral Ballast Screw or GU24","14W CFL Lamp",14]
[null,null,null,null,null,null,null,null,null,null,null,null,null,null,null,null,null,null,null,null,null,null,null,null,null,null,null,null,null,null,null,null,null,null,null,null,null,null,null,"CFL w/ Integral Ballast Screw or GU24","15W CFL Lamp",15]
[null,null,null,null,null,null,null,null,null,null,null,null,null,null,null,null,null,null,null,null,null,null,null,null,null,null,null,null,null,null,null,null,null,null,null,null,null,null,null,"CFL w/ Integral Ballast Screw or GU24","16W CFL Lamp",16]
[null,null,null,null,null,null,null,null,null,null,null,null,null,null,null,null,null,null,null,null,null,null,null,null,null,null,null,null,null,null,null,null,null,null,null,null,null,null,null,"CFL w/ Integral Ballast Screw or GU24","17W CFL Lamp",17]
[null,null,null,null,null,null,null,null,null,null,null,null,null,null,null,null,null,null,null,null,null,null,null,null,null,null,null,null,null,null,null,null,null,null,null,null,null,null,null,"CFL w/ Integral Ballast Screw or GU24","18W CFL Lamp",23,"updated to match 2020 Lighting catalog"]
[null,null,null,null,null,null,null,null,null,null,null,null,null,null,null,null,null,null,null,null,null,null,null,null,null,null,null,null,null,null,null,null,null,null,null,null,null,null,null,"CFL w/ Integral Ballast Screw or GU24","20W CFL Lamp",20]
[null,null,null,null,null,null,null,null,null,null,null,null,null,null,null,null,null,null,null,null,null,null,null,null,null,null,null,null,null,null,null,null,null,null,null,null,null,null,null,"CFL w/ Integral Ballast Screw or GU24","23W CFL Lamp",23]
[null,null,null,null,null,null,null,null,null,null,null,null,null,null,null,null,null,null,null,null,null,null,null,null,null,null,null,null,null,null,null,null,null,null,null,null,null,null,null,"CFL w/ Integral Ballast Screw or GU24","25W CFL Lamp",25]
[null,null,null,null,null,null,null,null,null,null,null,null,null,null,null,null,null,null,null,null,null,null,null,null,null,null,null,null,null,null,null,null,null,null,null,null,null,null,null,"CFL w/ Integral Ballast Screw or GU24","26W CFL Lamp",31,"updated to match 2020 Lighting catalog"]
[null,null,null,null,null,null,null,null,null,null,null,null,null,null,null,null,null,null,null,null,null,null,null,null,null,null,null,null,null,null,null,null,null,null,null,null,null,null,null,"CFL w/ Integral Ballast Screw or GU24","27W CFL Lamp",27]
[null,null,null,null,null,null,null,null,null,null,null,null,null,null,null,null,null,null,null,null,null,null,null,null,null,null,null,null,null,null,null,null,null,null,null,null,null,null,null,"CFL w/ Integral Ballast Screw or GU24","28W CFL Lamp",28]
[null,null,null,null,null,null,null,null,null,null,null,null,null,null,null,null,null,null,null,null,null,null,null,null,null,null,null,null,null,null,null,null,null,null,null,null,null,null,null,"CFL w/ Integral Ballast Screw or GU24","32W CFL Lamp",35,"updated to match 2020 Lighting catalog"]
[null,null,null,null,null,null,null,null,null,null,null,null,null,null,null,null,null,null,null,null,null,null,null,null,null,null,null,null,null,null,null,null,null,null,null,null,null,null,null,"CFL w/ Integral Ballast Screw or GU24","42W CFL Lamp",46,"updated to match 2020 Lighting catalog"]
[null,null,null,null,null,null,null,null,null,null,null,null,null,null,null,null,null,null,null,null,null,null,null,null,null,null,null,null,null,null,null,null,null,null,null,null,null,null,null,"CFL w/ Integral Ballast Screw or GU24","44W CFL Lamp",44]
[null,null,null,null,null,null,null,null,null,null,null,null,null,null,null,null,null,null,null,null,null,null,null,null,null,null,null,null,null,null,null,null,null,null,null,null,null,null,null,"CFL w/ Integral Ballast Screw or GU24","50W CFL Lamp",59]
[null,null,null,null,null,null,null,null,null,null,null,null,null,null,null,null,null,null,null,null,null,null,null,null,null,null,null,null,null,null,null,null,null,null,null,null,null,null,null,"CFL w/ Integral Ballast Screw or GU24","70W CFL Lamp",83]
[null,null,null,null,null,null,null,null,null,null,null,null,null,null,null,null,null,null,null,null,null,null,null,null,null,null,null,null,null,null,null,null,null,null,null,null,null,null,null,"CFL w/ Integral Ballast Screw or GU24","75W CFL Lamp",89]
[null,null,null,null,null,null,null,null,null,null,null,null,null,null,null,null,null,null,null,null,null,null,null,null,null,null,null,null,null,null,null,null,null,null,null,null,null,null,null,"CFL w/ Integral Ballast Screw or GU24","100W CFL Lamp",112]
[null,null,null,null,null,null,null,null,null,null,null,null,null,null,null,null,null,null,null,null,null,null,null,null,null,null,null,null,null,null,null,null,null,null,null,null,null,null,null,"CFL w/ Integral Ballast Screw or GU24","150W CFL Lamp",150]
[null,null,null,null,null,null,null,null,null,null,null,null,null,null,null,null,null,null,null,null,null,null,null,null,null,null,null,null,null,null,null,null,null,null,null,null,null,null,null,"CFL w/ Integral Ballast Screw or GU24","200W CFL Lamp",200]
[null,null,null,null,null,null,null,null,null,null,null,null,null,null,null,null,null,null,null,null,null,null,null,null,null,null,null,null,null,null,null,null,null,null,null,null,null,null,null,"Cold Cathode Screw Based Lamp","3W Cold Cathode",3]
[null,null,null,null,null,null,null,null,null,null,null,null,null,null,null,null,null,null,null,null,null,null,null,null,null,null,null,null,null,null,null,null,null,null,null,null,null,null,null,"Cold Cathode Screw Based Lamp","4W Cold Cathode",4]
[null,null,null,null,null,null,null,null,null,null,null,null,null,null,null,null,null,null,null,null,null,null,null,null,null,null,null,null,null,null,null,null,null,null,null,null,null,null,null,"Cold Cathode Screw Based Lamp","5W Cold Cathode",5]
[null,null,null,null,null,null,null,null,null,null,null,null,null,null,null,null,null,null,null,null,null,null,null,null,null,null,null,null,null,null,null,null,null,null,null,null,null,null,null,"Cold Cathode Screw Based Lamp","8W Cold Cathode",8]
[null,null,null,null,null,null,null,null,null,null,null,null,null,null,null,null,null,null,null,null,null,null,null,null,null,null,null,null,null,null,null,null,null,null,null,null,null,null,null,"Exit Signs","5w CFL Exit Sign (X1)",9]
[null,null,null,null,null,null,null,null,null,null,null,null,null,null,null,null,null,null,null,null,null,null,null,null,null,null,null,null,null,null,null,null,null,null,null,null,null,null,null,"Exit Signs","5w CFL Exit Sign (X2)",20]
[null,null,null,null,null,null,null,null,null,null,null,null,null,null,null,null,null,null,null,null,null,null,null,null,null,null,null,null,null,null,null,null,null,null,null,null,null,null,null,"Exit Signs","6w CFL Exit Sign (X1)",13]
[null,null,null,null,null,null,null,null,null,null,null,null,null,null,null,null,null,null,null,null,null,null,null,null,null,null,null,null,null,null,null,null,null,null,null,null,null,null,null,"Exit Signs","6w CFL Exit Sign (X2)",26]
[null,null,null,null,null,null,null,null,null,null,null,null,null,null,null,null,null,null,null,null,null,null,null,null,null,null,null,null,null,null,null,null,null,null,null,null,null,null,null,"Exit Signs","7w CFL Exit Sign (X1)",10]
[null,null,null,null,null,null,null,null,null,null,null,null,null,null,null,null,null,null,null,null,null,null,null,null,null,null,null,null,null,null,null,null,null,null,null,null,null,null,null,"Exit Signs","7w CFL Exit Sign (X2)",21]
[null,null,null,null,null,null,null,null,null,null,null,null,null,null,null,null,null,null,null,null,null,null,null,null,null,null,null,null,null,null,null,null,null,null,null,null,null,null,null,"Exit Signs","8w CFL Exit Sign (X1)",12]
[null,null,null,null,null,null,null,null,null,null,null,null,null,null,null,null,null,null,null,null,null,null,null,null,null,null,null,null,null,null,null,null,null,null,null,null,null,null,null,"Exit Signs","8w CFL Exit Sign (X2)",24]
[null,null,null,null,null,null,null,null,null,null,null,null,null,null,null,null,null,null,null,null,null,null,null,null,null,null,null,null,null,null,null,null,null,null,null,null,null,null,null,"Exit Signs","9w CFL Exit Sign (X1)",12]
[null,null,null,null,null,null,null,null,null,null,null,null,null,null,null,null,null,null,null,null,null,null,null,null,null,null,null,null,null,null,null,null,null,null,null,null,null,null,null,"Exit Signs","9w CFL Exit Sign (X2)",20]
[null,null,null,null,null,null,null,null,null,null,null,null,null,null,null,null,null,null,null,null,null,null,null,null,null,null,null,null,null,null,null,null,null,null,null,null,null,null,null,"Exit Signs","2 Watt LED Exit Sign  (X1)",2]
[null,null,null,null,null,null,null,null,null,null,null,null,null,null,null,null,null,null,null,null,null,null,null,null,null,null,null,null,null,null,null,null,null,null,null,null,null,null,null,"Exit Signs","2 Watt LED Exit Sign  (X2)",4]
[null,null,null,null,null,null,null,null,null,null,null,null,null,null,null,null,null,null,null,null,null,null,null,null,null,null,null,null,null,null,null,null,null,null,null,null,null,null,null,"Exit Signs","3 Watt LED Exit Sign  (X1)",3,"Equiv T8 Watts","T8 Equivalent Description (Focus wattage guide unless otherwise noted)"]
[null,null,null,null,null,null,null,null,null,null,null,null,null,null,null,null,null,null,null,null,null,null,null,null,null,null,null,null,null,null,null,null,null,null,null,null,null,null,null,"Fluorescent - T12 1.5ft","1L 15W T12",20,20,"1L 15W T8"]
[null,null,null,null,null,null,null,null,null,null,null,null,null,null,null,null,null,null,null,null,null,null,null,null,null,null,null,null,null,null,null,null,null,null,null,null,null,null,null,"Fluorescent - T12 1.5ft","2L 15W T12",39,38,"2L 15W T8"]
[null,null,null,null,null,null,null,null,null,null,null,null,null,null,null,null,null,null,null,null,null,null,null,null,null,null,null,null,null,null,null,null,null,null,null,null,null,null,null,"Fluorescent - T12 and T12HO 2ft","1L F20 T12 ",23,20,"1L F17 T8 "]
[null,null,null,null,null,null,null,null,null,null,null,null,null,null,null,null,null,null,null,null,null,null,null,null,null,null,null,null,null,null,null,null,null,null,null,null,null,null,null,"Fluorescent - T12 and T12HO 2ft","2L F20 T12 ",52,36,"2L F17 T8 "]
[null,null,null,null,null,null,null,null,null,null,null,null,null,null,null,null,null,null,null,null,null,null,null,null,null,null,null,null,null,null,null,null,null,null,null,null,null,null,null,"Fluorescent - T12 and T12HO 2ft","3L F20 T12 ",68,52,"3L F17 T8 "]
[null,null,null,null,null,null,null,null,null,null,null,null,null,null,null,null,null,null,null,null,null,null,null,null,null,null,null,null,null,null,null,null,null,null,null,null,null,null,null,"Fluorescent - T12 and T12HO 2ft","4L F20 T12 ",96,66,"4L F17 T8 "]
[null,null,null,null,null,null,null,null,null,null,null,null,null,null,null,null,null,null,null,null,null,null,null,null,null,null,null,null,null,null,null,null,null,null,null,null,null,null,null,"Fluorescent - T12 and T12HO 2ft","6L F20 T12 ",146,102,"6L F17 T8 (estimated as a 4L T8 and 2L T8)"]
[null,null,null,null,null,null,null,null,null,null,null,null,null,null,null,null,null,null,null,null,null,null,null,null,null,null,null,null,null,null,null,null,null,null,null,null,null,null,null,"Fluorescent - T12 and T12HO 2ft","1L F24 T12/HO (35w Lamps)",63,63,"Using T12HO wattage as placeholder"]
[null,null,null,null,null,null,null,null,null,null,null,null,null,null,null,null,null,null,null,null,null,null,null,null,null,null,null,null,null,null,null,null,null,null,null,null,null,null,null,"Fluorescent - T12 and T12HO 2ft","2L F24 T12/HO (35w Lamps)",92,92,"Using T12HO wattage as placeholder"]
[null,null,null,null,null,null,null,null,null,null,null,null,null,null,null,null,null,null,null,null,null,null,null,null,null,null,null,null,null,null,null,null,null,null,null,null,null,null,null,"Fluorescent - T12 and T12HO 3ft","1L F30 T12 /ES",31,27,"1L F25 T8"]
[null,null,null,null,null,null,null,null,null,null,null,null,null,null,null,null,null,null,null,null,null,null,null,null,null,null,null,null,null,null,null,null,null,null,null,null,null,null,null,"Fluorescent - T12 and T12HO 3ft","2L F30 T12/ES",64,50,"2L F25 T8"]
[null,null,null,null,null,null,null,null,null,null,null,null,null,null,null,null,null,null,null,null,null,null,null,null,null,null,null,null,null,null,null,null,null,null,null,null,null,null,null,"Fluorescent - T12 and T12HO 3ft","3L F30 T12/ES",98,73,"3L F25 T8"]
[null,null,null,null,null,null,null,null,null,null,null,null,null,null,null,null,null,null,null,null,null,null,null,null,null,null,null,null,null,null,null,null,null,null,null,null,null,null,null,"Fluorescent - T12 and T12HO 3ft","4L F30 T12/ES",132,96,"4L F25 T8"]
[null,null,null,null,null,null,null,null,null,null,null,null,null,null,null,null,null,null,null,null,null,null,null,null,null,null,null,null,null,null,null,null,null,null,null,null,null,null,null,"Fluorescent - T12 and T12HO 3ft","6L F30 T12/ES",198,135,"6L F25 T8"]
[null,null,null,null,null,null,null,null,null,null,null,null,null,null,null,null,null,null,null,null,null,null,null,null,null,null,null,null,null,null,null,null,null,null,null,null,null,null,null,"Fluorescent - T12 and T12HO 3ft","1L F30 T12",39,27,"1L F25 T8"]
[null,null,null,null,null,null,null,null,null,null,null,null,null,null,null,null,null,null,null,null,null,null,null,null,null,null,null,null,null,null,null,null,null,null,null,null,null,null,null,"Fluorescent - T12 and T12HO 3ft","2L F30 T12",70,50,"2L F25 T8"]
[null,null,null,null,null,null,null,null,null,null,null,null,null,null,null,null,null,null,null,null,null,null,null,null,null,null,null,null,null,null,null,null,null,null,null,null,null,null,null,"Fluorescent - T12 and T12HO 3ft","3L F30 T12",110,73,"3L F25 T8"]
[null,null,null,null,null,null,null,null,null,null,null,null,null,null,null,null,null,null,null,null,null,null,null,null,null,null,null,null,null,null,null,null,null,null,null,null,null,null,null,"Fluorescent - T12 and T12HO 3ft","4L F30 T12",144,96,"4L F25 T8"]
[null,null,null,null,null,null,null,null,null,null,null,null,null,null,null,null,null,null,null,null,null,null,null,null,null,null,null,null,null,null,null,null,null,null,null,null,null,null,null,"Fluorescent - T12 and T12HO 3ft","6L F30 T12",225,135,"6L F25 T8"]
[null,null,null,null,null,null,null,null,null,null,null,null,null,null,null,null,null,null,null,null,null,null,null,null,null,null,null,null,null,null,null,null,null,null,null,null,null,null,null,"Fluorescent - T12 and T12HO 3ft","1L F30 T12/HO (50w Lamps)",71,71,"Using T12HO wattage as placeholder"]
[null,null,null,null,null,null,null,null,null,null,null,null,null,null,null,null,null,null,null,null,null,null,null,null,null,null,null,null,null,null,null,null,null,null,null,null,null,null,null,"Fluorescent - T12 and T12HO 3ft","2L F30 T12/HO (50w Lamps)",112,112,"Using T12HO wattage as placeholder"]
[null,null,null,null,null,null,null,null,null,null,null,null,null,null,null,null,null,null,null,null,null,null,null,null,null,null,null,null,null,null,null,null,null,null,null,null,null,null,null,"Fluorescent - T12 and T12HO 4ft","1L F34 T12",39,33,"1L F32 T8"]
[null,null,null,null,null,null,null,null,null,null,null,null,null,null,null,null,null,null,null,null,null,null,null,null,null,null,null,null,null,null,null,null,null,null,null,null,null,null,null,"Fluorescent - T12 and T12HO 4ft","2L F34 T12",66,61,"2L F32 T8"]
[null,null,null,null,null,null,null,null,null,null,null,null,null,null,null,null,null,null,null,null,null,null,null,null,null,null,null,null,null,null,null,null,null,null,null,null,null,null,null,"Fluorescent - T12 and T12HO 4ft","3L F34 T12",103,91,"3L F32 T8"]
[null,null,null,null,null,null,null,null,null,null,null,null,null,null,null,null,null,null,null,null,null,null,null,null,null,null,null,null,null,null,null,null,null,null,null,null,null,null,null,"Fluorescent - T12 and T12HO 4ft","4L F34 T12",136,120,"4L F32 T8"]
[null,null,null,null,null,null,null,null,null,null,null,null,null,null,null,null,null,null,null,null,null,null,null,null,null,null,null,null,null,null,null,null,null,null,null,null,null,null,null,"Fluorescent - T12 and T12HO 4ft","1L F40 T12",39,33,"1L F32 T8"]
[null,null,null,null,null,null,null,null,null,null,null,null,null,null,null,null,null,null,null,null,null,null,null,null,null,null,null,null,null,null,null,null,null,null,null,null,null,null,null,"Fluorescent - T12 and T12HO 4ft","2L F40 T12",79,61,"2L F32 T8"]
[null,null,null,null,null,null,null,null,null,null,null,null,null,null,null,null,null,null,null,null,null,null,null,null,null,null,null,null,null,null,null,null,null,null,null,null,null,null,null,"Fluorescent - T12 and T12HO 4ft","3L F40 T12",124,91,"3L F32 T8"]
[null,null,null,null,null,null,null,null,null,null,null,null,null,null,null,null,null,null,null,null,null,null,null,null,null,null,null,null,null,null,null,null,null,null,null,null,null,null,null,"Fluorescent - T12 and T12HO 4ft","4L F40 T12",153,120,"4L F32 T8"]
[null,null,null,null,null,null,null,null,null,null,null,null,null,null,null,null,null,null,null,null,null,null,null,null,null,null,null,null,null,null,null,null,null,null,null,null,null,null,null,"Fluorescent - T12 and T12HO 4ft","6L F40 T12",186,174,"FLT8-32W x 6L x 4'-2 IS N from 2013 CenterPoint Energy Wattage Guide"]
[null,null,null,null,null,null,null,null,null,null,null,null,null,null,null,null,null,null,null,null,null,null,null,null,null,null,null,null,null,null,null,null,null,null,null,null,null,null,null,"Fluorescent - T12 and T12HO 4ft","1L F40 T12/HO (60 watt Lamps)",76,76,"Using T12HO wattage as placeholder"]
[null,null,null,null,null,null,null,null,null,null,null,null,null,null,null,null,null,null,null,null,null,null,null,null,null,null,null,null,null,null,null,null,null,null,null,null,null,null,null,"Fluorescent - T12 and T12HO 4ft","2L F40 T12/HO (60 watt Lamps)",134,134,"Using T12HO wattage as placeholder"]
[null,null,null,null,null,null,null,null,null,null,null,null,null,null,null,null,null,null,null,null,null,null,null,null,null,null,null,null,null,null,null,null,null,null,null,null,null,null,null,"Fluorescent - T12 and T12HO 4ft","3L F40 T12/HO (60 watt Lamps)",217,217,"Using T12HO wattage as placeholder"]
[null,null,null,null,null,null,null,null,null,null,null,null,null,null,null,null,null,null,null,null,null,null,null,null,null,null,null,null,null,null,null,null,null,null,null,null,null,null,null,"Fluorescent - T12 and T12HO 4ft","4L F40 T12/HO (60 watt Lamps)",276,276,"Using T12HO wattage as placeholder"]
[null,null,null,null,null,null,null,null,null,null,null,null,null,null,null,null,null,null,null,null,null,null,null,null,null,null,null,null,null,null,null,null,null,null,null,null,null,null,null,"Fluorescent - T12 and T12HO 4ft","1L F40 T12/VHO (116w Lamps)",140,140,"Using T12HO wattage as placeholder"]
[null,null,null,null,null,null,null,null,null,null,null,null,null,null,null,null,null,null,null,null,null,null,null,null,null,null,null,null,null,null,null,null,null,null,null,null,null,null,null,"Fluorescent - T12 and T12HO 4ft","2L F40 T12/VHO (116w Lamps)",252,252,"Using T12HO wattage as placeholder"]
[null,null,null,null,null,null,null,null,null,null,null,null,null,null,null,null,null,null,null,null,null,null,null,null,null,null,null,null,null,null,null,null,null,null,null,null,null,null,null,"Fluorescent - T12 and T12HO 4ft","3L F40 T12/VHO (116w Lamps)",377,377,"Using T12HO wattage as placeholder"]
[null,null,null,null,null,null,null,null,null,null,null,null,null,null,null,null,null,null,null,null,null,null,null,null,null,null,null,null,null,null,null,null,null,null,null,null,null,null,null,"Fluorescent - T12 and T12HO 4ft","4L F40 T12/VHO (116w Lamps)",484,484,"Using T12HO wattage as placeholder"]
[null,null,null,null,null,null,null,null,null,null,null,null,null,null,null,null,null,null,null,null,null,null,null,null,null,null,null,null,null,null,null,null,null,null,null,null,null,null,null,"Fluorescent - T12 5ft","1L F60 T12 (50w Lamp)",54,36,"1L F40 T8"]
[null,null,null,null,null,null,null,null,null,null,null,null,null,null,null,null,null,null,null,null,null,null,null,null,null,null,null,null,null,null,null,null,null,null,null,null,null,null,null,"Fluorescent - T12 5ft","2L F60 T12 (50w Lamp)",108,72,"2L F40 T8"]
[null,null,null,null,null,null,null,null,null,null,null,null,null,null,null,null,null,null,null,null,null,null,null,null,null,null,null,null,null,null,null,null,null,null,null,null,null,null,null,"Fluorescent - T12 6ft","1L F72 T12 (57w Lamps)",73,51,"Xcel Energy wattage guide, avg. of 1L T8 6' mag and elec ballast"]
[null,null,null,null,null,null,null,null,null,null,null,null,null,null,null,null,null,null,null,null,null,null,null,null,null,null,null,null,null,null,null,null,null,null,null,null,null,null,null,"Fluorescent - T12 6ft","2L F72 T12 (57w Lamps)",114,93,"Xcel Energy wattage guide, avg. of 2L T8 6' mag and elec ballast"]
[null,null,null,null,null,null,null,null,null,null,null,null,null,null,null,null,null,null,null,null,null,null,null,null,null,null,null,null,null,null,null,null,null,null,null,null,null,null,null,"Fluorescent - T12 6ft","3L F72 T12 (57w Lamps)",189,144,"No data available, so used 1L + 2L 6' T8"]
[null,null,null,null,null,null,null,null,null,null,null,null,null,null,null,null,null,null,null,null,null,null,null,null,null,null,null,null,null,null,null,null,null,null,null,null,null,null,null,"Fluorescent - T12 6ft","4L F72 T12 (57w Lamps)",230,185,"No data available, so used 2L + 2L 6' T8"]
[null,null,null,null,null,null,null,null,null,null,null,null,null,null,null,null,null,null,null,null,null,null,null,null,null,null,null,null,null,null,null,null,null,null,null,null,null,null,null,"Fluorescent - T12 and T12HO 8ft","1L F96T12 (60w Lamps)",69,61,"1L F96T8 (59w Lamps)"]
[null,null,null,null,null,null,null,null,null,null,null,null,null,null,null,null,null,null,null,null,null,null,null,null,null,null,null,null,null,null,null,null,null,null,null,null,null,null,null,"Fluorescent - T12 and T12HO 8ft","2L F96T12 (60w Lamps)",109,107,"2L F96T8 (59w Lamps)"]
[null,null,null,null,null,null,null,null,null,null,null,null,null,null,null,null,null,null,null,null,null,null,null,null,null,null,null,null,null,null,null,null,null,null,null,null,null,null,null,"Fluorescent - T12 and T12HO 8ft","3L F96T12 (60w Lamps)",179,167,"3L F96T8 (59w Lamps)"]
[null,null,null,null,null,null,null,null,null,null,null,null,null,null,null,null,null,null,null,null,null,null,null,null,null,null,null,null,null,null,null,null,null,null,null,null,null,null,null,"Fluorescent - T12 and T12HO 8ft","4L F96T12 (60w Lamps)",233,219,"4L F96T8 (59w Lamps)"]
[null,null,null,null,null,null,null,null,null,null,null,null,null,null,null,null,null,null,null,null,null,null,null,null,null,null,null,null,null,null,null,null,null,null,null,null,null,null,null,"Fluorescent - T12 and T12HO 8ft","1L F96T12/HO (95w Lamps)",115,115,"Using T12HO wattage as placeholder"]
[null,null,null,null,null,null,null,null,null,null,null,null,null,null,null,null,null,null,null,null,null,null,null,null,null,null,null,null,null,null,null,null,null,null,null,null,null,null,null,"Fluorescent - T12 and T12HO 8ft","2L F96T12/HO (95w Lamps)",190,190,"Using T12HO wattage as placeholder"]
[null,null,null,null,null,null,null,null,null,null,null,null,null,null,null,null,null,null,null,null,null,null,null,null,null,null,null,null,null,null,null,null,null,null,null,null,null,null,null,"Fluorescent - T12 and T12HO 8ft","3L F96T12/HO (95w Lamps)",319,319,"Using T12HO wattage as placeholder"]
[null,null,null,null,null,null,null,null,null,null,null,null,null,null,null,null,null,null,null,null,null,null,null,null,null,null,null,null,null,null,null,null,null,null,null,null,null,null,null,"Fluorescent - T12 and T12HO 8ft","4L F96T12/HO (95w Lamps)",414,414,"Using T12HO wattage as placeholder"]
[null,null,null,null,null,null,null,null,null,null,null,null,null,null,null,null,null,null,null,null,null,null,null,null,null,null,null,null,null,null,null,null,null,null,null,null,null,null,null,"Fluorescent - T12 and T12HO 8ft","1L F96T12/VHO (185w Lamps)",202,202,"Using T12HO wattage as placeholder"]
[null,null,null,null,null,null,null,null,null,null,null,null,null,null,null,null,null,null,null,null,null,null,null,null,null,null,null,null,null,null,null,null,null,null,null,null,null,null,null,"Fluorescent - T12 and T12HO 8ft","2L F96T12/VHO (185w Lamps)",389,389,"Using T12HO wattage as placeholder"]
[null,null,null,null,null,null,null,null,null,null,null,null,null,null,null,null,null,null,null,null,null,null,null,null,null,null,null,null,null,null,null,null,null,null,null,null,null,null,null,"Fluorescent - T12 and T12HO 8ft","3L F96T12/VHO (185w Lamps)",568,568,"Using T12HO wattage as placeholder"]
[null,null,null,null,null,null,null,null,null,null,null,null,null,null,null,null,null,null,null,null,null,null,null,null,null,null,null,null,null,null,null,null,null,null,null,null,null,null,null,"Fluorescent - T12 and T12HO 8ft","4L F96T12/VHO (185w Lamps)",760,760,"Using T12HO wattage as placeholder"]
[null,null,null,null,null,null,null,null,null,null,null,null,null,null,null,null,null,null,null,null,null,null,null,null,null,null,null,null,null,null,null,null,null,null,null,null,null,null,null,"Fluorescent - T12 U-tube","1L FU40T12",43,29,"1L FU32T8"]
[null,null,null,null,null,null,null,null,null,null,null,null,null,null,null,null,null,null,null,null,null,null,null,null,null,null,null,null,null,null,null,null,null,null,null,null,null,null,null,"Fluorescent - T12 U-tube","2L FU40T12",72,55,"2L FU32T8"]
[null,null,null,null,null,null,null,null,null,null,null,null,null,null,null,null,null,null,null,null,null,null,null,null,null,null,null,null,null,null,null,null,null,null,null,null,null,null,null,"Fluorescent - T12 U-tube","3L FU40T12",115,81,"3L FU32T8"]
[null,null,null,null,null,null,null,null,null,null,null,null,null,null,null,null,null,null,null,null,null,null,null,null,null,null,null,null,null,null,null,null,null,null,null,null,null,null,null,"Fluorescent - T5 and T5HO 2ft","1L F14T5",16]
[null,null,null,null,null,null,null,null,null,null,null,null,null,null,null,null,null,null,null,null,null,null,null,null,null,null,null,null,null,null,null,null,null,null,null,null,null,null,null,"Fluorescent - T5 and T5HO 2ft","2L F14T5",31]
[null,null,null,null,null,null,null,null,null,null,null,null,null,null,null,null,null,null,null,null,null,null,null,null,null,null,null,null,null,null,null,null,null,null,null,null,null,null,null,"Fluorescent - T5 and T5HO 2ft","3L F14T5",51]
[null,null,null,null,null,null,null,null,null,null,null,null,null,null,null,null,null,null,null,null,null,null,null,null,null,null,null,null,null,null,null,null,null,null,null,null,null,null,null,"Fluorescent - T5 and T5HO 2ft","4L F14T5",66]
[null,null,null,null,null,null,null,null,null,null,null,null,null,null,null,null,null,null,null,null,null,null,null,null,null,null,null,null,null,null,null,null,null,null,null,null,null,null,null,"Fluorescent - T5 and T5HO 2ft","1L F24T5/HO ",27]
[null,null,null,null,null,null,null,null,null,null,null,null,null,null,null,null,null,null,null,null,null,null,null,null,null,null,null,null,null,null,null,null,null,null,null,null,null,null,null,"Fluorescent - T5 and T5HO 2ft","2L F24T5/HO ",53]
[null,null,null,null,null,null,null,null,null,null,null,null,null,null,null,null,null,null,null,null,null,null,null,null,null,null,null,null,null,null,null,null,null,null,null,null,null,null,null,"Fluorescent - T5 and T5HO 2ft","3L F24T5/HO ",80]
[null,null,null,null,null,null,null,null,null,null,null,null,null,null,null,null,null,null,null,null,null,null,null,null,null,null,null,null,null,null,null,null,null,null,null,null,null,null,null,"Fluorescent - T5 and T5HO 2ft","4L F24T5/HO ",105]
[null,null,null,null,null,null,null,null,null,null,null,null,null,null,null,null,null,null,null,null,null,null,null,null,null,null,null,null,null,null,null,null,null,null,null,null,null,null,null,"Fluorescent - T5 and T5HO 2ft","6L F24T5/HO ",160]
[null,null,null,null,null,null,null,null,null,null,null,null,null,null,null,null,null,null,null,null,null,null,null,null,null,null,null,null,null,null,null,null,null,null,null,null,null,null,null,"Fluorescent - T5 and T5HO 3ft","1L F21T5",25]
[null,null,null,null,null,null,null,null,null,null,null,null,null,null,null,null,null,null,null,null,null,null,null,null,null,null,null,null,null,null,null,null,null,null,null,null,null,null,null,"Fluorescent - T5 and T5HO 3ft","2L F21T5",48]
[null,null,null,null,null,null,null,null,null,null,null,null,null,null,null,null,null,null,null,null,null,null,null,null,null,null,null,null,null,null,null,null,null,null,null,null,null,null,null,"Fluorescent - T5 and T5HO 3ft","3L F21T5",73]
[null,null,null,null,null,null,null,null,null,null,null,null,null,null,null,null,null,null,null,null,null,null,null,null,null,null,null,null,null,null,null,null,null,null,null,null,null,null,null,"Fluorescent - T5 and T5HO 3ft","4L F21T5",96]
[null,null,null,null,null,null,null,null,null,null,null,null,null,null,null,null,null,null,null,null,null,null,null,null,null,null,null,null,null,null,null,null,null,null,null,null,null,null,null,"Fluorescent - T5 and T5HO 3ft","1L F39T5/HO",43]
[null,null,null,null,null,null,null,null,null,null,null,null,null,null,null,null,null,null,null,null,null,null,null,null,null,null,null,null,null,null,null,null,null,null,null,null,null,null,null,"Fluorescent - T5 and T5HO 3ft","2L F39T5/HO",86]
[null,null,null,null,null,null,null,null,null,null,null,null,null,null,null,null,null,null,null,null,null,null,null,null,null,null,null,null,null,null,null,null,null,null,null,null,null,null,null,"Fluorescent - T5 and T5HO 3ft","3L F39T5/HO",130]
[null,null,null,null,null,null,null,null,null,null,null,null,null,null,null,null,null,null,null,null,null,null,null,null,null,null,null,null,null,null,null,null,null,null,null,null,null,null,null,"Fluorescent - T5 and T5HO 3ft","4L F39T5/HO",172]
[null,null,null,null,null,null,null,null,null,null,null,null,null,null,null,null,null,null,null,null,null,null,null,null,null,null,null,null,null,null,null,null,null,null,null,null,null,null,null,"Fluorescent - T5 and T5HO 4ft","1L F28 T5",33]
[null,null,null,null,null,null,null,null,null,null,null,null,null,null,null,null,null,null,null,null,null,null,null,null,null,null,null,null,null,null,null,null,null,null,null,null,null,null,null,"Fluorescent - T5 and T5HO 4ft","2L F28 T5",63]
[null,null,null,null,null,null,null,null,null,null,null,null,null,null,null,null,null,null,null,null,null,null,null,null,null,null,null,null,null,null,null,null,null,null,null,null,null,null,null,"Fluorescent - T5 and T5HO 4ft","3L F28 T5",96]
[null,null,null,null,null,null,null,null,null,null,null,null,null,null,null,null,null,null,null,null,null,null,null,null,null,null,null,null,null,null,null,null,null,null,null,null,null,null,null,"Fluorescent - T5 and T5HO 4ft","4L F28 T5",126]
[null,null,null,null,null,null,null,null,null,null,null,null,null,null,null,null,null,null,null,null,null,null,null,null,null,null,null,null,null,null,null,null,null,null,null,null,null,null,null,"Fluorescent - T5 and T5HO 4ft","1L F54 T5HO",62]
[null,null,null,null,null,null,null,null,null,null,null,null,null,null,null,null,null,null,null,null,null,null,null,null,null,null,null,null,null,null,null,null,null,null,null,null,null,null,null,"Fluorescent - T5 and T5HO 4ft","2L F54 T5HO",117]
[null,null,null,null,null,null,null,null,null,null,null,null,null,null,null,null,null,null,null,null,null,null,null,null,null,null,null,null,null,null,null,null,null,null,null,null,null,null,null,"Fluorescent - T5 and T5HO 4ft","3L F54 T5HO",179]
[null,null,null,null,null,null,null,null,null,null,null,null,null,null,null,null,null,null,null,null,null,null,null,null,null,null,null,null,null,null,null,null,null,null,null,null,null,null,null,"Fluorescent - T5 and T5HO 4ft","4L F54 T5HO HB",234]
[null,null,null,null,null,null,null,null,null,null,null,null,null,null,null,null,null,null,null,null,null,null,null,null,null,null,null,null,null,null,null,null,null,null,null,null,null,null,null,"Fluorescent - T5 and T5HO 4ft","6L F54 T5HO HB",355]
[null,null,null,null,null,null,null,null,null,null,null,null,null,null,null,null,null,null,null,null,null,null,null,null,null,null,null,null,null,null,null,null,null,null,null,null,null,null,null,"Fluorescent - T5 and T5HO 4ft","8L F54 T5HO HB",468]
[null,null,null,null,null,null,null,null,null,null,null,null,null,null,null,null,null,null,null,null,null,null,null,null,null,null,null,null,null,null,null,null,null,null,null,null,null,null,null,"Fluorescent - T5 and T5HO 4ft","10L F54 T5HO HB",585]
[null,null,null,null,null,null,null,null,null,null,null,null,null,null,null,null,null,null,null,null,null,null,null,null,null,null,null,null,null,null,null,null,null,null,null,null,null,null,null,"Fluorescent - T5 and T5HO 4ft","26 watt T5 Lamp",26]
[null,null,null,null,null,null,null,null,null,null,null,null,null,null,null,null,null,null,null,null,null,null,null,null,null,null,null,null,null,null,null,null,null,null,null,null,null,null,null,"Fluorescent - T5 and T5HO 4ft","28 watt T5 Lamp",28]
[null,null,null,null,null,null,null,null,null,null,null,null,null,null,null,null,null,null,null,null,null,null,null,null,null,null,null,null,null,null,null,null,null,null,null,null,null,null,null,"Fluorescent - T5 and T5HO 4ft","44 watt T5HO Lamp",44]
[null,null,null,null,null,null,null,null,null,null,null,null,null,null,null,null,null,null,null,null,null,null,null,null,null,null,null,null,null,null,null,null,null,null,null,null,null,null,null,"Fluorescent - T5 and T5HO 4ft","47 watt T5HO Lamp",47]
[null,null,null,null,null,null,null,null,null,null,null,null,null,null,null,null,null,null,null,null,null,null,null,null,null,null,null,null,null,null,null,null,null,null,null,null,null,null,null,"Fluorescent - T5 and T5HO 4ft","49 watt T5HO Lamp",49]
[null,null,null,null,null,null,null,null,null,null,null,null,null,null,null,null,null,null,null,null,null,null,null,null,null,null,null,null,null,null,null,null,null,null,null,null,null,null,null,"Fluorescent - T5 and T5HO 4ft","51 watt T5HO Lamp",51]
[null,null,null,null,null,null,null,null,null,null,null,null,null,null,null,null,null,null,null,null,null,null,null,null,null,null,null,null,null,null,null,null,null,null,null,null,null,null,null,"Fluorescent - T5 and T5HO 4ft","54 watt T5HO Lamp",54]
[null,null,null,null,null,null,null,null,null,null,null,null,null,null,null,null,null,null,null,null,null,null,null,null,null,null,null,null,null,null,null,null,null,null,null,null,null,null,null,"Fluorescent - T8 1.5ft","1L 15W T8",20]
[null,null,null,null,null,null,null,null,null,null,null,null,null,null,null,null,null,null,null,null,null,null,null,null,null,null,null,null,null,null,null,null,null,null,null,null,null,null,null,"Fluorescent - T8 1.5ft","2L 15W T8",38]
[null,null,null,null,null,null,null,null,null,null,null,null,null,null,null,null,null,null,null,null,null,null,null,null,null,null,null,null,null,null,null,null,null,null,null,null,null,null,null,"Fluorescent - T8 2ft","1L F17 T8 ",20]
[null,null,null,null,null,null,null,null,null,null,null,null,null,null,null,null,null,null,null,null,null,null,null,null,null,null,null,null,null,null,null,null,null,null,null,null,null,null,null,"Fluorescent - T8 2ft","2L F17 T8 ",36]
[null,null,null,null,null,null,null,null,null,null,null,null,null,null,null,null,null,null,null,null,null,null,null,null,null,null,null,null,null,null,null,null,null,null,null,null,null,null,null,"Fluorescent - T8 2ft","3L F17 T8 ",52]
[null,null,null,null,null,null,null,null,null,null,null,null,null,null,null,null,null,null,null,null,null,null,null,null,null,null,null,null,null,null,null,null,null,null,null,null,null,null,null,"Fluorescent - T8 2ft","4L F17 T8 ",66]
[null,null,null,null,null,null,null,null,null,null,null,null,null,null,null,null,null,null,null,null,null,null,null,null,null,null,null,null,null,null,null,null,null,null,null,null,null,null,null,"Fluorescent - T8 3ft","1L F25 T8 3 ft",27]
[null,null,null,null,null,null,null,null,null,null,null,null,null,null,null,null,null,null,null,null,null,null,null,null,null,null,null,null,null,null,null,null,null,null,null,null,null,null,null,"Fluorescent - T8 3ft","2L F25 T8 3 ft",50]
[null,null,null,null,null,null,null,null,null,null,null,null,null,null,null,null,null,null,null,null,null,null,null,null,null,null,null,null,null,null,null,null,null,null,null,null,null,null,null,"Fluorescent - T8 3ft","3L F25 T8 3 ft",73]
[null,null,null,null,null,null,null,null,null,null,null,null,null,null,null,null,null,null,null,null,null,null,null,null,null,null,null,null,null,null,null,null,null,null,null,null,null,null,null,"Fluorescent - T8 3ft","4L F25 T8 3 ft",96]
[null,null,null,null,null,null,null,null,null,null,null,null,null,null,null,null,null,null,null,null,null,null,null,null,null,null,null,null,null,null,null,null,null,null,null,null,null,null,null,"Fluorescent - T8 3ft","6L F25 T8 3 ft",135]
[null,null,null,null,null,null,null,null,null,null,null,null,null,null,null,null,null,null,null,null,null,null,null,null,null,null,null,null,null,null,null,null,null,null,null,null,null,null,null,"Fluorescent - T8 4ft","1L F32 T8 Low BF",26]
[null,null,null,null,null,null,null,null,null,null,null,null,null,null,null,null,null,null,null,null,null,null,null,null,null,null,null,null,null,null,null,null,null,null,null,null,null,null,null,"Fluorescent - T8 4ft","2L F32 T8 Low BF",52]
[null,null,null,null,null,null,null,null,null,null,null,null,null,null,null,null,null,null,null,null,null,null,null,null,null,null,null,null,null,null,null,null,null,null,null,null,null,null,null,"Fluorescent - T8 4ft","3L F32 T8 Low BF",78]
[null,null,null,null,null,null,null,null,null,null,null,null,null,null,null,null,null,null,null,null,null,null,null,null,null,null,null,null,null,null,null,null,null,null,null,null,null,null,null,"Fluorescent - T8 4ft","4L F32 T8 Low BF",104]
[null,null,null,null,null,null,null,null,null,null,null,null,null,null,null,null,null,null,null,null,null,null,null,null,null,null,null,null,null,null,null,null,null,null,null,null,null,null,null,"Fluorescent - T8 4ft","1L F32 T8 Normal BF",33]
[null,null,null,null,null,null,null,null,null,null,null,null,null,null,null,null,null,null,null,null,null,null,null,null,null,null,null,null,null,null,null,null,null,null,null,null,null,null,null,"Fluorescent - T8 4ft","2L F32 T8 Normal BF",61]
[null,null,null,null,null,null,null,null,null,null,null,null,null,null,null,null,null,null,null,null,null,null,null,null,null,null,null,null,null,null,null,null,null,null,null,null,null,null,null,"Fluorescent - T8 4ft","3L F32 T8 Normal BF",91]
[null,null,null,null,null,null,null,null,null,null,null,null,null,null,null,null,null,null,null,null,null,null,null,null,null,null,null,null,null,null,null,null,null,null,null,null,null,null,null,"Fluorescent - T8 4ft","4L F32 T8 Normal BF",120]
[null,null,null,null,null,null,null,null,null,null,null,null,null,null,null,null,null,null,null,null,null,null,null,null,null,null,null,null,null,null,null,null,null,null,null,null,null,null,null,"Fluorescent - T8 4ft","1L F32 T8 High BF",39]
[null,null,null,null,null,null,null,null,null,null,null,null,null,null,null,null,null,null,null,null,null,null,null,null,null,null,null,null,null,null,null,null,null,null,null,null,null,null,null,"Fluorescent - T8 4ft","2L F32 T8 High BF",77]
[null,null,null,null,null,null,null,null,null,null,null,null,null,null,null,null,null,null,null,null,null,null,null,null,null,null,null,null,null,null,null,null,null,null,null,null,null,null,null,"Fluorescent - T8 4ft","3L F32 T8 High BF",115]
[null,null,null,null,null,null,null,null,null,null,null,null,null,null,null,null,null,null,null,null,null,null,null,null,null,null,null,null,null,null,null,null,null,null,null,null,null,null,null,"Fluorescent - T8 4ft","4L F32 T8 High BF",151]
[null,null,null,null,null,null,null,null,null,null,null,null,null,null,null,null,null,null,null,null,null,null,null,null,null,null,null,null,null,null,null,null,null,null,null,null,null,null,null,"Fluorescent - T8 4ft","4L F32 T8 HB",151]
[null,null,null,null,null,null,null,null,null,null,null,null,null,null,null,null,null,null,null,null,null,null,null,null,null,null,null,null,null,null,null,null,null,null,null,null,null,null,null,"Fluorescent - T8 4ft","6L F32 T8 HB",224]
[null,null,null,null,null,null,null,null,null,null,null,null,null,null,null,null,null,null,null,null,null,null,null,null,null,null,null,null,null,null,null,null,null,null,null,null,null,null,null,"Fluorescent - T8 4ft","8L F32 T8 HB",291]
[null,null,null,null,null,null,null,null,null,null,null,null,null,null,null,null,null,null,null,null,null,null,null,null,null,null,null,null,null,null,null,null,null,null,null,null,null,null,null,"Fluorescent - T8 4ft","10L F32 T8 HB",368]
[null,null,null,null,null,null,null,null,null,null,null,null,null,null,null,null,null,null,null,null,null,null,null,null,null,null,null,null,null,null,null,null,null,null,null,null,null,null,null,"Fluorescent - T8 4ft (Std ballast, RW lamps)","1L F25 T8",25]
[null,null,null,null,null,null,null,null,null,null,null,null,null,null,null,null,null,null,null,null,null,null,null,null,null,null,null,null,null,null,null,null,null,null,null,null,null,null,null,"Fluorescent - T8 4ft (Std ballast, RW lamps)","2L F25 T8",45]
[null,null,null,null,null,null,null,null,null,null,null,null,null,null,null,null,null,null,null,null,null,null,null,null,null,null,null,null,null,null,null,null,null,null,null,null,null,null,null,"Fluorescent - T8 4ft (Std ballast, RW lamps)","3L F25 T8",65]
[null,null,null,null,null,null,null,null,null,null,null,null,null,null,null,null,null,null,null,null,null,null,null,null,null,null,null,null,null,null,null,null,null,null,null,null,null,null,null,"Fluorescent - T8 4ft (Std ballast, RW lamps)","4L F25 T8",86]
[null,null,null,null,null,null,null,null,null,null,null,null,null,null,null,null,null,null,null,null,null,null,null,null,null,null,null,null,null,null,null,null,null,null,null,null,null,null,null,"Fluorescent - T8 4ft (Std ballast, RW lamps)","4L F25 T8 HB",123]
[null,null,null,null,null,null,null,null,null,null,null,null,null,null,null,null,null,null,null,null,null,null,null,null,null,null,null,null,null,null,null,null,null,null,null,null,null,null,null,"Fluorescent - T8 4ft (Std ballast, RW lamps)","1L F28 T8",26]
[null,null,null,null,null,null,null,null,null,null,null,null,null,null,null,null,null,null,null,null,null,null,null,null,null,null,null,null,null,null,null,null,null,null,null,null,null,null,null,"Fluorescent - T8 4ft (Std ballast, RW lamps)","2L F28 T8",50]
[null,null,null,null,null,null,null,null,null,null,null,null,null,null,null,null,null,null,null,null,null,null,null,null,null,null,null,null,null,null,null,null,null,null,null,null,null,null,null,"Fluorescent - T8 4ft (Std ballast, RW lamps)","3L F28 T8",74]
[null,null,null,null,null,null,null,null,null,null,null,null,null,null,null,null,null,null,null,null,null,null,null,null,null,null,null,null,null,null,null,null,null,null,null,null,null,null,null,"Fluorescent - T8 4ft (Std ballast, RW lamps)","4L F28 T8",98]
[null,null,null,null,null,null,null,null,null,null,null,null,null,null,null,null,null,null,null,null,null,null,null,null,null,null,null,null,null,null,null,null,null,null,null,null,null,null,null,"Fluorescent - T8 4ft (Std ballast, RW lamps)","4L F28 T8 HB",130]
[null,null,null,null,null,null,null,null,null,null,null,null,null,null,null,null,null,null,null,null,null,null,null,null,null,null,null,null,null,null,null,null,null,null,null,null,null,null,null,"Fluorescent - T8 4ft (Std ballast, RW lamps)","6L F28 T8 HB",194]
[null,null,null,null,null,null,null,null,null,null,null,null,null,null,null,null,null,null,null,null,null,null,null,null,null,null,null,null,null,null,null,null,null,null,null,null,null,null,null,"Fluorescent - T8 4ft (Std ballast, RW lamps)","1L F30 T8",30]
[null,null,null,null,null,null,null,null,null,null,null,null,null,null,null,null,null,null,null,null,null,null,null,null,null,null,null,null,null,null,null,null,null,null,null,null,null,null,null,"Fluorescent - T8 4ft (Std ballast, RW lamps)","2L F30 T8",64]
[null,null,null,null,null,null,null,null,null,null,null,null,null,null,null,null,null,null,null,null,null,null,null,null,null,null,null,null,null,null,null,null,null,null,null,null,null,null,null,"Fluorescent - T8 4ft (Std ballast, RW lamps)","3L F30 T8",79]
[null,null,null,null,null,null,null,null,null,null,null,null,null,null,null,null,null,null,null,null,null,null,null,null,null,null,null,null,null,null,null,null,null,null,null,null,null,null,null,"Fluorescent - T8 4ft (Std ballast, RW lamps)","4L F30 T8",105]
[null,null,null,null,null,null,null,null,null,null,null,null,null,null,null,null,null,null,null,null,null,null,null,null,null,null,null,null,null,null,null,null,null,null,null,null,null,null,null,"Fluorescent - CEE HPT8 4ft","1L F32 HPT8 (Low)",27]
[null,null,null,null,null,null,null,null,null,null,null,null,null,null,null,null,null,null,null,null,null,null,null,null,null,null,null,null,null,null,null,null,null,null,null,null,null,null,null,"Fluorescent - CEE HPT8 4ft","2L F32 HPT8 (Low)",48]
[null,null,null,null,null,null,null,null,null,null,null,null,null,null,null,null,null,null,null,null,null,null,null,null,null,null,null,null,null,null,null,null,null,null,null,null,null,null,null,"Fluorescent - CEE HPT8 4ft","3L F32 HPT8 (Low)",72]
[null,null,null,null,null,null,null,null,null,null,null,null,null,null,null,null,null,null,null,null,null,null,null,null,null,null,null,null,null,null,null,null,null,null,null,null,null,null,null,"Fluorescent - CEE HPT8 4ft","4L F32 HPT8 (Low)",95]
[null,null,null,null,null,null,null,null,null,null,null,null,null,null,null,null,null,null,null,null,null,null,null,null,null,null,null,null,null,null,null,null,null,null,null,null,null,null,null,"Fluorescent - CEE HPT8 4ft","1L F32 HPT8 (Normal)",28]
[null,null,null,null,null,null,null,null,null,null,null,null,null,null,null,null,null,null,null,null,null,null,null,null,null,null,null,null,null,null,null,null,null,null,null,null,null,null,null,"Fluorescent - CEE HPT8 4ft","2L F32 HPT8 (Normal)",55]
[null,null,null,null,null,null,null,null,null,null,null,null,null,null,null,null,null,null,null,null,null,null,null,null,null,null,null,null,null,null,null,null,null,null,null,null,null,null,null,"Fluorescent - CEE HPT8 4ft","3L F32 HPT8 (Normal)",82]
[null,null,null,null,null,null,null,null,null,null,null,null,null,null,null,null,null,null,null,null,null,null,null,null,null,null,null,null,null,null,null,null,null,null,null,null,null,null,null,"Fluorescent - CEE HPT8 4ft","4L F32 HPT8 (Normal)",108]
[null,null,null,null,null,null,null,null,null,null,null,null,null,null,null,null,null,null,null,null,null,null,null,null,null,null,null,null,null,null,null,null,null,null,null,null,null,null,null,"Fluorescent - CEE HPT8 4ft","1L F32 HPT8 (High)",37]
[null,null,null,null,null,null,null,null,null,null,null,null,null,null,null,null,null,null,null,null,null,null,null,null,null,null,null,null,null,null,null,null,null,null,null,null,null,null,null,"Fluorescent - CEE HPT8 4ft","2L F32 HPT8 (High)",74]
[null,null,null,null,null,null,null,null,null,null,null,null,null,null,null,null,null,null,null,null,null,null,null,null,null,null,null,null,null,null,null,null,null,null,null,null,null,null,null,"Fluorescent - CEE HPT8 4ft","3L F32 HPT8 (High)",109]
[null,null,null,null,null,null,null,null,null,null,null,null,null,null,null,null,null,null,null,null,null,null,null,null,null,null,null,null,null,null,null,null,null,null,null,null,null,null,null,"Fluorescent - CEE HPT8 4ft","4L F32 HPT8 (High)",145]
[null,null,null,null,null,null,null,null,null,null,null,null,null,null,null,null,null,null,null,null,null,null,null,null,null,null,null,null,null,null,null,null,null,null,null,null,null,null,null,"Fluorescent - CEE RWT8 4ft","1L F32 RWT8 (Low) (28w Lamps)",22]
[null,null,null,null,null,null,null,null,null,null,null,null,null,null,null,null,null,null,null,null,null,null,null,null,null,null,null,null,null,null,null,null,null,null,null,null,null,null,null,"Fluorescent - CEE RWT8 4ft","2L F32 RWT8 (Low) (28w Lamps)",43]
[null,null,null,null,null,null,null,null,null,null,null,null,null,null,null,null,null,null,null,null,null,null,null,null,null,null,null,null,null,null,null,null,null,null,null,null,null,null,null,"Fluorescent - CEE RWT8 4ft","3L F32 RWT8 (Low) (28w Lamps)",63]
[null,null,null,null,null,null,null,null,null,null,null,null,null,null,null,null,null,null,null,null,null,null,null,null,null,null,null,null,null,null,null,null,null,null,null,null,null,null,null,"Fluorescent - CEE RWT8 4ft","4L F32 RWT8 (Low) (28w Lamps)",83]
[null,null,null,null,null,null,null,null,null,null,null,null,null,null,null,null,null,null,null,null,null,null,null,null,null,null,null,null,null,null,null,null,null,null,null,null,null,null,null,"Fluorescent - CEE RWT8 4ft","1L F32 RWT8 (Normal) (28w Lamps)",25]
[null,null,null,null,null,null,null,null,null,null,null,null,null,null,null,null,null,null,null,null,null,null,null,null,null,null,null,null,null,null,null,null,null,null,null,null,null,null,null,"Fluorescent - CEE RWT8 4ft","2L F32 RWT8 (Normal) (28w Lamps)",48]
[null,null,null,null,null,null,null,null,null,null,null,null,null,null,null,null,null,null,null,null,null,null,null,null,null,null,null,null,null,null,null,null,null,null,null,null,null,null,null,"Fluorescent - CEE RWT8 4ft","3L F32 RWT8 (Normal) (28w Lamps)",72]
[null,null,null,null,null,null,null,null,null,null,null,null,null,null,null,null,null,null,null,null,null,null,null,null,null,null,null,null,null,null,null,null,null,null,null,null,null,null,null,"Fluorescent - CEE RWT8 4ft","4L F32 RWT8 (Normal) (28w Lamps)",94]
[null,null,null,null,null,null,null,null,null,null,null,null,null,null,null,null,null,null,null,null,null,null,null,null,null,null,null,null,null,null,null,null,null,null,null,null,null,null,null,"Fluorescent - CEE RWT8 4ft","1L F32 RWT8 (High) (28w Lamps)",33]
[null,null,null,null,null,null,null,null,null,null,null,null,null,null,null,null,null,null,null,null,null,null,null,null,null,null,null,null,null,null,null,null,null,null,null,null,null,null,null,"Fluorescent - CEE RWT8 4ft","2L F32 RWT8 (High) (28w Lamps)",65]
[null,null,null,null,null,null,null,null,null,null,null,null,null,null,null,null,null,null,null,null,null,null,null,null,null,null,null,null,null,null,null,null,null,null,null,null,null,null,null,"Fluorescent - CEE RWT8 4ft","3L F32 RWT8 (High) (28w Lamps)",96]
[null,null,null,null,null,null,null,null,null,null,null,null,null,null,null,null,null,null,null,null,null,null,null,null,null,null,null,null,null,null,null,null,null,null,null,null,null,null,null,"Fluorescent - CEE RWT8 4ft","4L F32 RWT8 (High) (28w Lamps)",131]
[null,null,null,null,null,null,null,null,null,null,null,null,null,null,null,null,null,null,null,null,null,null,null,null,null,null,null,null,null,null,null,null,null,null,null,null,null,null,null,"Fluorescent - CEE RWT8 4ft","1L F32 RWT8 (Low) (25w Lamps)",21]
[null,null,null,null,null,null,null,null,null,null,null,null,null,null,null,null,null,null,null,null,null,null,null,null,null,null,null,null,null,null,null,null,null,null,null,null,null,null,null,"Fluorescent - CEE RWT8 4ft","2L F32 RWT8 (Low) (25w Lamps)",38]
[null,null,null,null,null,null,null,null,null,null,null,null,null,null,null,null,null,null,null,null,null,null,null,null,null,null,null,null,null,null,null,null,null,null,null,null,null,null,null,"Fluorescent - CEE RWT8 4ft","3L F32 RWT8 (Low) (25w Lamps)",57]
[null,null,null,null,null,null,null,null,null,null,null,null,null,null,null,null,null,null,null,null,null,null,null,null,null,null,null,null,null,null,null,null,null,null,null,null,null,null,null,"Fluorescent - CEE RWT8 4ft","4L F32 RWT8 (Low) (25w Lamps)",75]
[null,null,null,null,null,null,null,null,null,null,null,null,null,null,null,null,null,null,null,null,null,null,null,null,null,null,null,null,null,null,null,null,null,null,null,null,null,null,null,"Fluorescent - CEE RWT8 4ft","1L F32 RWT8 (Normal) (25w Lamps)",23]
[null,null,null,null,null,null,null,null,null,null,null,null,null,null,null,null,null,null,null,null,null,null,null,null,null,null,null,null,null,null,null,null,null,null,null,null,null,null,null,"Fluorescent - CEE RWT8 4ft","2L F32 RWT8 (Normal) (25w Lamps)",43]
[null,null,null,null,null,null,null,null,null,null,null,null,null,null,null,null,null,null,null,null,null,null,null,null,null,null,null,null,null,null,null,null,null,null,null,null,null,null,null,"Fluorescent - CEE RWT8 4ft","3L F32 RWT8 (Normal) (25w Lamps)",64]
[null,null,null,null,null,null,null,null,null,null,null,null,null,null,null,null,null,null,null,null,null,null,null,null,null,null,null,null,null,null,null,null,null,null,null,null,null,null,null,"Fluorescent - CEE RWT8 4ft","4L F32 RWT8 (Normal) (25w Lamps)",85]
[null,null,null,null,null,null,null,null,null,null,null,null,null,null,null,null,null,null,null,null,null,null,null,null,null,null,null,null,null,null,null,null,null,null,null,null,null,null,null,"Fluorescent - CEE RWT8 4ft","1L F32 RWT8 (High) (25w Lamps)",31]
[null,null,null,null,null,null,null,null,null,null,null,null,null,null,null,null,null,null,null,null,null,null,null,null,null,null,null,null,null,null,null,null,null,null,null,null,null,null,null,"Fluorescent - CEE RWT8 4ft","2L F32 RWT8 (High) (25w Lamps)",60]
[null,null,null,null,null,null,null,null,null,null,null,null,null,null,null,null,null,null,null,null,null,null,null,null,null,null,null,null,null,null,null,null,null,null,null,null,null,null,null,"Fluorescent - CEE RWT8 4ft","3L F32 RWT8 (High) (25w Lamps)",93]
[null,null,null,null,null,null,null,null,null,null,null,null,null,null,null,null,null,null,null,null,null,null,null,null,null,null,null,null,null,null,null,null,null,null,null,null,null,null,null,"Fluorescent - CEE RWT8 4ft","4L F32 RWT8 (High) (25w Lamps)",122]
[null,null,null,null,null,null,null,null,null,null,null,null,null,null,null,null,null,null,null,null,null,null,null,null,null,null,null,null,null,null,null,null,null,null,null,null,null,null,null,"Fluorescent - T8 5ft","1L F40 T8",36]
[null,null,null,null,null,null,null,null,null,null,null,null,null,null,null,null,null,null,null,null,null,null,null,null,null,null,null,null,null,null,null,null,null,null,null,null,null,null,null,"Fluorescent - T8 5ft","2L F40 T8",72]
[null,null,null,null,null,null,null,null,null,null,null,null,null,null,null,null,null,null,null,null,null,null,null,null,null,null,null,null,null,null,null,null,null,null,null,null,null,null,null,"Fluorescent - T8 5ft","3L F40 T8",106]
[null,null,null,null,null,null,null,null,null,null,null,null,null,null,null,null,null,null,null,null,null,null,null,null,null,null,null,null,null,null,null,null,null,null,null,null,null,null,null,"Fluorescent - T8 5ft","4L F40 T8",134]
[null,null,null,null,null,null,null,null,null,null,null,null,null,null,null,null,null,null,null,null,null,null,null,null,null,null,null,null,null,null,null,null,null,null,null,null,null,null,null,"Fluorescent - T8 8ft","1L F96T8 (57watt Lamps)",51]
[null,null,null,null,null,null,null,null,null,null,null,null,null,null,null,null,null,null,null,null,null,null,null,null,null,null,null,null,null,null,null,null,null,null,null,null,null,null,null,"Fluorescent - T8 8ft","1L F96T8 (59watt Lamps)",61]
[null,null,null,null,null,null,null,null,null,null,null,null,null,null,null,null,null,null,null,null,null,null,null,null,null,null,null,null,null,null,null,null,null,null,null,null,null,null,null,"Fluorescent - T8 8ft","2L F96T8 (57watt Lamps)",100]
[null,null,null,null,null,null,null,null,null,null,null,null,null,null,null,null,null,null,null,null,null,null,null,null,null,null,null,null,null,null,null,null,null,null,null,null,null,null,null,"Fluorescent - T8 8ft","2L F96T8 (59watt Lamps)",107]
[null,null,null,null,null,null,null,null,null,null,null,null,null,null,null,null,null,null,null,null,null,null,null,null,null,null,null,null,null,null,null,null,null,null,null,null,null,null,null,"Fluorescent - T8 8ft","3L F96T8 (59watt Lamps)",167]
[null,null,null,null,null,null,null,null,null,null,null,null,null,null,null,null,null,null,null,null,null,null,null,null,null,null,null,null,null,null,null,null,null,null,null,null,null,null,null,"Fluorescent - T8 8ft","4L F96T8 (59watt Lamps)",219]
[null,null,null,null,null,null,null,null,null,null,null,null,null,null,null,null,null,null,null,null,null,null,null,null,null,null,null,null,null,null,null,null,null,null,null,null,null,null,null,"Fluorescent - T8 U-tube","1L FU32T8/6",29]
[null,null,null,null,null,null,null,null,null,null,null,null,null,null,null,null,null,null,null,null,null,null,null,null,null,null,null,null,null,null,null,null,null,null,null,null,null,null,null,"Fluorescent - T8 U-tube","2L FU32T8/6",55]
[null,null,null,null,null,null,null,null,null,null,null,null,null,null,null,null,null,null,null,null,null,null,null,null,null,null,null,null,null,null,null,null,null,null,null,null,null,null,null,"Fluorescent - T8 U-tube","3L FU32T8/6",81]
[null,null,null,null,null,null,null,null,null,null,null,null,null,null,null,null,null,null,null,null,null,null,null,null,null,null,null,null,null,null,null,null,null,null,null,null,null,null,null,"Fluorescent - T8 4ft Lamp Only","25 watt Lamp",22]
[null,null,null,null,null,null,null,null,null,null,null,null,null,null,null,null,null,null,null,null,null,null,null,null,null,null,null,null,null,null,null,null,null,null,null,null,null,null,null,"Fluorescent - T8 4ft Lamp Only","28 watt Lamp",25]
[null,null,null,null,null,null,null,null,null,null,null,null,null,null,null,null,null,null,null,null,null,null,null,null,null,null,null,null,null,null,null,null,null,null,null,null,null,null,null,"Fluorescent - T8 4ft Lamp Only","30 watt Lamp",26]
[null,null,null,null,null,null,null,null,null,null,null,null,null,null,null,null,null,null,null,null,null,null,null,null,null,null,null,null,null,null,null,null,null,null,null,null,null,null,null,"Fluorescent - T8 4ft Lamp Only","32 watt Lamp",28]
[null,null,null,null,null,null,null,null,null,null,null,null,null,null,null,null,null,null,null,null,null,null,null,null,null,null,null,null,null,null,null,null,null,null,null,null,null,null,null,"Fluorescent - T8 8ft Lamp Only","49 watt Lamp",43]
[null,null,null,null,null,null,null,null,null,null,null,null,null,null,null,null,null,null,null,null,null,null,null,null,null,null,null,null,null,null,null,null,null,null,null,null,null,null,null,"Fluorescent - T8 8ft Lamp Only","50 watt Lamp",44]
[null,null,null,null,null,null,null,null,null,null,null,null,null,null,null,null,null,null,null,null,null,null,null,null,null,null,null,null,null,null,null,null,null,null,null,null,null,null,null,"Fluorescent - T8 8ft Lamp Only","51 watt Lamp",45]
[null,null,null,null,null,null,null,null,null,null,null,null,null,null,null,null,null,null,null,null,null,null,null,null,null,null,null,null,null,null,null,null,null,null,null,null,null,null,null,"Fluorescent - T8 8ft Lamp Only","54 watt Lamp",48]
[null,null,null,null,null,null,null,null,null,null,null,null,null,null,null,null,null,null,null,null,null,null,null,null,null,null,null,null,null,null,null,null,null,null,null,null,null,null,null,"Fluorescent - T8 8ft Lamp Only","59 watt Lamp",52]
[null,null,null,null,null,null,null,null,null,null,null,null,null,null,null,null,null,null,null,null,null,null,null,null,null,null,null,null,null,null,null,null,null,null,null,null,null,null,null,"High Pressure Sodium","35 watt HPS",45]
[null,null,null,null,null,null,null,null,null,null,null,null,null,null,null,null,null,null,null,null,null,null,null,null,null,null,null,null,null,null,null,null,null,null,null,null,null,null,null,"High Pressure Sodium","50 watt HPS",65]
[null,null,null,null,null,null,null,null,null,null,null,null,null,null,null,null,null,null,null,null,null,null,null,null,null,null,null,null,null,null,null,null,null,null,null,null,null,null,null,"High Pressure Sodium","70 watt HPS",94,"updated to match 2020 Lighting catalog"]
[null,null,null,null,null,null,null,null,null,null,null,null,null,null,null,null,null,null,null,null,null,null,null,null,null,null,null,null,null,null,null,null,null,null,null,null,null,null,null,"High Pressure Sodium","100 watt HPS",126,"updated to match 2020 Lighting catalog"]
[null,null,null,null,null,null,null,null,null,null,null,null,null,null,null,null,null,null,null,null,null,null,null,null,null,null,null,null,null,null,null,null,null,null,null,null,null,null,null,"High Pressure Sodium","150 watt HPS",179,"updated to match 2020 Lighting catalog"]
[null,null,null,null,null,null,null,null,null,null,null,null,null,null,null,null,null,null,null,null,null,null,null,null,null,null,null,null,null,null,null,null,null,null,null,null,null,null,null,"High Pressure Sodium","200 watt HPS",245]
[null,null,null,null,null,null,null,null,null,null,null,null,null,null,null,null,null,null,null,null,null,null,null,null,null,null,null,null,null,null,null,null,null,null,null,null,null,null,null,"High Pressure Sodium","250 watt HPS",293,"updated to match 2020 Lighting catalog"]
[null,null,null,null,null,null,null,null,null,null,null,null,null,null,null,null,null,null,null,null,null,null,null,null,null,null,null,null,null,null,null,null,null,null,null,null,null,null,null,"High Pressure Sodium","310 watt HPS",365]
[null,null,null,null,null,null,null,null,null,null,null,null,null,null,null,null,null,null,null,null,null,null,null,null,null,null,null,null,null,null,null,null,null,null,null,null,null,null,null,"High Pressure Sodium","360 watt HPS",414]
[null,null,null,null,null,null,null,null,null,null,null,null,null,null,null,null,null,null,null,null,null,null,null,null,null,null,null,null,null,null,null,null,null,null,null,null,null,null,null,"High Pressure Sodium","400 watt HPS",455,"updated to match 2020 Lighting catalog"]
[null,null,null,null,null,null,null,null,null,null,null,null,null,null,null,null,null,null,null,null,null,null,null,null,null,null,null,null,null,null,null,null,null,null,null,null,null,null,null,"High Pressure Sodium","600 watt HPS",665]
[null,null,null,null,null,null,null,null,null,null,null,null,null,null,null,null,null,null,null,null,null,null,null,null,null,null,null,null,null,null,null,null,null,null,null,null,null,null,null,"High Pressure Sodium","750 watt HPS",840]
[null,null,null,null,null,null,null,null,null,null,null,null,null,null,null,null,null,null,null,null,null,null,null,null,null,null,null,null,null,null,null,null,null,null,null,null,null,null,null,"High Pressure Sodium","1000 watt HPS",1079,"updated to match 2020 Lighting catalog"]
[null,null,null,null,null,null,null,null,null,null,null,null,null,null,null,null,null,null,null,null,null,null,null,null,null,null,null,null,null,null,null,null,null,null,null,null,null,null,null,"Incandescent","15W Incandescent",15]
[null,null,null,null,null,null,null,null,null,null,null,null,null,null,null,null,null,null,null,null,null,null,null,null,null,null,null,null,null,null,null,null,null,null,null,null,null,null,null,"Incandescent","25W Incandescent",25]
[null,null,null,null,null,null,null,null,null,null,null,null,null,null,null,null,null,null,null,null,null,null,null,null,null,null,null,null,null,null,null,null,null,null,null,null,null,null,null,"Incandescent","40W Incandescent",40]
[null,null,null,null,null,null,null,null,null,null,null,null,null,null,null,null,null,null,null,null,null,null,null,null,null,null,null,null,null,null,null,null,null,null,null,null,null,null,null,"Incandescent","55W Incandescent",55]
[null,null,null,null,null,null,null,null,null,null,null,null,null,null,null,null,null,null,null,null,null,null,null,null,null,null,null,null,null,null,null,null,null,null,null,null,null,null,null,"Incandescent","60W Incandescent",60]
[null,null,null,null,null,null,null,null,null,null,null,null,null,null,null,null,null,null,null,null,null,null,null,null,null,null,null,null,null,null,null,null,null,null,null,null,null,null,null,"Incandescent","65W Incandescent",65]
[null,null,null,null,null,null,null,null,null,null,null,null,null,null,null,null,null,null,null,null,null,null,null,null,null,null,null,null,null,null,null,null,null,null,null,null,null,null,null,"Incandescent","75W Incandescent",75]
[null,null,null,null,null,null,null,null,null,null,null,null,null,null,null,null,null,null,null,null,null,null,null,null,null,null,null,null,null,null,null,null,null,null,null,null,null,null,null,"Incandescent","100W Incandescent",100]
[null,null,null,null,null,null,null,null,null,null,null,null,null,null,null,null,null,null,null,null,null,null,null,null,null,null,null,null,null,null,null,null,null,null,null,null,null,null,null,"Incandescent","150W Incandescent",150]
[null,null,null,null,null,null,null,null,null,null,null,null,null,null,null,null,null,null,null,null,null,null,null,null,null,null,null,null,null,null,null,null,null,null,null,null,null,null,null,"Incandescent","Other Incandescent","Enter Watts"]
[null,null,null,null,null,null,null,null,null,null,null,null,null,null,null,null,null,null,null,null,null,null,null,null,null,null,null,null,null,null,null,null,null,null,null,null,null,null,null,"Induction","35 watt Induction Fixture",39]
[null,null,null,null,null,null,null,null,null,null,null,null,null,null,null,null,null,null,null,null,null,null,null,null,null,null,null,null,null,null,null,null,null,null,null,null,null,null,null,"Induction","55 watt Induction Fixture",58]
[null,null,null,null,null,null,null,null,null,null,null,null,null,null,null,null,null,null,null,null,null,null,null,null,null,null,null,null,null,null,null,null,null,null,null,null,null,null,null,"Induction","70 watt Induction Fixture",77]
[null,null,null,null,null,null,null,null,null,null,null,null,null,null,null,null,null,null,null,null,null,null,null,null,null,null,null,null,null,null,null,null,null,null,null,null,null,null,null,"Induction","85 watt Induction Fixture",90]
[null,null,null,null,null,null,null,null,null,null,null,null,null,null,null,null,null,null,null,null,null,null,null,null,null,null,null,null,null,null,null,null,null,null,null,null,null,null,null,"Induction","100 watt Induction Fixture",107]
[null,null,null,null,null,null,null,null,null,null,null,null,null,null,null,null,null,null,null,null,null,null,null,null,null,null,null,null,null,null,null,null,null,null,null,null,null,null,null,"Induction","120 watt Induction Fixture",132]
[null,null,null,null,null,null,null,null,null,null,null,null,null,null,null,null,null,null,null,null,null,null,null,null,null,null,null,null,null,null,null,null,null,null,null,null,null,null,null,"Induction","125 watt Induction Fixture",138]
[null,null,null,null,null,null,null,null,null,null,null,null,null,null,null,null,null,null,null,null,null,null,null,null,null,null,null,null,null,null,null,null,null,null,null,null,null,null,null,"Induction","150 watt Induction Fixture",161]
[null,null,null,null,null,null,null,null,null,null,null,null,null,null,null,null,null,null,null,null,null,null,null,null,null,null,null,null,null,null,null,null,null,null,null,null,null,null,null,"Induction","165 watt Induction Fixture",174]
[null,null,null,null,null,null,null,null,null,null,null,null,null,null,null,null,null,null,null,null,null,null,null,null,null,null,null,null,null,null,null,null,null,null,null,null,null,null,null,"Induction","200 watt Induction Fixture",220]
[null,null,null,null,null,null,null,null,null,null,null,null,null,null,null,null,null,null,null,null,null,null,null,null,null,null,null,null,null,null,null,null,null,null,null,null,null,null,null,"Induction","225 watt Induction Fixture",248]
[null,null,null,null,null,null,null,null,null,null,null,null,null,null,null,null,null,null,null,null,null,null,null,null,null,null,null,null,null,null,null,null,null,null,null,null,null,null,null,"Induction","250 watt Induction Fixture",275]
[null,null,null,null,null,null,null,null,null,null,null,null,null,null,null,null,null,null,null,null,null,null,null,null,null,null,null,null,null,null,null,null,null,null,null,null,null,null,null,"Induction","300 watt lnduction Fixture",330]
[null,null,null,null,null,null,null,null,null,null,null,null,null,null,null,null,null,null,null,null,null,null,null,null,null,null,null,null,null,null,null,null,null,null,null,null,null,null,null,"Induction","750 watt lnduction Fixture",825]
[null,null,null,null,null,null,null,null,null,null,null,null,null,null,null,null,null,null,null,null,null,null,null,null,null,null,null,null,null,null,null,null,null,null,null,null,null,null,null,"LED (Other)","LED (Other)","Enter Watts"]
[null,null,null,null,null,null,null,null,null,null,null,null,null,null,null,null,null,null,null,null,null,null,null,null,null,null,null,null,null,null,null,null,null,null,null,null,null,null,null,"LED (ENERGY STAR)","LED (ENERGY STAR Lamps)","Enter Watts"]
[null,null,null,null,null,null,null,null,null,null,null,null,null,null,null,null,null,null,null,null,null,null,null,null,null,null,null,null,null,null,null,null,null,null,null,null,null,null,null,"LED (ENERGY STAR)","LED (ENERGY STAR Fixtures)","Enter Watts"]
[null,null,null,null,null,null,null,null,null,null,null,null,null,null,null,null,null,null,null,null,null,null,null,null,null,null,null,null,null,null,null,null,null,null,null,null,null,null,null,"LED (DLC Outdoor)","LED (DLC Outdoor Pole/Arm-mounted Area & Roadway Luminaires)","Enter Watts"]
[null,null,null,null,null,null,null,null,null,null,null,null,null,null,null,null,null,null,null,null,null,null,null,null,null,null,null,null,null,null,null,null,null,null,null,null,null,null,null,"LED (DLC Outdoor)","LED (DLC Outdoor Pole/Arm-mounted Decorative Luminaires)","Enter Watts"]
[null,null,null,null,null,null,null,null,null,null,null,null,null,null,null,null,null,null,null,null,null,null,null,null,null,null,null,null,null,null,null,null,null,null,null,null,null,null,null,"LED (DLC Outdoor)","LED (DLC Outdoor Full-Cutoff Wall-mounted Area Luminaires)","Enter Watts"]
[null,null,null,null,null,null,null,null,null,null,null,null,null,null,null,null,null,null,null,null,null,null,null,null,null,null,null,null,null,null,null,null,null,null,null,null,null,null,null,"LED (DLC Outdoor)","LED (DLC Outdoor Non-Cutoff & Semi-Cutoff Wall-mounted Area Luminaires)","Enter Watts"]
[null,null,null,null,null,null,null,null,null,null,null,null,null,null,null,null,null,null,null,null,null,null,null,null,null,null,null,null,null,null,null,null,null,null,null,null,null,null,null,"LED (DLC Outdoor)","LED (DLC Bollards)","Enter Watts"]
[null,null,null,null,null,null,null,null,null,null,null,null,null,null,null,null,null,null,null,null,null,null,null,null,null,null,null,null,null,null,null,null,null,null,null,null,null,null,null,"LED (DLC Outdoor)","LED (DLC Parking Garage Luminaires)","Enter Watts"]
[null,null,null,null,null,null,null,null,null,null,null,null,null,null,null,null,null,null,null,null,null,null,null,null,null,null,null,null,null,null,null,null,null,null,null,null,null,null,null,"LED (DLC Outdoor)","LED (DLC Fuel Pump Canopy Luminaires)","Enter Watts"]
[null,null,null,null,null,null,null,null,null,null,null,null,null,null,null,null,null,null,null,null,null,null,null,null,null,null,null,null,null,null,null,null,null,null,null,null,null,null,null,"LED (DLC Outdoor)","LED (DLC L&scape/Accent Flood & Spot Luminaires)","Enter Watts"]
[null,null,null,null,null,null,null,null,null,null,null,null,null,null,null,null,null,null,null,null,null,null,null,null,null,null,null,null,null,null,null,null,null,null,null,null,null,null,null,"LED (DLC Outdoor)","LED (DLC Architectural Flood & Spot Luminaires)","Enter Watts"]
[null,null,null,null,null,null,null,null,null,null,null,null,null,null,null,null,null,null,null,null,null,null,null,null,null,null,null,null,null,null,null,null,null,null,null,null,null,null,null,"LED (DLC Outdoor)","LED (DLC Stairwell & Passageway Luminaires)","Enter Watts"]
[null,null,null,null,null,null,null,null,null,null,null,null,null,null,null,null,null,null,null,null,null,null,null,null,null,null,null,null,null,null,null,null,null,null,null,null,null,null,null,"LED (DLC Indoor)","LED (DLC Wall-wash Luminaires)","Enter Watts"]
[null,null,null,null,null,null,null,null,null,null,null,null,null,null,null,null,null,null,null,null,null,null,null,null,null,null,null,null,null,null,null,null,null,null,null,null,null,null,null,"LED (DLC Indoor)","LED (DLC Track or Mono-point Directional Luminaires)","Enter Watts"]
[null,null,null,null,null,null,null,null,null,null,null,null,null,null,null,null,null,null,null,null,null,null,null,null,null,null,null,null,null,null,null,null,null,null,null,null,null,null,null,"LED (DLC Indoor)","LED (DLC Vertical Refrigerated Case Luminaires-center)","Enter Watts"]
[null,null,null,null,null,null,null,null,null,null,null,null,null,null,null,null,null,null,null,null,null,null,null,null,null,null,null,null,null,null,null,null,null,null,null,null,null,null,null,"LED (DLC Indoor)","LED (DLC Vertical Refrigerated Case Luminaires-end)","Enter Watts"]
[null,null,null,null,null,null,null,null,null,null,null,null,null,null,null,null,null,null,null,null,null,null,null,null,null,null,null,null,null,null,null,null,null,null,null,null,null,null,null,"LED (DLC Indoor)","LED (DLC Horizontal Refrigerated Case Luminaires)","Enter Watts"]
[null,null,null,null,null,null,null,null,null,null,null,null,null,null,null,null,null,null,null,null,null,null,null,null,null,null,null,null,null,null,null,null,null,null,null,null,null,null,null,"LED (DLC Indoor)","LED (DLC Display Case Luminaires)","Enter Watts"]
[null,null,null,null,null,null,null,null,null,null,null,null,null,null,null,null,null,null,null,null,null,null,null,null,null,null,null,null,null,null,null,null,null,null,null,null,null,null,null,"LED (DLC Indoor)","LED (DLC 2x2 Luminaires-Ambient Lighting of Interior Comm. Spaces)","Enter Watts"]
[null,null,null,null,null,null,null,null,null,null,null,null,null,null,null,null,null,null,null,null,null,null,null,null,null,null,null,null,null,null,null,null,null,null,null,null,null,null,null,"LED (DLC Indoor)","LED (DLC 1x4 Luminaires-Ambient Lighting of Interior Comm. Spaces)","Enter Watts"]
[null,null,null,null,null,null,null,null,null,null,null,null,null,null,null,null,null,null,null,null,null,null,null,null,null,null,null,null,null,null,null,null,null,null,null,null,null,null,null,"LED (DLC Indoor)","LED (DLC 2x4 Luminaires-Ambient Lighting of Interior Comm. Spaces)","Enter Watts"]
[null,null,null,null,null,null,null,null,null,null,null,null,null,null,null,null,null,null,null,null,null,null,null,null,null,null,null,null,null,null,null,null,null,null,null,null,null,null,null,"LED (DLC Indoor)","LED (DLC Linear Ambient Luminaires w/ Indirect Component)","Enter Watts"]
[null,null,null,null,null,null,null,null,null,null,null,null,null,null,null,null,null,null,null,null,null,null,null,null,null,null,null,null,null,null,null,null,null,null,null,null,null,null,null,"LED (DLC Indoor)","LED (DLC Direct Linear Ambient Luminaires)","Enter Watts"]
[null,null,null,null,null,null,null,null,null,null,null,null,null,null,null,null,null,null,null,null,null,null,null,null,null,null,null,null,null,null,null,null,null,null,null,null,null,null,null,"LED (DLC Indoor)","LED (DLC High-bay Luminaires for C&I Buildings)","Enter Watts"]
[null,null,null,null,null,null,null,null,null,null,null,null,null,null,null,null,null,null,null,null,null,null,null,null,null,null,null,null,null,null,null,null,null,null,null,null,null,null,null,"LED (DLC Indoor)","LED (DLC Low-bay Luminaires for C&I Buildings)","Enter Watts"]
[null,null,null,null,null,null,null,null,null,null,null,null,null,null,null,null,null,null,null,null,null,null,null,null,null,null,null,null,null,null,null,null,null,null,null,null,null,null,null,"LED (DLC Indoor)","LED (DLC High-bay Aisle Luminaires)","Enter Watts"]
[null,null,null,null,null,null,null,null,null,null,null,null,null,null,null,null,null,null,null,null,null,null,null,null,null,null,null,null,null,null,null,null,null,null,null,null,null,null,null,"LED (DLC Outdoor Retrofit Kit)","LED (DLC Retrofit Kits-Outdoor Pole/Arm-mounted Area & Roadway Luminaires)","Enter Watts"]
[null,null,null,null,null,null,null,null,null,null,null,null,null,null,null,null,null,null,null,null,null,null,null,null,null,null,null,null,null,null,null,null,null,null,null,null,null,null,null,"LED (DLC Outdoor Retrofit Kit)","LED (DLC Retrofit Kits-Outdoor Pole/Arm-mounted Decorative Luminaires)","Enter Watts"]
[null,null,null,null,null,null,null,null,null,null,null,null,null,null,null,null,null,null,null,null,null,null,null,null,null,null,null,null,null,null,null,null,null,null,null,null,null,null,null,"LED (DLC Outdoor Retrofit Kit)","LED (DLC Retrofit Kits-Large Outdoor Pole/Arm-mounted Area & Roadway Luminaires)","Enter Watts"]
[null,null,null,null,null,null,null,null,null,null,null,null,null,null,null,null,null,null,null,null,null,null,null,null,null,null,null,null,null,null,null,null,null,null,null,null,null,null,null,"LED (DLC Outdoor Retrofit Kit)","LED (DLC Retrofit Kits-Full-Cutoff Outdoor Wall-mounted Area Luminaires)","Enter Watts"]
[null,null,null,null,null,null,null,null,null,null,null,null,null,null,null,null,null,null,null,null,null,null,null,null,null,null,null,null,null,null,null,null,null,null,null,null,null,null,null,"LED (DLC Outdoor Retrofit Kit)","LED (DLC Retrofit Kits-Parking Garage Luminaires)","Enter Watts"]
[null,null,null,null,null,null,null,null,null,null,null,null,null,null,null,null,null,null,null,null,null,null,null,null,null,null,null,null,null,null,null,null,null,null,null,null,null,null,null,"LED (DLC Outdoor Retrofit Kit)","LED (DLC Retrofit Kits-Fuel Pump Canopy Luminaires)","Enter Watts"]
[null,null,null,null,null,null,null,null,null,null,null,null,null,null,null,null,null,null,null,null,null,null,null,null,null,null,null,null,null,null,null,null,null,null,null,null,null,null,null,"LED (DLC Indoor Retrofit Kit)","LED (DLC Retrofit Kits-2x2 Luminaires-Ambient Lighting of Interior Comm. Spaces )","Enter Watts"]
[null,null,null,null,null,null,null,null,null,null,null,null,null,null,null,null,null,null,null,null,null,null,null,null,null,null,null,null,null,null,null,null,null,null,null,null,null,null,null,"LED (DLC Indoor Retrofit Kit)","LED (DLC Retrofit Kits-1x4 Luminaires-Ambient Lighting of Interior Comm. Spaces )","Enter Watts"]
[null,null,null,null,null,null,null,null,null,null,null,null,null,null,null,null,null,null,null,null,null,null,null,null,null,null,null,null,null,null,null,null,null,null,null,null,null,null,null,"LED (DLC Indoor Retrofit Kit)","LED (DLC Retrofit Kits-2x4 Luminaires-Ambient Lighting of Interior Comm. Spaces )","Enter Watts"]
[null,null,null,null,null,null,null,null,null,null,null,null,null,null,null,null,null,null,null,null,null,null,null,null,null,null,null,null,null,null,null,null,null,null,null,null,null,null,null,"LED (DLC Indoor Retrofit Kit)","LED (DLC Retrofit Kits-Direct Linear Ambient Luminaires)","Enter Watts"]
[null,null,null,null,null,null,null,null,null,null,null,null,null,null,null,null,null,null,null,null,null,null,null,null,null,null,null,null,null,null,null,null,null,null,null,null,null,null,null,"LED (DLC Indoor Retrofit Kit)","LED (DLC Retrofit Kits-High-bay Luminaires-C&I Buildings)","Enter Watts"]
[null,null,null,null,null,null,null,null,null,null,null,null,null,null,null,null,null,null,null,null,null,null,null,null,null,null,null,null,null,null,null,null,null,null,null,null,null,null,null,"LED (DLC Indoor Retrofit Kit)","LED (DLC Retrofit Kits-Low-bay Luminaires-C&I Buildings)","Enter Watts"]
[null,null,null,null,null,null,null,null,null,null,null,null,null,null,null,null,null,null,null,null,null,null,null,null,null,null,null,null,null,null,null,null,null,null,null,null,null,null,null,"LED (DLC Linear Replacement Lamp)","LED (DLC Four-foot Linear Replacement Lamps )","Enter Watts"]
[null,null,null,null,null,null,null,null,null,null,null,null,null,null,null,null,null,null,null,null,null,null,null,null,null,null,null,null,null,null,null,null,null,null,null,null,null,null,null,"LED (DLC Linear Replacement Lamp)","LED (DLC Two-foot Linear Replacement Lamps )","Enter Watts"]
[null,null,null,null,null,null,null,null,null,null,null,null,null,null,null,null,null,null,null,null,null,null,null,null,null,null,null,null,null,null,null,null,null,null,null,null,null,null,null,"LED (DLC Mogul Screw-Base HID Replacement)","LED (DLC Screw-base HID Lamp Replacement-Outdoor Pole/Arm-mounted Area & Roadway Luminaires)","Enter Watts"]
[null,null,null,null,null,null,null,null,null,null,null,null,null,null,null,null,null,null,null,null,null,null,null,null,null,null,null,null,null,null,null,null,null,null,null,null,null,null,null,"LED (DLC Mogul Screw-Base HID Replacement)","LED (DLC Screw-base HID Lamp Replacement-Outdoor Pole/Arm-mounted Decorative Luminaires)","Enter Watts"]
[null,null,null,null,null,null,null,null,null,null,null,null,null,null,null,null,null,null,null,null,null,null,null,null,null,null,null,null,null,null,null,null,null,null,null,null,null,null,null,"LED (DLC Mogul Screw-Base HID Replacement)","LED (DLC Screw-base HID Lamp Replacement-Outdoor Full Cut-off Wall-mounted Area Luminaires)","Enter Watts"]
[null,null,null,null,null,null,null,null,null,null,null,null,null,null,null,null,null,null,null,null,null,null,null,null,null,null,null,null,null,null,null,null,null,null,null,null,null,null,null,"LED (DLC Mogul Screw-Base HID Replacement)","LED (DLC Screw-base HID Lamp Replacement-Parking Garage Luminaires)","Enter Watts"]
[null,null,null,null,null,null,null,null,null,null,null,null,null,null,null,null,null,null,null,null,null,null,null,null,null,null,null,null,null,null,null,null,null,null,null,null,null,null,null,"LED (DLC Mogul Screw-Base HID Replacement)","LED (DLC Screw-base HID Lamp Replacement-Fuel Pump Canopy Luminaires)","Enter Watts"]
[null,null,null,null,null,null,null,null,null,null,null,null,null,null,null,null,null,null,null,null,null,null,null,null,null,null,null,null,null,null,null,null,null,null,null,null,null,null,null,"LED (DLC Mogul Screw-Base HID Replacement)","LED (DLC Screw-base HID Lamp Replacement-High-bay Luminaires-C&I Buildings)","Enter Watts"]
[null,null,null,null,null,null,null,null,null,null,null,null,null,null,null,null,null,null,null,null,null,null,null,null,null,null,null,null,null,null,null,null,null,null,null,null,null,null,null,"LED (DLC Mogul Screw-Base HID Replacement)","LED (DLC Screw-base HID Lamp Replacement-Low-bay Luminaires-C&I Buildings)","Enter Watts"]
[null,null,null,null,null,null,null,null,null,null,null,null,null,null,null,null,null,null,null,null,null,null,null,null,null,null,null,null,null,null,null,null,null,null,null,null,null,null,null,"Mercury Vapor","40 watt MV",50]
[null,null,null,null,null,null,null,null,null,null,null,null,null,null,null,null,null,null,null,null,null,null,null,null,null,null,null,null,null,null,null,null,null,null,null,null,null,null,null,"Mercury Vapor","50 watt MV",75]
[null,null,null,null,null,null,null,null,null,null,null,null,null,null,null,null,null,null,null,null,null,null,null,null,null,null,null,null,null,null,null,null,null,null,null,null,null,null,null,"Mercury Vapor","75 watt MV",94]
[null,null,null,null,null,null,null,null,null,null,null,null,null,null,null,null,null,null,null,null,null,null,null,null,null,null,null,null,null,null,null,null,null,null,null,null,null,null,null,"Mercury Vapor","100 watt MV",124]
[null,null,null,null,null,null,null,null,null,null,null,null,null,null,null,null,null,null,null,null,null,null,null,null,null,null,null,null,null,null,null,null,null,null,null,null,null,null,null,"Mercury Vapor","175 watt MV",205]
[null,null,null,null,null,null,null,null,null,null,null,null,null,null,null,null,null,null,null,null,null,null,null,null,null,null,null,null,null,null,null,null,null,null,null,null,null,null,null,"Mercury Vapor","250 watt MV",288]
[null,null,null,null,null,null,null,null,null,null,null,null,null,null,null,null,null,null,null,null,null,null,null,null,null,null,null,null,null,null,null,null,null,null,null,null,null,null,null,"Mercury Vapor","400 watt MV",455]
[null,null,null,null,null,null,null,null,null,null,null,null,null,null,null,null,null,null,null,null,null,null,null,null,null,null,null,null,null,null,null,null,null,null,null,null,null,null,null,"Mercury Vapor","1000 watt MV",1079]
[null,null,null,null,null,null,null,null,null,null,null,null,null,null,null,null,null,null,null,null,null,null,null,null,null,null,null,null,null,null,null,null,null,null,null,null,null,null,null,"Metal Halide","20/22 watt MH",25]
[null,null,null,null,null,null,null,null,null,null,null,null,null,null,null,null,null,null,null,null,null,null,null,null,null,null,null,null,null,null,null,null,null,null,null,null,null,null,null,"Metal Halide","32 watt MH",40]
[null,null,null,null,null,null,null,null,null,null,null,null,null,null,null,null,null,null,null,null,null,null,null,null,null,null,null,null,null,null,null,null,null,null,null,null,null,null,null,"Metal Halide","35/39 watt MH",52]
[null,null,null,null,null,null,null,null,null,null,null,null,null,null,null,null,null,null,null,null,null,null,null,null,null,null,null,null,null,null,null,null,null,null,null,null,null,null,null,"Metal Halide","50 watt MH",65]
[null,null,null,null,null,null,null,null,null,null,null,null,null,null,null,null,null,null,null,null,null,null,null,null,null,null,null,null,null,null,null,null,null,null,null,null,null,null,null,"Metal Halide","70 watt MH",94]
[null,null,null,null,null,null,null,null,null,null,null,null,null,null,null,null,null,null,null,null,null,null,null,null,null,null,null,null,null,null,null,null,null,null,null,null,null,null,null,"Metal Halide","100 watt MH",126]
[null,null,null,null,null,null,null,null,null,null,null,null,null,null,null,null,null,null,null,null,null,null,null,null,null,null,null,null,null,null,null,null,null,null,null,null,null,null,null,"Metal Halide","150 watt MH",179]
[null,null,null,null,null,null,null,null,null,null,null,null,null,null,null,null,null,null,null,null,null,null,null,null,null,null,null,null,null,null,null,null,null,null,null,null,null,null,null,"Metal Halide","175 watt MH",210]
[null,null,null,null,null,null,null,null,null,null,null,null,null,null,null,null,null,null,null,null,null,null,null,null,null,null,null,null,null,null,null,null,null,null,null,null,null,null,null,"Metal Halide","200 watt MH",232]
[null,null,null,null,null,null,null,null,null,null,null,null,null,null,null,null,null,null,null,null,null,null,null,null,null,null,null,null,null,null,null,null,null,null,null,null,null,null,null,"Metal Halide","250 watt MH",293]
[null,null,null,null,null,null,null,null,null,null,null,null,null,null,null,null,null,null,null,null,null,null,null,null,null,null,null,null,null,null,null,null,null,null,null,null,null,null,null,"Metal Halide","400 watt MH",455]
[null,null,null,null,null,null,null,null,null,null,null,null,null,null,null,null,null,null,null,null,null,null,null,null,null,null,null,null,null,null,null,null,null,null,null,null,null,null,null,"Metal Halide","1000 watt MH",1079]
[null,null,null,null,null,null,null,null,null,null,null,null,null,null,null,null,null,null,null,null,null,null,null,null,null,null,null,null,null,null,null,null,null,null,null,null,null,null,null,"Metal Halide","1500 watt MH",1609]
[null,null,null,null,null,null,null,null,null,null,null,null,null,null,null,null,null,null,null,null,null,null,null,null,null,null,null,null,null,null,null,null,null,null,null,null,null,null,null,"Metal Halide","1650 watt MH",1765]
[null,null,null,null,null,null,null,null,null,null,null,null,null,null,null,null,null,null,null,null,null,null,null,null,null,null,null,null,null,null,null,null,null,null,null,null,null,null,null,"Metal Halide","2000 watt MH",2140]
[null,null,null,null,null,null,null,null,null,null,null,null,null,null,null,null,null,null,null,null,null,null,null,null,null,null,null,null,null,null,null,null,null,null,null,null,null,null,null,"Pulse Start Metal Halide","50 watt PSMH",67]
[null,null,null,null,null,null,null,null,null,null,null,null,null,null,null,null,null,null,null,null,null,null,null,null,null,null,null,null,null,null,null,null,null,null,null,null,null,null,null,"Pulse Start Metal Halide","70 watt PSMH",88]
[null,null,null,null,null,null,null,null,null,null,null,null,null,null,null,null,null,null,null,null,null,null,null,null,null,null,null,null,null,null,null,null,null,null,null,null,null,null,null,"Pulse Start Metal Halide","100 watt PSMH",123]
[null,null,null,null,null,null,null,null,null,null,null,null,null,null,null,null,null,null,null,null,null,null,null,null,null,null,null,null,null,null,null,null,null,null,null,null,null,null,null,"Pulse Start Metal Halide","125 watt PSMH",146]
[null,null,null,null,null,null,null,null,null,null,null,null,null,null,null,null,null,null,null,null,null,null,null,null,null,null,null,null,null,null,null,null,null,null,null,null,null,null,null,"Pulse Start Metal Halide","150 watt PSMH",181]
[null,null,null,null,null,null,null,null,null,null,null,null,null,null,null,null,null,null,null,null,null,null,null,null,null,null,null,null,null,null,null,null,null,null,null,null,null,null,null,"Pulse Start Metal Halide","175 watt PSMH",199]
[null,null,null,null,null,null,null,null,null,null,null,null,null,null,null,null,null,null,null,null,null,null,null,null,null,null,null,null,null,null,null,null,null,null,null,null,null,null,null,"Pulse Start Metal Halide","200 watt PSMH",225]
[null,null,null,null,null,null,null,null,null,null,null,null,null,null,null,null,null,null,null,null,null,null,null,null,null,null,null,null,null,null,null,null,null,null,null,null,null,null,null,"Pulse Start Metal Halide","250 watt PSMH",281]
[null,null,null,null,null,null,null,null,null,null,null,null,null,null,null,null,null,null,null,null,null,null,null,null,null,null,null,null,null,null,null,null,null,null,null,null,null,null,null,"Pulse Start Metal Halide","320 watt PSMH",356]
[null,null,null,null,null,null,null,null,null,null,null,null,null,null,null,null,null,null,null,null,null,null,null,null,null,null,null,null,null,null,null,null,null,null,null,null,null,null,null,"Pulse Start Metal Halide","350 watt PSMH",393]
[null,null,null,null,null,null,null,null,null,null,null,null,null,null,null,null,null,null,null,null,null,null,null,null,null,null,null,null,null,null,null,null,null,null,null,null,null,null,null,"Pulse Start Metal Halide","400 watt PSMH",445]
[null,null,null,null,null,null,null,null,null,null,null,null,null,null,null,null,null,null,null,null,null,null,null,null,null,null,null,null,null,null,null,null,null,null,null,null,null,null,null,"Pulse Start Metal Halide","450 watt PSMH",493]
[null,null,null,null,null,null,null,null,null,null,null,null,null,null,null,null,null,null,null,null,null,null,null,null,null,null,null,null,null,null,null,null,null,null,null,null,null,null,null,"Pulse Start Metal Halide"," 750 watt PSMH",812]
[null,null,null,null,null,null,null,null,null,null,null,null,null,null,null,null,null,null,null,null,null,null,null,null,null,null,null,null,null,null,null,null,null,null,null,null,null,null,null,"Pulse Start Metal Halide","775 watt PSMH",855]
[null,null,null,null,null,null,null,null,null,null,null,null,null,null,null,null,null,null,null,null,null,null,null,null,null,null,null,null,null,null,null,null,null,null,null,null,null,null,null,"Pulse Start Metal Halide","875 watt PSMH",950]
[null,null,null,null,null,null,null,null,null,null,null,null,null,null,null,null,null,null,null,null,null,null,null,null,null,null,null,null,null,null,null,null,null,null,null,null,null,null,null,"Pulse Start Metal Halide","1000 watt PSMH",1079]
[null,null,null,null,null,null,null,null,null,null,null,null,null,null,null,null,null,null,null,null,null,null,null,null,null,null,null,null,null,null,null,null,null,null,null,null,null,null,null,"Neon","9mm Neon",15]
[null,null,null,null,null,null,null,null,null,null,null,null,null,null,null,null,null,null,null,null,null,null,null,null,null,null,null,null,null,null,null,null,null,null,null,null,null,null,null,"Neon","10mm Neon",13]
[null,null,null,null,null,null,null,null,null,null,null,null,null,null,null,null,null,null,null,null,null,null,null,null,null,null,null,null,null,null,null,null,null,null,null,null,null,null,null,"Neon","11mm Neon",10]
[null,null,null,null,null,null,null,null,null,null,null,null,null,null,null,null,null,null,null,null,null,null,null,null,null,null,null,null,null,null,null,null,null,null,null,null,null,null,null,"Neon","12mm Neon",8]
[null,null,null,null,null,null,null,null,null,null,null,null,null,null,null,null,null,null,null,null,null,null,null,null,null,null,null,null,null,null,null,null,null,null,null,null,null,null,null,"Neon","13mm Neon",7]
[null,null,null,null,null,null,null,null,null,null,null,null,null,null,null,null,null,null,null,null,null,null,null,null,null,null,null,null,null,null,null,null,null,null,null,null,null,null,null,"Neon","14mm Neon",7]
[null,null,null,null,null,null,null,null,null,null,null,null,null,null,null,null,null,null,null,null,null,null,null,null,null,null,null,null,null,null,null,null,null,null,null,null,null,null,null,"Neon","15mm Neon",7]
[null,null,null,null,null,null,null,null,null,null,null,null,null,null,null,null,null,null,null,null,null,null,null,null,null,null,null,null,null,null,null,null,null,null,null,null,null,null,null,"Neon","18mm Neon",6]
[null,null,null,null,null,null,null,null,null,null,null,null,null,null,null,null,null,null,null,null,null,null,null,null,null,null,null,null,null,null,null,null,null,null,null,null,null,null,null,"Neon","20mm Neon",5]
[null,null,null,null,null,null,null,null,null,null,null,null,null,null,null,null,null,null,null,null,null,null,null,null,null,null,null,null,null,null,null,null,null,null,null,null,null,null,null,"Neon","22mm Neon",4]
[null,null,null,null,null,null,null,null,null,null,null,null,null,null,null,null,null,null,null,null,null,null,null,null,null,null,null,null,null,null,null,null,null,null,null,null,null,null,null,"Neon","25mm Neon",3]
[null,null,null,null,null,null,null,null,null,null,null,null,null,null,null,null,null,null,null,null,null,null,null,null,null,null,null,null,null,null,null,null,null,null,null,null,null,null,null,"Other Lamp or Fixture","None",0]
[null,null,null,null,null,null,null,null,null,null,null,null,null,null,null,null,null,null,null,null,null,null,null,null,null,null,null,null,null,null,null,null,null,null,null,null,null,null,null,"Other Lamp or Fixture","Other (Describe)","Enter Watts"]

{"sheet":"QPLs","index":3,"n_rows":1,"n_cols":1,"rows_kept":1,"cut":false,"hidden":false,"merged":[]}
["Insert/Embed Equipment and Controls DLC QPLs"]

{"sheet":"Invoice_Optional","index":4,"n_rows":1,"n_cols":1,"rows_kept":1,"cut":false,"hidden":false,"merged":[]}
["Insert/Embed Invoice **Optional**"]

{"sheet":"Savings and Incentives","index":5,"n_rows":41,"n_cols":17,"rows_kept":41,"cut":false,"hidden":false,"merged":[[2,5,2,6],[5,1,5,3],[4,1,4,3],[3,1,3,3],[6,1,6,3],[7,1,7,3],[8,1,8,3],[6,5,10,5],[16,1,16,3],[17,1,17,3],[14,1,14,3],[10,1,10,3],[11,1,11,3],[12,1,12,3],[13,1,13,3]]}
[null,null,null,null,null,"Last Updated: ",{"$f":"MAX('Version History'!$B$5:$B$20)","v":"2021-03-18"}]
[null,"Additional Information"]
[]
[null,"L5029: CLS - Fixture or Retrofit Kit Only"]
[null,"L5031: CLS - Fixture or Retrofit Kit/Lamp with Connected Controls, Interior"]
[null,"L5030: CLS - Fixture or Retrofit Kit/Lamp with Connected Controls, Exterior"]
[]
[]
[null,"SECTOR (Choose from dropdown)"]
[]
[]
[null,"EXISTING AVERAGE FOOTCANDLES*"]
[]
[null,"PROPOSED AVERAGE FOOTCANDLES*"]
[null,"*Footcandles at working surface for space type with largest square footage"]
[]
[]
[null,"ESTIMATED COMPLETION DATE"]
[]
[]
[null,"Energy Savings  (If TA calc used, paste or link savings values from calc tab)"]
[null,null,"L5029","L5031","L5030"]
[null,"Annual kW Savings",{"$f":"Calculations!K1028","v":0},{"$f":"Calculations!K1029","v":0},{"$f":"Calculations!K1030","v":0}]
[null,"Annual kWh Savings",{"$f":"Calculations!L1028","v":0},{"$f":"Calculations!L1029","v":0},{"$f":"Calculations!L1030","v":0}]
[null,"Lifecycle kWh Savings",{"$f":"Calculations!M1028","v":0},{"$f":"Calculations!M1029","v":0},{"$f":"Calculations!M1030","v":0}]
[]
[null,null,null,null,null,null,null,null,null,null,null,null,null,"CLS - Fixture or Retrofit Kit Only ",null,null,0.25]
[null,null,null,null,null,null,null,null,null,null,null,null,null,"CLS - Fixture or Retrofit Kit/Lamp with Connected Controls, Interior",null,null,0.45]
[null,"Estimated Incentive Amount (If TA calc used, paste or link kWh reduced values from calc tab)",null,null,null,null,null,null,null,null,null,null,null,"CLS - Fixture or Retrofit Kit/Lamp with Connected Controls, Exterior",null,null,0.5]
[]
[null,null,"L5029","L5031","L5030"]
[null,"Project Cost"]
[null,"Incentive Rate ($/Watt Reduced)",0.25,0.45,0.5]
[null,"Watts Reduced",{"$f":"Calculations!R1028","v":0},{"$f":"Calculations!R1029","v":0},{"$f":"Calculations!R1030","v":0}]
[null,"Total Incentive",{"$f":"C33*C34","v":0},{"$f":"D33*D34","v":0},0]
[]
[null,"Incentive Limits"]
[null,"Incentive Capped at 50% Cost",{"$f":"IFERROR(ROUND(C32*0.5,2),\"\")","v":0},{"$f":"IFERROR(ROUND(D32*0.5,2),\"\")","v":0},0]
[null,"Incentive Capped at $300,000",{"$f":"MIN(C35,300000)","v":0},{"$f":"MIN(D35,300000)","v":0},0]
[null,"Incentive Based on Energy Savings",{"$f":"IFERROR(C35,\"\")","v":0},{"$f":"IFERROR(D35,\"\")","v":0},0]
[null,"Final Incentive",{"$f":"MIN(C38:C40)","v":0},{"$f":"MIN(D38:D40)","v":0},{"$f":"MIN(E38:E40)","v":0}]